Workbook

Sheet Intro
G2: Electricity Distribution Network Service Provider
I3: RFM - Depreciation tracking module
L4: Version: | M4: 1
L5: Date: | M5: April 2020
B8: Introduction | J8: Electricity distribution module
C14: This attachment to the RFM is used by the AER to determine the forecast regulatory asset base (RAB) and tax asset base (TAB) depreciation for a distribution network service provider.
C15: It also calculates the actual tax depreciation for use in the RFM.
C17: INSTRUCTIONS FOR USE
C18: The RFM handbook, which contains information on this depreciation tracking module, is available on the AER website at http://www.aer.gov.au
C20: a. Fill out input cells on the 'RAB input' and 'TAB input' sheets. These input cells are highlighted blue.
C21: This provides the data for the depreciation tracking calculations.
C22: In general, input expenditure data should be valued in nominal dollar terms of the year indicated.
C23: Units and basis for entry are specified where required for each data table.
C24: Not all input cells require an input - be sure to read and follow the instructions contained within the comments for each section heading.
C25: All relevant inputs are to be filled on an ongoing basis, with the details of past expenditure and asset lives to be preserved.
C27: b. The values in the 'Tracking output' sheet
C28: This sheet summarises the key outputs of the year-by-year tracking approach, which includes forecast RAB and TAB depreciation to be input into the PTRM
C29: as well as actual tax depreciation for the current regulatory period to be input into the RFM.
C31: VERSION RECORD
C33: Version | D33: Date | F33: Description
C34: 1 | D34: April 2020 | F34: Initial module

Sheet RAB input
E2: =IF($F$8='TAB input'!$F$8, $F$8, 'TAB input'!$F$8) & " - RAB input - Elec DNSP "&Intro!$I$3&" - version "& Intro!$M$4 -> TasNetworks D - RAB input - Elec DNSP RFM - Depreciation tracking module - version 1 | J2: Input cells in blue
E4: Year | F4: =IF(LEN($H$9)>4, CONCATENATE(LEFT($H$9, 4)-2 & "-" & IF(AND(RIGHT($H$9, 2)<"12", RIGHT($H$9, 2)>"01"), "0", "") & IF(RIGHT($H$9, 2)="00", "98", IF(RIGHT($H$9, 2)="01", "99", RIGHT($H$9, 2)-2))), $H$9-2) -> 2010-11 | G4: =IF(LEN(F4)>4,CONCATENATE(LEFT(F4,4)+1&"-"&IF(RIGHT(F4, 2)<"09", "0","")&IF(RIGHT(F4, 2)="99", "00", RIGHT(F4,2)+1)),F4+1) -> 2011-12 | H4: =IF(LEN(G4)>4,CONCATENATE(LEFT(G4,4)+1&"-"&IF(RIGHT(G4, 2)<"09", "0","")&IF(RIGHT(G4, 2)="99", "00", RIGHT(G4,2)+1)),G4+1) -> 2012-13 | I4: 2013-14 | J4: 2014-15 | K4: 2015-16 | L4: 2016-17 | M4: 2017-18 | N4: 2018-19 | O4: 2019-20 | P4: 2020-21 | Q4: 2021-22 | R4: 2022-23 | S4: 2023-24 | T4: 2024-25 | U4: 2025-26 | V4: 2026-27 | W4: 2027-28 | X4: 2028-29 | Y4: 2029-30 | Z4: 2030-31 | AA4: 2031-32 | AB4: 2032-33 | AC4: 2033-34 | AD4: 2034-35 | AE4: 2035-36 | AF4: 2036-37 | AG4: 2037-38 | AH4: 2038-39 | AI4: 2039-40 | AJ4: 2040-41 | AK4: 2041-42 | AL4: 2042-43 | AM4: 2043-44 | AN4: 2044-45 | AO4: 2045-46 | AP4: 2046-47 | AQ4: 2047-48 | AR4: 2048-49 | AS4: 2049-50 | AT4: 2050-51 | AU4: 2051-52 | AV4: 2052-53 | AW4: 2053-54 | AX4: 2054-55 | AY4: 2055-56 | AZ4: 2056-57 | BA4: 2057-58 | BB4: 2058-59 | BC4: 2059-60 | BD4: 2060-61 | BE4: 2061-62 | BF4: 2062-63 | BG4: 2063-64 | BH4: 2064-65 | BI4: 2065-66 | BJ4: 2066-67 | BK4: 2067-68 | BL4: 2068-69 | BM4: 2069-70 | BN4: 2070-71 | BO4: 2071-72 | BP4: 2072-73 | BQ4: 2073-74 | BR4: 2074-75 | BS4: 2075-76 | BT4: =IF(LEN(BS4)>4,CONCATENATE(LEFT(BS4,4)+1&"-"&IF(RIGHT(BS4, 2)<"09", "0","")&IF(RIGHT(BS4, 2)="99", "00", RIGHT(BS4,2)+1)),BS4+1) -> 2076-77 | BU4: 2077-78 | BV4: 2078-79 | BW4: 2079-80 | BX4: 2080-81 | BY4: 2081-82 | BZ4: 2082-83 | CA4: =IF(LEN(BZ4)>4,CONCATENATE(LEFT(BZ4,4)+1&"-"&IF(RIGHT(BZ4, 2)<"09", "0","")&IF(RIGHT(BZ4, 2)="99", "00", RIGHT(BZ4,2)+1)),BZ4+1) -> 2083-84 | CB4: =IF(LEN(CA4)>4,CONCATENATE(LEFT(CA4,4)+1&"-"&IF(RIGHT(CA4, 2)<"09", "0","")&IF(RIGHT(CA4, 2)="99", "00", RIGHT(CA4,2)+1)),CA4+1) -> 2084-85
D6: General information
E8: Business name | F8: TasNetworks D
E9: First regulatory year for tracking | H9: 2012-13 | I9: =IF(SUM($11:$11)=COUNTA($H$9:H$9), "Input for next period", "") ->  | J9: =IF(SUM($11:$11)=COUNTA($H$9:I$9), "Input for next period", "") ->  | K9: =IF(SUM($11:$11)=COUNTA($H$9:J$9), "Input for next period", "") ->  | L9: =IF(SUM($11:$11)=COUNTA($H$9:K$9), "Input for next period", "") ->  | M9: =IF(SUM($11:$11)=COUNTA($H$9:L$9), "Input for next period", "") ->  | N9: =IF(SUM($11:$11)=COUNTA($H$9:M$9), "Input for next period", "") ->  | O9: =IF(SUM($11:$11)=COUNTA($H$9:N$9), "Input for next period", "") ->  | P9: =IF(SUM($11:$11)=COUNTA($H$9:O$9), "Input for next period", "") ->  | Q9: =IF(SUM($11:$11)=COUNTA($H$9:P$9), "Input for next period", "") ->  | R9: =IF(SUM($11:$11)=COUNTA($H$9:Q$9), "Input for next period", "") ->  | S9: =IF(SUM($11:$11)=COUNTA($H$9:R$9), "Input for next period", "") ->  | T9: =IF(SUM($11:$11)=COUNTA($H$9:S$9), "Input for next period", "") -> Input for next period | U9: =IF(SUM($11:$11)=COUNTA($H$9:T$9), "Input for next period", "") ->  | V9: =IF(SUM($11:$11)=COUNTA($H$9:U$9), "Input for next period", "") ->  | W9: =IF(SUM($11:$11)=COUNTA($H$9:V$9), "Input for next period", "") ->  | X9: =IF(SUM($11:$11)=COUNTA($H$9:W$9), "Input for next period", "") ->  | Y9: =IF(SUM($11:$11)=COUNTA($H$9:X$9), "Input for next period", "") ->  | Z9: =IF(SUM($11:$11)=COUNTA($H$9:Y$9), "Input for next period", "") ->  | AA9: =IF(SUM($11:$11)=COUNTA($H$9:Z$9), "Input for next period", "") ->  | AB9: =IF(SUM($11:$11)=COUNTA($H$9:AA$9), "Input for next period", "") ->  | AC9: =IF(SUM($11:$11)=COUNTA($H$9:AB$9), "Input for next period", "") ->  | AD9: =IF(SUM($11:$11)=COUNTA($H$9:AC$9), "Input for next period", "") ->  | AE9: =IF(SUM($11:$11)=COUNTA($H$9:AD$9), "Input for next period", "") ->  | AF9: =IF(SUM($11:$11)=COUNTA($H$9:AE$9), "Input for next period", "") ->  | AG9: =IF(SUM($11:$11)=COUNTA($H$9:AF$9), "Input for next period", "") ->  | AH9: =IF(SUM($11:$11)=COUNTA($H$9:AG$9), "Input for next period", "") ->  | AI9: =IF(SUM($11:$11)=COUNTA($H$9:AH$9), "Input for next period", "") ->  | AJ9: =IF(SUM($11:$11)=COUNTA($H$9:AI$9), "Input for next period", "") ->  | AK9: =IF(SUM($11:$11)=COUNTA($H$9:AJ$9), "Input for next period", "") ->  | AL9: =IF(SUM($11:$11)=COUNTA($H$9:AK$9), "Input for next period", "") ->  | AM9: =IF(SUM($11:$11)=COUNTA($H$9:AL$9), "Input for next period", "") ->  | AN9: =IF(SUM($11:$11)=COUNTA($H$9:AM$9), "Input for next period", "") ->  | AO9: =IF(SUM($11:$11)=COUNTA($H$9:AN$9), "Input for next period", "") ->  | AP9: =IF(SUM($11:$11)=COUNTA($H$9:AO$9), "Input for next period", "") ->  | AQ9: =IF(SUM($11:$11)=COUNTA($H$9:AP$9), "Input for next period", "") ->  | AR9: =IF(SUM($11:$11)=COUNTA($H$9:AQ$9), "Input for next period", "") ->  | AS9: =IF(SUM($11:$11)=COUNTA($H$9:AR$9), "Input for next period", "") ->  | AT9: =IF(SUM($11:$11)=COUNTA($H$9:AS$9), "Input for next period", "") ->  | AU9: =IF(SUM($11:$11)=COUNTA($H$9:AT$9), "Input for next period", "") ->  | AV9: =IF(SUM($11:$11)=COUNTA($H$9:AU$9), "Input for next period", "") ->  | AW9: =IF(SUM($11:$11)=COUNTA($H$9:AV$9), "Input for next period", "") ->  | AX9: =IF(SUM($11:$11)=COUNTA($H$9:AW$9), "Input for next period", "") ->  | AY9: =IF(SUM($11:$11)=COUNTA($H$9:AX$9), "Input for next period", "") ->  | AZ9: =IF(SUM($11:$11)=COUNTA($H$9:AY$9), "Input for next period", "") ->  | BA9: =IF(SUM($11:$11)=COUNTA($H$9:AZ$9), "Input for next period", "") ->  | BB9: =IF(SUM($11:$11)=COUNTA($H$9:BA$9), "Input for next period", "") ->  | BC9: =IF(SUM($11:$11)=COUNTA($H$9:BB$9), "Input for next period", "") ->  | BD9: =IF(SUM($11:$11)=COUNTA($H$9:BC$9), "Input for next period", "") ->  | BE9: =IF(SUM($11:$11)=COUNTA($H$9:BD$9), "Input for next period", "") ->  | BF9: =IF(SUM($11:$11)=COUNTA($H$9:BE$9), "Input for next period", "") ->  | BG9: =IF(SUM($11:$11)=COUNTA($H$9:BF$9), "Input for next period", "") ->  | BH9: =IF(SUM($11:$11)=COUNTA($H$9:BG$9), "Input for next period", "") ->  | BI9: =IF(SUM($11:$11)=COUNTA($H$9:BH$9), "Input for next period", "") ->  | BJ9: =IF(SUM($11:$11)=COUNTA($H$9:BI$9), "Input for next period", "") ->  | BK9: =IF(SUM($11:$11)=COUNTA($H$9:BJ$9), "Input for next period", "") ->  | BL9: =IF(SUM($11:$11)=COUNTA($H$9:BK$9), "Input for next period", "") ->  | BM9: =IF(SUM($11:$11)=COUNTA($H$9:BL$9), "Input for next period", "") ->  | BN9: =IF(SUM($11:$11)=COUNTA($H$9:BM$9), "Input for next period", "") ->  | BO9: =IF(SUM($11:$11)=COUNTA($H$9:BN$9), "Input for next period", "") ->  | BP9: =IF(SUM($11:$11)=COUNTA($H$9:BO$9), "Input for next period", "") ->  | BQ9: =IF(SUM($11:$11)=COUNTA($H$9:BP$9), "Input for next period", "") ->  | BR9: =IF(SUM($11:$11)=COUNTA($H$9:BQ$9), "Input for next period", "") ->  | BS9: =IF(SUM($11:$11)=COUNTA($H$9:BR$9), "Input for next period", "") ->  | BT9: =IF(SUM($11:$11)=COUNTA($H$9:BS$9), "Input for next period", "") ->  | BU9: =IF(SUM($11:$11)=COUNTA($H$9:BT$9), "Input for next period", "") ->  | BV9: =IF(SUM($11:$11)=COUNTA($H$9:BU$9), "Input for next period", "") ->  | BW9: =IF(SUM($11:$11)=COUNTA($H$9:BV$9), "Input for next period", "") ->  | BX9: =IF(SUM($11:$11)=COUNTA($H$9:BW$9), "Input for next period", "") ->  | BY9: =IF(SUM($11:$11)=COUNTA($H$9:BX$9), "Input for next period", "") ->  | BZ9: =IF(SUM($11:$11)=COUNTA($H$9:BY$9), "Input for next period", "") ->  | CA9: =IF(SUM($11:$11)=COUNTA($H$9:BZ$9), "Input for next period", "") ->  | CB9: =IF(SUM($11:$11)=COUNTA($H$9:CA$9), "Input for next period", "") -> 
E10: Regulatory period | H10: =CONCATENATE(LEFT(H9,4)&"-"&IF(RIGHT(H9, 2)<"06", "0","")&RIGHT(H9,2)-1+H11) -> 2012-17 | M10: 2017-19 | O10: 2019-24
E11: Years in regulatory period | H11: 5 | M11: 2 | O11: 5
E13: Lagged inflation approach | F13: Partially-lagged
E14: =IF($F$13="All-lagged", "Lagged actual", "Actual")& " CPI inflation rate" -> Actual CPI inflation rate | F14: 0.0265 | G14: 0.03103448276 | H14: 0.02502502503 | I14: 0.029296875 | J14: 0.01328273245 | K14: 0.01310861423 | L14: 0.02125693161 | M14: 0.01909090909 | N14: 0.0178412132 | O14: 0.01840490798 | P14: 0.008605851979 | Q14: 0.03498293515 | R14: 0.07831821929 | S14: 0.041
E15: Actual CPI (one year lagged) | F15: =G15/IF($F$13="Partially-lagged", (1+F14), (1+G14)) -> 0.9741841208 | G15: 1 | H15: =G15*(1+IF($F$13="Partially-lagged",G14,H14)) -> 1.031034483 | I15: 1.056836146 | J15: 1.087798143 | K15: 1.102247075 | L15: 1.116696006 | M15: 1.140433537 | N15: 1.16220545 | O15: 1.182940605 | P15: =O15*(1+IF($F$13="Partially-lagged",O14,P14)) -> 1.204712518 | Q15: 1.215080096 | R15: 1.257587164 | S15: 1.356079151 | T15: 1.411678396 | U15: 1.411678396 | V15: 1.411678396 | W15: 1.411678396 | X15: 1.411678396 | Y15: 1.411678396 | Z15: 1.411678396 | AA15: 1.411678396 | AB15: 1.411678396 | AC15: 1.411678396 | AD15: 1.411678396 | AE15: 1.411678396 | AF15: 1.411678396 | AG15: 1.411678396 | AH15: 1.411678396 | AI15: 1.411678396 | AJ15: 1.411678396 | AK15: 1.411678396 | AL15: 1.411678396 | AM15: 1.411678396 | AN15: =AM15*(1+IF($F$13="Partially-lagged",AM14,AN14)) -> 1.411678396 | AO15: 1.411678396 | AP15: 1.411678396 | AQ15: 1.411678396 | AR15: 1.411678396 | AS15: 1.411678396 | AT15: 1.411678396 | AU15: 1.411678396 | AV15: 1.411678396 | AW15: 1.411678396 | AX15: 1.411678396 | AY15: 1.411678396 | AZ15: 1.411678396 | BA15: 1.411678396 | BB15: 1.411678396 | BC15: 1.411678396 | BD15: 1.411678396 | BE15: 1.411678396 | BF15: 1.411678396 | BG15: 1.411678396 | BH15: 1.411678396 | BI15: 1.411678396 | BJ15: 1.411678396 | BK15: 1.411678396 | BL15: 1.411678396 | BM15: 1.411678396 | BN15: 1.411678396 | BO15: 1.411678396 | BP15: 1.411678396 | BQ15: 1.411678396 | BR15: 1.411678396 | BS15: 1.411678396 | BT15: =BS15*(1+IF($F$13="Partially-lagged",BS14,BT14)) -> 1.411678396 | BU15: 1.411678396 | BV15: 1.411678396 | BW15: 1.411678396 | BX15: 1.411678396 | BY15: 1.411678396 | BZ15: 1.411678396 | CA15: =BZ15*(1+IF($F$13="Partially-lagged",BZ14,CA14)) -> 1.411678396 | CB15: =CA15*(1+IF($F$13="Partially-lagged",CA14,CB14)) -> 1.411678396
E17: Nominal vanilla WACC (fixed real time varying) | G17: 0.09145310345 | H17: 0.08173108781 | I17: 0.08623926352 | J17: 0.06933919238 | K17: 0.06915544166 | L17: 0.0777545373 | M17: 0.05458084161 | N17: 0.05296262815 | O17: 0.0468355351 | P17: 0.03523705208 | Q17: 0.06066983921 | R17: 0.10438814 | S17: 0.06692869754
E18: Nominal vanilla WACC index | F18: =G18/(1+G17) -> 0.9162097729 | G18: 1 | H18: =G18*(1+H17) -> 1.081731088 | I18: 1.17501878 | J18: 1.256493633 | K18: 1.343387006 | L18: 1.447841441 | M18: 1.526865845 | N18: 1.607732673 | O18: 1.683031693 | P18: 1.742336768 | Q18: 1.84804406
E19: Real vanilla WACC | G19: 0.0586 | H19: 0.05532163743 | I19: 0.05532163743 | J19: 0.05532163743 | K19: 0.05532163743 | L19: 0.05532163743 | M19: 0.0348250899 | N19: 0.03450578979 | O19: 0.02791682061 | P19: 0.02640397143 | Q19: 0.02481867399 | R19: 0.02417646317 | S19: 0.02490749043
E20: Real vanilla WACC index | F20: =G20/(1+G19) -> 0.9446438693 | G20: 1 | H20: =G20*(1+H19) -> 1.055321637 | I20: 1.113703758 | J20: 1.175315674 | K20: 1.240336062 | L20: 1.308953483 | M20: 1.354537906 | N20: 1.401277306 | O20: 1.440396514 | P20: 1.478428702 | Q20: 1.515121342 | R20: 1.551751617 | S20: 1.590401856 | T20: 1.590401856 | U20: 1.590401856 | V20: 1.590401856 | W20: 1.590401856 | X20: 1.590401856 | Y20: 1.590401856 | Z20: 1.590401856 | AA20: 1.590401856 | AB20: 1.590401856 | AC20: 1.590401856 | AD20: 1.590401856 | AE20: 1.590401856 | AF20: 1.590401856 | AG20: 1.590401856 | AH20: 1.590401856 | AI20: 1.590401856 | AJ20: 1.590401856 | AK20: 1.590401856 | AL20: 1.590401856 | AM20: 1.590401856 | AN20: 1.590401856 | AO20: 1.590401856 | AP20: 1.590401856 | AQ20: 1.590401856 | AR20: 1.590401856 | AS20: 1.590401856 | AT20: 1.590401856 | AU20: 1.590401856 | AV20: 1.590401856 | AW20: 1.590401856 | AX20: 1.590401856 | AY20: 1.590401856 | AZ20: 1.590401856 | BA20: 1.590401856 | BB20: 1.590401856 | BC20: 1.590401856 | BD20: 1.590401856 | BE20: 1.590401856 | BF20: 1.590401856 | BG20: 1.590401856 | BH20: 1.590401856 | BI20: 1.590401856 | BJ20: 1.590401856 | BK20: 1.590401856 | BL20: 1.590401856 | BM20: 1.590401856 | BN20: 1.590401856 | BO20: 1.590401856 | BP20: 1.590401856 | BQ20: 1.590401856 | BR20: 1.590401856 | BS20: 1.590401856 | BT20: =BS20*(1+BT19) -> 1.590401856 | BU20: 1.590401856 | BV20: 1.590401856 | BW20: 1.590401856 | BX20: 1.590401856 | BY20: 1.590401856 | BZ20: 1.590401856 | CA20: =BZ20*(1+CA19) -> 1.590401856 | CB20: =CA20*(1+CB19) -> 1.590401856
D22: Starting RAB and actual gross capex - As incurred ($m, nominal)
E23: Asset class | G23: ="RAB (closing as at "&$G$4&")" -> RAB (closing as at 2011-12) | H23: ="Actual gross capex ("&H4&")" -> Actual gross capex (2012-13) | I23: =IF(COUNTA($H$23:H$23)<SUM($11:$11), "Actual gross capex ("&I4&")", "") -> Actual gross capex (2013-14) | J23: =IF(COUNTA($H$23:I$23)<SUM($11:$11), "Actual gross capex ("&J4&")", "") -> Actual gross capex (2014-15) | K23: =IF(COUNTA($H$23:J$23)<SUM($11:$11), "Actual gross capex ("&K4&")", "") -> Actual gross capex (2015-16) | L23: =IF(COUNTA($H$23:K$23)<SUM($11:$11), "Actual gross capex ("&L4&")", "") -> Actual gross capex (2016-17) | M23: =IF(COUNTA($H$23:L$23)<SUM($11:$11), "Actual gross capex ("&M4&")", "") -> Actual gross capex (2017-18) | N23: =IF(COUNTA($H$23:M$23)<SUM($11:$11), "Actual gross capex ("&N4&")", "") -> Actual gross capex (2018-19) | O23: =IF(COUNTA($H$23:N$23)<SUM($11:$11), "Actual gross capex ("&O4&")", "") -> Actual gross capex (2019-20) | P23: =IF(COUNTA($H$23:O$23)<SUM($11:$11), "Actual gross capex ("&P4&")", "") -> Actual gross capex (2020-21) | Q23: =IF(COUNTA($H$23:P$23)<SUM($11:$11), "Actual gross capex ("&Q4&")", "") -> Actual gross capex (2021-22) | R23: =IF(COUNTA($H$23:Q$23)<SUM($11:$11), "Actual gross capex ("&R4&")", "") -> Actual gross capex (2022-23) | S23: =IF(COUNTA($H$23:R$23)<SUM($11:$11), "Actual gross capex ("&S4&")", "") -> Actual gross capex (2023-24) | T23: =IF(COUNTA($H$23:S$23)<SUM($11:$11), "Actual gross capex ("&T4&")", "") ->  | U23: =IF(COUNTA($H$23:T$23)<SUM($11:$11), "Actual gross capex ("&U4&")", "") ->  | V23: =IF(COUNTA($H$23:U$23)<SUM($11:$11), "Actual gross capex ("&V4&")", "") ->  | W23: =IF(COUNTA($H$23:V$23)<SUM($11:$11), "Actual gross capex ("&W4&")", "") ->  | X23: =IF(COUNTA($H$23:W$23)<SUM($11:$11), "Actual gross capex ("&X4&")", "") ->  | Y23: =IF(COUNTA($H$23:X$23)<SUM($11:$11), "Actual gross capex ("&Y4&")", "") ->  | Z23: =IF(COUNTA($H$23:Y$23)<SUM($11:$11), "Actual gross capex ("&Z4&")", "") ->  | AA23: =IF(COUNTA($H$23:Z$23)<SUM($11:$11), "Actual gross capex ("&AA4&")", "") ->  | AB23: =IF(COUNTA($H$23:AA$23)<SUM($11:$11), "Actual gross capex ("&AB4&")", "") ->  | AC23: =IF(COUNTA($H$23:AB$23)<SUM($11:$11), "Actual gross capex ("&AC4&")", "") ->  | AD23: =IF(COUNTA($H$23:AC$23)<SUM($11:$11), "Actual gross capex ("&AD4&")", "") ->  | AE23: =IF(COUNTA($H$23:AD$23)<SUM($11:$11), "Actual gross capex ("&AE4&")", "") ->  | AF23: =IF(COUNTA($H$23:AE$23)<SUM($11:$11), "Actual gross capex ("&AF4&")", "") ->  | AG23: =IF(COUNTA($H$23:AF$23)<SUM($11:$11), "Actual gross capex ("&AG4&")", "") ->  | AH23: =IF(COUNTA($H$23:AG$23)<SUM($11:$11), "Actual gross capex ("&AH4&")", "") ->  | AI23: =IF(COUNTA($H$23:AH$23)<SUM($11:$11), "Actual gross capex ("&AI4&")", "") ->  | AJ23: =IF(COUNTA($H$23:AI$23)<SUM($11:$11), "Actual gross capex ("&AJ4&")", "") ->  | AK23: =IF(COUNTA($H$23:AJ$23)<SUM($11:$11), "Actual gross capex ("&AK4&")", "") ->  | AL23: =IF(COUNTA($H$23:AK$23)<SUM($11:$11), "Actual gross capex ("&AL4&")", "") ->  | AM23: =IF(COUNTA($H$23:AL$23)<SUM($11:$11), "Actual gross capex ("&AM4&")", "") ->  | AN23: =IF(COUNTA($H$23:AM$23)<SUM($11:$11), "Actual gross capex ("&AN4&")", "") ->  | AO23: =IF(COUNTA($H$23:AN$23)<SUM($11:$11), "Actual gross capex ("&AO4&")", "") ->  | AP23: =IF(COUNTA($H$23:AO$23)<SUM($11:$11), "Actual gross capex ("&AP4&")", "") ->  | AQ23: =IF(COUNTA($H$23:AP$23)<SUM($11:$11), "Actual gross capex ("&AQ4&")", "") ->  | AR23: =IF(COUNTA($H$23:AQ$23)<SUM($11:$11), "Actual gross capex ("&AR4&")", "") ->  | AS23: =IF(COUNTA($H$23:AR$23)<SUM($11:$11), "Actual gross capex ("&AS4&")", "") ->  | AT23: =IF(COUNTA($H$23:AS$23)<SUM($11:$11), "Actual gross capex ("&AT4&")", "") ->  | AU23: =IF(COUNTA($H$23:AT$23)<SUM($11:$11), "Actual gross capex ("&AU4&")", "") ->  | AV23: =IF(COUNTA($H$23:AU$23)<SUM($11:$11), "Actual gross capex ("&AV4&")", "") ->  | AW23: =IF(COUNTA($H$23:AV$23)<SUM($11:$11), "Actual gross capex ("&AW4&")", "") ->  | AX23: =IF(COUNTA($H$23:AW$23)<SUM($11:$11), "Actual gross capex ("&AX4&")", "") ->  | AY23: =IF(COUNTA($H$23:AX$23)<SUM($11:$11), "Actual gross capex ("&AY4&")", "") ->  | AZ23: =IF(COUNTA($H$23:AY$23)<SUM($11:$11), "Actual gross capex ("&AZ4&")", "") ->  | BA23: =IF(COUNTA($H$23:AZ$23)<SUM($11:$11), "Actual gross capex ("&BA4&")", "") ->  | BB23: =IF(COUNTA($H$23:BA$23)<SUM($11:$11), "Actual gross capex ("&BB4&")", "") ->  | BC23: =IF(COUNTA($H$23:BB$23)<SUM($11:$11), "Actual gross capex ("&BC4&")", "") ->  | BD23: =IF(COUNTA($H$23:BC$23)<SUM($11:$11), "Actual gross capex ("&BD4&")", "") ->  | BE23: =IF(COUNTA($H$23:BD$23)<SUM($11:$11), "Actual gross capex ("&BE4&")", "") ->  | BF23: =IF(COUNTA($H$23:BE$23)<SUM($11:$11), "Actual gross capex ("&BF4&")", "") ->  | BG23: =IF(COUNTA($H$23:BF$23)<SUM($11:$11), "Actual gross capex ("&BG4&")", "") ->  | BH23: =IF(COUNTA($H$23:BG$23)<SUM($11:$11), "Actual gross capex ("&BH4&")", "") ->  | BI23: =IF(COUNTA($H$23:BH$23)<SUM($11:$11), "Actual gross capex ("&BI4&")", "") ->  | BJ23: =IF(COUNTA($H$23:BI$23)<SUM($11:$11), "Actual gross capex ("&BJ4&")", "") ->  | BK23: =IF(COUNTA($H$23:BJ$23)<SUM($11:$11), "Actual gross capex ("&BK4&")", "") ->  | BL23: =IF(COUNTA($H$23:BK$23)<SUM($11:$11), "Actual gross capex ("&BL4&")", "") ->  | BM23: =IF(COUNTA($H$23:BL$23)<SUM($11:$11), "Actual gross capex ("&BM4&")", "") ->  | BN23: =IF(COUNTA($H$23:BM$23)<SUM($11:$11), "Actual gross capex ("&BN4&")", "") ->  | BO23: =IF(COUNTA($H$23:BN$23)<SUM($11:$11), "Actual gross capex ("&BO4&")", "") ->  | BP23: =IF(COUNTA($H$23:BO$23)<SUM($11:$11), "Actual gross capex ("&BP4&")", "") ->  | BQ23: =IF(COUNTA($H$23:BP$23)<SUM($11:$11), "Actual gross capex ("&BQ4&")", "") ->  | BR23: =IF(COUNTA($H$23:BQ$23)<SUM($11:$11), "Actual gross capex ("&BR4&")", "") ->  | BS23: =IF(COUNTA($H$23:BR$23)<SUM($11:$11), "Actual gross capex ("&BS4&")", "") ->  | BT23: =IF(COUNTA($H$23:BS$23)<SUM($11:$11), "Actual gross capex ("&BT4&")", "") ->  | BU23: =IF(COUNTA($H$23:BT$23)<SUM($11:$11), "Actual gross capex ("&BU4&")", "") ->  | BV23: =IF(COUNTA($H$23:BU$23)<SUM($11:$11), "Actual gross capex ("&BV4&")", "") ->  | BW23: =IF(COUNTA($H$23:BV$23)<SUM($11:$11), "Actual gross capex ("&BW4&")", "") ->  | BX23: =IF(COUNTA($H$23:BW$23)<SUM($11:$11), "Actual gross capex ("&BX4&")", "") ->  | BY23: =IF(COUNTA($H$23:BX$23)<SUM($11:$11), "Actual gross capex ("&BY4&")", "") ->  | BZ23: =IF(COUNTA($H$23:BY$23)<SUM($11:$11), "Actual gross capex ("&BZ4&")", "") ->  | CA23: =IF(COUNTA($H$23:BZ$23)<SUM($11:$11), "Actual gross capex ("&CA4&")", "") ->  | CB23: =IF(COUNTA($H$23:CA$23)<SUM($11:$11), "Actual gross capex ("&CB4&")", "") -> 
D25: 1 | E25: Overhead Subtransmission Lines (Urban) | G25: 10.82010419 | H25: 1.430652046 | I25: 0.7701259678 | J25: 0.329 | K25: 0.3439825905 | L25: 0.2353217333 | M25: 0.3275278158 | N25: 0.2766166811 | O25: 0.420189644 | P25: 0.510864855 | Q25: 0.4699857223 | R25: 0.3333675245 | S25: 0.4273705408
D26: 2 | E26: Underground Subtransmission Lines (Urban) | G26: 10.5361568 | H26: 0.1637992205 | I26: 0.134893741 | J26: 0.01 | K26: 0.0269994021 | L26: 0.0076727205 | M26: 0 | N26: 0 | O26: 0.02584215107 | P26: 0.04885642797 | Q26: 0.2880536759 | R26: 0.3755173513 | S26: 0.112319778
D27: 3 | E27: Urban Zone Substations | G27: 40.78533372 | H27: 2.077643603 | I27: 5.042347078 | J27: 2.215 | K27: 3.861706949 | L27: 1.471329508 | M27: 1.906716965 | N27: 0.0470855623 | O27: 2.015001851 | P27: 2.316872415 | Q27: 0.5067623992 | R27: 0.1006513236 | S27: 0.21600479
D28: 4 | E28: Rural Zone Substations | G28: 2.344081306 | H28: 0.3067469231 | I28: 1.087515875 | J28: 0.444 | K28: 0.1925228863 | L28: 0.409860404 | M28: 0.6254813629 | N28: 1.003422047 | O28: 1.217256206 | P28: 0.662079798 | Q28: 1.32006283 | R28: 0.005164279687 | S28: 0
D29: 5 | E29: SCADA | G29: 2.89319389 | H29: 1.271080377 | I29: 2.508767573 | J29: 2.41 | K29: 16.73583296 | L29: 14.73192247 | M29: 1.020442601 | N29: 2.290789764 | O29: 3.538673422 | P29: 2.321373593 | Q29: 2.150787693 | R29: 0.3623267071 | S29: 0.878500474
D30: 6 | E30: Distribution Switching Stations (Ground) | G30: 15.10822988 | H30: 0.1529147402 | I30: 0.1844782262 | J30: 0.214 | K30: 0.1834636239 | L30: 0.2673950115 | M30: 0.2981137896 | N30: 0.07306847773 | O30: 0.3406661312 | P30: 0.281100676 | Q30: 0.1672403317 | R30: 0.1193757872 | S30: 0.1186517356
D31: 7 | E31: Overhead High Voltage Lines Urban | G31: 81.78463186 | H31: 6.723547829 | I31: 7.355545647 | J31: 6.321 | K31: 7.060759255 | L31: 10.35369897 | M31: 12.62630613 | N31: 8.538353954 | O31: 11.03952416 | P31: 11.95067347 | Q31: 10.31225011 | R31: 9.855109879 | S31: 10.68818663
D32: 8 | E32: Overhead High Voltage Lines Rural | G32: 318.0555232 | H32: 18.91647774 | I32: 19.4735371 | J32: 18.553 | K32: 18.12854134 | L32: 31.83184459 | M32: 34.2011056 | N32: 24.9720872 | O32: 27.7284024 | P32: 31.48169876 | Q32: 32.83701563 | R32: 30.56954479 | S32: 35.0255393
D33: 9 | E33: Voltage Regulators on Distribution Feeders | G33: 11.14830348 | H33: 0.8875364062 | I33: 0.7344739222 | J33: 1.046 | K33: 0.5929834398 | L33: 0.6811826682 | M33: 0.5313716593 | N33: 0.2134129127 | O33: 0.6466589851 | P33: 0.9101451467 | Q33: 0.8508027344 | R33: 0.8111397817 | S33: 2.50580703
D34: 10 | E34: Underground High Voltage Lines | G34: 226.521703 | H34: 5.88167043 | I34: 4.774804733 | J34: 6.404 | K34: 6.004226744 | L34: 6.245550592 | M34: 9.740566796 | N34: 6.647875628 | O34: 7.437582315 | P34: 9.398469577 | Q34: 10.64672867 | R34: 12.79562438 | S34: 9.372045332
D35: 11 | E35: Underground High Voltage Lines SWER | G35: 0.3676607992 | H35: 0.06086711875 | I35: 0.0837821682 | J35: 0.031 | K35: 0.0365696226 | L35: 0 | M35: 1.063101715 | N35: 0.01660860701 | O35: 0 | P35: 0 | Q35: 0 | R35: 0 | S35: 0
D36: 12 | E36: Distribution Substations HV (Pole) | G36: 1.197526335 | H36: 0.1064459427 | I36: 0.203208238 | J36: 0.184 | K36: 0.1156003692 | L36: 0.0894306986 | M36: 0.08381112917 | N36: 0.06096655647 | O36: 0.05618618352 | P36: 0.07295783289 | Q36: 0.07476347767 | R36: 0.06652095542 | S36: 0.0601894062
D37: 13 | E37: Distribution Substations HV (Ground) | G37: 17.84467856 | H37: 1.678552873 | I37: 2.310748965 | J37: 3.016 | K37: 3.674971983 | L37: 4.775982949 | M37: 4.25063024 | N37: 2.200743642 | O37: 3.492114605 | P37: 4.818868383 | Q37: 3.737708629 | R37: 4.387498266 | S37: 3.584887809
D38: 14 | E38: Distribution Substations LV (Pole) | G38: 141.8957763 | H38: 7.47199119 | I38: 6.684701034 | J38: 6.042 | K38: 7.832258172 | L38: 7.289208969 | M38: 7.3780196 | N38: 6.7902844 | O38: 6.983443779 | P38: 9.065416927 | Q38: 7.866616508 | R38: 7.746873123 | S38: 7.148360509
D39: 15 | E39: Distribution Substations LV (Ground) | G39: 59.81104031 | H39: 3.056514444 | I39: 3.318639543 | J39: 5.454 | K39: 6.316271021 | L39: 6.15629734 | M39: 7.486388601 | N39: 8.417703408 | O39: 9.773168326 | P39: 12.19966987 | Q39: 9.537020215 | R39: 12.64974451 | S39: 13.18190133
D40: 16 | E40: Overhead Low Voltage Lines Underbuilt Urban | G40: 30.07145548 | H40: 2.740849496 | I40: 2.693766662 | J40: 4.191 | K40: 3.840700977 | L40: 5.085733364 | M40: 6.849732097 | N40: 4.683704741 | O40: 4.565801952 | P40: 5.246009294 | Q40: 4.224920333 | R40: 4.116635281 | S40: 4.482050214
D41: 17 | E41: Overhead Low Voltage Lines Underbuilt Rural | G41: 40.73469511 | H41: 2.129337026 | I41: 2.172309151 | J41: 3.67 | K41: 3.695569166 | L41: 4.840973945 | M41: 5.857924886 | N41: 4.403041326 | O41: 3.747509328 | P41: 4.43010446 | Q41: 3.33747141 | R41: 4.015387277 | S41: 3.605986306
D42: 18 | E42: Overhead Low Voltage Lines Urban | G42: 57.68305261 | H42: 3.571311924 | I42: 3.425784784 | J42: 4.987 | K42: 4.763163808 | L42: 6.157772617 | M42: 7.937891011 | N42: 6.018881067 | O42: 5.6093789 | P42: 6.234471019 | Q42: 5.145219455 | R42: 5.086424347 | S42: 5.599195683
D43: 19 | E43: Overhead Low Voltage Lines Rural | G43: 61.42458215 | H43: 6.280463975 | I43: 5.324656921 | J43: 6.823 | K43: 6.856436785 | L43: 10.20440051 | M43: 12.49013691 | N43: 9.686295489 | O43: 8.338479074 | P43: 10.45816485 | Q43: 8.285575765 | R43: 8.663462825 | S43: 9.613865273
D44: 20 | E44: Underground Low Voltage Lines | G44: 93.66113053 | H44: 3.272253338 | I44: 3.646301723 | J44: 4.948 | K44: 3.773308967 | L44: 4.479286801 | M44: 7.786631394 | N44: 6.954301435 | O44: 4.911643292 | P44: 6.244931411 | Q44: 4.697693156 | R44: 6.526454912 | S44: 6.216470827
D45: 21 | E45: Underground Low Voltage Common Trench | G45: 42.34480935 | H45: 1.754810028 | I45: 1.612881207 | J45: 1.807 | K45: 1.944070083 | L45: 1.623609863 | M45: 2.658990069 | N45: 4.475656292 | O45: 3.785382553 | P45: 4.601055803 | Q45: 3.744526192 | R45: 5.633796018 | S45: 4.586374247
D46: 22 | E46: HVST Service Connections | G46: 0.002983883948 | H46: 0 | I46: 0 | J46: 0 | K46: 0 | L46: 0 | M46: 0 | N46: 0 | O46: 0 | P46: 0 | Q46: 0 | R46: 0 | S46: 0
D47: 23 | E47: HV Service Connections | G47: 2.239078192 | H47: 0.09367653102 | I47: 0.1048581107 | J47: 0.15 | K47: 0.1534566912 | L47: 0.1245674287 | M47: 0.07615233136 | N47: 0.05133889037 | O47: 0.04879966467 | P47: 0.2151575896 | Q47: 0.1257687755 | R47: 0.2702657702 | S47: 0.1331208157
D48: 24 | E48: HV Metering CA Service Connections | G48: 0.8702032317 | H48: 0.00751062247 | I48: 0.006839048003 | J48: 0.001 | K48: 0.0061210392 | L48: 0.0049156634 | M48: -0.003559984542 | N48: 0.01121389971 | O48: 0.01671830518 | P48: 0.01376875431 | Q48: 0.002669809736 | R48: 0.00407867483 | S48: 0.010799985
D49: 25 | E49: HV/LV Service Connections | G49: 3.803758309 | H49: 0.1694355668 | I49: 0.1896600273 | J49: 0.27 | K49: 0.2775617454 | L49: 0.2253088651 | M49: 0.1377390184 | N49: 0.09285819933 | O49: 0.08826542522 | P49: 0.08246973609 | Q49: 0.211304049 | R49: 0.4240031671 | S49: 0.2407796342
D50: 26 | E50: Business LV Service Connections | G50: 8.408739899 | H50: 0.471127565 | I50: 0.5155464362 | J50: 0.742 | K50: 0.7493780529 | L50: 0.5900767179 | M50: 0.3633189695 | N50: 0.2431926568 | O50: 0.287398408 | P50: 0.2385605078 | Q50: 0.5640831327 | R50: 1.110450746 | S50: 0.6395813955
D51: 27 | E51: Business LV Metering CA Service Connections | G51: 7.987228656 | H51: 0.4820939496 | I51: 0.4658551522 | J51: 0.246 | K51: 0.4207822464 | L51: 0.2112501636 | M51: -0.2033692253 | N51: 0.6391922835 | O51: 0.952943395 | P51: 0.7483071066 | Q51: 0.1521791549 | R51: 0.2324844653 | S51: 0.615599145
D52: 28 | E52: Domestic LV Service Connections | G52: 53.04064291 | H52: 3.86147991 | I52: 4.208511267 | J52: 5.969 | K52: 6.067262161 | L52: 4.732907008 | M52: 2.901142641 | N52: 1.950607768 | O52: 2.022832788 | P52: 1.800109241 | Q52: 4.470771295 | R52: 8.906740358 | S52: 5.084852405
D53: 29 | E53: Domestic LV Metering CA Service Connections | G53: 11.77414759 | H53: 0.364306478 | I53: 0.5892488858 | J53: 0.139 | K53: 0.4509331268 | L53: 0.4013618921 | M53: -0.5074546264 | N53: 1.592373759 | O53: 2.373999335 | P53: 1.798051347 | Q53: 0.3791129825 | R53: 0.5791718258 | S53: 1.53359787
D54: 30 | E54: Emergency Network Spares | G54: 2.300353591 | H54: 0 | I54: 0 | J54: 0 | K54: 0 | L54: 0 | M54: 0 | N54: 0 | O54: 0 | P54: 0 | Q54: 0 | R54: 0 | S54: 0
D55: 31 | E55: Motor Vehicles | G55: 19.66719411 | H55: 4.432425776 | I55: 5.0767009 | J55: 2.183 | K55: 2.679115725 | L55: 1.808728868 | M55: 3.24654189 | N55: 3.741682489 | O55: 3.33932414 | P55: 3.34805233 | Q55: 3.504851586 | R55: 3.382941135 | S55: 5.610758914
D56: 32 | E56: Minor Assets | G56: 30.24879836 | H56: 7.538745863 | I56: 8.265187012 | J56: 9.922 | K56: 6.994401214 | L56: 14.28294192 | M56: 15.40127823 | N56: 10.48083512 | O56: 13.17496264 | P56: 18.83891084 | Q56: 23.10598399 | R56: 23.46642546 | S56: 27.04440174
D57: 33 | E57: Non-System Property | G57: 18.70450237 | H57: 0.3882905163 | I57: 0.2681345275 | J57: 0 | K57: 0 | L57: 0 | M57: 2.240070603 | N57: 1.436234388 | O57: 3.818473124 | P57: 1.592432263 | Q57: 4.014553575 | R57: 2.550038192 | S57: 6.945187576
D58: 34 | E58: Spare Parts | G58: 10.86450012 | H58: 0 | I58: 0 | J58: 0 | K58: 0 | L58: 0 | M58: 0 | N58: 0 | O58: 0 | P58: 0 | Q58: 0 | R58: 0 | S58: 0
D59: 35 | E59: NEM Assets | G59: 8.267472104 | H59: 9.265204832 | I59: 13.97931021 | J59: 0 | K59: 0 | L59: 0 | M59: 0 | N59: 0 | O59: 0 | P59: 0 | Q59: 0 | R59: 0 | S59: 0
D60: 36 | E60: Business Management Systems | L60: 0 | M60: 12.65910014 | N60: 0 | O60: 0 | P60: 0 | Q60: 0 | R60: 0 | S60: 0
D61: 37 | E61: Land | H61: 0.5672222658 | I61: 0.64759992 | J61: 0 | K61: 0 | L61: 0 | M61: 0 | N61: 0 | O61: 0 | P61: 0 | Q61: 0 | R61: 0 | S61: 0
D62: 38 | E62: Easements | H62: 0.1166203151 | I62: 0.46526247 | J62: 0.48 | K62: 0.71361862 | L62: 0.9300047709 | M62: 0.8935178148 | N62: 0.8512804087 | O62: 0.2678646413 | P62: 0.336627137 | Q62: 0.3032541046 | R62: 0.3856380668 | S62: 0.48239422
D63: 39 | E63: 0 | O63: 0 | P63: 0 | Q63: 0 | R63: 0 | S63: 0
D64: 40 | E64: 0 | O64: 0 | P64: 0 | Q64: 0 | R64: 0 | S64: 0
D65: 41 | E65: 0 | O65: 0 | P65: 0 | Q65: 0 | R65: 0 | S65: 0
D66: 42 | E66: 0 | O66: 0 | P66: 0 | Q66: 0 | R66: 0 | S66: 0
D67: 43 | E67: 0 | O67: 0 | P67: 0 | Q67: 0 | R67: 0 | S67: 0
D68: 44 | E68: 0 | O68: 0 | P68: 0 | Q68: 0 | R68: 0 | S68: 0
D69: 45 | E69: 0 | O69: 0 | P69: 0 | Q69: 0 | R69: 0 | S69: 0
D70: 46 | E70: 0 | O70: 0 | P70: 0 | Q70: 0 | R70: 0 | S70: 0
D71: 47 | E71: 0 | O71: 0 | P71: 0 | Q71: 0 | R71: 0 | S71: 0
D72: 48 | E72: 0 | O72: 0 | P72: 0 | Q72: 0 | R72: 0 | S72: 0
D73: 49 | E73: Buildings | O73: 0 | P73: 0 | Q73: 0 | R73: 0 | S73: 0
D74: 50 | E74: Equity raising costs | M74: 0.2062028001 | O74: 1.184668723 | P74: 0 | Q74: 0 | R74: 0 | S74: 0
E75: Total | G75: =SUM(G25:G74) -> 1445.213272 | H75: =SUM(H25:H74) -> 97.69360686 | I75: 108.3259842 | J75: 99.201 | K75: 114.4925708 | L75: 140.250539 | M75: 162.531571 | N75: 118.861709 | O75: 133.2491559 | P75: 152.2662314 | Q75: 147.0357374 | R75: 155.5328572 | S75: 165.7647809 | T75: 0 | U75: 0 | V75: 0 | W75: 0 | X75: 0 | Y75: 0 | Z75: 0 | AA75: 0 | AB75: 0 | AC75: 0 | AD75: 0 | AE75: 0 | AF75: 0 | AG75: 0 | AH75: 0 | AI75: 0 | AJ75: 0 | AK75: 0 | AL75: 0 | AM75: 0 | AN75: 0 | AO75: 0 | AP75: 0 | AQ75: 0 | AR75: 0 | AS75: 0 | AT75: 0 | AU75: 0 | AV75: 0 | AW75: 0 | AX75: 0 | AY75: 0 | AZ75: 0 | BA75: 0 | BB75: 0 | BC75: 0 | BD75: 0 | BE75: 0 | BF75: 0 | BG75: 0 | BH75: 0 | BI75: 0 | BJ75: 0 | BK75: 0 | BL75: 0 | BM75: 0 | BN75: 0 | BO75: 0 | BP75: 0 | BQ75: 0 | BR75: 0 | BS75: 0 | BT75: =SUM(BT25:BT74) -> 0 | BU75: 0 | BV75: 0 | BW75: 0 | BX75: 0 | BY75: 0 | BZ75: 0 | CA75: =SUM(CA25:CA74) -> 0 | CB75: =SUM(CB25:CB74) -> 0
D77: Actual asset disposals - As incurred ($m, nominal)
E78: =$E$23 -> Asset class | H78: =IF(H$23="", "", "Actual asset disposals ("&H$4&")") -> Actual asset disposals (2012-13) | I78: =IF(I$23="", "", "Actual asset disposals ("&I$4&")") -> Actual asset disposals (2013-14) | J78: Actual asset disposals (2014-15) | K78: Actual asset disposals (2015-16) | L78: Actual asset disposals (2016-17) | M78: Actual asset disposals (2017-18) | N78: Actual asset disposals (2018-19) | O78: Actual asset disposals (2019-20) | P78: Actual asset disposals (2020-21) | Q78: Actual asset disposals (2021-22) | R78: Actual asset disposals (2022-23) | S78: Actual asset disposals (2023-24) | BU78: =IF(BU$23="", "", "Actual asset disposals ("&BU$4&")") -> 
E79: =E25 -> Overhead Subtransmission Lines (Urban) | I79: 0 | J79: 0 | K79: 0 | O79: 0 | P79: 0 | Q79: 0 | R79: 0.001077933563 | S79: 0.001077933563
E80: Underground Subtransmission Lines (Urban) | I80: 0 | J80: 0 | K80: 0 | O80: 0 | P80: 0 | Q80: 0 | R80: 0.00110636885 | S80: 0.00110636885
E81: Urban Zone Substations | I81: 0 | J81: 0 | K81: 0 | O81: 0 | P81: 0 | Q81: 0 | R81: 0.0002966263004 | S81: 0.0002966263004
E82: Rural Zone Substations | I82: 0 | J82: 0 | K82: 0 | O82: 0 | P82: 0 | Q82: 0 | R82: 1.522047856e-05 | S82: 1.522047856e-05
E83: SCADA | I83: 0 | J83: 0 | K83: 0 | O83: 0 | P83: 0 | Q83: 0 | R83: 0.001067566588 | S83: 0.001067566588
E84: Distribution Switching Stations (Ground) | I84: 0 | J84: 0 | K84: 0 | O84: 0 | P84: 0 | Q84: 0 | R84: 0.0003517445115 | S84: 0.0003517445115
E85: Overhead High Voltage Lines Urban | I85: 0 | J85: 0 | K85: 0 | O85: 0 | P85: 0 | Q85: 0 | R85: 0.03188760631 | S85: 0.03188760631
E86: Overhead High Voltage Lines Rural | I86: 0 | J86: 0 | K86: 0 | O86: 0 | P86: 0 | Q86: 0 | R86: 0.09889844055 | S86: 0.09889844055
E87: Voltage Regulators on Distribution Feeders | I87: 0 | J87: 0 | K87: 0 | O87: 0 | P87: 0 | Q87: 0 | R87: 0.002391616099 | S87: 0.002391616099
E88: Underground High Voltage Lines | I88: 0 | J88: 0 | K88: 0 | O88: 0 | P88: 0 | Q88: 0 | R88: 0.03770446138 | S88: 0.03770446138
E89: Underground High Voltage Lines SWER | I89: 0 | J89: 0 | K89: 0 | O89: 0 | P89: 0 | Q89: 0 | R89: 0 | S89: 0
E90: Distribution Substations HV (Pole) | I90: 0 | J90: 0 | K90: 0 | O90: 0 | P90: 0 | Q90: 0 | R90: 0.000215090818 | S90: 0.000215090818
E91: Distribution Substations HV (Ground) | I91: 0 | J91: 0.05 | K91: 0.00824702 | O91: 0 | P91: 0 | Q91: 0 | R91: 0.01294855532 | S91: 0.01294855532
E92: Distribution Substations LV (Pole) | I92: 0 | J92: 0 | K92: 0 | O92: 0 | P92: 0 | Q92: 0 | R92: 0.02504828188 | S92: 0.02504828188
E93: Distribution Substations LV (Ground) | I93: 0.217702 | J93: 0 | K93: 0 | O93: 0 | P93: 0 | Q93: 0 | R93: 0.03728031405 | S93: 0.03728031405
E94: Overhead Low Voltage Lines Underbuilt Urban | I94: 0 | J94: 0 | K94: 0 | O94: 0 | P94: 0 | Q94: 0 | R94: 0.01331085968 | S94: 0.01331085968
E95: Overhead Low Voltage Lines Underbuilt Rural | I95: 0 | J95: 0 | K95: 0 | O95: 0 | P95: 0 | Q95: 0 | R95: 0.01298380524 | S95: 0.01298380524
E96: Overhead Low Voltage Lines Urban | I96: 0 | J96: 0 | K96: 0 | O96: 0 | P96: 0 | Q96: 0 | R96: 0.01644621487 | S96: 0.01644621487
E97: Overhead Low Voltage Lines Rural | I97: 0 | J97: 0 | K97: 0 | O97: 0 | P97: 0 | Q97: 0 | R97: 0.02801297003 | S97: 0.02801297003
E98: Underground Low Voltage Lines | I98: 0 | J98: 0 | K98: 0 | O98: 0 | P98: 0 | Q98: 0 | R98: 0.01923430112 | S98: 0.01923430112
E99: Underground Low Voltage Common Trench | I99: 0 | J99: 0 | K99: 0 | O99: 0 | P99: 0 | Q99: 0 | R99: 0.0166036093 | S99: 0.0166036093
E100: HVST Service Connections | I100: 0 | J100: 0 | K100: 0 | O100: 0 | P100: 0 | Q100: 0 | R100: 0 | S100: 0
E101: HV Service Connections | I101: 0 | J101: 0 | K101: 0 | O101: 0 | P101: 0 | Q101: 0 | R101: 0.0007964003334 | S101: 0.0007964003334
E102: HV Metering CA Service Connections | I102: 0 | J102: 0 | K102: 0 | O102: 0 | P102: 0 | Q102: 0 | R102: 1.201847404e-05 | S102: 1.201847404e-05
E103: HV/LV Service Connections | I103: 0 | J103: 0 | K103: 0 | O103: 0 | P103: 0 | Q103: 0 | R103: 0.001249431987 | S103: 0.001249431987
E104: Business LV Service Connections | I104: 0 | J104: 0 | K104: 0 | O104: 0 | P104: 0 | Q104: 0 | R104: 0.00327222245 | S104: 0.00327222245
E105: Business LV Metering CA Service Connections | I105: 0 | J105: 0 | K105: 0 | O105: 0 | P105: 0 | Q105: 0 | R105: 0.0006850530201 | S105: 0.0006850530201
E106: Domestic LV Service Connections | I106: 0 | J106: 0 | K106: 0 | O106: 0 | P106: 0 | Q106: 0 | R106: 0.0262459509 | S106: 0.0262459509
E107: Domestic LV Metering CA Service Connections | I107: 0 | J107: 0 | K107: 0 | O107: 0 | P107: 0 | Q107: 0 | R107: 0.001706623313 | S107: 0.001706623313
E108: Emergency Network Spares | I108: 0 | J108: 0 | K108: 0 | O108: 0 | P108: 0 | Q108: 0 | R108: 0 | S108: 0
E109: Motor Vehicles | H109: 1.67848612 | I109: 1.130320119 | J109: 0.72 | K109: 0.7488939257 | L109: 0.3669361928 | M109: 0.4689392063 | N109: 0.4362761675 | O109: 0.4685896847 | P109: 0.1394896556 | Q109: 0.4881664156 | R109: 0.2344908665 | S109: 0.2344908665
E110: Minor Assets | H110: 0.2879081555 | I110: 0.0979230031 | J110: 0 | K110: 0 | O110: 0 | P110: 0 | Q110: 0 | R110: 0 | S110: 0
E111: =E57 -> Non-System Property | H111: 2.453983468 | I111: 1.282178455 | J111: 0 | K111: 0 | O111: 0.65 | P111: 0 | Q111: 0 | R111: 0 | S111: 0
E112: Spare Parts | I112: 0 | J112: 0 | K112: 0 | O112: 0 | P112: 0 | Q112: 0 | R112: 0 | S112: 0
E113: NEM Assets | I113: 0 | J113: 0 | K113: 0 | O113: 0 | P113: 0 | Q113: 0 | R113: 0 | S113: 0
E114: Business Management Systems | O114: 0 | P114: 0 | Q114: 0 | R114: 0 | S114: 0
E115: Land | O115: 0 | P115: 0 | Q115: 0 | R115: 0 | S115: 0
E116: Easements | O116: 0 | P116: 0 | Q116: 0 | R116: 0 | S116: 0
E117: 0 | O117: 0 | P117: 0 | Q117: 0 | R117: 0 | S117: 0
E118: 0 | O118: 0 | P118: 0 | Q118: 0 | R118: 0 | S118: 0
E119: 0 | O119: 0 | P119: 0 | Q119: 0 | R119: 0 | S119: 0
E120: 0 | O120: 0 | P120: 0 | Q120: 0 | R120: 0 | S120: 0
E121: 0 | O121: 0 | P121: 0 | Q121: 0 | R121: 0 | S121: 0
E122: 0 | O122: 0 | P122: 0 | Q122: 0 | R122: 0 | S122: 0
E123: 0 | O123: 0 | P123: 0 | Q123: 0 | R123: 0 | S123: 0
E124: 0 | O124: 0 | P124: 0 | Q124: 0 | R124: 0 | S124: 0
E125: 0 | O125: 0 | P125: 0 | Q125: 0 | R125: 0 | S125: 0
... 153 more rows

Sheet TAB input
E2: =IF('RAB input'!$F$8=$F$8, 'RAB input'!$F$8, $F$8) & " - TAB input - Elec DNSP "&Intro!$I$3&" - version "&Intro!$M$4 -> TasNetworks D - TAB input - Elec DNSP RFM - Depreciation tracking module - version 1 | J2: Input cells in blue
E4: Year | F4: =IF(LEN($H$9)>4, CONCATENATE(LEFT($H$9, 4)-2 & "-" & IF(AND(RIGHT($H$9, 2)<"12", RIGHT($H$9, 2)>"01"), "0", "") & IF(RIGHT($H$9, 2)="00", "98", IF(RIGHT($H$9, 2)="01", "99", RIGHT($H$9, 2)-2))), $H$9-2) -> 2009-10 | G4: =IF(LEN(F4)>4,CONCATENATE(LEFT(F4,4)+1&"-"&IF(RIGHT(F4, 2)<"09", "0","")&IF(RIGHT(F4, 2)="99", "00", RIGHT(F4,2)+1)),F4+1) -> 2010-11 | H4: =IF(LEN(G4)>4,CONCATENATE(LEFT(G4,4)+1&"-"&IF(RIGHT(G4, 2)<"09", "0","")&IF(RIGHT(G4, 2)="99", "00", RIGHT(G4,2)+1)),G4+1) -> 2011-12 | I4: 2012-13 | J4: 2013-14 | K4: 2014-15 | L4: 2015-16 | M4: 2016-17 | N4: 2017-18 | O4: 2018-19 | P4: 2019-20 | Q4: 2020-21 | R4: 2021-22 | S4: 2022-23 | T4: 2023-24 | U4: 2024-25 | V4: 2025-26 | W4: 2026-27 | X4: 2027-28 | Y4: 2028-29 | Z4: 2029-30 | AA4: 2030-31 | AB4: 2031-32 | AC4: 2032-33 | AD4: 2033-34 | AE4: 2034-35 | AF4: 2035-36 | AG4: 2036-37 | AH4: 2037-38 | AI4: 2038-39 | AJ4: 2039-40 | AK4: 2040-41 | AL4: 2041-42 | AM4: 2042-43 | AN4: 2043-44 | AO4: 2044-45 | AP4: 2045-46 | AQ4: 2046-47 | AR4: 2047-48 | AS4: 2048-49 | AT4: 2049-50 | AU4: 2050-51 | AV4: 2051-52 | AW4: 2052-53 | AX4: 2053-54 | AY4: 2054-55 | AZ4: 2055-56 | BA4: 2056-57 | BB4: 2057-58 | BC4: 2058-59 | BD4: 2059-60 | BE4: 2060-61 | BF4: 2061-62 | BG4: 2062-63 | BH4: 2063-64 | BI4: 2064-65 | BJ4: 2065-66 | BK4: 2066-67 | BL4: 2067-68 | BM4: 2068-69 | BN4: 2069-70 | BO4: 2070-71 | BP4: 2071-72 | BQ4: 2072-73 | BR4: 2073-74 | BS4: 2074-75 | BT4: =IF(LEN(BS4)>4,CONCATENATE(LEFT(BS4,4)+1&"-"&IF(RIGHT(BS4, 2)<"09", "0","")&IF(RIGHT(BS4, 2)="99", "00", RIGHT(BS4,2)+1)),BS4+1) -> 2075-76 | BU4: 2076-77 | BV4: 2077-78 | BW4: 2078-79 | BX4: 2079-80 | BY4: 2080-81 | BZ4: 2081-82 | CA4: 2082-83 | CB4: =IF(LEN(CA4)>4,CONCATENATE(LEFT(CA4,4)+1&"-"&IF(RIGHT(CA4, 2)<"09", "0","")&IF(RIGHT(CA4, 2)="99", "00", RIGHT(CA4,2)+1)),CA4+1) -> 2083-84 | CC4: =IF(LEN(CB4)>4,CONCATENATE(LEFT(CB4,4)+1&"-"&IF(RIGHT(CB4, 2)<"09", "0","")&IF(RIGHT(CB4, 2)="99", "00", RIGHT(CB4,2)+1)),CB4+1) -> 2084-85
D6: General information
E8: Business name | F8: ='RAB input'!$F$8 -> TasNetworks D
E9: First regulatory year for tracking | H9: 2011-12 | I9: =IF(SUM($11:$11)=COUNTA($H$9:H$9), "Input for next period", "") ->  | J9: =IF(SUM($11:$11)=COUNTA($H$9:I$9), "Input for next period", "") ->  | K9: =IF(SUM($11:$11)=COUNTA($H$9:J$9), "Input for next period", "") ->  | L9: =IF(SUM($11:$11)=COUNTA($H$9:K$9), "Input for next period", "") ->  | M9: =IF(SUM($11:$11)=COUNTA($H$9:L$9), "Input for next period", "") ->  | N9: =IF(SUM($11:$11)=COUNTA($H$9:M$9), "Input for next period", "") ->  | O9: =IF(SUM($11:$11)=COUNTA($H$9:N$9), "Input for next period", "") ->  | P9: =IF(SUM($11:$11)=COUNTA($H$9:O$9), "Input for next period", "") ->  | Q9: =IF(SUM($11:$11)=COUNTA($H$9:P$9), "Input for next period", "") ->  | R9: =IF(SUM($11:$11)=COUNTA($H$9:Q$9), "Input for next period", "") ->  | S9: =IF(SUM($11:$11)=COUNTA($H$9:R$9), "Input for next period", "") ->  | T9: =IF(SUM($11:$11)=COUNTA($H$9:S$9), "Input for next period", "") ->  | U9: =IF(SUM($11:$11)=COUNTA($H$9:T$9), "Input for next period", "") -> Input for next period | V9: =IF(SUM($11:$11)=COUNTA($H$9:U$9), "Input for next period", "") ->  | W9: =IF(SUM($11:$11)=COUNTA($H$9:V$9), "Input for next period", "") ->  | X9: =IF(SUM($11:$11)=COUNTA($H$9:W$9), "Input for next period", "") ->  | Y9: =IF(SUM($11:$11)=COUNTA($H$9:X$9), "Input for next period", "") ->  | Z9: =IF(SUM($11:$11)=COUNTA($H$9:Y$9), "Input for next period", "") ->  | AA9: =IF(SUM($11:$11)=COUNTA($H$9:Z$9), "Input for next period", "") ->  | AB9: =IF(SUM($11:$11)=COUNTA($H$9:AA$9), "Input for next period", "") ->  | AC9: =IF(SUM($11:$11)=COUNTA($H$9:AB$9), "Input for next period", "") ->  | AD9: =IF(SUM($11:$11)=COUNTA($H$9:AC$9), "Input for next period", "") ->  | AE9: =IF(SUM($11:$11)=COUNTA($H$9:AD$9), "Input for next period", "") ->  | AF9: =IF(SUM($11:$11)=COUNTA($H$9:AE$9), "Input for next period", "") ->  | AG9: =IF(SUM($11:$11)=COUNTA($H$9:AF$9), "Input for next period", "") ->  | AH9: =IF(SUM($11:$11)=COUNTA($H$9:AG$9), "Input for next period", "") ->  | AI9: =IF(SUM($11:$11)=COUNTA($H$9:AH$9), "Input for next period", "") ->  | AJ9: =IF(SUM($11:$11)=COUNTA($H$9:AI$9), "Input for next period", "") ->  | AK9: =IF(SUM($11:$11)=COUNTA($H$9:AJ$9), "Input for next period", "") ->  | AL9: =IF(SUM($11:$11)=COUNTA($H$9:AK$9), "Input for next period", "") ->  | AM9: =IF(SUM($11:$11)=COUNTA($H$9:AL$9), "Input for next period", "") ->  | AN9: =IF(SUM($11:$11)=COUNTA($H$9:AM$9), "Input for next period", "") ->  | AO9: =IF(SUM($11:$11)=COUNTA($H$9:AN$9), "Input for next period", "") ->  | AP9: =IF(SUM($11:$11)=COUNTA($H$9:AO$9), "Input for next period", "") ->  | AQ9: =IF(SUM($11:$11)=COUNTA($H$9:AP$9), "Input for next period", "") ->  | AR9: =IF(SUM($11:$11)=COUNTA($H$9:AQ$9), "Input for next period", "") ->  | AS9: =IF(SUM($11:$11)=COUNTA($H$9:AR$9), "Input for next period", "") ->  | AT9: =IF(SUM($11:$11)=COUNTA($H$9:AS$9), "Input for next period", "") ->  | AU9: =IF(SUM($11:$11)=COUNTA($H$9:AT$9), "Input for next period", "") ->  | AV9: =IF(SUM($11:$11)=COUNTA($H$9:AU$9), "Input for next period", "") ->  | AW9: =IF(SUM($11:$11)=COUNTA($H$9:AV$9), "Input for next period", "") ->  | AX9: =IF(SUM($11:$11)=COUNTA($H$9:AW$9), "Input for next period", "") ->  | AY9: =IF(SUM($11:$11)=COUNTA($H$9:AX$9), "Input for next period", "") ->  | AZ9: =IF(SUM($11:$11)=COUNTA($H$9:AY$9), "Input for next period", "") ->  | BA9: =IF(SUM($11:$11)=COUNTA($H$9:AZ$9), "Input for next period", "") ->  | BB9: =IF(SUM($11:$11)=COUNTA($H$9:BA$9), "Input for next period", "") ->  | BC9: =IF(SUM($11:$11)=COUNTA($H$9:BB$9), "Input for next period", "") ->  | BD9: =IF(SUM($11:$11)=COUNTA($H$9:BC$9), "Input for next period", "") ->  | BE9: =IF(SUM($11:$11)=COUNTA($H$9:BD$9), "Input for next period", "") ->  | BF9: =IF(SUM($11:$11)=COUNTA($H$9:BE$9), "Input for next period", "") ->  | BG9: =IF(SUM($11:$11)=COUNTA($H$9:BF$9), "Input for next period", "") ->  | BH9: =IF(SUM($11:$11)=COUNTA($H$9:BG$9), "Input for next period", "") ->  | BI9: =IF(SUM($11:$11)=COUNTA($H$9:BH$9), "Input for next period", "") ->  | BJ9: =IF(SUM($11:$11)=COUNTA($H$9:BI$9), "Input for next period", "") ->  | BK9: =IF(SUM($11:$11)=COUNTA($H$9:BJ$9), "Input for next period", "") ->  | BL9: =IF(SUM($11:$11)=COUNTA($H$9:BK$9), "Input for next period", "") ->  | BM9: =IF(SUM($11:$11)=COUNTA($H$9:BL$9), "Input for next period", "") ->  | BN9: =IF(SUM($11:$11)=COUNTA($H$9:BM$9), "Input for next period", "") ->  | BO9: =IF(SUM($11:$11)=COUNTA($H$9:BN$9), "Input for next period", "") ->  | BP9: =IF(SUM($11:$11)=COUNTA($H$9:BO$9), "Input for next period", "") ->  | BQ9: =IF(SUM($11:$11)=COUNTA($H$9:BP$9), "Input for next period", "") ->  | BR9: =IF(SUM($11:$11)=COUNTA($H$9:BQ$9), "Input for next period", "") ->  | BS9: =IF(SUM($11:$11)=COUNTA($H$9:BR$9), "Input for next period", "") ->  | BT9: =IF(SUM($11:$11)=COUNTA($H$9:BS$9), "Input for next period", "") ->  | BU9: =IF(SUM($11:$11)=COUNTA($H$9:BT$9), "Input for next period", "") ->  | BV9: =IF(SUM($11:$11)=COUNTA($H$9:BU$9), "Input for next period", "") ->  | BW9: =IF(SUM($11:$11)=COUNTA($H$9:BV$9), "Input for next period", "") ->  | BX9: =IF(SUM($11:$11)=COUNTA($H$9:BW$9), "Input for next period", "") ->  | BY9: =IF(SUM($11:$11)=COUNTA($H$9:BX$9), "Input for next period", "") ->  | BZ9: =IF(SUM($11:$11)=COUNTA($H$9:BY$9), "Input for next period", "") ->  | CA9: =IF(SUM($11:$11)=COUNTA($H$9:BZ$9), "Input for next period", "") ->  | CB9: =IF(SUM($11:$11)=COUNTA($H$9:CA$9), "Input for next period", "") ->  | CC9: =IF(SUM($11:$11)=COUNTA($H$9:CB$9), "Input for next period", "") -> 
E10: Regulatory period | H10: 2011-12 | I10: =IFERROR(IF(INDEX('RAB input'!10:10, MATCH(I$4, 'RAB input'!$4:$4, 0))="", "", INDEX('RAB input'!10:10, MATCH(I$4, 'RAB input'!$4:$4, 0))), "") -> 2012-17 | J10: =IFERROR(IF(INDEX('RAB input'!10:10, MATCH(J$4, 'RAB input'!$4:$4, 0))="", "", INDEX('RAB input'!10:10, MATCH(J$4, 'RAB input'!$4:$4, 0))), "") ->  | K10: =IFERROR(IF(INDEX('RAB input'!10:10, MATCH(K$4, 'RAB input'!$4:$4, 0))="", "", INDEX('RAB input'!10:10, MATCH(K$4, 'RAB input'!$4:$4, 0))), "") ->  | L10: =IFERROR(IF(INDEX('RAB input'!10:10, MATCH(L$4, 'RAB input'!$4:$4, 0))="", "", INDEX('RAB input'!10:10, MATCH(L$4, 'RAB input'!$4:$4, 0))), "") ->  | M10: =IFERROR(IF(INDEX('RAB input'!10:10, MATCH(M$4, 'RAB input'!$4:$4, 0))="", "", INDEX('RAB input'!10:10, MATCH(M$4, 'RAB input'!$4:$4, 0))), "") ->  | N10: =IFERROR(IF(INDEX('RAB input'!10:10, MATCH(N$4, 'RAB input'!$4:$4, 0))="", "", INDEX('RAB input'!10:10, MATCH(N$4, 'RAB input'!$4:$4, 0))), "") -> 2017-19 | O10: =IFERROR(IF(INDEX('RAB input'!10:10, MATCH(O$4, 'RAB input'!$4:$4, 0))="", "", INDEX('RAB input'!10:10, MATCH(O$4, 'RAB input'!$4:$4, 0))), "") ->  | P10: =IFERROR(IF(INDEX('RAB input'!10:10, MATCH(P$4, 'RAB input'!$4:$4, 0))="", "", INDEX('RAB input'!10:10, MATCH(P$4, 'RAB input'!$4:$4, 0))), "") -> 2019-24 | Q10: =IFERROR(IF(INDEX('RAB input'!10:10, MATCH(Q$4, 'RAB input'!$4:$4, 0))="", "", INDEX('RAB input'!10:10, MATCH(Q$4, 'RAB input'!$4:$4, 0))), "") ->  | R10: =IFERROR(IF(INDEX('RAB input'!10:10, MATCH(R$4, 'RAB input'!$4:$4, 0))="", "", INDEX('RAB input'!10:10, MATCH(R$4, 'RAB input'!$4:$4, 0))), "") ->  | S10: =IFERROR(IF(INDEX('RAB input'!10:10, MATCH(S$4, 'RAB input'!$4:$4, 0))="", "", INDEX('RAB input'!10:10, MATCH(S$4, 'RAB input'!$4:$4, 0))), "") ->  | T10: =IFERROR(IF(INDEX('RAB input'!10:10, MATCH(T$4, 'RAB input'!$4:$4, 0))="", "", INDEX('RAB input'!10:10, MATCH(T$4, 'RAB input'!$4:$4, 0))), "") ->  | U10: =IFERROR(IF(INDEX('RAB input'!10:10, MATCH(U$4, 'RAB input'!$4:$4, 0))="", "", INDEX('RAB input'!10:10, MATCH(U$4, 'RAB input'!$4:$4, 0))), "") ->  | V10: =IFERROR(IF(INDEX('RAB input'!10:10, MATCH(V$4, 'RAB input'!$4:$4, 0))="", "", INDEX('RAB input'!10:10, MATCH(V$4, 'RAB input'!$4:$4, 0))), "") ->  | W10: =IFERROR(IF(INDEX('RAB input'!10:10, MATCH(W$4, 'RAB input'!$4:$4, 0))="", "", INDEX('RAB input'!10:10, MATCH(W$4, 'RAB input'!$4:$4, 0))), "") ->  | X10: =IFERROR(IF(INDEX('RAB input'!10:10, MATCH(X$4, 'RAB input'!$4:$4, 0))="", "", INDEX('RAB input'!10:10, MATCH(X$4, 'RAB input'!$4:$4, 0))), "") ->  | Y10: =IFERROR(IF(INDEX('RAB input'!10:10, MATCH(Y$4, 'RAB input'!$4:$4, 0))="", "", INDEX('RAB input'!10:10, MATCH(Y$4, 'RAB input'!$4:$4, 0))), "") ->  | Z10: =IFERROR(IF(INDEX('RAB input'!10:10, MATCH(Z$4, 'RAB input'!$4:$4, 0))="", "", INDEX('RAB input'!10:10, MATCH(Z$4, 'RAB input'!$4:$4, 0))), "") ->  | AA10: =IFERROR(IF(INDEX('RAB input'!10:10, MATCH(AA$4, 'RAB input'!$4:$4, 0))="", "", INDEX('RAB input'!10:10, MATCH(AA$4, 'RAB input'!$4:$4, 0))), "") ->  | AB10: =IFERROR(IF(INDEX('RAB input'!10:10, MATCH(AB$4, 'RAB input'!$4:$4, 0))="", "", INDEX('RAB input'!10:10, MATCH(AB$4, 'RAB input'!$4:$4, 0))), "") ->  | AC10: =IFERROR(IF(INDEX('RAB input'!10:10, MATCH(AC$4, 'RAB input'!$4:$4, 0))="", "", INDEX('RAB input'!10:10, MATCH(AC$4, 'RAB input'!$4:$4, 0))), "") ->  | AD10: =IFERROR(IF(INDEX('RAB input'!10:10, MATCH(AD$4, 'RAB input'!$4:$4, 0))="", "", INDEX('RAB input'!10:10, MATCH(AD$4, 'RAB input'!$4:$4, 0))), "") ->  | AE10: =IFERROR(IF(INDEX('RAB input'!10:10, MATCH(AE$4, 'RAB input'!$4:$4, 0))="", "", INDEX('RAB input'!10:10, MATCH(AE$4, 'RAB input'!$4:$4, 0))), "") ->  | AF10: =IFERROR(IF(INDEX('RAB input'!10:10, MATCH(AF$4, 'RAB input'!$4:$4, 0))="", "", INDEX('RAB input'!10:10, MATCH(AF$4, 'RAB input'!$4:$4, 0))), "") ->  | AG10: =IFERROR(IF(INDEX('RAB input'!10:10, MATCH(AG$4, 'RAB input'!$4:$4, 0))="", "", INDEX('RAB input'!10:10, MATCH(AG$4, 'RAB input'!$4:$4, 0))), "") ->  | AH10: =IFERROR(IF(INDEX('RAB input'!10:10, MATCH(AH$4, 'RAB input'!$4:$4, 0))="", "", INDEX('RAB input'!10:10, MATCH(AH$4, 'RAB input'!$4:$4, 0))), "") ->  | AI10: =IFERROR(IF(INDEX('RAB input'!10:10, MATCH(AI$4, 'RAB input'!$4:$4, 0))="", "", INDEX('RAB input'!10:10, MATCH(AI$4, 'RAB input'!$4:$4, 0))), "") ->  | AJ10: =IFERROR(IF(INDEX('RAB input'!10:10, MATCH(AJ$4, 'RAB input'!$4:$4, 0))="", "", INDEX('RAB input'!10:10, MATCH(AJ$4, 'RAB input'!$4:$4, 0))), "") ->  | AK10: =IFERROR(IF(INDEX('RAB input'!10:10, MATCH(AK$4, 'RAB input'!$4:$4, 0))="", "", INDEX('RAB input'!10:10, MATCH(AK$4, 'RAB input'!$4:$4, 0))), "") ->  | AL10: =IFERROR(IF(INDEX('RAB input'!10:10, MATCH(AL$4, 'RAB input'!$4:$4, 0))="", "", INDEX('RAB input'!10:10, MATCH(AL$4, 'RAB input'!$4:$4, 0))), "") ->  | AM10: =IFERROR(IF(INDEX('RAB input'!10:10, MATCH(AM$4, 'RAB input'!$4:$4, 0))="", "", INDEX('RAB input'!10:10, MATCH(AM$4, 'RAB input'!$4:$4, 0))), "") ->  | AN10: =IFERROR(IF(INDEX('RAB input'!10:10, MATCH(AN$4, 'RAB input'!$4:$4, 0))="", "", INDEX('RAB input'!10:10, MATCH(AN$4, 'RAB input'!$4:$4, 0))), "") ->  | AO10: =IFERROR(IF(INDEX('RAB input'!10:10, MATCH(AO$4, 'RAB input'!$4:$4, 0))="", "", INDEX('RAB input'!10:10, MATCH(AO$4, 'RAB input'!$4:$4, 0))), "") ->  | AP10: =IFERROR(IF(INDEX('RAB input'!10:10, MATCH(AP$4, 'RAB input'!$4:$4, 0))="", "", INDEX('RAB input'!10:10, MATCH(AP$4, 'RAB input'!$4:$4, 0))), "") ->  | AQ10: =IFERROR(IF(INDEX('RAB input'!10:10, MATCH(AQ$4, 'RAB input'!$4:$4, 0))="", "", INDEX('RAB input'!10:10, MATCH(AQ$4, 'RAB input'!$4:$4, 0))), "") ->  | AR10: =IFERROR(IF(INDEX('RAB input'!10:10, MATCH(AR$4, 'RAB input'!$4:$4, 0))="", "", INDEX('RAB input'!10:10, MATCH(AR$4, 'RAB input'!$4:$4, 0))), "") ->  | AS10: =IFERROR(IF(INDEX('RAB input'!10:10, MATCH(AS$4, 'RAB input'!$4:$4, 0))="", "", INDEX('RAB input'!10:10, MATCH(AS$4, 'RAB input'!$4:$4, 0))), "") ->  | AT10: =IFERROR(IF(INDEX('RAB input'!10:10, MATCH(AT$4, 'RAB input'!$4:$4, 0))="", "", INDEX('RAB input'!10:10, MATCH(AT$4, 'RAB input'!$4:$4, 0))), "") ->  | AU10: =IFERROR(IF(INDEX('RAB input'!10:10, MATCH(AU$4, 'RAB input'!$4:$4, 0))="", "", INDEX('RAB input'!10:10, MATCH(AU$4, 'RAB input'!$4:$4, 0))), "") ->  | AV10: =IFERROR(IF(INDEX('RAB input'!10:10, MATCH(AV$4, 'RAB input'!$4:$4, 0))="", "", INDEX('RAB input'!10:10, MATCH(AV$4, 'RAB input'!$4:$4, 0))), "") ->  | AW10: =IFERROR(IF(INDEX('RAB input'!10:10, MATCH(AW$4, 'RAB input'!$4:$4, 0))="", "", INDEX('RAB input'!10:10, MATCH(AW$4, 'RAB input'!$4:$4, 0))), "") ->  | AX10: =IFERROR(IF(INDEX('RAB input'!10:10, MATCH(AX$4, 'RAB input'!$4:$4, 0))="", "", INDEX('RAB input'!10:10, MATCH(AX$4, 'RAB input'!$4:$4, 0))), "") ->  | AY10: =IFERROR(IF(INDEX('RAB input'!10:10, MATCH(AY$4, 'RAB input'!$4:$4, 0))="", "", INDEX('RAB input'!10:10, MATCH(AY$4, 'RAB input'!$4:$4, 0))), "") ->  | AZ10: =IFERROR(IF(INDEX('RAB input'!10:10, MATCH(AZ$4, 'RAB input'!$4:$4, 0))="", "", INDEX('RAB input'!10:10, MATCH(AZ$4, 'RAB input'!$4:$4, 0))), "") ->  | BA10: =IFERROR(IF(INDEX('RAB input'!10:10, MATCH(BA$4, 'RAB input'!$4:$4, 0))="", "", INDEX('RAB input'!10:10, MATCH(BA$4, 'RAB input'!$4:$4, 0))), "") ->  | BB10: =IFERROR(IF(INDEX('RAB input'!10:10, MATCH(BB$4, 'RAB input'!$4:$4, 0))="", "", INDEX('RAB input'!10:10, MATCH(BB$4, 'RAB input'!$4:$4, 0))), "") ->  | BC10: =IFERROR(IF(INDEX('RAB input'!10:10, MATCH(BC$4, 'RAB input'!$4:$4, 0))="", "", INDEX('RAB input'!10:10, MATCH(BC$4, 'RAB input'!$4:$4, 0))), "") ->  | BD10: =IFERROR(IF(INDEX('RAB input'!10:10, MATCH(BD$4, 'RAB input'!$4:$4, 0))="", "", INDEX('RAB input'!10:10, MATCH(BD$4, 'RAB input'!$4:$4, 0))), "") ->  | BE10: =IFERROR(IF(INDEX('RAB input'!10:10, MATCH(BE$4, 'RAB input'!$4:$4, 0))="", "", INDEX('RAB input'!10:10, MATCH(BE$4, 'RAB input'!$4:$4, 0))), "") ->  | BF10: =IFERROR(IF(INDEX('RAB input'!10:10, MATCH(BF$4, 'RAB input'!$4:$4, 0))="", "", INDEX('RAB input'!10:10, MATCH(BF$4, 'RAB input'!$4:$4, 0))), "") ->  | BG10: =IFERROR(IF(INDEX('RAB input'!10:10, MATCH(BG$4, 'RAB input'!$4:$4, 0))="", "", INDEX('RAB input'!10:10, MATCH(BG$4, 'RAB input'!$4:$4, 0))), "") ->  | BH10: =IFERROR(IF(INDEX('RAB input'!10:10, MATCH(BH$4, 'RAB input'!$4:$4, 0))="", "", INDEX('RAB input'!10:10, MATCH(BH$4, 'RAB input'!$4:$4, 0))), "") ->  | BI10: =IFERROR(IF(INDEX('RAB input'!10:10, MATCH(BI$4, 'RAB input'!$4:$4, 0))="", "", INDEX('RAB input'!10:10, MATCH(BI$4, 'RAB input'!$4:$4, 0))), "") ->  | BJ10: =IFERROR(IF(INDEX('RAB input'!10:10, MATCH(BJ$4, 'RAB input'!$4:$4, 0))="", "", INDEX('RAB input'!10:10, MATCH(BJ$4, 'RAB input'!$4:$4, 0))), "") ->  | BK10: =IFERROR(IF(INDEX('RAB input'!10:10, MATCH(BK$4, 'RAB input'!$4:$4, 0))="", "", INDEX('RAB input'!10:10, MATCH(BK$4, 'RAB input'!$4:$4, 0))), "") ->  | BL10: =IFERROR(IF(INDEX('RAB input'!10:10, MATCH(BL$4, 'RAB input'!$4:$4, 0))="", "", INDEX('RAB input'!10:10, MATCH(BL$4, 'RAB input'!$4:$4, 0))), "") ->  | BM10: =IFERROR(IF(INDEX('RAB input'!10:10, MATCH(BM$4, 'RAB input'!$4:$4, 0))="", "", INDEX('RAB input'!10:10, MATCH(BM$4, 'RAB input'!$4:$4, 0))), "") ->  | BN10: =IFERROR(IF(INDEX('RAB input'!10:10, MATCH(BN$4, 'RAB input'!$4:$4, 0))="", "", INDEX('RAB input'!10:10, MATCH(BN$4, 'RAB input'!$4:$4, 0))), "") ->  | BO10: =IFERROR(IF(INDEX('RAB input'!10:10, MATCH(BO$4, 'RAB input'!$4:$4, 0))="", "", INDEX('RAB input'!10:10, MATCH(BO$4, 'RAB input'!$4:$4, 0))), "") ->  | BP10: =IFERROR(IF(INDEX('RAB input'!10:10, MATCH(BP$4, 'RAB input'!$4:$4, 0))="", "", INDEX('RAB input'!10:10, MATCH(BP$4, 'RAB input'!$4:$4, 0))), "") ->  | BQ10: =IFERROR(IF(INDEX('RAB input'!10:10, MATCH(BQ$4, 'RAB input'!$4:$4, 0))="", "", INDEX('RAB input'!10:10, MATCH(BQ$4, 'RAB input'!$4:$4, 0))), "") ->  | BR10: =IFERROR(IF(INDEX('RAB input'!10:10, MATCH(BR$4, 'RAB input'!$4:$4, 0))="", "", INDEX('RAB input'!10:10, MATCH(BR$4, 'RAB input'!$4:$4, 0))), "") ->  | BS10: =IFERROR(IF(INDEX('RAB input'!10:10, MATCH(BS$4, 'RAB input'!$4:$4, 0))="", "", INDEX('RAB input'!10:10, MATCH(BS$4, 'RAB input'!$4:$4, 0))), "") ->  | BT10: =IFERROR(IF(INDEX('RAB input'!10:10, MATCH(BT$4, 'RAB input'!$4:$4, 0))="", "", INDEX('RAB input'!10:10, MATCH(BT$4, 'RAB input'!$4:$4, 0))), "") ->  | BU10: =IFERROR(IF(INDEX('RAB input'!10:10, MATCH(BU$4, 'RAB input'!$4:$4, 0))="", "", INDEX('RAB input'!10:10, MATCH(BU$4, 'RAB input'!$4:$4, 0))), "") ->  | BV10: =IFERROR(IF(INDEX('RAB input'!10:10, MATCH(BV$4, 'RAB input'!$4:$4, 0))="", "", INDEX('RAB input'!10:10, MATCH(BV$4, 'RAB input'!$4:$4, 0))), "") ->  | BW10: =IFERROR(IF(INDEX('RAB input'!10:10, MATCH(BW$4, 'RAB input'!$4:$4, 0))="", "", INDEX('RAB input'!10:10, MATCH(BW$4, 'RAB input'!$4:$4, 0))), "") ->  | BX10: =IFERROR(IF(INDEX('RAB input'!10:10, MATCH(BX$4, 'RAB input'!$4:$4, 0))="", "", INDEX('RAB input'!10:10, MATCH(BX$4, 'RAB input'!$4:$4, 0))), "") ->  | BY10: =IFERROR(IF(INDEX('RAB input'!10:10, MATCH(BY$4, 'RAB input'!$4:$4, 0))="", "", INDEX('RAB input'!10:10, MATCH(BY$4, 'RAB input'!$4:$4, 0))), "") ->  | BZ10: =IFERROR(IF(INDEX('RAB input'!10:10, MATCH(BZ$4, 'RAB input'!$4:$4, 0))="", "", INDEX('RAB input'!10:10, MATCH(BZ$4, 'RAB input'!$4:$4, 0))), "") ->  | CA10: =IFERROR(IF(INDEX('RAB input'!10:10, MATCH(CA$4, 'RAB input'!$4:$4, 0))="", "", INDEX('RAB input'!10:10, MATCH(CA$4, 'RAB input'!$4:$4, 0))), "") ->  | CB10: =IFERROR(IF(INDEX('RAB input'!10:10, MATCH(CB$4, 'RAB input'!$4:$4, 0))="", "", INDEX('RAB input'!10:10, MATCH(CB$4, 'RAB input'!$4:$4, 0))), "") ->  | CC10: =IFERROR(IF(INDEX('RAB input'!10:10, MATCH(CC$4, 'RAB input'!$4:$4, 0))="", "", INDEX('RAB input'!10:10, MATCH(CC$4, 'RAB input'!$4:$4, 0))), "") -> 
E11: Years in regulatory period | H11: 1 | I11: =IFERROR(IF(INDEX('RAB input'!11:11, MATCH(I$4, 'RAB input'!$4:$4, 0))="", "", INDEX('RAB input'!11:11, MATCH(I$4, 'RAB input'!$4:$4, 0))), "") -> 5 | J11: =IFERROR(IF(INDEX('RAB input'!11:11, MATCH(J$4, 'RAB input'!$4:$4, 0))="", "", INDEX('RAB input'!11:11, MATCH(J$4, 'RAB input'!$4:$4, 0))), "") ->  | K11: =IFERROR(IF(INDEX('RAB input'!11:11, MATCH(K$4, 'RAB input'!$4:$4, 0))="", "", INDEX('RAB input'!11:11, MATCH(K$4, 'RAB input'!$4:$4, 0))), "") ->  | L11: =IFERROR(IF(INDEX('RAB input'!11:11, MATCH(L$4, 'RAB input'!$4:$4, 0))="", "", INDEX('RAB input'!11:11, MATCH(L$4, 'RAB input'!$4:$4, 0))), "") ->  | M11: =IFERROR(IF(INDEX('RAB input'!11:11, MATCH(M$4, 'RAB input'!$4:$4, 0))="", "", INDEX('RAB input'!11:11, MATCH(M$4, 'RAB input'!$4:$4, 0))), "") ->  | N11: =IFERROR(IF(INDEX('RAB input'!11:11, MATCH(N$4, 'RAB input'!$4:$4, 0))="", "", INDEX('RAB input'!11:11, MATCH(N$4, 'RAB input'!$4:$4, 0))), "") -> 2 | O11: =IFERROR(IF(INDEX('RAB input'!11:11, MATCH(O$4, 'RAB input'!$4:$4, 0))="", "", INDEX('RAB input'!11:11, MATCH(O$4, 'RAB input'!$4:$4, 0))), "") ->  | P11: =IFERROR(IF(INDEX('RAB input'!11:11, MATCH(P$4, 'RAB input'!$4:$4, 0))="", "", INDEX('RAB input'!11:11, MATCH(P$4, 'RAB input'!$4:$4, 0))), "") -> 5 | Q11: =IFERROR(IF(INDEX('RAB input'!11:11, MATCH(Q$4, 'RAB input'!$4:$4, 0))="", "", INDEX('RAB input'!11:11, MATCH(Q$4, 'RAB input'!$4:$4, 0))), "") ->  | R11: =IFERROR(IF(INDEX('RAB input'!11:11, MATCH(R$4, 'RAB input'!$4:$4, 0))="", "", INDEX('RAB input'!11:11, MATCH(R$4, 'RAB input'!$4:$4, 0))), "") ->  | S11: =IFERROR(IF(INDEX('RAB input'!11:11, MATCH(S$4, 'RAB input'!$4:$4, 0))="", "", INDEX('RAB input'!11:11, MATCH(S$4, 'RAB input'!$4:$4, 0))), "") ->  | T11: =IFERROR(IF(INDEX('RAB input'!11:11, MATCH(T$4, 'RAB input'!$4:$4, 0))="", "", INDEX('RAB input'!11:11, MATCH(T$4, 'RAB input'!$4:$4, 0))), "") ->  | U11: =IFERROR(IF(INDEX('RAB input'!11:11, MATCH(U$4, 'RAB input'!$4:$4, 0))="", "", INDEX('RAB input'!11:11, MATCH(U$4, 'RAB input'!$4:$4, 0))), "") ->  | V11: =IFERROR(IF(INDEX('RAB input'!11:11, MATCH(V$4, 'RAB input'!$4:$4, 0))="", "", INDEX('RAB input'!11:11, MATCH(V$4, 'RAB input'!$4:$4, 0))), "") ->  | W11: =IFERROR(IF(INDEX('RAB input'!11:11, MATCH(W$4, 'RAB input'!$4:$4, 0))="", "", INDEX('RAB input'!11:11, MATCH(W$4, 'RAB input'!$4:$4, 0))), "") ->  | X11: =IFERROR(IF(INDEX('RAB input'!11:11, MATCH(X$4, 'RAB input'!$4:$4, 0))="", "", INDEX('RAB input'!11:11, MATCH(X$4, 'RAB input'!$4:$4, 0))), "") ->  | Y11: =IFERROR(IF(INDEX('RAB input'!11:11, MATCH(Y$4, 'RAB input'!$4:$4, 0))="", "", INDEX('RAB input'!11:11, MATCH(Y$4, 'RAB input'!$4:$4, 0))), "") ->  | Z11: =IFERROR(IF(INDEX('RAB input'!11:11, MATCH(Z$4, 'RAB input'!$4:$4, 0))="", "", INDEX('RAB input'!11:11, MATCH(Z$4, 'RAB input'!$4:$4, 0))), "") ->  | AA11: =IFERROR(IF(INDEX('RAB input'!11:11, MATCH(AA$4, 'RAB input'!$4:$4, 0))="", "", INDEX('RAB input'!11:11, MATCH(AA$4, 'RAB input'!$4:$4, 0))), "") ->  | AB11: =IFERROR(IF(INDEX('RAB input'!11:11, MATCH(AB$4, 'RAB input'!$4:$4, 0))="", "", INDEX('RAB input'!11:11, MATCH(AB$4, 'RAB input'!$4:$4, 0))), "") ->  | AC11: =IFERROR(IF(INDEX('RAB input'!11:11, MATCH(AC$4, 'RAB input'!$4:$4, 0))="", "", INDEX('RAB input'!11:11, MATCH(AC$4, 'RAB input'!$4:$4, 0))), "") ->  | AD11: =IFERROR(IF(INDEX('RAB input'!11:11, MATCH(AD$4, 'RAB input'!$4:$4, 0))="", "", INDEX('RAB input'!11:11, MATCH(AD$4, 'RAB input'!$4:$4, 0))), "") ->  | AE11: =IFERROR(IF(INDEX('RAB input'!11:11, MATCH(AE$4, 'RAB input'!$4:$4, 0))="", "", INDEX('RAB input'!11:11, MATCH(AE$4, 'RAB input'!$4:$4, 0))), "") ->  | AF11: =IFERROR(IF(INDEX('RAB input'!11:11, MATCH(AF$4, 'RAB input'!$4:$4, 0))="", "", INDEX('RAB input'!11:11, MATCH(AF$4, 'RAB input'!$4:$4, 0))), "") ->  | AG11: =IFERROR(IF(INDEX('RAB input'!11:11, MATCH(AG$4, 'RAB input'!$4:$4, 0))="", "", INDEX('RAB input'!11:11, MATCH(AG$4, 'RAB input'!$4:$4, 0))), "") ->  | AH11: =IFERROR(IF(INDEX('RAB input'!11:11, MATCH(AH$4, 'RAB input'!$4:$4, 0))="", "", INDEX('RAB input'!11:11, MATCH(AH$4, 'RAB input'!$4:$4, 0))), "") ->  | AI11: =IFERROR(IF(INDEX('RAB input'!11:11, MATCH(AI$4, 'RAB input'!$4:$4, 0))="", "", INDEX('RAB input'!11:11, MATCH(AI$4, 'RAB input'!$4:$4, 0))), "") ->  | AJ11: =IFERROR(IF(INDEX('RAB input'!11:11, MATCH(AJ$4, 'RAB input'!$4:$4, 0))="", "", INDEX('RAB input'!11:11, MATCH(AJ$4, 'RAB input'!$4:$4, 0))), "") ->  | AK11: =IFERROR(IF(INDEX('RAB input'!11:11, MATCH(AK$4, 'RAB input'!$4:$4, 0))="", "", INDEX('RAB input'!11:11, MATCH(AK$4, 'RAB input'!$4:$4, 0))), "") ->  | AL11: =IFERROR(IF(INDEX('RAB input'!11:11, MATCH(AL$4, 'RAB input'!$4:$4, 0))="", "", INDEX('RAB input'!11:11, MATCH(AL$4, 'RAB input'!$4:$4, 0))), "") ->  | AM11: =IFERROR(IF(INDEX('RAB input'!11:11, MATCH(AM$4, 'RAB input'!$4:$4, 0))="", "", INDEX('RAB input'!11:11, MATCH(AM$4, 'RAB input'!$4:$4, 0))), "") ->  | AN11: =IFERROR(IF(INDEX('RAB input'!11:11, MATCH(AN$4, 'RAB input'!$4:$4, 0))="", "", INDEX('RAB input'!11:11, MATCH(AN$4, 'RAB input'!$4:$4, 0))), "") ->  | AO11: =IFERROR(IF(INDEX('RAB input'!11:11, MATCH(AO$4, 'RAB input'!$4:$4, 0))="", "", INDEX('RAB input'!11:11, MATCH(AO$4, 'RAB input'!$4:$4, 0))), "") ->  | AP11: =IFERROR(IF(INDEX('RAB input'!11:11, MATCH(AP$4, 'RAB input'!$4:$4, 0))="", "", INDEX('RAB input'!11:11, MATCH(AP$4, 'RAB input'!$4:$4, 0))), "") ->  | AQ11: =IFERROR(IF(INDEX('RAB input'!11:11, MATCH(AQ$4, 'RAB input'!$4:$4, 0))="", "", INDEX('RAB input'!11:11, MATCH(AQ$4, 'RAB input'!$4:$4, 0))), "") ->  | AR11: =IFERROR(IF(INDEX('RAB input'!11:11, MATCH(AR$4, 'RAB input'!$4:$4, 0))="", "", INDEX('RAB input'!11:11, MATCH(AR$4, 'RAB input'!$4:$4, 0))), "") ->  | AS11: =IFERROR(IF(INDEX('RAB input'!11:11, MATCH(AS$4, 'RAB input'!$4:$4, 0))="", "", INDEX('RAB input'!11:11, MATCH(AS$4, 'RAB input'!$4:$4, 0))), "") ->  | AT11: =IFERROR(IF(INDEX('RAB input'!11:11, MATCH(AT$4, 'RAB input'!$4:$4, 0))="", "", INDEX('RAB input'!11:11, MATCH(AT$4, 'RAB input'!$4:$4, 0))), "") ->  | AU11: =IFERROR(IF(INDEX('RAB input'!11:11, MATCH(AU$4, 'RAB input'!$4:$4, 0))="", "", INDEX('RAB input'!11:11, MATCH(AU$4, 'RAB input'!$4:$4, 0))), "") ->  | AV11: =IFERROR(IF(INDEX('RAB input'!11:11, MATCH(AV$4, 'RAB input'!$4:$4, 0))="", "", INDEX('RAB input'!11:11, MATCH(AV$4, 'RAB input'!$4:$4, 0))), "") ->  | AW11: =IFERROR(IF(INDEX('RAB input'!11:11, MATCH(AW$4, 'RAB input'!$4:$4, 0))="", "", INDEX('RAB input'!11:11, MATCH(AW$4, 'RAB input'!$4:$4, 0))), "") ->  | AX11: =IFERROR(IF(INDEX('RAB input'!11:11, MATCH(AX$4, 'RAB input'!$4:$4, 0))="", "", INDEX('RAB input'!11:11, MATCH(AX$4, 'RAB input'!$4:$4, 0))), "") ->  | AY11: =IFERROR(IF(INDEX('RAB input'!11:11, MATCH(AY$4, 'RAB input'!$4:$4, 0))="", "", INDEX('RAB input'!11:11, MATCH(AY$4, 'RAB input'!$4:$4, 0))), "") ->  | AZ11: =IFERROR(IF(INDEX('RAB input'!11:11, MATCH(AZ$4, 'RAB input'!$4:$4, 0))="", "", INDEX('RAB input'!11:11, MATCH(AZ$4, 'RAB input'!$4:$4, 0))), "") ->  | BA11: =IFERROR(IF(INDEX('RAB input'!11:11, MATCH(BA$4, 'RAB input'!$4:$4, 0))="", "", INDEX('RAB input'!11:11, MATCH(BA$4, 'RAB input'!$4:$4, 0))), "") ->  | BB11: =IFERROR(IF(INDEX('RAB input'!11:11, MATCH(BB$4, 'RAB input'!$4:$4, 0))="", "", INDEX('RAB input'!11:11, MATCH(BB$4, 'RAB input'!$4:$4, 0))), "") ->  | BC11: =IFERROR(IF(INDEX('RAB input'!11:11, MATCH(BC$4, 'RAB input'!$4:$4, 0))="", "", INDEX('RAB input'!11:11, MATCH(BC$4, 'RAB input'!$4:$4, 0))), "") ->  | BD11: =IFERROR(IF(INDEX('RAB input'!11:11, MATCH(BD$4, 'RAB input'!$4:$4, 0))="", "", INDEX('RAB input'!11:11, MATCH(BD$4, 'RAB input'!$4:$4, 0))), "") ->  | BE11: =IFERROR(IF(INDEX('RAB input'!11:11, MATCH(BE$4, 'RAB input'!$4:$4, 0))="", "", INDEX('RAB input'!11:11, MATCH(BE$4, 'RAB input'!$4:$4, 0))), "") ->  | BF11: =IFERROR(IF(INDEX('RAB input'!11:11, MATCH(BF$4, 'RAB input'!$4:$4, 0))="", "", INDEX('RAB input'!11:11, MATCH(BF$4, 'RAB input'!$4:$4, 0))), "") ->  | BG11: =IFERROR(IF(INDEX('RAB input'!11:11, MATCH(BG$4, 'RAB input'!$4:$4, 0))="", "", INDEX('RAB input'!11:11, MATCH(BG$4, 'RAB input'!$4:$4, 0))), "") ->  | BH11: =IFERROR(IF(INDEX('RAB input'!11:11, MATCH(BH$4, 'RAB input'!$4:$4, 0))="", "", INDEX('RAB input'!11:11, MATCH(BH$4, 'RAB input'!$4:$4, 0))), "") ->  | BI11: =IFERROR(IF(INDEX('RAB input'!11:11, MATCH(BI$4, 'RAB input'!$4:$4, 0))="", "", INDEX('RAB input'!11:11, MATCH(BI$4, 'RAB input'!$4:$4, 0))), "") ->  | BJ11: =IFERROR(IF(INDEX('RAB input'!11:11, MATCH(BJ$4, 'RAB input'!$4:$4, 0))="", "", INDEX('RAB input'!11:11, MATCH(BJ$4, 'RAB input'!$4:$4, 0))), "") ->  | BK11: =IFERROR(IF(INDEX('RAB input'!11:11, MATCH(BK$4, 'RAB input'!$4:$4, 0))="", "", INDEX('RAB input'!11:11, MATCH(BK$4, 'RAB input'!$4:$4, 0))), "") ->  | BL11: =IFERROR(IF(INDEX('RAB input'!11:11, MATCH(BL$4, 'RAB input'!$4:$4, 0))="", "", INDEX('RAB input'!11:11, MATCH(BL$4, 'RAB input'!$4:$4, 0))), "") ->  | BM11: =IFERROR(IF(INDEX('RAB input'!11:11, MATCH(BM$4, 'RAB input'!$4:$4, 0))="", "", INDEX('RAB input'!11:11, MATCH(BM$4, 'RAB input'!$4:$4, 0))), "") ->  | BN11: =IFERROR(IF(INDEX('RAB input'!11:11, MATCH(BN$4, 'RAB input'!$4:$4, 0))="", "", INDEX('RAB input'!11:11, MATCH(BN$4, 'RAB input'!$4:$4, 0))), "") ->  | BO11: =IFERROR(IF(INDEX('RAB input'!11:11, MATCH(BO$4, 'RAB input'!$4:$4, 0))="", "", INDEX('RAB input'!11:11, MATCH(BO$4, 'RAB input'!$4:$4, 0))), "") ->  | BP11: =IFERROR(IF(INDEX('RAB input'!11:11, MATCH(BP$4, 'RAB input'!$4:$4, 0))="", "", INDEX('RAB input'!11:11, MATCH(BP$4, 'RAB input'!$4:$4, 0))), "") ->  | BQ11: =IFERROR(IF(INDEX('RAB input'!11:11, MATCH(BQ$4, 'RAB input'!$4:$4, 0))="", "", INDEX('RAB input'!11:11, MATCH(BQ$4, 'RAB input'!$4:$4, 0))), "") ->  | BR11: =IFERROR(IF(INDEX('RAB input'!11:11, MATCH(BR$4, 'RAB input'!$4:$4, 0))="", "", INDEX('RAB input'!11:11, MATCH(BR$4, 'RAB input'!$4:$4, 0))), "") ->  | BS11: =IFERROR(IF(INDEX('RAB input'!11:11, MATCH(BS$4, 'RAB input'!$4:$4, 0))="", "", INDEX('RAB input'!11:11, MATCH(BS$4, 'RAB input'!$4:$4, 0))), "") ->  | BT11: =IFERROR(IF(INDEX('RAB input'!11:11, MATCH(BT$4, 'RAB input'!$4:$4, 0))="", "", INDEX('RAB input'!11:11, MATCH(BT$4, 'RAB input'!$4:$4, 0))), "") ->  | BU11: =IFERROR(IF(INDEX('RAB input'!11:11, MATCH(BU$4, 'RAB input'!$4:$4, 0))="", "", INDEX('RAB input'!11:11, MATCH(BU$4, 'RAB input'!$4:$4, 0))), "") ->  | BV11: =IFERROR(IF(INDEX('RAB input'!11:11, MATCH(BV$4, 'RAB input'!$4:$4, 0))="", "", INDEX('RAB input'!11:11, MATCH(BV$4, 'RAB input'!$4:$4, 0))), "") ->  | BW11: =IFERROR(IF(INDEX('RAB input'!11:11, MATCH(BW$4, 'RAB input'!$4:$4, 0))="", "", INDEX('RAB input'!11:11, MATCH(BW$4, 'RAB input'!$4:$4, 0))), "") ->  | BX11: =IFERROR(IF(INDEX('RAB input'!11:11, MATCH(BX$4, 'RAB input'!$4:$4, 0))="", "", INDEX('RAB input'!11:11, MATCH(BX$4, 'RAB input'!$4:$4, 0))), "") ->  | BY11: =IFERROR(IF(INDEX('RAB input'!11:11, MATCH(BY$4, 'RAB input'!$4:$4, 0))="", "", INDEX('RAB input'!11:11, MATCH(BY$4, 'RAB input'!$4:$4, 0))), "") ->  | BZ11: =IFERROR(IF(INDEX('RAB input'!11:11, MATCH(BZ$4, 'RAB input'!$4:$4, 0))="", "", INDEX('RAB input'!11:11, MATCH(BZ$4, 'RAB input'!$4:$4, 0))), "") ->  | CA11: =IFERROR(IF(INDEX('RAB input'!11:11, MATCH(CA$4, 'RAB input'!$4:$4, 0))="", "", INDEX('RAB input'!11:11, MATCH(CA$4, 'RAB input'!$4:$4, 0))), "") ->  | CB11: =IFERROR(IF(INDEX('RAB input'!11:11, MATCH(CB$4, 'RAB input'!$4:$4, 0))="", "", INDEX('RAB input'!11:11, MATCH(CB$4, 'RAB input'!$4:$4, 0))), "") ->  | CC11: =IFERROR(IF(INDEX('RAB input'!11:11, MATCH(CC$4, 'RAB input'!$4:$4, 0))="", "", INDEX('RAB input'!11:11, MATCH(CC$4, 'RAB input'!$4:$4, 0))), "") -> 
G12: =IF(OR(G$446:G$495="DV"), "DV input required", "") ->  | H12: =IF(AND(OR(H$446:H$495="DV"), H$13=""), "DV input required", "") ->  | I12: =IF(COUNTA($H$12:H$12)<SUM($11:$11), IF(AND(I$446:I$495=""), IF(AND(H$13<>"", I$13=""), "DV input required", H$12), IF(AND(OR(I$446:I$495="DV"), I$13=""), "DV input required", "")), "") ->  | J12: =IF(COUNTA($H$12:I$12)<SUM($11:$11), IF(AND(J$446:J$495=""), IF(AND(I$13<>"", J$13=""), "DV input required", I$12), IF(AND(OR(J$446:J$495="DV"), J$13=""), "DV input required", "")), "") ->  | K12: =IF(COUNTA($H$12:J$12)<SUM($11:$11), IF(AND(K$446:K$495=""), IF(AND(J$13<>"", K$13=""), "DV input required", J$12), IF(AND(OR(K$446:K$495="DV"), K$13=""), "DV input required", "")), "") ->  | L12: =IF(COUNTA($H$12:K$12)<SUM($11:$11), IF(AND(L$446:L$495=""), IF(AND(K$13<>"", L$13=""), "DV input required", K$12), IF(AND(OR(L$446:L$495="DV"), L$13=""), "DV input required", "")), "") ->  | M12: =IF(COUNTA($H$12:L$12)<SUM($11:$11), IF(AND(M$446:M$495=""), IF(AND(L$13<>"", M$13=""), "DV input required", L$12), IF(AND(OR(M$446:M$495="DV"), M$13=""), "DV input required", "")), "") ->  | N12: =IF(COUNTA($H$12:M$12)<SUM($11:$11), IF(AND(N$446:N$495=""), IF(AND(M$13<>"", N$13=""), "DV input required", M$12), IF(AND(OR(N$446:N$495="DV"), N$13=""), "DV input required", "")), "") ->  | O12: =IF(COUNTA($H$12:N$12)<SUM($11:$11), IF(AND(O$446:O$495=""), IF(AND(N$13<>"", O$13=""), "DV input required", N$12), IF(AND(OR(O$446:O$495="DV"), O$13=""), "DV input required", "")), "") ->  | P12: =IF(COUNTA($H$12:O$12)<SUM($11:$11), IF(AND(P$446:P$495=""), IF(AND(O$13<>"", P$13=""), "DV input required", O$12), IF(AND(OR(P$446:P$495="DV"), P$13=""), "DV input required", "")), "") ->  | Q12: =IF(COUNTA($H$12:P$12)<SUM($11:$11), IF(AND(Q$446:Q$495=""), IF(AND(P$13<>"", Q$13=""), "DV input required", P$12), IF(AND(OR(Q$446:Q$495="DV"), Q$13=""), "DV input required", "")), "") ->  | R12: =IF(COUNTA($H$12:Q$12)<SUM($11:$11), IF(AND(R$446:R$495=""), IF(AND(Q$13<>"", R$13=""), "DV input required", Q$12), IF(AND(OR(R$446:R$495="DV"), R$13=""), "DV input required", "")), "") ->  | S12: =IF(COUNTA($H$12:R$12)<SUM($11:$11), IF(AND(S$446:S$495=""), IF(AND(R$13<>"", S$13=""), "DV input required", R$12), IF(AND(OR(S$446:S$495="DV"), S$13=""), "DV input required", "")), "") ->  | T12: =IF(COUNTA($H$12:S$12)<SUM($11:$11), IF(AND(T$446:T$495=""), IF(AND(S$13<>"", T$13=""), "DV input required", S$12), IF(AND(OR(T$446:T$495="DV"), T$13=""), "DV input required", "")), "") ->  | U12: =IF(COUNTA($H$12:T$12)<SUM($11:$11), IF(AND(U$446:U$495=""), IF(AND(T$13<>"", U$13=""), "DV input required", T$12), IF(AND(OR(U$446:U$495="DV"), U$13=""), "DV input required", "")), "") ->  | V12: =IF(COUNTA($H$12:U$12)<SUM($11:$11), IF(AND(V$446:V$495=""), IF(AND(U$13<>"", V$13=""), "DV input required", U$12), IF(AND(OR(V$446:V$495="DV"), V$13=""), "DV input required", "")), "") ->  | W12: =IF(COUNTA($H$12:V$12)<SUM($11:$11), IF(AND(W$446:W$495=""), IF(AND(V$13<>"", W$13=""), "DV input required", V$12), IF(AND(OR(W$446:W$495="DV"), W$13=""), "DV input required", "")), "") ->  | X12: =IF(COUNTA($H$12:W$12)<SUM($11:$11), IF(AND(X$446:X$495=""), IF(AND(W$13<>"", X$13=""), "DV input required", W$12), IF(AND(OR(X$446:X$495="DV"), X$13=""), "DV input required", "")), "") ->  | Y12: =IF(COUNTA($H$12:X$12)<SUM($11:$11), IF(AND(Y$446:Y$495=""), IF(AND(X$13<>"", Y$13=""), "DV input required", X$12), IF(AND(OR(Y$446:Y$495="DV"), Y$13=""), "DV input required", "")), "") ->  | Z12: =IF(COUNTA($H$12:Y$12)<SUM($11:$11), IF(AND(Z$446:Z$495=""), IF(AND(Y$13<>"", Z$13=""), "DV input required", Y$12), IF(AND(OR(Z$446:Z$495="DV"), Z$13=""), "DV input required", "")), "") ->  | AA12: =IF(COUNTA($H$12:Z$12)<SUM($11:$11), IF(AND(AA$446:AA$495=""), IF(AND(Z$13<>"", AA$13=""), "DV input required", Z$12), IF(AND(OR(AA$446:AA$495="DV"), AA$13=""), "DV input required", "")), "") ->  | AB12: =IF(COUNTA($H$12:AA$12)<SUM($11:$11), IF(AND(AB$446:AB$495=""), IF(AND(AA$13<>"", AB$13=""), "DV input required", AA$12), IF(AND(OR(AB$446:AB$495="DV"), AB$13=""), "DV input required", "")), "") ->  | AC12: =IF(COUNTA($H$12:AB$12)<SUM($11:$11), IF(AND(AC$446:AC$495=""), IF(AND(AB$13<>"", AC$13=""), "DV input required", AB$12), IF(AND(OR(AC$446:AC$495="DV"), AC$13=""), "DV input required", "")), "") ->  | AD12: =IF(COUNTA($H$12:AC$12)<SUM($11:$11), IF(AND(AD$446:AD$495=""), IF(AND(AC$13<>"", AD$13=""), "DV input required", AC$12), IF(AND(OR(AD$446:AD$495="DV"), AD$13=""), "DV input required", "")), "") ->  | AE12: =IF(COUNTA($H$12:AD$12)<SUM($11:$11), IF(AND(AE$446:AE$495=""), IF(AND(AD$13<>"", AE$13=""), "DV input required", AD$12), IF(AND(OR(AE$446:AE$495="DV"), AE$13=""), "DV input required", "")), "") ->  | AF12: =IF(COUNTA($H$12:AE$12)<SUM($11:$11), IF(AND(AF$446:AF$495=""), IF(AND(AE$13<>"", AF$13=""), "DV input required", AE$12), IF(AND(OR(AF$446:AF$495="DV"), AF$13=""), "DV input required", "")), "") ->  | AG12: =IF(COUNTA($H$12:AF$12)<SUM($11:$11), IF(AND(AG$446:AG$495=""), IF(AND(AF$13<>"", AG$13=""), "DV input required", AF$12), IF(AND(OR(AG$446:AG$495="DV"), AG$13=""), "DV input required", "")), "") ->  | AH12: =IF(COUNTA($H$12:AG$12)<SUM($11:$11), IF(AND(AH$446:AH$495=""), IF(AND(AG$13<>"", AH$13=""), "DV input required", AG$12), IF(AND(OR(AH$446:AH$495="DV"), AH$13=""), "DV input required", "")), "") ->  | AI12: =IF(COUNTA($H$12:AH$12)<SUM($11:$11), IF(AND(AI$446:AI$495=""), IF(AND(AH$13<>"", AI$13=""), "DV input required", AH$12), IF(AND(OR(AI$446:AI$495="DV"), AI$13=""), "DV input required", "")), "") ->  | AJ12: =IF(COUNTA($H$12:AI$12)<SUM($11:$11), IF(AND(AJ$446:AJ$495=""), IF(AND(AI$13<>"", AJ$13=""), "DV input required", AI$12), IF(AND(OR(AJ$446:AJ$495="DV"), AJ$13=""), "DV input required", "")), "") ->  | AK12: =IF(COUNTA($H$12:AJ$12)<SUM($11:$11), IF(AND(AK$446:AK$495=""), IF(AND(AJ$13<>"", AK$13=""), "DV input required", AJ$12), IF(AND(OR(AK$446:AK$495="DV"), AK$13=""), "DV input required", "")), "") ->  | AL12: =IF(COUNTA($H$12:AK$12)<SUM($11:$11), IF(AND(AL$446:AL$495=""), IF(AND(AK$13<>"", AL$13=""), "DV input required", AK$12), IF(AND(OR(AL$446:AL$495="DV"), AL$13=""), "DV input required", "")), "") ->  | AM12: =IF(COUNTA($H$12:AL$12)<SUM($11:$11), IF(AND(AM$446:AM$495=""), IF(AND(AL$13<>"", AM$13=""), "DV input required", AL$12), IF(AND(OR(AM$446:AM$495="DV"), AM$13=""), "DV input required", "")), "") ->  | AN12: =IF(COUNTA($H$12:AM$12)<SUM($11:$11), IF(AND(AN$446:AN$495=""), IF(AND(AM$13<>"", AN$13=""), "DV input required", AM$12), IF(AND(OR(AN$446:AN$495="DV"), AN$13=""), "DV input required", "")), "") ->  | AO12: =IF(COUNTA($H$12:AN$12)<SUM($11:$11), IF(AND(AO$446:AO$495=""), IF(AND(AN$13<>"", AO$13=""), "DV input required", AN$12), IF(AND(OR(AO$446:AO$495="DV"), AO$13=""), "DV input required", "")), "") ->  | AP12: =IF(COUNTA($H$12:AO$12)<SUM($11:$11), IF(AND(AP$446:AP$495=""), IF(AND(AO$13<>"", AP$13=""), "DV input required", AO$12), IF(AND(OR(AP$446:AP$495="DV"), AP$13=""), "DV input required", "")), "") ->  | AQ12: =IF(COUNTA($H$12:AP$12)<SUM($11:$11), IF(AND(AQ$446:AQ$495=""), IF(AND(AP$13<>"", AQ$13=""), "DV input required", AP$12), IF(AND(OR(AQ$446:AQ$495="DV"), AQ$13=""), "DV input required", "")), "") ->  | AR12: =IF(COUNTA($H$12:AQ$12)<SUM($11:$11), IF(AND(AR$446:AR$495=""), IF(AND(AQ$13<>"", AR$13=""), "DV input required", AQ$12), IF(AND(OR(AR$446:AR$495="DV"), AR$13=""), "DV input required", "")), "") ->  | AS12: =IF(COUNTA($H$12:AR$12)<SUM($11:$11), IF(AND(AS$446:AS$495=""), IF(AND(AR$13<>"", AS$13=""), "DV input required", AR$12), IF(AND(OR(AS$446:AS$495="DV"), AS$13=""), "DV input required", "")), "") ->  | AT12: =IF(COUNTA($H$12:AS$12)<SUM($11:$11), IF(AND(AT$446:AT$495=""), IF(AND(AS$13<>"", AT$13=""), "DV input required", AS$12), IF(AND(OR(AT$446:AT$495="DV"), AT$13=""), "DV input required", "")), "") ->  | AU12: =IF(COUNTA($H$12:AT$12)<SUM($11:$11), IF(AND(AU$446:AU$495=""), IF(AND(AT$13<>"", AU$13=""), "DV input required", AT$12), IF(AND(OR(AU$446:AU$495="DV"), AU$13=""), "DV input required", "")), "") ->  | AV12: =IF(COUNTA($H$12:AU$12)<SUM($11:$11), IF(AND(AV$446:AV$495=""), IF(AND(AU$13<>"", AV$13=""), "DV input required", AU$12), IF(AND(OR(AV$446:AV$495="DV"), AV$13=""), "DV input required", "")), "") ->  | AW12: =IF(COUNTA($H$12:AV$12)<SUM($11:$11), IF(AND(AW$446:AW$495=""), IF(AND(AV$13<>"", AW$13=""), "DV input required", AV$12), IF(AND(OR(AW$446:AW$495="DV"), AW$13=""), "DV input required", "")), "") ->  | AX12: =IF(COUNTA($H$12:AW$12)<SUM($11:$11), IF(AND(AX$446:AX$495=""), IF(AND(AW$13<>"", AX$13=""), "DV input required", AW$12), IF(AND(OR(AX$446:AX$495="DV"), AX$13=""), "DV input required", "")), "") ->  | AY12: =IF(COUNTA($H$12:AX$12)<SUM($11:$11), IF(AND(AY$446:AY$495=""), IF(AND(AX$13<>"", AY$13=""), "DV input required", AX$12), IF(AND(OR(AY$446:AY$495="DV"), AY$13=""), "DV input required", "")), "") ->  | AZ12: =IF(COUNTA($H$12:AY$12)<SUM($11:$11), IF(AND(AZ$446:AZ$495=""), IF(AND(AY$13<>"", AZ$13=""), "DV input required", AY$12), IF(AND(OR(AZ$446:AZ$495="DV"), AZ$13=""), "DV input required", "")), "") ->  | BA12: =IF(COUNTA($H$12:AZ$12)<SUM($11:$11), IF(AND(BA$446:BA$495=""), IF(AND(AZ$13<>"", BA$13=""), "DV input required", AZ$12), IF(AND(OR(BA$446:BA$495="DV"), BA$13=""), "DV input required", "")), "") ->  | BB12: =IF(COUNTA($H$12:BA$12)<SUM($11:$11), IF(AND(BB$446:BB$495=""), IF(AND(BA$13<>"", BB$13=""), "DV input required", BA$12), IF(AND(OR(BB$446:BB$495="DV"), BB$13=""), "DV input required", "")), "") ->  | BC12: =IF(COUNTA($H$12:BB$12)<SUM($11:$11), IF(AND(BC$446:BC$495=""), IF(AND(BB$13<>"", BC$13=""), "DV input required", BB$12), IF(AND(OR(BC$446:BC$495="DV"), BC$13=""), "DV input required", "")), "") ->  | BD12: =IF(COUNTA($H$12:BC$12)<SUM($11:$11), IF(AND(BD$446:BD$495=""), IF(AND(BC$13<>"", BD$13=""), "DV input required", BC$12), IF(AND(OR(BD$446:BD$495="DV"), BD$13=""), "DV input required", "")), "") ->  | BE12: =IF(COUNTA($H$12:BD$12)<SUM($11:$11), IF(AND(BE$446:BE$495=""), IF(AND(BD$13<>"", BE$13=""), "DV input required", BD$12), IF(AND(OR(BE$446:BE$495="DV"), BE$13=""), "DV input required", "")), "") ->  | BF12: =IF(COUNTA($H$12:BE$12)<SUM($11:$11), IF(AND(BF$446:BF$495=""), IF(AND(BE$13<>"", BF$13=""), "DV input required", BE$12), IF(AND(OR(BF$446:BF$495="DV"), BF$13=""), "DV input required", "")), "") ->  | BG12: =IF(COUNTA($H$12:BF$12)<SUM($11:$11), IF(AND(BG$446:BG$495=""), IF(AND(BF$13<>"", BG$13=""), "DV input required", BF$12), IF(AND(OR(BG$446:BG$495="DV"), BG$13=""), "DV input required", "")), "") ->  | BH12: =IF(COUNTA($H$12:BG$12)<SUM($11:$11), IF(AND(BH$446:BH$495=""), IF(AND(BG$13<>"", BH$13=""), "DV input required", BG$12), IF(AND(OR(BH$446:BH$495="DV"), BH$13=""), "DV input required", "")), "") ->  | BI12: =IF(COUNTA($H$12:BH$12)<SUM($11:$11), IF(AND(BI$446:BI$495=""), IF(AND(BH$13<>"", BI$13=""), "DV input required", BH$12), IF(AND(OR(BI$446:BI$495="DV"), BI$13=""), "DV input required", "")), "") ->  | BJ12: =IF(COUNTA($H$12:BI$12)<SUM($11:$11), IF(AND(BJ$446:BJ$495=""), IF(AND(BI$13<>"", BJ$13=""), "DV input required", BI$12), IF(AND(OR(BJ$446:BJ$495="DV"), BJ$13=""), "DV input required", "")), "") ->  | BK12: =IF(COUNTA($H$12:BJ$12)<SUM($11:$11), IF(AND(BK$446:BK$495=""), IF(AND(BJ$13<>"", BK$13=""), "DV input required", BJ$12), IF(AND(OR(BK$446:BK$495="DV"), BK$13=""), "DV input required", "")), "") ->  | BL12: =IF(COUNTA($H$12:BK$12)<SUM($11:$11), IF(AND(BL$446:BL$495=""), IF(AND(BK$13<>"", BL$13=""), "DV input required", BK$12), IF(AND(OR(BL$446:BL$495="DV"), BL$13=""), "DV input required", "")), "") ->  | BM12: =IF(COUNTA($H$12:BL$12)<SUM($11:$11), IF(AND(BM$446:BM$495=""), IF(AND(BL$13<>"", BM$13=""), "DV input required", BL$12), IF(AND(OR(BM$446:BM$495="DV"), BM$13=""), "DV input required", "")), "") ->  | BN12: =IF(COUNTA($H$12:BM$12)<SUM($11:$11), IF(AND(BN$446:BN$495=""), IF(AND(BM$13<>"", BN$13=""), "DV input required", BM$12), IF(AND(OR(BN$446:BN$495="DV"), BN$13=""), "DV input required", "")), "") ->  | BO12: =IF(COUNTA($H$12:BN$12)<SUM($11:$11), IF(AND(BO$446:BO$495=""), IF(AND(BN$13<>"", BO$13=""), "DV input required", BN$12), IF(AND(OR(BO$446:BO$495="DV"), BO$13=""), "DV input required", "")), "") ->  | BP12: =IF(COUNTA($H$12:BO$12)<SUM($11:$11), IF(AND(BP$446:BP$495=""), IF(AND(BO$13<>"", BP$13=""), "DV input required", BO$12), IF(AND(OR(BP$446:BP$495="DV"), BP$13=""), "DV input required", "")), "") ->  | BQ12: =IF(COUNTA($H$12:BP$12)<SUM($11:$11), IF(AND(BQ$446:BQ$495=""), IF(AND(BP$13<>"", BQ$13=""), "DV input required", BP$12), IF(AND(OR(BQ$446:BQ$495="DV"), BQ$13=""), "DV input required", "")), "") ->  | BR12: =IF(COUNTA($H$12:BQ$12)<SUM($11:$11), IF(AND(BR$446:BR$495=""), IF(AND(BQ$13<>"", BR$13=""), "DV input required", BQ$12), IF(AND(OR(BR$446:BR$495="DV"), BR$13=""), "DV input required", "")), "") ->  | BS12: =IF(COUNTA($H$12:BR$12)<SUM($11:$11), IF(AND(BS$446:BS$495=""), IF(AND(BR$13<>"", BS$13=""), "DV input required", BR$12), IF(AND(OR(BS$446:BS$495="DV"), BS$13=""), "DV input required", "")), "") ->  | BT12: =IF(COUNTA($H$12:BS$12)<SUM($11:$11), IF(AND(BT$446:BT$495=""), IF(AND(BS$13<>"", BT$13=""), "DV input required", BS$12), IF(AND(OR(BT$446:BT$495="DV"), BT$13=""), "DV input required", "")), "") ->  | BU12: =IF(COUNTA($H$12:BT$12)<SUM($11:$11), IF(AND(BU$446:BU$495=""), IF(AND(BT$13<>"", BU$13=""), "DV input required", BT$12), IF(AND(OR(BU$446:BU$495="DV"), BU$13=""), "DV input required", "")), "") ->  | BV12: =IF(COUNTA($H$12:BU$12)<SUM($11:$11), IF(AND(BV$446:BV$495=""), IF(AND(BU$13<>"", BV$13=""), "DV input required", BU$12), IF(AND(OR(BV$446:BV$495="DV"), BV$13=""), "DV input required", "")), "") ->  | BW12: =IF(COUNTA($H$12:BV$12)<SUM($11:$11), IF(AND(BW$446:BW$495=""), IF(AND(BV$13<>"", BW$13=""), "DV input required", BV$12), IF(AND(OR(BW$446:BW$495="DV"), BW$13=""), "DV input required", "")), "") ->  | BX12: =IF(COUNTA($H$12:BW$12)<SUM($11:$11), IF(AND(BX$446:BX$495=""), IF(AND(BW$13<>"", BX$13=""), "DV input required", BW$12), IF(AND(OR(BX$446:BX$495="DV"), BX$13=""), "DV input required", "")), "") ->  | BY12: =IF(COUNTA($H$12:BX$12)<SUM($11:$11), IF(AND(BY$446:BY$495=""), IF(AND(BX$13<>"", BY$13=""), "DV input required", BX$12), IF(AND(OR(BY$446:BY$495="DV"), BY$13=""), "DV input required", "")), "") ->  | BZ12: =IF(COUNTA($H$12:BY$12)<SUM($11:$11), IF(AND(BZ$446:BZ$495=""), IF(AND(BY$13<>"", BZ$13=""), "DV input required", BY$12), IF(AND(OR(BZ$446:BZ$495="DV"), BZ$13=""), "DV input required", "")), "") ->  | CA12: =IF(COUNTA($H$12:BZ$12)<SUM($11:$11), IF(AND(CA$446:CA$495=""), IF(AND(BZ$13<>"", CA$13=""), "DV input required", BZ$12), IF(AND(OR(CA$446:CA$495="DV"), CA$13=""), "DV input required", "")), "") ->  | CB12: =IF(COUNTA($H$12:CA$12)<SUM($11:$11), IF(AND(CB$446:CB$495=""), IF(AND(CA$13<>"", CB$13=""), "DV input required", CA$12), IF(AND(OR(CB$446:CB$495="DV"), CB$13=""), "DV input required", "")), "") ->  | CC12: =IF(COUNTA($H$12:CB$12)<SUM($11:$11), IF(AND(CC$446:CC$495=""), IF(AND(CB$13<>"", CC$13=""), "DV input required", CB$12), IF(AND(OR(CC$446:CC$495="DV"), CC$13=""), "DV input required", "")), "") -> 
E13: Diminishing value multiplier | P13: 2 | Q13: 2 | R13: 2 | S13: 2 | T13: 2
D15: Starting TAB and actual gross capex - As incurred ($m, nominal)
E16: Asset class | G16: ="TAB (opening as at "&$H$4&")" -> TAB (opening as at 2011-12) | H16: ="Actual gross capex ("&H$4&")" -> Actual gross capex (2011-12) | I16: =IF(COUNTA($H$16:H$16)<SUM($11:$11), "Actual gross capex ("&I$4&")", "") -> Actual gross capex (2012-13) | J16: =IF(COUNTA($H$16:I$16)<SUM($11:$11), "Actual gross capex ("&J$4&")", "") -> Actual gross capex (2013-14) | K16: =IF(COUNTA($H$16:J$16)<SUM($11:$11), "Actual gross capex ("&K$4&")", "") -> Actual gross capex (2014-15) | L16: =IF(COUNTA($H$16:K$16)<SUM($11:$11), "Actual gross capex ("&L$4&")", "") -> Actual gross capex (2015-16) | M16: =IF(COUNTA($H$16:L$16)<SUM($11:$11), "Actual gross capex ("&M$4&")", "") -> Actual gross capex (2016-17) | N16: =IF(COUNTA($H$16:M$16)<SUM($11:$11), "Actual gross capex ("&N$4&")", "") -> Actual gross capex (2017-18) | O16: =IF(COUNTA($H$16:N$16)<SUM($11:$11), "Actual gross capex ("&O$4&")", "") -> Actual gross capex (2018-19) | P16: =IF(COUNTA($H$16:O$16)<SUM($11:$11), "Actual gross capex ("&P$4&")", "") -> Actual gross capex (2019-20) | Q16: =IF(COUNTA($H$16:P$16)<SUM($11:$11), "Actual gross capex ("&Q$4&")", "") -> Actual gross capex (2020-21) | R16: =IF(COUNTA($H$16:Q$16)<SUM($11:$11), "Actual gross capex ("&R$4&")", "") -> Actual gross capex (2021-22) | S16: =IF(COUNTA($H$16:R$16)<SUM($11:$11), "Actual gross capex ("&S$4&")", "") -> Actual gross capex (2022-23) | T16: =IF(COUNTA($H$16:S$16)<SUM($11:$11), "Actual gross capex ("&T$4&")", "") -> Actual gross capex (2023-24) | U16: =IF(COUNTA($H$16:T$16)<SUM($11:$11), "Actual gross capex ("&U$4&")", "") ->  | V16: =IF(COUNTA($H$16:U$16)<SUM($11:$11), "Actual gross capex ("&V$4&")", "") ->  | W16: =IF(COUNTA($H$16:V$16)<SUM($11:$11), "Actual gross capex ("&W$4&")", "") ->  | X16: =IF(COUNTA($H$16:W$16)<SUM($11:$11), "Actual gross capex ("&X$4&")", "") ->  | Y16: =IF(COUNTA($H$16:X$16)<SUM($11:$11), "Actual gross capex ("&Y$4&")", "") ->  | Z16: =IF(COUNTA($H$16:Y$16)<SUM($11:$11), "Actual gross capex ("&Z$4&")", "") ->  | AA16: =IF(COUNTA($H$16:Z$16)<SUM($11:$11), "Actual gross capex ("&AA$4&")", "") ->  | AB16: =IF(COUNTA($H$16:AA$16)<SUM($11:$11), "Actual gross capex ("&AB$4&")", "") ->  | AC16: =IF(COUNTA($H$16:AB$16)<SUM($11:$11), "Actual gross capex ("&AC$4&")", "") ->  | AD16: =IF(COUNTA($H$16:AC$16)<SUM($11:$11), "Actual gross capex ("&AD$4&")", "") ->  | AE16: =IF(COUNTA($H$16:AD$16)<SUM($11:$11), "Actual gross capex ("&AE$4&")", "") ->  | AF16: =IF(COUNTA($H$16:AE$16)<SUM($11:$11), "Actual gross capex ("&AF$4&")", "") ->  | AG16: =IF(COUNTA($H$16:AF$16)<SUM($11:$11), "Actual gross capex ("&AG$4&")", "") ->  | AH16: =IF(COUNTA($H$16:AG$16)<SUM($11:$11), "Actual gross capex ("&AH$4&")", "") ->  | AI16: =IF(COUNTA($H$16:AH$16)<SUM($11:$11), "Actual gross capex ("&AI$4&")", "") ->  | AJ16: =IF(COUNTA($H$16:AI$16)<SUM($11:$11), "Actual gross capex ("&AJ$4&")", "") ->  | AK16: =IF(COUNTA($H$16:AJ$16)<SUM($11:$11), "Actual gross capex ("&AK$4&")", "") ->  | AL16: =IF(COUNTA($H$16:AK$16)<SUM($11:$11), "Actual gross capex ("&AL$4&")", "") ->  | AM16: =IF(COUNTA($H$16:AL$16)<SUM($11:$11), "Actual gross capex ("&AM$4&")", "") ->  | AN16: =IF(COUNTA($H$16:AM$16)<SUM($11:$11), "Actual gross capex ("&AN$4&")", "") ->  | AO16: =IF(COUNTA($H$16:AN$16)<SUM($11:$11), "Actual gross capex ("&AO$4&")", "") ->  | AP16: =IF(COUNTA($H$16:AO$16)<SUM($11:$11), "Actual gross capex ("&AP$4&")", "") ->  | AQ16: =IF(COUNTA($H$16:AP$16)<SUM($11:$11), "Actual gross capex ("&AQ$4&")", "") ->  | AR16: =IF(COUNTA($H$16:AQ$16)<SUM($11:$11), "Actual gross capex ("&AR$4&")", "") ->  | AS16: =IF(COUNTA($H$16:AR$16)<SUM($11:$11), "Actual gross capex ("&AS$4&")", "") ->  | AT16: =IF(COUNTA($H$16:AS$16)<SUM($11:$11), "Actual gross capex ("&AT$4&")", "") ->  | AU16: =IF(COUNTA($H$16:AT$16)<SUM($11:$11), "Actual gross capex ("&AU$4&")", "") ->  | AV16: =IF(COUNTA($H$16:AU$16)<SUM($11:$11), "Actual gross capex ("&AV$4&")", "") ->  | AW16: =IF(COUNTA($H$16:AV$16)<SUM($11:$11), "Actual gross capex ("&AW$4&")", "") ->  | AX16: =IF(COUNTA($H$16:AW$16)<SUM($11:$11), "Actual gross capex ("&AX$4&")", "") ->  | AY16: =IF(COUNTA($H$16:AX$16)<SUM($11:$11), "Actual gross capex ("&AY$4&")", "") ->  | AZ16: =IF(COUNTA($H$16:AY$16)<SUM($11:$11), "Actual gross capex ("&AZ$4&")", "") ->  | BA16: =IF(COUNTA($H$16:AZ$16)<SUM($11:$11), "Actual gross capex ("&BA$4&")", "") ->  | BB16: =IF(COUNTA($H$16:BA$16)<SUM($11:$11), "Actual gross capex ("&BB$4&")", "") ->  | BC16: =IF(COUNTA($H$16:BB$16)<SUM($11:$11), "Actual gross capex ("&BC$4&")", "") ->  | BD16: =IF(COUNTA($H$16:BC$16)<SUM($11:$11), "Actual gross capex ("&BD$4&")", "") ->  | BE16: =IF(COUNTA($H$16:BD$16)<SUM($11:$11), "Actual gross capex ("&BE$4&")", "") ->  | BF16: =IF(COUNTA($H$16:BE$16)<SUM($11:$11), "Actual gross capex ("&BF$4&")", "") ->  | BG16: =IF(COUNTA($H$16:BF$16)<SUM($11:$11), "Actual gross capex ("&BG$4&")", "") ->  | BH16: =IF(COUNTA($H$16:BG$16)<SUM($11:$11), "Actual gross capex ("&BH$4&")", "") ->  | BI16: =IF(COUNTA($H$16:BH$16)<SUM($11:$11), "Actual gross capex ("&BI$4&")", "") ->  | BJ16: =IF(COUNTA($H$16:BI$16)<SUM($11:$11), "Actual gross capex ("&BJ$4&")", "") ->  | BK16: =IF(COUNTA($H$16:BJ$16)<SUM($11:$11), "Actual gross capex ("&BK$4&")", "") ->  | BL16: =IF(COUNTA($H$16:BK$16)<SUM($11:$11), "Actual gross capex ("&BL$4&")", "") ->  | BM16: =IF(COUNTA($H$16:BL$16)<SUM($11:$11), "Actual gross capex ("&BM$4&")", "") ->  | BN16: =IF(COUNTA($H$16:BM$16)<SUM($11:$11), "Actual gross capex ("&BN$4&")", "") ->  | BO16: =IF(COUNTA($H$16:BN$16)<SUM($11:$11), "Actual gross capex ("&BO$4&")", "") ->  | BP16: =IF(COUNTA($H$16:BO$16)<SUM($11:$11), "Actual gross capex ("&BP$4&")", "") ->  | BQ16: =IF(COUNTA($H$16:BP$16)<SUM($11:$11), "Actual gross capex ("&BQ$4&")", "") ->  | BR16: =IF(COUNTA($H$16:BQ$16)<SUM($11:$11), "Actual gross capex ("&BR$4&")", "") ->  | BS16: =IF(COUNTA($H$16:BR$16)<SUM($11:$11), "Actual gross capex ("&BS$4&")", "") ->  | BT16: =IF(COUNTA($H$16:BS$16)<SUM($11:$11), "Actual gross capex ("&BT$4&")", "") ->  | BU16: =IF(COUNTA($H$16:BT$16)<SUM($11:$11), "Actual gross capex ("&BU$4&")", "") ->  | BV16: =IF(COUNTA($H$16:BU$16)<SUM($11:$11), "Actual gross capex ("&BV$4&")", "") ->  | BW16: =IF(COUNTA($H$16:BV$16)<SUM($11:$11), "Actual gross capex ("&BW$4&")", "") ->  | BX16: =IF(COUNTA($H$16:BW$16)<SUM($11:$11), "Actual gross capex ("&BX$4&")", "") ->  | BY16: =IF(COUNTA($H$16:BX$16)<SUM($11:$11), "Actual gross capex ("&BY$4&")", "") ->  | BZ16: =IF(COUNTA($H$16:BY$16)<SUM($11:$11), "Actual gross capex ("&BZ$4&")", "") ->  | CA16: =IF(COUNTA($H$16:BZ$16)<SUM($11:$11), "Actual gross capex ("&CA$4&")", "") ->  | CB16: =IF(COUNTA($H$16:CA$16)<SUM($11:$11), "Actual gross capex ("&CB$4&")", "") ->  | CC16: =IF(COUNTA($H$16:CB$16)<SUM($11:$11), "Actual gross capex ("&CC$4&")", "") -> 
D18: 1 | E18: ='RAB input'!E25 -> Overhead Subtransmission Lines (Urban) | G18: 2.794293813 | H18: 0.8736416493 | I18: =INDEX('RAB input'!$H$25:$XFD$74, MATCH($E18, 'RAB input'!$E$25:$E$74, 0), MATCH(I$4, RAB_years, 0)) -> 1.430652046 | J18: =INDEX('RAB input'!$H$25:$XFD$74, MATCH($E18, 'RAB input'!$E$25:$E$74, 0), MATCH(J$4, RAB_years, 0)) -> 0.7701259678 | K18: =INDEX('RAB input'!$H$25:$XFD$74, MATCH($E18, 'RAB input'!$E$25:$E$74, 0), MATCH(K$4, RAB_years, 0)) -> 0.329 | L18: =INDEX('RAB input'!$H$25:$XFD$74, MATCH($E18, 'RAB input'!$E$25:$E$74, 0), MATCH(L$4, RAB_years, 0)) -> 0.3439825905 | M18: =INDEX('RAB input'!$H$25:$XFD$74, MATCH($E18, 'RAB input'!$E$25:$E$74, 0), MATCH(M$4, RAB_years, 0)) -> 0.2353217333 | N18: =INDEX('RAB input'!$H$25:$XFD$74, MATCH($E18, 'RAB input'!$E$25:$E$74, 0), MATCH(N$4, RAB_years, 0)) -> 0.3275278158 | O18: =INDEX('RAB input'!$H$25:$XFD$74, MATCH($E18, 'RAB input'!$E$25:$E$74, 0), MATCH(O$4, RAB_years, 0)) -> 0.2766166811 | P18: =INDEX('RAB input'!$H$25:$XFD$74, MATCH($E18, 'RAB input'!$E$25:$E$74, 0), MATCH(P$4, RAB_years, 0)) -> 0.420189644 | Q18: =INDEX('RAB input'!$H$25:$XFD$74, MATCH($E18, 'RAB input'!$E$25:$E$74, 0), MATCH(Q$4, RAB_years, 0)) -> 0.510864855 | R18: =INDEX('RAB input'!$H$25:$XFD$74, MATCH($E18, 'RAB input'!$E$25:$E$74, 0), MATCH(R$4, RAB_years, 0)) -> 0.4699857223 | S18: =INDEX('RAB input'!$H$25:$XFD$74, MATCH($E18, 'RAB input'!$E$25:$E$74, 0), MATCH(S$4, RAB_years, 0)) -> 0.3333675245 | T18: =INDEX('RAB input'!$H$25:$XFD$74, MATCH($E18, 'RAB input'!$E$25:$E$74, 0), MATCH(T$4, RAB_years, 0)) -> 0.4273705408 | U18: =INDEX('RAB input'!$H$25:$XFD$74, MATCH($E18, 'RAB input'!$E$25:$E$74, 0), MATCH(U$4, RAB_years, 0)) -> 0 | V18: =INDEX('RAB input'!$H$25:$XFD$74, MATCH($E18, 'RAB input'!$E$25:$E$74, 0), MATCH(V$4, RAB_years, 0)) -> 0 | W18: =INDEX('RAB input'!$H$25:$XFD$74, MATCH($E18, 'RAB input'!$E$25:$E$74, 0), MATCH(W$4, RAB_years, 0)) -> 0 | X18: =INDEX('RAB input'!$H$25:$XFD$74, MATCH($E18, 'RAB input'!$E$25:$E$74, 0), MATCH(X$4, RAB_years, 0)) -> 0 | Y18: =INDEX('RAB input'!$H$25:$XFD$74, MATCH($E18, 'RAB input'!$E$25:$E$74, 0), MATCH(Y$4, RAB_years, 0)) -> 0 | Z18: =INDEX('RAB input'!$H$25:$XFD$74, MATCH($E18, 'RAB input'!$E$25:$E$74, 0), MATCH(Z$4, RAB_years, 0)) -> 0 | AA18: =INDEX('RAB input'!$H$25:$XFD$74, MATCH($E18, 'RAB input'!$E$25:$E$74, 0), MATCH(AA$4, RAB_years, 0)) -> 0 | AB18: =INDEX('RAB input'!$H$25:$XFD$74, MATCH($E18, 'RAB input'!$E$25:$E$74, 0), MATCH(AB$4, RAB_years, 0)) -> 0 | AC18: =INDEX('RAB input'!$H$25:$XFD$74, MATCH($E18, 'RAB input'!$E$25:$E$74, 0), MATCH(AC$4, RAB_years, 0)) -> 0 | AD18: =INDEX('RAB input'!$H$25:$XFD$74, MATCH($E18, 'RAB input'!$E$25:$E$74, 0), MATCH(AD$4, RAB_years, 0)) -> 0 | AE18: =INDEX('RAB input'!$H$25:$XFD$74, MATCH($E18, 'RAB input'!$E$25:$E$74, 0), MATCH(AE$4, RAB_years, 0)) -> 0 | AF18: =INDEX('RAB input'!$H$25:$XFD$74, MATCH($E18, 'RAB input'!$E$25:$E$74, 0), MATCH(AF$4, RAB_years, 0)) -> 0 | AG18: =INDEX('RAB input'!$H$25:$XFD$74, MATCH($E18, 'RAB input'!$E$25:$E$74, 0), MATCH(AG$4, RAB_years, 0)) -> 0 | AH18: =INDEX('RAB input'!$H$25:$XFD$74, MATCH($E18, 'RAB input'!$E$25:$E$74, 0), MATCH(AH$4, RAB_years, 0)) -> 0 | AI18: =INDEX('RAB input'!$H$25:$XFD$74, MATCH($E18, 'RAB input'!$E$25:$E$74, 0), MATCH(AI$4, RAB_years, 0)) -> 0 | AJ18: =INDEX('RAB input'!$H$25:$XFD$74, MATCH($E18, 'RAB input'!$E$25:$E$74, 0), MATCH(AJ$4, RAB_years, 0)) -> 0 | AK18: =INDEX('RAB input'!$H$25:$XFD$74, MATCH($E18, 'RAB input'!$E$25:$E$74, 0), MATCH(AK$4, RAB_years, 0)) -> 0 | AL18: =INDEX('RAB input'!$H$25:$XFD$74, MATCH($E18, 'RAB input'!$E$25:$E$74, 0), MATCH(AL$4, RAB_years, 0)) -> 0 | AM18: =INDEX('RAB input'!$H$25:$XFD$74, MATCH($E18, 'RAB input'!$E$25:$E$74, 0), MATCH(AM$4, RAB_years, 0)) -> 0 | AN18: =INDEX('RAB input'!$H$25:$XFD$74, MATCH($E18, 'RAB input'!$E$25:$E$74, 0), MATCH(AN$4, RAB_years, 0)) -> 0 | AO18: =INDEX('RAB input'!$H$25:$XFD$74, MATCH($E18, 'RAB input'!$E$25:$E$74, 0), MATCH(AO$4, RAB_years, 0)) -> 0 | AP18: =INDEX('RAB input'!$H$25:$XFD$74, MATCH($E18, 'RAB input'!$E$25:$E$74, 0), MATCH(AP$4, RAB_years, 0)) -> 0 | AQ18: =INDEX('RAB input'!$H$25:$XFD$74, MATCH($E18, 'RAB input'!$E$25:$E$74, 0), MATCH(AQ$4, RAB_years, 0)) -> 0 | AR18: =INDEX('RAB input'!$H$25:$XFD$74, MATCH($E18, 'RAB input'!$E$25:$E$74, 0), MATCH(AR$4, RAB_years, 0)) -> 0 | AS18: =INDEX('RAB input'!$H$25:$XFD$74, MATCH($E18, 'RAB input'!$E$25:$E$74, 0), MATCH(AS$4, RAB_years, 0)) -> 0 | AT18: =INDEX('RAB input'!$H$25:$XFD$74, MATCH($E18, 'RAB input'!$E$25:$E$74, 0), MATCH(AT$4, RAB_years, 0)) -> 0 | AU18: =INDEX('RAB input'!$H$25:$XFD$74, MATCH($E18, 'RAB input'!$E$25:$E$74, 0), MATCH(AU$4, RAB_years, 0)) -> 0 | AV18: =INDEX('RAB input'!$H$25:$XFD$74, MATCH($E18, 'RAB input'!$E$25:$E$74, 0), MATCH(AV$4, RAB_years, 0)) -> 0 | AW18: =INDEX('RAB input'!$H$25:$XFD$74, MATCH($E18, 'RAB input'!$E$25:$E$74, 0), MATCH(AW$4, RAB_years, 0)) -> 0 | AX18: =INDEX('RAB input'!$H$25:$XFD$74, MATCH($E18, 'RAB input'!$E$25:$E$74, 0), MATCH(AX$4, RAB_years, 0)) -> 0 | AY18: =INDEX('RAB input'!$H$25:$XFD$74, MATCH($E18, 'RAB input'!$E$25:$E$74, 0), MATCH(AY$4, RAB_years, 0)) -> 0 | AZ18: =INDEX('RAB input'!$H$25:$XFD$74, MATCH($E18, 'RAB input'!$E$25:$E$74, 0), MATCH(AZ$4, RAB_years, 0)) -> 0 | BA18: =INDEX('RAB input'!$H$25:$XFD$74, MATCH($E18, 'RAB input'!$E$25:$E$74, 0), MATCH(BA$4, RAB_years, 0)) -> 0 | BB18: =INDEX('RAB input'!$H$25:$XFD$74, MATCH($E18, 'RAB input'!$E$25:$E$74, 0), MATCH(BB$4, RAB_years, 0)) -> 0 | BC18: =INDEX('RAB input'!$H$25:$XFD$74, MATCH($E18, 'RAB input'!$E$25:$E$74, 0), MATCH(BC$4, RAB_years, 0)) -> 0 | BD18: =INDEX('RAB input'!$H$25:$XFD$74, MATCH($E18, 'RAB input'!$E$25:$E$74, 0), MATCH(BD$4, RAB_years, 0)) -> 0 | BE18: =INDEX('RAB input'!$H$25:$XFD$74, MATCH($E18, 'RAB input'!$E$25:$E$74, 0), MATCH(BE$4, RAB_years, 0)) -> 0 | BF18: =INDEX('RAB input'!$H$25:$XFD$74, MATCH($E18, 'RAB input'!$E$25:$E$74, 0), MATCH(BF$4, RAB_years, 0)) -> 0 | BG18: =INDEX('RAB input'!$H$25:$XFD$74, MATCH($E18, 'RAB input'!$E$25:$E$74, 0), MATCH(BG$4, RAB_years, 0)) -> 0 | BH18: =INDEX('RAB input'!$H$25:$XFD$74, MATCH($E18, 'RAB input'!$E$25:$E$74, 0), MATCH(BH$4, RAB_years, 0)) -> 0 | BI18: =INDEX('RAB input'!$H$25:$XFD$74, MATCH($E18, 'RAB input'!$E$25:$E$74, 0), MATCH(BI$4, RAB_years, 0)) -> 0 | BJ18: =INDEX('RAB input'!$H$25:$XFD$74, MATCH($E18, 'RAB input'!$E$25:$E$74, 0), MATCH(BJ$4, RAB_years, 0)) -> 0 | BK18: =INDEX('RAB input'!$H$25:$XFD$74, MATCH($E18, 'RAB input'!$E$25:$E$74, 0), MATCH(BK$4, RAB_years, 0)) -> 0 | BL18: =INDEX('RAB input'!$H$25:$XFD$74, MATCH($E18, 'RAB input'!$E$25:$E$74, 0), MATCH(BL$4, RAB_years, 0)) -> 0 | BM18: =INDEX('RAB input'!$H$25:$XFD$74, MATCH($E18, 'RAB input'!$E$25:$E$74, 0), MATCH(BM$4, RAB_years, 0)) -> 0 | BN18: =INDEX('RAB input'!$H$25:$XFD$74, MATCH($E18, 'RAB input'!$E$25:$E$74, 0), MATCH(BN$4, RAB_years, 0)) -> 0 | BO18: =INDEX('RAB input'!$H$25:$XFD$74, MATCH($E18, 'RAB input'!$E$25:$E$74, 0), MATCH(BO$4, RAB_years, 0)) -> 0 | BP18: =INDEX('RAB input'!$H$25:$XFD$74, MATCH($E18, 'RAB input'!$E$25:$E$74, 0), MATCH(BP$4, RAB_years, 0)) -> 0 | BQ18: =INDEX('RAB input'!$H$25:$XFD$74, MATCH($E18, 'RAB input'!$E$25:$E$74, 0), MATCH(BQ$4, RAB_years, 0)) -> 0 | BR18: =INDEX('RAB input'!$H$25:$XFD$74, MATCH($E18, 'RAB input'!$E$25:$E$74, 0), MATCH(BR$4, RAB_years, 0)) -> 0 | BS18: =INDEX('RAB input'!$H$25:$XFD$74, MATCH($E18, 'RAB input'!$E$25:$E$74, 0), MATCH(BS$4, RAB_years, 0)) -> 0 | BT18: =INDEX('RAB input'!$H$25:$XFD$74, MATCH($E18, 'RAB input'!$E$25:$E$74, 0), MATCH(BT$4, RAB_years, 0)) -> 0 | BU18: =INDEX('RAB input'!$H$25:$XFD$74, MATCH($E18, 'RAB input'!$E$25:$E$74, 0), MATCH(BU$4, RAB_years, 0)) -> 0 | BV18: =INDEX('RAB input'!$H$25:$XFD$74, MATCH($E18, 'RAB input'!$E$25:$E$74, 0), MATCH(BV$4, RAB_years, 0)) -> 0 | BW18: =INDEX('RAB input'!$H$25:$XFD$74, MATCH($E18, 'RAB input'!$E$25:$E$74, 0), MATCH(BW$4, RAB_years, 0)) -> 0 | BX18: =INDEX('RAB input'!$H$25:$XFD$74, MATCH($E18, 'RAB input'!$E$25:$E$74, 0), MATCH(BX$4, RAB_years, 0)) -> 0 | BY18: =INDEX('RAB input'!$H$25:$XFD$74, MATCH($E18, 'RAB input'!$E$25:$E$74, 0), MATCH(BY$4, RAB_years, 0)) -> 0 | BZ18: =INDEX('RAB input'!$H$25:$XFD$74, MATCH($E18, 'RAB input'!$E$25:$E$74, 0), MATCH(BZ$4, RAB_years, 0)) -> 0 | CA18: =INDEX('RAB input'!$H$25:$XFD$74, MATCH($E18, 'RAB input'!$E$25:$E$74, 0), MATCH(CA$4, RAB_years, 0)) -> 0 | CB18: =INDEX('RAB input'!$H$25:$XFD$74, MATCH($E18, 'RAB input'!$E$25:$E$74, 0), MATCH(CB$4, RAB_years, 0)) -> 0 | CC18: =INDEX('RAB input'!$H$25:$XFD$74, MATCH($E18, 'RAB input'!$E$25:$E$74, 0), MATCH(CC$4, RAB_years, 0)) -> 0
D19: 2 | E19: ='RAB input'!E26 -> Underground Subtransmission Lines (Urban) | G19: 1.626300088 | H19: 0.2876312057 | I19: =INDEX('RAB input'!$H$25:$XFD$74, MATCH($E19, 'RAB input'!$E$25:$E$74, 0), MATCH(I$4, RAB_years, 0)) -> 0.1637992205 | J19: =INDEX('RAB input'!$H$25:$XFD$74, MATCH($E19, 'RAB input'!$E$25:$E$74, 0), MATCH(J$4, RAB_years, 0)) -> 0.134893741 | K19: =INDEX('RAB input'!$H$25:$XFD$74, MATCH($E19, 'RAB input'!$E$25:$E$74, 0), MATCH(K$4, RAB_years, 0)) -> 0.01 | L19: =INDEX('RAB input'!$H$25:$XFD$74, MATCH($E19, 'RAB input'!$E$25:$E$74, 0), MATCH(L$4, RAB_years, 0)) -> 0.0269994021 | M19: =INDEX('RAB input'!$H$25:$XFD$74, MATCH($E19, 'RAB input'!$E$25:$E$74, 0), MATCH(M$4, RAB_years, 0)) -> 0.0076727205 | N19: =INDEX('RAB input'!$H$25:$XFD$74, MATCH($E19, 'RAB input'!$E$25:$E$74, 0), MATCH(N$4, RAB_years, 0)) -> 0 | O19: =INDEX('RAB input'!$H$25:$XFD$74, MATCH($E19, 'RAB input'!$E$25:$E$74, 0), MATCH(O$4, RAB_years, 0)) -> 0 | P19: =INDEX('RAB input'!$H$25:$XFD$74, MATCH($E19, 'RAB input'!$E$25:$E$74, 0), MATCH(P$4, RAB_years, 0)) -> 0.02584215107 | Q19: =INDEX('RAB input'!$H$25:$XFD$74, MATCH($E19, 'RAB input'!$E$25:$E$74, 0), MATCH(Q$4, RAB_years, 0)) -> 0.04885642797 | R19: =INDEX('RAB input'!$H$25:$XFD$74, MATCH($E19, 'RAB input'!$E$25:$E$74, 0), MATCH(R$4, RAB_years, 0)) -> 0.2880536759 | S19: =INDEX('RAB input'!$H$25:$XFD$74, MATCH($E19, 'RAB input'!$E$25:$E$74, 0), MATCH(S$4, RAB_years, 0)) -> 0.3755173513 | T19: =INDEX('RAB input'!$H$25:$XFD$74, MATCH($E19, 'RAB input'!$E$25:$E$74, 0), MATCH(T$4, RAB_years, 0)) -> 0.112319778 | U19: =INDEX('RAB input'!$H$25:$XFD$74, MATCH($E19, 'RAB input'!$E$25:$E$74, 0), MATCH(U$4, RAB_years, 0)) -> 0 | V19: =INDEX('RAB input'!$H$25:$XFD$74, MATCH($E19, 'RAB input'!$E$25:$E$74, 0), MATCH(V$4, RAB_years, 0)) -> 0 | W19: =INDEX('RAB input'!$H$25:$XFD$74, MATCH($E19, 'RAB input'!$E$25:$E$74, 0), MATCH(W$4, RAB_years, 0)) -> 0 | X19: =INDEX('RAB input'!$H$25:$XFD$74, MATCH($E19, 'RAB input'!$E$25:$E$74, 0), MATCH(X$4, RAB_years, 0)) -> 0 | Y19: =INDEX('RAB input'!$H$25:$XFD$74, MATCH($E19, 'RAB input'!$E$25:$E$74, 0), MATCH(Y$4, RAB_years, 0)) -> 0 | Z19: =INDEX('RAB input'!$H$25:$XFD$74, MATCH($E19, 'RAB input'!$E$25:$E$74, 0), MATCH(Z$4, RAB_years, 0)) -> 0 | AA19: =INDEX('RAB input'!$H$25:$XFD$74, MATCH($E19, 'RAB input'!$E$25:$E$74, 0), MATCH(AA$4, RAB_years, 0)) -> 0 | AB19: =INDEX('RAB input'!$H$25:$XFD$74, MATCH($E19, 'RAB input'!$E$25:$E$74, 0), MATCH(AB$4, RAB_years, 0)) -> 0 | AC19: =INDEX('RAB input'!$H$25:$XFD$74, MATCH($E19, 'RAB input'!$E$25:$E$74, 0), MATCH(AC$4, RAB_years, 0)) -> 0 | AD19: =INDEX('RAB input'!$H$25:$XFD$74, MATCH($E19, 'RAB input'!$E$25:$E$74, 0), MATCH(AD$4, RAB_years, 0)) -> 0 | AE19: =INDEX('RAB input'!$H$25:$XFD$74, MATCH($E19, 'RAB input'!$E$25:$E$74, 0), MATCH(AE$4, RAB_years, 0)) -> 0 | AF19: =INDEX('RAB input'!$H$25:$XFD$74, MATCH($E19, 'RAB input'!$E$25:$E$74, 0), MATCH(AF$4, RAB_years, 0)) -> 0 | AG19: =INDEX('RAB input'!$H$25:$XFD$74, MATCH($E19, 'RAB input'!$E$25:$E$74, 0), MATCH(AG$4, RAB_years, 0)) -> 0 | AH19: =INDEX('RAB input'!$H$25:$XFD$74, MATCH($E19, 'RAB input'!$E$25:$E$74, 0), MATCH(AH$4, RAB_years, 0)) -> 0 | AI19: =INDEX('RAB input'!$H$25:$XFD$74, MATCH($E19, 'RAB input'!$E$25:$E$74, 0), MATCH(AI$4, RAB_years, 0)) -> 0 | AJ19: =INDEX('RAB input'!$H$25:$XFD$74, MATCH($E19, 'RAB input'!$E$25:$E$74, 0), MATCH(AJ$4, RAB_years, 0)) -> 0 | AK19: =INDEX('RAB input'!$H$25:$XFD$74, MATCH($E19, 'RAB input'!$E$25:$E$74, 0), MATCH(AK$4, RAB_years, 0)) -> 0 | AL19: =INDEX('RAB input'!$H$25:$XFD$74, MATCH($E19, 'RAB input'!$E$25:$E$74, 0), MATCH(AL$4, RAB_years, 0)) -> 0 | AM19: =INDEX('RAB input'!$H$25:$XFD$74, MATCH($E19, 'RAB input'!$E$25:$E$74, 0), MATCH(AM$4, RAB_years, 0)) -> 0 | AN19: =INDEX('RAB input'!$H$25:$XFD$74, MATCH($E19, 'RAB input'!$E$25:$E$74, 0), MATCH(AN$4, RAB_years, 0)) -> 0 | AO19: =INDEX('RAB input'!$H$25:$XFD$74, MATCH($E19, 'RAB input'!$E$25:$E$74, 0), MATCH(AO$4, RAB_years, 0)) -> 0 | AP19: =INDEX('RAB input'!$H$25:$XFD$74, MATCH($E19, 'RAB input'!$E$25:$E$74, 0), MATCH(AP$4, RAB_years, 0)) -> 0 | AQ19: =INDEX('RAB input'!$H$25:$XFD$74, MATCH($E19, 'RAB input'!$E$25:$E$74, 0), MATCH(AQ$4, RAB_years, 0)) -> 0 | AR19: =INDEX('RAB input'!$H$25:$XFD$74, MATCH($E19, 'RAB input'!$E$25:$E$74, 0), MATCH(AR$4, RAB_years, 0)) -> 0 | AS19: =INDEX('RAB input'!$H$25:$XFD$74, MATCH($E19, 'RAB input'!$E$25:$E$74, 0), MATCH(AS$4, RAB_years, 0)) -> 0 | AT19: =INDEX('RAB input'!$H$25:$XFD$74, MATCH($E19, 'RAB input'!$E$25:$E$74, 0), MATCH(AT$4, RAB_years, 0)) -> 0 | AU19: =INDEX('RAB input'!$H$25:$XFD$74, MATCH($E19, 'RAB input'!$E$25:$E$74, 0), MATCH(AU$4, RAB_years, 0)) -> 0 | AV19: =INDEX('RAB input'!$H$25:$XFD$74, MATCH($E19, 'RAB input'!$E$25:$E$74, 0), MATCH(AV$4, RAB_years, 0)) -> 0 | AW19: =INDEX('RAB input'!$H$25:$XFD$74, MATCH($E19, 'RAB input'!$E$25:$E$74, 0), MATCH(AW$4, RAB_years, 0)) -> 0 | AX19: =INDEX('RAB input'!$H$25:$XFD$74, MATCH($E19, 'RAB input'!$E$25:$E$74, 0), MATCH(AX$4, RAB_years, 0)) -> 0 | AY19: =INDEX('RAB input'!$H$25:$XFD$74, MATCH($E19, 'RAB input'!$E$25:$E$74, 0), MATCH(AY$4, RAB_years, 0)) -> 0 | AZ19: =INDEX('RAB input'!$H$25:$XFD$74, MATCH($E19, 'RAB input'!$E$25:$E$74, 0), MATCH(AZ$4, RAB_years, 0)) -> 0 | BA19: =INDEX('RAB input'!$H$25:$XFD$74, MATCH($E19, 'RAB input'!$E$25:$E$74, 0), MATCH(BA$4, RAB_years, 0)) -> 0 | BB19: =INDEX('RAB input'!$H$25:$XFD$74, MATCH($E19, 'RAB input'!$E$25:$E$74, 0), MATCH(BB$4, RAB_years, 0)) -> 0 | BC19: =INDEX('RAB input'!$H$25:$XFD$74, MATCH($E19, 'RAB input'!$E$25:$E$74, 0), MATCH(BC$4, RAB_years, 0)) -> 0 | BD19: =INDEX('RAB input'!$H$25:$XFD$74, MATCH($E19, 'RAB input'!$E$25:$E$74, 0), MATCH(BD$4, RAB_years, 0)) -> 0 | BE19: =INDEX('RAB input'!$H$25:$XFD$74, MATCH($E19, 'RAB input'!$E$25:$E$74, 0), MATCH(BE$4, RAB_years, 0)) -> 0 | BF19: =INDEX('RAB input'!$H$25:$XFD$74, MATCH($E19, 'RAB input'!$E$25:$E$74, 0), MATCH(BF$4, RAB_years, 0)) -> 0 | BG19: =INDEX('RAB input'!$H$25:$XFD$74, MATCH($E19, 'RAB input'!$E$25:$E$74, 0), MATCH(BG$4, RAB_years, 0)) -> 0 | BH19: =INDEX('RAB input'!$H$25:$XFD$74, MATCH($E19, 'RAB input'!$E$25:$E$74, 0), MATCH(BH$4, RAB_years, 0)) -> 0 | BI19: =INDEX('RAB input'!$H$25:$XFD$74, MATCH($E19, 'RAB input'!$E$25:$E$74, 0), MATCH(BI$4, RAB_years, 0)) -> 0 | BJ19: =INDEX('RAB input'!$H$25:$XFD$74, MATCH($E19, 'RAB input'!$E$25:$E$74, 0), MATCH(BJ$4, RAB_years, 0)) -> 0 | BK19: =INDEX('RAB input'!$H$25:$XFD$74, MATCH($E19, 'RAB input'!$E$25:$E$74, 0), MATCH(BK$4, RAB_years, 0)) -> 0 | BL19: =INDEX('RAB input'!$H$25:$XFD$74, MATCH($E19, 'RAB input'!$E$25:$E$74, 0), MATCH(BL$4, RAB_years, 0)) -> 0 | BM19: =INDEX('RAB input'!$H$25:$XFD$74, MATCH($E19, 'RAB input'!$E$25:$E$74, 0), MATCH(BM$4, RAB_years, 0)) -> 0 | BN19: =INDEX('RAB input'!$H$25:$XFD$74, MATCH($E19, 'RAB input'!$E$25:$E$74, 0), MATCH(BN$4, RAB_years, 0)) -> 0 | BO19: =INDEX('RAB input'!$H$25:$XFD$74, MATCH($E19, 'RAB input'!$E$25:$E$74, 0), MATCH(BO$4, RAB_years, 0)) -> 0 | BP19: =INDEX('RAB input'!$H$25:$XFD$74, MATCH($E19, 'RAB input'!$E$25:$E$74, 0), MATCH(BP$4, RAB_years, 0)) -> 0 | BQ19: =INDEX('RAB input'!$H$25:$XFD$74, MATCH($E19, 'RAB input'!$E$25:$E$74, 0), MATCH(BQ$4, RAB_years, 0)) -> 0 | BR19: =INDEX('RAB input'!$H$25:$XFD$74, MATCH($E19, 'RAB input'!$E$25:$E$74, 0), MATCH(BR$4, RAB_years, 0)) -> 0 | BS19: =INDEX('RAB input'!$H$25:$XFD$74, MATCH($E19, 'RAB input'!$E$25:$E$74, 0), MATCH(BS$4, RAB_years, 0)) -> 0 | BT19: =INDEX('RAB input'!$H$25:$XFD$74, MATCH($E19, 'RAB input'!$E$25:$E$74, 0), MATCH(BT$4, RAB_years, 0)) -> 0 | BU19: =INDEX('RAB input'!$H$25:$XFD$74, MATCH($E19, 'RAB input'!$E$25:$E$74, 0), MATCH(BU$4, RAB_years, 0)) -> 0 | BV19: =INDEX('RAB input'!$H$25:$XFD$74, MATCH($E19, 'RAB input'!$E$25:$E$74, 0), MATCH(BV$4, RAB_years, 0)) -> 0 | BW19: =INDEX('RAB input'!$H$25:$XFD$74, MATCH($E19, 'RAB input'!$E$25:$E$74, 0), MATCH(BW$4, RAB_years, 0)) -> 0 | BX19: =INDEX('RAB input'!$H$25:$XFD$74, MATCH($E19, 'RAB input'!$E$25:$E$74, 0), MATCH(BX$4, RAB_years, 0)) -> 0 | BY19: =INDEX('RAB input'!$H$25:$XFD$74, MATCH($E19, 'RAB input'!$E$25:$E$74, 0), MATCH(BY$4, RAB_years, 0)) -> 0 | BZ19: =INDEX('RAB input'!$H$25:$XFD$74, MATCH($E19, 'RAB input'!$E$25:$E$74, 0), MATCH(BZ$4, RAB_years, 0)) -> 0 | CA19: =INDEX('RAB input'!$H$25:$XFD$74, MATCH($E19, 'RAB input'!$E$25:$E$74, 0), MATCH(CA$4, RAB_years, 0)) -> 0 | CB19: =INDEX('RAB input'!$H$25:$XFD$74, MATCH($E19, 'RAB input'!$E$25:$E$74, 0), MATCH(CB$4, RAB_years, 0)) -> 0 | CC19: =INDEX('RAB input'!$H$25:$XFD$74, MATCH($E19, 'RAB input'!$E$25:$E$74, 0), MATCH(CC$4, RAB_years, 0)) -> 0
D20: 3 | E20: ='RAB input'!E27 -> Urban Zone Substations | G20: 23.39829188 | H20: 4.515570541 | I20: =INDEX('RAB input'!$H$25:$XFD$74, MATCH($E20, 'RAB input'!$E$25:$E$74, 0), MATCH(I$4, RAB_years, 0)) -> 2.077643603 | J20: =INDEX('RAB input'!$H$25:$XFD$74, MATCH($E20, 'RAB input'!$E$25:$E$74, 0), MATCH(J$4, RAB_years, 0)) -> 5.042347078 | K20: =INDEX('RAB input'!$H$25:$XFD$74, MATCH($E20, 'RAB input'!$E$25:$E$74, 0), MATCH(K$4, RAB_years, 0)) -> 2.215 | L20: =INDEX('RAB input'!$H$25:$XFD$74, MATCH($E20, 'RAB input'!$E$25:$E$74, 0), MATCH(L$4, RAB_years, 0)) -> 3.861706949 | M20: =INDEX('RAB input'!$H$25:$XFD$74, MATCH($E20, 'RAB input'!$E$25:$E$74, 0), MATCH(M$4, RAB_years, 0)) -> 1.471329508 | N20: =INDEX('RAB input'!$H$25:$XFD$74, MATCH($E20, 'RAB input'!$E$25:$E$74, 0), MATCH(N$4, RAB_years, 0)) -> 1.906716965 | O20: =INDEX('RAB input'!$H$25:$XFD$74, MATCH($E20, 'RAB input'!$E$25:$E$74, 0), MATCH(O$4, RAB_years, 0)) -> 0.0470855623 | P20: =INDEX('RAB input'!$H$25:$XFD$74, MATCH($E20, 'RAB input'!$E$25:$E$74, 0), MATCH(P$4, RAB_years, 0)) -> 2.015001851 | Q20: =INDEX('RAB input'!$H$25:$XFD$74, MATCH($E20, 'RAB input'!$E$25:$E$74, 0), MATCH(Q$4, RAB_years, 0)) -> 2.316872415 | R20: =INDEX('RAB input'!$H$25:$XFD$74, MATCH($E20, 'RAB input'!$E$25:$E$74, 0), MATCH(R$4, RAB_years, 0)) -> 0.5067623992 | S20: =INDEX('RAB input'!$H$25:$XFD$74, MATCH($E20, 'RAB input'!$E$25:$E$74, 0), MATCH(S$4, RAB_years, 0)) -> 0.1006513236 | T20: =INDEX('RAB input'!$H$25:$XFD$74, MATCH($E20, 'RAB input'!$E$25:$E$74, 0), MATCH(T$4, RAB_years, 0)) -> 0.21600479 | U20: =INDEX('RAB input'!$H$25:$XFD$74, MATCH($E20, 'RAB input'!$E$25:$E$74, 0), MATCH(U$4, RAB_years, 0)) -> 0 | V20: =INDEX('RAB input'!$H$25:$XFD$74, MATCH($E20, 'RAB input'!$E$25:$E$74, 0), MATCH(V$4, RAB_years, 0)) -> 0 | W20: =INDEX('RAB input'!$H$25:$XFD$74, MATCH($E20, 'RAB input'!$E$25:$E$74, 0), MATCH(W$4, RAB_years, 0)) -> 0 | X20: =INDEX('RAB input'!$H$25:$XFD$74, MATCH($E20, 'RAB input'!$E$25:$E$74, 0), MATCH(X$4, RAB_years, 0)) -> 0 | Y20: =INDEX('RAB input'!$H$25:$XFD$74, MATCH($E20, 'RAB input'!$E$25:$E$74, 0), MATCH(Y$4, RAB_years, 0)) -> 0 | Z20: =INDEX('RAB input'!$H$25:$XFD$74, MATCH($E20, 'RAB input'!$E$25:$E$74, 0), MATCH(Z$4, RAB_years, 0)) -> 0 | AA20: =INDEX('RAB input'!$H$25:$XFD$74, MATCH($E20, 'RAB input'!$E$25:$E$74, 0), MATCH(AA$4, RAB_years, 0)) -> 0 | AB20: =INDEX('RAB input'!$H$25:$XFD$74, MATCH($E20, 'RAB input'!$E$25:$E$74, 0), MATCH(AB$4, RAB_years, 0)) -> 0 | AC20: =INDEX('RAB input'!$H$25:$XFD$74, MATCH($E20, 'RAB input'!$E$25:$E$74, 0), MATCH(AC$4, RAB_years, 0)) -> 0 | AD20: =INDEX('RAB input'!$H$25:$XFD$74, MATCH($E20, 'RAB input'!$E$25:$E$74, 0), MATCH(AD$4, RAB_years, 0)) -> 0 | AE20: =INDEX('RAB input'!$H$25:$XFD$74, MATCH($E20, 'RAB input'!$E$25:$E$74, 0), MATCH(AE$4, RAB_years, 0)) -> 0 | AF20: =INDEX('RAB input'!$H$25:$XFD$74, MATCH($E20, 'RAB input'!$E$25:$E$74, 0), MATCH(AF$4, RAB_years, 0)) -> 0 | AG20: =INDEX('RAB input'!$H$25:$XFD$74, MATCH($E20, 'RAB input'!$E$25:$E$74, 0), MATCH(AG$4, RAB_years, 0)) -> 0 | AH20: =INDEX('RAB input'!$H$25:$XFD$74, MATCH($E20, 'RAB input'!$E$25:$E$74, 0), MATCH(AH$4, RAB_years, 0)) -> 0 | AI20: =INDEX('RAB input'!$H$25:$XFD$74, MATCH($E20, 'RAB input'!$E$25:$E$74, 0), MATCH(AI$4, RAB_years, 0)) -> 0 | AJ20: =INDEX('RAB input'!$H$25:$XFD$74, MATCH($E20, 'RAB input'!$E$25:$E$74, 0), MATCH(AJ$4, RAB_years, 0)) -> 0 | AK20: =INDEX('RAB input'!$H$25:$XFD$74, MATCH($E20, 'RAB input'!$E$25:$E$74, 0), MATCH(AK$4, RAB_years, 0)) -> 0 | AL20: =INDEX('RAB input'!$H$25:$XFD$74, MATCH($E20, 'RAB input'!$E$25:$E$74, 0), MATCH(AL$4, RAB_years, 0)) -> 0 | AM20: =INDEX('RAB input'!$H$25:$XFD$74, MATCH($E20, 'RAB input'!$E$25:$E$74, 0), MATCH(AM$4, RAB_years, 0)) -> 0 | AN20: =INDEX('RAB input'!$H$25:$XFD$74, MATCH($E20, 'RAB input'!$E$25:$E$74, 0), MATCH(AN$4, RAB_years, 0)) -> 0 | AO20: =INDEX('RAB input'!$H$25:$XFD$74, MATCH($E20, 'RAB input'!$E$25:$E$74, 0), MATCH(AO$4, RAB_years, 0)) -> 0 | AP20: =INDEX('RAB input'!$H$25:$XFD$74, MATCH($E20, 'RAB input'!$E$25:$E$74, 0), MATCH(AP$4, RAB_years, 0)) -> 0 | AQ20: =INDEX('RAB input'!$H$25:$XFD$74, MATCH($E20, 'RAB input'!$E$25:$E$74, 0), MATCH(AQ$4, RAB_years, 0)) -> 0 | AR20: =INDEX('RAB input'!$H$25:$XFD$74, MATCH($E20, 'RAB input'!$E$25:$E$74, 0), MATCH(AR$4, RAB_years, 0)) -> 0 | AS20: =INDEX('RAB input'!$H$25:$XFD$74, MATCH($E20, 'RAB input'!$E$25:$E$74, 0), MATCH(AS$4, RAB_years, 0)) -> 0 | AT20: =INDEX('RAB input'!$H$25:$XFD$74, MATCH($E20, 'RAB input'!$E$25:$E$74, 0), MATCH(AT$4, RAB_years, 0)) -> 0 | AU20: =INDEX('RAB input'!$H$25:$XFD$74, MATCH($E20, 'RAB input'!$E$25:$E$74, 0), MATCH(AU$4, RAB_years, 0)) -> 0 | AV20: =INDEX('RAB input'!$H$25:$XFD$74, MATCH($E20, 'RAB input'!$E$25:$E$74, 0), MATCH(AV$4, RAB_years, 0)) -> 0 | AW20: =INDEX('RAB input'!$H$25:$XFD$74, MATCH($E20, 'RAB input'!$E$25:$E$74, 0), MATCH(AW$4, RAB_years, 0)) -> 0 | AX20: =INDEX('RAB input'!$H$25:$XFD$74, MATCH($E20, 'RAB input'!$E$25:$E$74, 0), MATCH(AX$4, RAB_years, 0)) -> 0 | AY20: =INDEX('RAB input'!$H$25:$XFD$74, MATCH($E20, 'RAB input'!$E$25:$E$74, 0), MATCH(AY$4, RAB_years, 0)) -> 0 | AZ20: =INDEX('RAB input'!$H$25:$XFD$74, MATCH($E20, 'RAB input'!$E$25:$E$74, 0), MATCH(AZ$4, RAB_years, 0)) -> 0 | BA20: =INDEX('RAB input'!$H$25:$XFD$74, MATCH($E20, 'RAB input'!$E$25:$E$74, 0), MATCH(BA$4, RAB_years, 0)) -> 0 | BB20: =INDEX('RAB input'!$H$25:$XFD$74, MATCH($E20, 'RAB input'!$E$25:$E$74, 0), MATCH(BB$4, RAB_years, 0)) -> 0 | BC20: =INDEX('RAB input'!$H$25:$XFD$74, MATCH($E20, 'RAB input'!$E$25:$E$74, 0), MATCH(BC$4, RAB_years, 0)) -> 0 | BD20: =INDEX('RAB input'!$H$25:$XFD$74, MATCH($E20, 'RAB input'!$E$25:$E$74, 0), MATCH(BD$4, RAB_years, 0)) -> 0 | BE20: =INDEX('RAB input'!$H$25:$XFD$74, MATCH($E20, 'RAB input'!$E$25:$E$74, 0), MATCH(BE$4, RAB_years, 0)) -> 0 | BF20: =INDEX('RAB input'!$H$25:$XFD$74, MATCH($E20, 'RAB input'!$E$25:$E$74, 0), MATCH(BF$4, RAB_years, 0)) -> 0 | BG20: =INDEX('RAB input'!$H$25:$XFD$74, MATCH($E20, 'RAB input'!$E$25:$E$74, 0), MATCH(BG$4, RAB_years, 0)) -> 0 | BH20: =INDEX('RAB input'!$H$25:$XFD$74, MATCH($E20, 'RAB input'!$E$25:$E$74, 0), MATCH(BH$4, RAB_years, 0)) -> 0 | BI20: =INDEX('RAB input'!$H$25:$XFD$74, MATCH($E20, 'RAB input'!$E$25:$E$74, 0), MATCH(BI$4, RAB_years, 0)) -> 0 | BJ20: =INDEX('RAB input'!$H$25:$XFD$74, MATCH($E20, 'RAB input'!$E$25:$E$74, 0), MATCH(BJ$4, RAB_years, 0)) -> 0 | BK20: =INDEX('RAB input'!$H$25:$XFD$74, MATCH($E20, 'RAB input'!$E$25:$E$74, 0), MATCH(BK$4, RAB_years, 0)) -> 0 | BL20: =INDEX('RAB input'!$H$25:$XFD$74, MATCH($E20, 'RAB input'!$E$25:$E$74, 0), MATCH(BL$4, RAB_years, 0)) -> 0 | BM20: =INDEX('RAB input'!$H$25:$XFD$74, MATCH($E20, 'RAB input'!$E$25:$E$74, 0), MATCH(BM$4, RAB_years, 0)) -> 0 | BN20: =INDEX('RAB input'!$H$25:$XFD$74, MATCH($E20, 'RAB input'!$E$25:$E$74, 0), MATCH(BN$4, RAB_years, 0)) -> 0 | BO20: =INDEX('RAB input'!$H$25:$XFD$74, MATCH($E20, 'RAB input'!$E$25:$E$74, 0), MATCH(BO$4, RAB_years, 0)) -> 0 | BP20: =INDEX('RAB input'!$H$25:$XFD$74, MATCH($E20, 'RAB input'!$E$25:$E$74, 0), MATCH(BP$4, RAB_years, 0)) -> 0 | BQ20: =INDEX('RAB input'!$H$25:$XFD$74, MATCH($E20, 'RAB input'!$E$25:$E$74, 0), MATCH(BQ$4, RAB_years, 0)) -> 0 | BR20: =INDEX('RAB input'!$H$25:$XFD$74, MATCH($E20, 'RAB input'!$E$25:$E$74, 0), MATCH(BR$4, RAB_years, 0)) -> 0 | BS20: =INDEX('RAB input'!$H$25:$XFD$74, MATCH($E20, 'RAB input'!$E$25:$E$74, 0), MATCH(BS$4, RAB_years, 0)) -> 0 | BT20: =INDEX('RAB input'!$H$25:$XFD$74, MATCH($E20, 'RAB input'!$E$25:$E$74, 0), MATCH(BT$4, RAB_years, 0)) -> 0 | BU20: =INDEX('RAB input'!$H$25:$XFD$74, MATCH($E20, 'RAB input'!$E$25:$E$74, 0), MATCH(BU$4, RAB_years, 0)) -> 0 | BV20: =INDEX('RAB input'!$H$25:$XFD$74, MATCH($E20, 'RAB input'!$E$25:$E$74, 0), MATCH(BV$4, RAB_years, 0)) -> 0 | BW20: =INDEX('RAB input'!$H$25:$XFD$74, MATCH($E20, 'RAB input'!$E$25:$E$74, 0), MATCH(BW$4, RAB_years, 0)) -> 0 | BX20: =INDEX('RAB input'!$H$25:$XFD$74, MATCH($E20, 'RAB input'!$E$25:$E$74, 0), MATCH(BX$4, RAB_years, 0)) -> 0 | BY20: =INDEX('RAB input'!$H$25:$XFD$74, MATCH($E20, 'RAB input'!$E$25:$E$74, 0), MATCH(BY$4, RAB_years, 0)) -> 0 | BZ20: =INDEX('RAB input'!$H$25:$XFD$74, MATCH($E20, 'RAB input'!$E$25:$E$74, 0), MATCH(BZ$4, RAB_years, 0)) -> 0 | CA20: =INDEX('RAB input'!$H$25:$XFD$74, MATCH($E20, 'RAB input'!$E$25:$E$74, 0), MATCH(CA$4, RAB_years, 0)) -> 0 | CB20: =INDEX('RAB input'!$H$25:$XFD$74, MATCH($E20, 'RAB input'!$E$25:$E$74, 0), MATCH(CB$4, RAB_years, 0)) -> 0 | CC20: =INDEX('RAB input'!$H$25:$XFD$74, MATCH($E20, 'RAB input'!$E$25:$E$74, 0), MATCH(CC$4, RAB_years, 0)) -> 0
D21: 4 | E21: ='RAB input'!E28 -> Rural Zone Substations | G21: 0.5400759123 | H21: -0.01782812422 | I21: =INDEX('RAB input'!$H$25:$XFD$74, MATCH($E21, 'RAB input'!$E$25:$E$74, 0), MATCH(I$4, RAB_years, 0)) -> 0.3067469231 | J21: =INDEX('RAB input'!$H$25:$XFD$74, MATCH($E21, 'RAB input'!$E$25:$E$74, 0), MATCH(J$4, RAB_years, 0)) -> 1.087515875 | K21: =INDEX('RAB input'!$H$25:$XFD$74, MATCH($E21, 'RAB input'!$E$25:$E$74, 0), MATCH(K$4, RAB_years, 0)) -> 0.444 | L21: =INDEX('RAB input'!$H$25:$XFD$74, MATCH($E21, 'RAB input'!$E$25:$E$74, 0), MATCH(L$4, RAB_years, 0)) -> 0.1925228863 | M21: =INDEX('RAB input'!$H$25:$XFD$74, MATCH($E21, 'RAB input'!$E$25:$E$74, 0), MATCH(M$4, RAB_years, 0)) -> 0.409860404 | N21: =INDEX('RAB input'!$H$25:$XFD$74, MATCH($E21, 'RAB input'!$E$25:$E$74, 0), MATCH(N$4, RAB_years, 0)) -> 0.6254813629 | O21: =INDEX('RAB input'!$H$25:$XFD$74, MATCH($E21, 'RAB input'!$E$25:$E$74, 0), MATCH(O$4, RAB_years, 0)) -> 1.003422047 | P21: =INDEX('RAB input'!$H$25:$XFD$74, MATCH($E21, 'RAB input'!$E$25:$E$74, 0), MATCH(P$4, RAB_years, 0)) -> 1.217256206 | Q21: =INDEX('RAB input'!$H$25:$XFD$74, MATCH($E21, 'RAB input'!$E$25:$E$74, 0), MATCH(Q$4, RAB_years, 0)) -> 0.662079798 | R21: =INDEX('RAB input'!$H$25:$XFD$74, MATCH($E21, 'RAB input'!$E$25:$E$74, 0), MATCH(R$4, RAB_years, 0)) -> 1.32006283 | S21: =INDEX('RAB input'!$H$25:$XFD$74, MATCH($E21, 'RAB input'!$E$25:$E$74, 0), MATCH(S$4, RAB_years, 0)) -> 0.005164279687 | T21: =INDEX('RAB input'!$H$25:$XFD$74, MATCH($E21, 'RAB input'!$E$25:$E$74, 0), MATCH(T$4, RAB_years, 0)) -> 0 | U21: =INDEX('RAB input'!$H$25:$XFD$74, MATCH($E21, 'RAB input'!$E$25:$E$74, 0), MATCH(U$4, RAB_years, 0)) -> 0 | V21: =INDEX('RAB input'!$H$25:$XFD$74, MATCH($E21, 'RAB input'!$E$25:$E$74, 0), MATCH(V$4, RAB_years, 0)) -> 0 | W21: =INDEX('RAB input'!$H$25:$XFD$74, MATCH($E21, 'RAB input'!$E$25:$E$74, 0), MATCH(W$4, RAB_years, 0)) -> 0 | X21: =INDEX('RAB input'!$H$25:$XFD$74, MATCH($E21, 'RAB input'!$E$25:$E$74, 0), MATCH(X$4, RAB_years, 0)) -> 0 | Y21: =INDEX('RAB input'!$H$25:$XFD$74, MATCH($E21, 'RAB input'!$E$25:$E$74, 0), MATCH(Y$4, RAB_years, 0)) -> 0 | Z21: =INDEX('RAB input'!$H$25:$XFD$74, MATCH($E21, 'RAB input'!$E$25:$E$74, 0), MATCH(Z$4, RAB_years, 0)) -> 0 | AA21: =INDEX('RAB input'!$H$25:$XFD$74, MATCH($E21, 'RAB input'!$E$25:$E$74, 0), MATCH(AA$4, RAB_years, 0)) -> 0 | AB21: =INDEX('RAB input'!$H$25:$XFD$74, MATCH($E21, 'RAB input'!$E$25:$E$74, 0), MATCH(AB$4, RAB_years, 0)) -> 0 | AC21: =INDEX('RAB input'!$H$25:$XFD$74, MATCH($E21, 'RAB input'!$E$25:$E$74, 0), MATCH(AC$4, RAB_years, 0)) -> 0 | AD21: =INDEX('RAB input'!$H$25:$XFD$74, MATCH($E21, 'RAB input'!$E$25:$E$74, 0), MATCH(AD$4, RAB_years, 0)) -> 0 | AE21: =INDEX('RAB input'!$H$25:$XFD$74, MATCH($E21, 'RAB input'!$E$25:$E$74, 0), MATCH(AE$4, RAB_years, 0)) -> 0 | AF21: =INDEX('RAB input'!$H$25:$XFD$74, MATCH($E21, 'RAB input'!$E$25:$E$74, 0), MATCH(AF$4, RAB_years, 0)) -> 0 | AG21: =INDEX('RAB input'!$H$25:$XFD$74, MATCH($E21, 'RAB input'!$E$25:$E$74, 0), MATCH(AG$4, RAB_years, 0)) -> 0 | AH21: =INDEX('RAB input'!$H$25:$XFD$74, MATCH($E21, 'RAB input'!$E$25:$E$74, 0), MATCH(AH$4, RAB_years, 0)) -> 0 | AI21: =INDEX('RAB input'!$H$25:$XFD$74, MATCH($E21, 'RAB input'!$E$25:$E$74, 0), MATCH(AI$4, RAB_years, 0)) -> 0 | AJ21: =INDEX('RAB input'!$H$25:$XFD$74, MATCH($E21, 'RAB input'!$E$25:$E$74, 0), MATCH(AJ$4, RAB_years, 0)) -> 0 | AK21: =INDEX('RAB input'!$H$25:$XFD$74, MATCH($E21, 'RAB input'!$E$25:$E$74, 0), MATCH(AK$4, RAB_years, 0)) -> 0 | AL21: =INDEX('RAB input'!$H$25:$XFD$74, MATCH($E21, 'RAB input'!$E$25:$E$74, 0), MATCH(AL$4, RAB_years, 0)) -> 0 | AM21: =INDEX('RAB input'!$H$25:$XFD$74, MATCH($E21, 'RAB input'!$E$25:$E$74, 0), MATCH(AM$4, RAB_years, 0)) -> 0 | AN21: =INDEX('RAB input'!$H$25:$XFD$74, MATCH($E21, 'RAB input'!$E$25:$E$74, 0), MATCH(AN$4, RAB_years, 0)) -> 0 | AO21: =INDEX('RAB input'!$H$25:$XFD$74, MATCH($E21, 'RAB input'!$E$25:$E$74, 0), MATCH(AO$4, RAB_years, 0)) -> 0 | AP21: =INDEX('RAB input'!$H$25:$XFD$74, MATCH($E21, 'RAB input'!$E$25:$E$74, 0), MATCH(AP$4, RAB_years, 0)) -> 0 | AQ21: =INDEX('RAB input'!$H$25:$XFD$74, MATCH($E21, 'RAB input'!$E$25:$E$74, 0), MATCH(AQ$4, RAB_years, 0)) -> 0 | AR21: =INDEX('RAB input'!$H$25:$XFD$74, MATCH($E21, 'RAB input'!$E$25:$E$74, 0), MATCH(AR$4, RAB_years, 0)) -> 0 | AS21: =INDEX('RAB input'!$H$25:$XFD$74, MATCH($E21, 'RAB input'!$E$25:$E$74, 0), MATCH(AS$4, RAB_years, 0)) -> 0 | AT21: =INDEX('RAB input'!$H$25:$XFD$74, MATCH($E21, 'RAB input'!$E$25:$E$74, 0), MATCH(AT$4, RAB_years, 0)) -> 0 | AU21: =INDEX('RAB input'!$H$25:$XFD$74, MATCH($E21, 'RAB input'!$E$25:$E$74, 0), MATCH(AU$4, RAB_years, 0)) -> 0 | AV21: =INDEX('RAB input'!$H$25:$XFD$74, MATCH($E21, 'RAB input'!$E$25:$E$74, 0), MATCH(AV$4, RAB_years, 0)) -> 0 | AW21: =INDEX('RAB input'!$H$25:$XFD$74, MATCH($E21, 'RAB input'!$E$25:$E$74, 0), MATCH(AW$4, RAB_years, 0)) -> 0 | AX21: =INDEX('RAB input'!$H$25:$XFD$74, MATCH($E21, 'RAB input'!$E$25:$E$74, 0), MATCH(AX$4, RAB_years, 0)) -> 0 | AY21: =INDEX('RAB input'!$H$25:$XFD$74, MATCH($E21, 'RAB input'!$E$25:$E$74, 0), MATCH(AY$4, RAB_years, 0)) -> 0 | AZ21: =INDEX('RAB input'!$H$25:$XFD$74, MATCH($E21, 'RAB input'!$E$25:$E$74, 0), MATCH(AZ$4, RAB_years, 0)) -> 0 | BA21: =INDEX('RAB input'!$H$25:$XFD$74, MATCH($E21, 'RAB input'!$E$25:$E$74, 0), MATCH(BA$4, RAB_years, 0)) -> 0 | BB21: =INDEX('RAB input'!$H$25:$XFD$74, MATCH($E21, 'RAB input'!$E$25:$E$74, 0), MATCH(BB$4, RAB_years, 0)) -> 0 | BC21: =INDEX('RAB input'!$H$25:$XFD$74, MATCH($E21, 'RAB input'!$E$25:$E$74, 0), MATCH(BC$4, RAB_years, 0)) -> 0 | BD21: =INDEX('RAB input'!$H$25:$XFD$74, MATCH($E21, 'RAB input'!$E$25:$E$74, 0), MATCH(BD$4, RAB_years, 0)) -> 0 | BE21: =INDEX('RAB input'!$H$25:$XFD$74, MATCH($E21, 'RAB input'!$E$25:$E$74, 0), MATCH(BE$4, RAB_years, 0)) -> 0 | BF21: =INDEX('RAB input'!$H$25:$XFD$74, MATCH($E21, 'RAB input'!$E$25:$E$74, 0), MATCH(BF$4, RAB_years, 0)) -> 0 | BG21: =INDEX('RAB input'!$H$25:$XFD$74, MATCH($E21, 'RAB input'!$E$25:$E$74, 0), MATCH(BG$4, RAB_years, 0)) -> 0 | BH21: =INDEX('RAB input'!$H$25:$XFD$74, MATCH($E21, 'RAB input'!$E$25:$E$74, 0), MATCH(BH$4, RAB_years, 0)) -> 0 | BI21: =INDEX('RAB input'!$H$25:$XFD$74, MATCH($E21, 'RAB input'!$E$25:$E$74, 0), MATCH(BI$4, RAB_years, 0)) -> 0 | BJ21: =INDEX('RAB input'!$H$25:$XFD$74, MATCH($E21, 'RAB input'!$E$25:$E$74, 0), MATCH(BJ$4, RAB_years, 0)) -> 0 | BK21: =INDEX('RAB input'!$H$25:$XFD$74, MATCH($E21, 'RAB input'!$E$25:$E$74, 0), MATCH(BK$4, RAB_years, 0)) -> 0 | BL21: =INDEX('RAB input'!$H$25:$XFD$74, MATCH($E21, 'RAB input'!$E$25:$E$74, 0), MATCH(BL$4, RAB_years, 0)) -> 0 | BM21: =INDEX('RAB input'!$H$25:$XFD$74, MATCH($E21, 'RAB input'!$E$25:$E$74, 0), MATCH(BM$4, RAB_years, 0)) -> 0 | BN21: =INDEX('RAB input'!$H$25:$XFD$74, MATCH($E21, 'RAB input'!$E$25:$E$74, 0), MATCH(BN$4, RAB_years, 0)) -> 0 | BO21: =INDEX('RAB input'!$H$25:$XFD$74, MATCH($E21, 'RAB input'!$E$25:$E$74, 0), MATCH(BO$4, RAB_years, 0)) -> 0 | BP21: =INDEX('RAB input'!$H$25:$XFD$74, MATCH($E21, 'RAB input'!$E$25:$E$74, 0), MATCH(BP$4, RAB_years, 0)) -> 0 | BQ21: =INDEX('RAB input'!$H$25:$XFD$74, MATCH($E21, 'RAB input'!$E$25:$E$74, 0), MATCH(BQ$4, RAB_years, 0)) -> 0 | BR21: =INDEX('RAB input'!$H$25:$XFD$74, MATCH($E21, 'RAB input'!$E$25:$E$74, 0), MATCH(BR$4, RAB_years, 0)) -> 0 | BS21: =INDEX('RAB input'!$H$25:$XFD$74, MATCH($E21, 'RAB input'!$E$25:$E$74, 0), MATCH(BS$4, RAB_years, 0)) -> 0 | BT21: =INDEX('RAB input'!$H$25:$XFD$74, MATCH($E21, 'RAB input'!$E$25:$E$74, 0), MATCH(BT$4, RAB_years, 0)) -> 0 | BU21: =INDEX('RAB input'!$H$25:$XFD$74, MATCH($E21, 'RAB input'!$E$25:$E$74, 0), MATCH(BU$4, RAB_years, 0)) -> 0 | BV21: =INDEX('RAB input'!$H$25:$XFD$74, MATCH($E21, 'RAB input'!$E$25:$E$74, 0), MATCH(BV$4, RAB_years, 0)) -> 0 | BW21: =INDEX('RAB input'!$H$25:$XFD$74, MATCH($E21, 'RAB input'!$E$25:$E$74, 0), MATCH(BW$4, RAB_years, 0)) -> 0 | BX21: =INDEX('RAB input'!$H$25:$XFD$74, MATCH($E21, 'RAB input'!$E$25:$E$74, 0), MATCH(BX$4, RAB_years, 0)) -> 0 | BY21: =INDEX('RAB input'!$H$25:$XFD$74, MATCH($E21, 'RAB input'!$E$25:$E$74, 0), MATCH(BY$4, RAB_years, 0)) -> 0 | BZ21: =INDEX('RAB input'!$H$25:$XFD$74, MATCH($E21, 'RAB input'!$E$25:$E$74, 0), MATCH(BZ$4, RAB_years, 0)) -> 0 | CA21: =INDEX('RAB input'!$H$25:$XFD$74, MATCH($E21, 'RAB input'!$E$25:$E$74, 0), MATCH(CA$4, RAB_years, 0)) -> 0 | CB21: =INDEX('RAB input'!$H$25:$XFD$74, MATCH($E21, 'RAB input'!$E$25:$E$74, 0), MATCH(CB$4, RAB_years, 0)) -> 0 | CC21: =INDEX('RAB input'!$H$25:$XFD$74, MATCH($E21, 'RAB input'!$E$25:$E$74, 0), MATCH(CC$4, RAB_years, 0)) -> 0
D22: 5 | E22: ='RAB input'!E29 -> SCADA | G22: 3.614833107 | H22: 0.4387035465 | I22: =INDEX('RAB input'!$H$25:$XFD$74, MATCH($E22, 'RAB input'!$E$25:$E$74, 0), MATCH(I$4, RAB_years, 0)) -> 1.271080377 | J22: =INDEX('RAB input'!$H$25:$XFD$74, MATCH($E22, 'RAB input'!$E$25:$E$74, 0), MATCH(J$4, RAB_years, 0)) -> 2.508767573 | K22: =INDEX('RAB input'!$H$25:$XFD$74, MATCH($E22, 'RAB input'!$E$25:$E$74, 0), MATCH(K$4, RAB_years, 0)) -> 2.41 | L22: =INDEX('RAB input'!$H$25:$XFD$74, MATCH($E22, 'RAB input'!$E$25:$E$74, 0), MATCH(L$4, RAB_years, 0)) -> 16.73583296 | M22: =INDEX('RAB input'!$H$25:$XFD$74, MATCH($E22, 'RAB input'!$E$25:$E$74, 0), MATCH(M$4, RAB_years, 0)) -> 14.73192247 | N22: =INDEX('RAB input'!$H$25:$XFD$74, MATCH($E22, 'RAB input'!$E$25:$E$74, 0), MATCH(N$4, RAB_years, 0)) -> 1.020442601 | O22: =INDEX('RAB input'!$H$25:$XFD$74, MATCH($E22, 'RAB input'!$E$25:$E$74, 0), MATCH(O$4, RAB_years, 0)) -> 2.290789764 | P22: =INDEX('RAB input'!$H$25:$XFD$74, MATCH($E22, 'RAB input'!$E$25:$E$74, 0), MATCH(P$4, RAB_years, 0)) -> 3.538673422 | Q22: =INDEX('RAB input'!$H$25:$XFD$74, MATCH($E22, 'RAB input'!$E$25:$E$74, 0), MATCH(Q$4, RAB_years, 0)) -> 2.321373593 | R22: =INDEX('RAB input'!$H$25:$XFD$74, MATCH($E22, 'RAB input'!$E$25:$E$74, 0), MATCH(R$4, RAB_years, 0)) -> 2.150787693 | S22: =INDEX('RAB input'!$H$25:$XFD$74, MATCH($E22, 'RAB input'!$E$25:$E$74, 0), MATCH(S$4, RAB_years, 0)) -> 0.3623267071 | T22: =INDEX('RAB input'!$H$25:$XFD$74, MATCH($E22, 'RAB input'!$E$25:$E$74, 0), MATCH(T$4, RAB_years, 0)) -> 0.878500474 | U22: =INDEX('RAB input'!$H$25:$XFD$74, MATCH($E22, 'RAB input'!$E$25:$E$74, 0), MATCH(U$4, RAB_years, 0)) -> 0 | V22: =INDEX('RAB input'!$H$25:$XFD$74, MATCH($E22, 'RAB input'!$E$25:$E$74, 0), MATCH(V$4, RAB_years, 0)) -> 0 | W22: =INDEX('RAB input'!$H$25:$XFD$74, MATCH($E22, 'RAB input'!$E$25:$E$74, 0), MATCH(W$4, RAB_years, 0)) -> 0 | X22: =INDEX('RAB input'!$H$25:$XFD$74, MATCH($E22, 'RAB input'!$E$25:$E$74, 0), MATCH(X$4, RAB_years, 0)) -> 0 | Y22: =INDEX('RAB input'!$H$25:$XFD$74, MATCH($E22, 'RAB input'!$E$25:$E$74, 0), MATCH(Y$4, RAB_years, 0)) -> 0 | Z22: =INDEX('RAB input'!$H$25:$XFD$74, MATCH($E22, 'RAB input'!$E$25:$E$74, 0), MATCH(Z$4, RAB_years, 0)) -> 0 | AA22: =INDEX('RAB input'!$H$25:$XFD$74, MATCH($E22, 'RAB input'!$E$25:$E$74, 0), MATCH(AA$4, RAB_years, 0)) -> 0 | AB22: =INDEX('RAB input'!$H$25:$XFD$74, MATCH($E22, 'RAB input'!$E$25:$E$74, 0), MATCH(AB$4, RAB_years, 0)) -> 0 | AC22: =INDEX('RAB input'!$H$25:$XFD$74, MATCH($E22, 'RAB input'!$E$25:$E$74, 0), MATCH(AC$4, RAB_years, 0)) -> 0 | AD22: =INDEX('RAB input'!$H$25:$XFD$74, MATCH($E22, 'RAB input'!$E$25:$E$74, 0), MATCH(AD$4, RAB_years, 0)) -> 0 | AE22: =INDEX('RAB input'!$H$25:$XFD$74, MATCH($E22, 'RAB input'!$E$25:$E$74, 0), MATCH(AE$4, RAB_years, 0)) -> 0 | AF22: =INDEX('RAB input'!$H$25:$XFD$74, MATCH($E22, 'RAB input'!$E$25:$E$74, 0), MATCH(AF$4, RAB_years, 0)) -> 0 | AG22: =INDEX('RAB input'!$H$25:$XFD$74, MATCH($E22, 'RAB input'!$E$25:$E$74, 0), MATCH(AG$4, RAB_years, 0)) -> 0 | AH22: =INDEX('RAB input'!$H$25:$XFD$74, MATCH($E22, 'RAB input'!$E$25:$E$74, 0), MATCH(AH$4, RAB_years, 0)) -> 0 | AI22: =INDEX('RAB input'!$H$25:$XFD$74, MATCH($E22, 'RAB input'!$E$25:$E$74, 0), MATCH(AI$4, RAB_years, 0)) -> 0 | AJ22: =INDEX('RAB input'!$H$25:$XFD$74, MATCH($E22, 'RAB input'!$E$25:$E$74, 0), MATCH(AJ$4, RAB_years, 0)) -> 0 | AK22: =INDEX('RAB input'!$H$25:$XFD$74, MATCH($E22, 'RAB input'!$E$25:$E$74, 0), MATCH(AK$4, RAB_years, 0)) -> 0 | AL22: =INDEX('RAB input'!$H$25:$XFD$74, MATCH($E22, 'RAB input'!$E$25:$E$74, 0), MATCH(AL$4, RAB_years, 0)) -> 0 | AM22: =INDEX('RAB input'!$H$25:$XFD$74, MATCH($E22, 'RAB input'!$E$25:$E$74, 0), MATCH(AM$4, RAB_years, 0)) -> 0 | AN22: =INDEX('RAB input'!$H$25:$XFD$74, MATCH($E22, 'RAB input'!$E$25:$E$74, 0), MATCH(AN$4, RAB_years, 0)) -> 0 | AO22: =INDEX('RAB input'!$H$25:$XFD$74, MATCH($E22, 'RAB input'!$E$25:$E$74, 0), MATCH(AO$4, RAB_years, 0)) -> 0 | AP22: =INDEX('RAB input'!$H$25:$XFD$74, MATCH($E22, 'RAB input'!$E$25:$E$74, 0), MATCH(AP$4, RAB_years, 0)) -> 0 | AQ22: =INDEX('RAB input'!$H$25:$XFD$74, MATCH($E22, 'RAB input'!$E$25:$E$74, 0), MATCH(AQ$4, RAB_years, 0)) -> 0 | AR22: =INDEX('RAB input'!$H$25:$XFD$74, MATCH($E22, 'RAB input'!$E$25:$E$74, 0), MATCH(AR$4, RAB_years, 0)) -> 0 | AS22: =INDEX('RAB input'!$H$25:$XFD$74, MATCH($E22, 'RAB input'!$E$25:$E$74, 0), MATCH(AS$4, RAB_years, 0)) -> 0 | AT22: =INDEX('RAB input'!$H$25:$XFD$74, MATCH($E22, 'RAB input'!$E$25:$E$74, 0), MATCH(AT$4, RAB_years, 0)) -> 0 | AU22: =INDEX('RAB input'!$H$25:$XFD$74, MATCH($E22, 'RAB input'!$E$25:$E$74, 0), MATCH(AU$4, RAB_years, 0)) -> 0 | AV22: =INDEX('RAB input'!$H$25:$XFD$74, MATCH($E22, 'RAB input'!$E$25:$E$74, 0), MATCH(AV$4, RAB_years, 0)) -> 0 | AW22: =INDEX('RAB input'!$H$25:$XFD$74, MATCH($E22, 'RAB input'!$E$25:$E$74, 0), MATCH(AW$4, RAB_years, 0)) -> 0 | AX22: =INDEX('RAB input'!$H$25:$XFD$74, MATCH($E22, 'RAB input'!$E$25:$E$74, 0), MATCH(AX$4, RAB_years, 0)) -> 0 | AY22: =INDEX('RAB input'!$H$25:$XFD$74, MATCH($E22, 'RAB input'!$E$25:$E$74, 0), MATCH(AY$4, RAB_years, 0)) -> 0 | AZ22: =INDEX('RAB input'!$H$25:$XFD$74, MATCH($E22, 'RAB input'!$E$25:$E$74, 0), MATCH(AZ$4, RAB_years, 0)) -> 0 | BA22: =INDEX('RAB input'!$H$25:$XFD$74, MATCH($E22, 'RAB input'!$E$25:$E$74, 0), MATCH(BA$4, RAB_years, 0)) -> 0 | BB22: =INDEX('RAB input'!$H$25:$XFD$74, MATCH($E22, 'RAB input'!$E$25:$E$74, 0), MATCH(BB$4, RAB_years, 0)) -> 0 | BC22: =INDEX('RAB input'!$H$25:$XFD$74, MATCH($E22, 'RAB input'!$E$25:$E$74, 0), MATCH(BC$4, RAB_years, 0)) -> 0 | BD22: =INDEX('RAB input'!$H$25:$XFD$74, MATCH($E22, 'RAB input'!$E$25:$E$74, 0), MATCH(BD$4, RAB_years, 0)) -> 0 | BE22: =INDEX('RAB input'!$H$25:$XFD$74, MATCH($E22, 'RAB input'!$E$25:$E$74, 0), MATCH(BE$4, RAB_years, 0)) -> 0 | BF22: =INDEX('RAB input'!$H$25:$XFD$74, MATCH($E22, 'RAB input'!$E$25:$E$74, 0), MATCH(BF$4, RAB_years, 0)) -> 0 | BG22: =INDEX('RAB input'!$H$25:$XFD$74, MATCH($E22, 'RAB input'!$E$25:$E$74, 0), MATCH(BG$4, RAB_years, 0)) -> 0 | BH22: =INDEX('RAB input'!$H$25:$XFD$74, MATCH($E22, 'RAB input'!$E$25:$E$74, 0), MATCH(BH$4, RAB_years, 0)) -> 0 | BI22: =INDEX('RAB input'!$H$25:$XFD$74, MATCH($E22, 'RAB input'!$E$25:$E$74, 0), MATCH(BI$4, RAB_years, 0)) -> 0 | BJ22: =INDEX('RAB input'!$H$25:$XFD$74, MATCH($E22, 'RAB input'!$E$25:$E$74, 0), MATCH(BJ$4, RAB_years, 0)) -> 0 | BK22: =INDEX('RAB input'!$H$25:$XFD$74, MATCH($E22, 'RAB input'!$E$25:$E$74, 0), MATCH(BK$4, RAB_years, 0)) -> 0 | BL22: =INDEX('RAB input'!$H$25:$XFD$74, MATCH($E22, 'RAB input'!$E$25:$E$74, 0), MATCH(BL$4, RAB_years, 0)) -> 0 | BM22: =INDEX('RAB input'!$H$25:$XFD$74, MATCH($E22, 'RAB input'!$E$25:$E$74, 0), MATCH(BM$4, RAB_years, 0)) -> 0 | BN22: =INDEX('RAB input'!$H$25:$XFD$74, MATCH($E22, 'RAB input'!$E$25:$E$74, 0), MATCH(BN$4, RAB_years, 0)) -> 0 | BO22: =INDEX('RAB input'!$H$25:$XFD$74, MATCH($E22, 'RAB input'!$E$25:$E$74, 0), MATCH(BO$4, RAB_years, 0)) -> 0 | BP22: =INDEX('RAB input'!$H$25:$XFD$74, MATCH($E22, 'RAB input'!$E$25:$E$74, 0), MATCH(BP$4, RAB_years, 0)) -> 0 | BQ22: =INDEX('RAB input'!$H$25:$XFD$74, MATCH($E22, 'RAB input'!$E$25:$E$74, 0), MATCH(BQ$4, RAB_years, 0)) -> 0 | BR22: =INDEX('RAB input'!$H$25:$XFD$74, MATCH($E22, 'RAB input'!$E$25:$E$74, 0), MATCH(BR$4, RAB_years, 0)) -> 0 | BS22: =INDEX('RAB input'!$H$25:$XFD$74, MATCH($E22, 'RAB input'!$E$25:$E$74, 0), MATCH(BS$4, RAB_years, 0)) -> 0 | BT22: =INDEX('RAB input'!$H$25:$XFD$74, MATCH($E22, 'RAB input'!$E$25:$E$74, 0), MATCH(BT$4, RAB_years, 0)) -> 0 | BU22: =INDEX('RAB input'!$H$25:$XFD$74, MATCH($E22, 'RAB input'!$E$25:$E$74, 0), MATCH(BU$4, RAB_years, 0)) -> 0 | BV22: =INDEX('RAB input'!$H$25:$XFD$74, MATCH($E22, 'RAB input'!$E$25:$E$74, 0), MATCH(BV$4, RAB_years, 0)) -> 0 | BW22: =INDEX('RAB input'!$H$25:$XFD$74, MATCH($E22, 'RAB input'!$E$25:$E$74, 0), MATCH(BW$4, RAB_years, 0)) -> 0 | BX22: =INDEX('RAB input'!$H$25:$XFD$74, MATCH($E22, 'RAB input'!$E$25:$E$74, 0), MATCH(BX$4, RAB_years, 0)) -> 0 | BY22: =INDEX('RAB input'!$H$25:$XFD$74, MATCH($E22, 'RAB input'!$E$25:$E$74, 0), MATCH(BY$4, RAB_years, 0)) -> 0 | BZ22: =INDEX('RAB input'!$H$25:$XFD$74, MATCH($E22, 'RAB input'!$E$25:$E$74, 0), MATCH(BZ$4, RAB_years, 0)) -> 0 | CA22: =INDEX('RAB input'!$H$25:$XFD$74, MATCH($E22, 'RAB input'!$E$25:$E$74, 0), MATCH(CA$4, RAB_years, 0)) -> 0 | CB22: =INDEX('RAB input'!$H$25:$XFD$74, MATCH($E22, 'RAB input'!$E$25:$E$74, 0), MATCH(CB$4, RAB_years, 0)) -> 0 | CC22: =INDEX('RAB input'!$H$25:$XFD$74, MATCH($E22, 'RAB input'!$E$25:$E$74, 0), MATCH(CC$4, RAB_years, 0)) -> 0
D23: 6 | E23: ='RAB input'!E30 -> Distribution Switching Stations (Ground) | G23: 22.62310594 | H23: 2.26644305 | I23: =INDEX('RAB input'!$H$25:$XFD$74, MATCH($E23, 'RAB input'!$E$25:$E$74, 0), MATCH(I$4, RAB_years, 0)) -> 0.1529147402 | J23: =INDEX('RAB input'!$H$25:$XFD$74, MATCH($E23, 'RAB input'!$E$25:$E$74, 0), MATCH(J$4, RAB_years, 0)) -> 0.1844782262 | K23: =INDEX('RAB input'!$H$25:$XFD$74, MATCH($E23, 'RAB input'!$E$25:$E$74, 0), MATCH(K$4, RAB_years, 0)) -> 0.214 | L23: =INDEX('RAB input'!$H$25:$XFD$74, MATCH($E23, 'RAB input'!$E$25:$E$74, 0), MATCH(L$4, RAB_years, 0)) -> 0.1834636239 | M23: =INDEX('RAB input'!$H$25:$XFD$74, MATCH($E23, 'RAB input'!$E$25:$E$74, 0), MATCH(M$4, RAB_years, 0)) -> 0.2673950115 | N23: =INDEX('RAB input'!$H$25:$XFD$74, MATCH($E23, 'RAB input'!$E$25:$E$74, 0), MATCH(N$4, RAB_years, 0)) -> 0.2981137896 | O23: =INDEX('RAB input'!$H$25:$XFD$74, MATCH($E23, 'RAB input'!$E$25:$E$74, 0), MATCH(O$4, RAB_years, 0)) -> 0.07306847773 | P23: =INDEX('RAB input'!$H$25:$XFD$74, MATCH($E23, 'RAB input'!$E$25:$E$74, 0), MATCH(P$4, RAB_years, 0)) -> 0.3406661312 | Q23: =INDEX('RAB input'!$H$25:$XFD$74, MATCH($E23, 'RAB input'!$E$25:$E$74, 0), MATCH(Q$4, RAB_years, 0)) -> 0.281100676 | R23: =INDEX('RAB input'!$H$25:$XFD$74, MATCH($E23, 'RAB input'!$E$25:$E$74, 0), MATCH(R$4, RAB_years, 0)) -> 0.1672403317 | S23: =INDEX('RAB input'!$H$25:$XFD$74, MATCH($E23, 'RAB input'!$E$25:$E$74, 0), MATCH(S$4, RAB_years, 0)) -> 0.1193757872 | T23: =INDEX('RAB input'!$H$25:$XFD$74, MATCH($E23, 'RAB input'!$E$25:$E$74, 0), MATCH(T$4, RAB_years, 0)) -> 0.1186517356 | U23: =INDEX('RAB input'!$H$25:$XFD$74, MATCH($E23, 'RAB input'!$E$25:$E$74, 0), MATCH(U$4, RAB_years, 0)) -> 0 | V23: =INDEX('RAB input'!$H$25:$XFD$74, MATCH($E23, 'RAB input'!$E$25:$E$74, 0), MATCH(V$4, RAB_years, 0)) -> 0 | W23: =INDEX('RAB input'!$H$25:$XFD$74, MATCH($E23, 'RAB input'!$E$25:$E$74, 0), MATCH(W$4, RAB_years, 0)) -> 0 | X23: =INDEX('RAB input'!$H$25:$XFD$74, MATCH($E23, 'RAB input'!$E$25:$E$74, 0), MATCH(X$4, RAB_years, 0)) -> 0 | Y23: =INDEX('RAB input'!$H$25:$XFD$74, MATCH($E23, 'RAB input'!$E$25:$E$74, 0), MATCH(Y$4, RAB_years, 0)) -> 0 | Z23: =INDEX('RAB input'!$H$25:$XFD$74, MATCH($E23, 'RAB input'!$E$25:$E$74, 0), MATCH(Z$4, RAB_years, 0)) -> 0 | AA23: =INDEX('RAB input'!$H$25:$XFD$74, MATCH($E23, 'RAB input'!$E$25:$E$74, 0), MATCH(AA$4, RAB_years, 0)) -> 0 | AB23: =INDEX('RAB input'!$H$25:$XFD$74, MATCH($E23, 'RAB input'!$E$25:$E$74, 0), MATCH(AB$4, RAB_years, 0)) -> 0 | AC23: =INDEX('RAB input'!$H$25:$XFD$74, MATCH($E23, 'RAB input'!$E$25:$E$74, 0), MATCH(AC$4, RAB_years, 0)) -> 0 | AD23: =INDEX('RAB input'!$H$25:$XFD$74, MATCH($E23, 'RAB input'!$E$25:$E$74, 0), MATCH(AD$4, RAB_years, 0)) -> 0 | AE23: =INDEX('RAB input'!$H$25:$XFD$74, MATCH($E23, 'RAB input'!$E$25:$E$74, 0), MATCH(AE$4, RAB_years, 0)) -> 0 | AF23: =INDEX('RAB input'!$H$25:$XFD$74, MATCH($E23, 'RAB input'!$E$25:$E$74, 0), MATCH(AF$4, RAB_years, 0)) -> 0 | AG23: =INDEX('RAB input'!$H$25:$XFD$74, MATCH($E23, 'RAB input'!$E$25:$E$74, 0), MATCH(AG$4, RAB_years, 0)) -> 0 | AH23: =INDEX('RAB input'!$H$25:$XFD$74, MATCH($E23, 'RAB input'!$E$25:$E$74, 0), MATCH(AH$4, RAB_years, 0)) -> 0 | AI23: =INDEX('RAB input'!$H$25:$XFD$74, MATCH($E23, 'RAB input'!$E$25:$E$74, 0), MATCH(AI$4, RAB_years, 0)) -> 0 | AJ23: =INDEX('RAB input'!$H$25:$XFD$74, MATCH($E23, 'RAB input'!$E$25:$E$74, 0), MATCH(AJ$4, RAB_years, 0)) -> 0 | AK23: =INDEX('RAB input'!$H$25:$XFD$74, MATCH($E23, 'RAB input'!$E$25:$E$74, 0), MATCH(AK$4, RAB_years, 0)) -> 0 | AL23: =INDEX('RAB input'!$H$25:$XFD$74, MATCH($E23, 'RAB input'!$E$25:$E$74, 0), MATCH(AL$4, RAB_years, 0)) -> 0 | AM23: =INDEX('RAB input'!$H$25:$XFD$74, MATCH($E23, 'RAB input'!$E$25:$E$74, 0), MATCH(AM$4, RAB_years, 0)) -> 0 | AN23: =INDEX('RAB input'!$H$25:$XFD$74, MATCH($E23, 'RAB input'!$E$25:$E$74, 0), MATCH(AN$4, RAB_years, 0)) -> 0 | AO23: =INDEX('RAB input'!$H$25:$XFD$74, MATCH($E23, 'RAB input'!$E$25:$E$74, 0), MATCH(AO$4, RAB_years, 0)) -> 0 | AP23: =INDEX('RAB input'!$H$25:$XFD$74, MATCH($E23, 'RAB input'!$E$25:$E$74, 0), MATCH(AP$4, RAB_years, 0)) -> 0 | AQ23: =INDEX('RAB input'!$H$25:$XFD$74, MATCH($E23, 'RAB input'!$E$25:$E$74, 0), MATCH(AQ$4, RAB_years, 0)) -> 0 | AR23: =INDEX('RAB input'!$H$25:$XFD$74, MATCH($E23, 'RAB input'!$E$25:$E$74, 0), MATCH(AR$4, RAB_years, 0)) -> 0 | AS23: =INDEX('RAB input'!$H$25:$XFD$74, MATCH($E23, 'RAB input'!$E$25:$E$74, 0), MATCH(AS$4, RAB_years, 0)) -> 0 | AT23: =INDEX('RAB input'!$H$25:$XFD$74, MATCH($E23, 'RAB input'!$E$25:$E$74, 0), MATCH(AT$4, RAB_years, 0)) -> 0 | AU23: =INDEX('RAB input'!$H$25:$XFD$74, MATCH($E23, 'RAB input'!$E$25:$E$74, 0), MATCH(AU$4, RAB_years, 0)) -> 0 | AV23: =INDEX('RAB input'!$H$25:$XFD$74, MATCH($E23, 'RAB input'!$E$25:$E$74, 0), MATCH(AV$4, RAB_years, 0)) -> 0 | AW23: =INDEX('RAB input'!$H$25:$XFD$74, MATCH($E23, 'RAB input'!$E$25:$E$74, 0), MATCH(AW$4, RAB_years, 0)) -> 0 | AX23: =INDEX('RAB input'!$H$25:$XFD$74, MATCH($E23, 'RAB input'!$E$25:$E$74, 0), MATCH(AX$4, RAB_years, 0)) -> 0 | AY23: =INDEX('RAB input'!$H$25:$XFD$74, MATCH($E23, 'RAB input'!$E$25:$E$74, 0), MATCH(AY$4, RAB_years, 0)) -> 0 | AZ23: =INDEX('RAB input'!$H$25:$XFD$74, MATCH($E23, 'RAB input'!$E$25:$E$74, 0), MATCH(AZ$4, RAB_years, 0)) -> 0 | BA23: =INDEX('RAB input'!$H$25:$XFD$74, MATCH($E23, 'RAB input'!$E$25:$E$74, 0), MATCH(BA$4, RAB_years, 0)) -> 0 | BB23: =INDEX('RAB input'!$H$25:$XFD$74, MATCH($E23, 'RAB input'!$E$25:$E$74, 0), MATCH(BB$4, RAB_years, 0)) -> 0 | BC23: =INDEX('RAB input'!$H$25:$XFD$74, MATCH($E23, 'RAB input'!$E$25:$E$74, 0), MATCH(BC$4, RAB_years, 0)) -> 0 | BD23: =INDEX('RAB input'!$H$25:$XFD$74, MATCH($E23, 'RAB input'!$E$25:$E$74, 0), MATCH(BD$4, RAB_years, 0)) -> 0 | BE23: =INDEX('RAB input'!$H$25:$XFD$74, MATCH($E23, 'RAB input'!$E$25:$E$74, 0), MATCH(BE$4, RAB_years, 0)) -> 0 | BF23: =INDEX('RAB input'!$H$25:$XFD$74, MATCH($E23, 'RAB input'!$E$25:$E$74, 0), MATCH(BF$4, RAB_years, 0)) -> 0 | BG23: =INDEX('RAB input'!$H$25:$XFD$74, MATCH($E23, 'RAB input'!$E$25:$E$74, 0), MATCH(BG$4, RAB_years, 0)) -> 0 | BH23: =INDEX('RAB input'!$H$25:$XFD$74, MATCH($E23, 'RAB input'!$E$25:$E$74, 0), MATCH(BH$4, RAB_years, 0)) -> 0 | BI23: =INDEX('RAB input'!$H$25:$XFD$74, MATCH($E23, 'RAB input'!$E$25:$E$74, 0), MATCH(BI$4, RAB_years, 0)) -> 0 | BJ23: =INDEX('RAB input'!$H$25:$XFD$74, MATCH($E23, 'RAB input'!$E$25:$E$74, 0), MATCH(BJ$4, RAB_years, 0)) -> 0 | BK23: =INDEX('RAB input'!$H$25:$XFD$74, MATCH($E23, 'RAB input'!$E$25:$E$74, 0), MATCH(BK$4, RAB_years, 0)) -> 0 | BL23: =INDEX('RAB input'!$H$25:$XFD$74, MATCH($E23, 'RAB input'!$E$25:$E$74, 0), MATCH(BL$4, RAB_years, 0)) -> 0 | BM23: =INDEX('RAB input'!$H$25:$XFD$74, MATCH($E23, 'RAB input'!$E$25:$E$74, 0), MATCH(BM$4, RAB_years, 0)) -> 0 | BN23: =INDEX('RAB input'!$H$25:$XFD$74, MATCH($E23, 'RAB input'!$E$25:$E$74, 0), MATCH(BN$4, RAB_years, 0)) -> 0 | BO23: =INDEX('RAB input'!$H$25:$XFD$74, MATCH($E23, 'RAB input'!$E$25:$E$74, 0), MATCH(BO$4, RAB_years, 0)) -> 0 | BP23: =INDEX('RAB input'!$H$25:$XFD$74, MATCH($E23, 'RAB input'!$E$25:$E$74, 0), MATCH(BP$4, RAB_years, 0)) -> 0 | BQ23: =INDEX('RAB input'!$H$25:$XFD$74, MATCH($E23, 'RAB input'!$E$25:$E$74, 0), MATCH(BQ$4, RAB_years, 0)) -> 0 | BR23: =INDEX('RAB input'!$H$25:$XFD$74, MATCH($E23, 'RAB input'!$E$25:$E$74, 0), MATCH(BR$4, RAB_years, 0)) -> 0 | BS23: =INDEX('RAB input'!$H$25:$XFD$74, MATCH($E23, 'RAB input'!$E$25:$E$74, 0), MATCH(BS$4, RAB_years, 0)) -> 0 | BT23: =INDEX('RAB input'!$H$25:$XFD$74, MATCH($E23, 'RAB input'!$E$25:$E$74, 0), MATCH(BT$4, RAB_years, 0)) -> 0 | BU23: =INDEX('RAB input'!$H$25:$XFD$74, MATCH($E23, 'RAB input'!$E$25:$E$74, 0), MATCH(BU$4, RAB_years, 0)) -> 0 | BV23: =INDEX('RAB input'!$H$25:$XFD$74, MATCH($E23, 'RAB input'!$E$25:$E$74, 0), MATCH(BV$4, RAB_years, 0)) -> 0 | BW23: =INDEX('RAB input'!$H$25:$XFD$74, MATCH($E23, 'RAB input'!$E$25:$E$74, 0), MATCH(BW$4, RAB_years, 0)) -> 0 | BX23: =INDEX('RAB input'!$H$25:$XFD$74, MATCH($E23, 'RAB input'!$E$25:$E$74, 0), MATCH(BX$4, RAB_years, 0)) -> 0 | BY23: =INDEX('RAB input'!$H$25:$XFD$74, MATCH($E23, 'RAB input'!$E$25:$E$74, 0), MATCH(BY$4, RAB_years, 0)) -> 0 | BZ23: =INDEX('RAB input'!$H$25:$XFD$74, MATCH($E23, 'RAB input'!$E$25:$E$74, 0), MATCH(BZ$4, RAB_years, 0)) -> 0 | CA23: =INDEX('RAB input'!$H$25:$XFD$74, MATCH($E23, 'RAB input'!$E$25:$E$74, 0), MATCH(CA$4, RAB_years, 0)) -> 0 | CB23: =INDEX('RAB input'!$H$25:$XFD$74, MATCH($E23, 'RAB input'!$E$25:$E$74, 0), MATCH(CB$4, RAB_years, 0)) -> 0 | CC23: =INDEX('RAB input'!$H$25:$XFD$74, MATCH($E23, 'RAB input'!$E$25:$E$74, 0), MATCH(CC$4, RAB_years, 0)) -> 0
D24: 7 | E24: ='RAB input'!E31 -> Overhead High Voltage Lines Urban | G24: 83.64071842 | H24: 6.130417868 | I24: =INDEX('RAB input'!$H$25:$XFD$74, MATCH($E24, 'RAB input'!$E$25:$E$74, 0), MATCH(I$4, RAB_years, 0)) -> 6.723547829 | J24: =INDEX('RAB input'!$H$25:$XFD$74, MATCH($E24, 'RAB input'!$E$25:$E$74, 0), MATCH(J$4, RAB_years, 0)) -> 7.355545647 | K24: =INDEX('RAB input'!$H$25:$XFD$74, MATCH($E24, 'RAB input'!$E$25:$E$74, 0), MATCH(K$4, RAB_years, 0)) -> 6.321 | L24: =INDEX('RAB input'!$H$25:$XFD$74, MATCH($E24, 'RAB input'!$E$25:$E$74, 0), MATCH(L$4, RAB_years, 0)) -> 7.060759255 | M24: =INDEX('RAB input'!$H$25:$XFD$74, MATCH($E24, 'RAB input'!$E$25:$E$74, 0), MATCH(M$4, RAB_years, 0)) -> 10.35369897 | N24: =INDEX('RAB input'!$H$25:$XFD$74, MATCH($E24, 'RAB input'!$E$25:$E$74, 0), MATCH(N$4, RAB_years, 0)) -> 12.62630613 | O24: =INDEX('RAB input'!$H$25:$XFD$74, MATCH($E24, 'RAB input'!$E$25:$E$74, 0), MATCH(O$4, RAB_years, 0)) -> 8.538353954 | P24: =INDEX('RAB input'!$H$25:$XFD$74, MATCH($E24, 'RAB input'!$E$25:$E$74, 0), MATCH(P$4, RAB_years, 0)) -> 11.03952416 | Q24: =INDEX('RAB input'!$H$25:$XFD$74, MATCH($E24, 'RAB input'!$E$25:$E$74, 0), MATCH(Q$4, RAB_years, 0)) -> 11.95067347 | R24: =INDEX('RAB input'!$H$25:$XFD$74, MATCH($E24, 'RAB input'!$E$25:$E$74, 0), MATCH(R$4, RAB_years, 0)) -> 10.31225011 | S24: =INDEX('RAB input'!$H$25:$XFD$74, MATCH($E24, 'RAB input'!$E$25:$E$74, 0), MATCH(S$4, RAB_years, 0)) -> 9.855109879 | T24: =INDEX('RAB input'!$H$25:$XFD$74, MATCH($E24, 'RAB input'!$E$25:$E$74, 0), MATCH(T$4, RAB_years, 0)) -> 10.68818663 | U24: =INDEX('RAB input'!$H$25:$XFD$74, MATCH($E24, 'RAB input'!$E$25:$E$74, 0), MATCH(U$4, RAB_years, 0)) -> 0 | V24: =INDEX('RAB input'!$H$25:$XFD$74, MATCH($E24, 'RAB input'!$E$25:$E$74, 0), MATCH(V$4, RAB_years, 0)) -> 0 | W24: =INDEX('RAB input'!$H$25:$XFD$74, MATCH($E24, 'RAB input'!$E$25:$E$74, 0), MATCH(W$4, RAB_years, 0)) -> 0 | X24: =INDEX('RAB input'!$H$25:$XFD$74, MATCH($E24, 'RAB input'!$E$25:$E$74, 0), MATCH(X$4, RAB_years, 0)) -> 0 | Y24: =INDEX('RAB input'!$H$25:$XFD$74, MATCH($E24, 'RAB input'!$E$25:$E$74, 0), MATCH(Y$4, RAB_years, 0)) -> 0 | Z24: =INDEX('RAB input'!$H$25:$XFD$74, MATCH($E24, 'RAB input'!$E$25:$E$74, 0), MATCH(Z$4, RAB_years, 0)) -> 0 | AA24: =INDEX('RAB input'!$H$25:$XFD$74, MATCH($E24, 'RAB input'!$E$25:$E$74, 0), MATCH(AA$4, RAB_years, 0)) -> 0 | AB24: =INDEX('RAB input'!$H$25:$XFD$74, MATCH($E24, 'RAB input'!$E$25:$E$74, 0), MATCH(AB$4, RAB_years, 0)) -> 0 | AC24: =INDEX('RAB input'!$H$25:$XFD$74, MATCH($E24, 'RAB input'!$E$25:$E$74, 0), MATCH(AC$4, RAB_years, 0)) -> 0 | AD24: =INDEX('RAB input'!$H$25:$XFD$74, MATCH($E24, 'RAB input'!$E$25:$E$74, 0), MATCH(AD$4, RAB_years, 0)) -> 0 | AE24: =INDEX('RAB input'!$H$25:$XFD$74, MATCH($E24, 'RAB input'!$E$25:$E$74, 0), MATCH(AE$4, RAB_years, 0)) -> 0 | AF24: =INDEX('RAB input'!$H$25:$XFD$74, MATCH($E24, 'RAB input'!$E$25:$E$74, 0), MATCH(AF$4, RAB_years, 0)) -> 0 | AG24: =INDEX('RAB input'!$H$25:$XFD$74, MATCH($E24, 'RAB input'!$E$25:$E$74, 0), MATCH(AG$4, RAB_years, 0)) -> 0 | AH24: =INDEX('RAB input'!$H$25:$XFD$74, MATCH($E24, 'RAB input'!$E$25:$E$74, 0), MATCH(AH$4, RAB_years, 0)) -> 0 | AI24: =INDEX('RAB input'!$H$25:$XFD$74, MATCH($E24, 'RAB input'!$E$25:$E$74, 0), MATCH(AI$4, RAB_years, 0)) -> 0 | AJ24: =INDEX('RAB input'!$H$25:$XFD$74, MATCH($E24, 'RAB input'!$E$25:$E$74, 0), MATCH(AJ$4, RAB_years, 0)) -> 0 | AK24: =INDEX('RAB input'!$H$25:$XFD$74, MATCH($E24, 'RAB input'!$E$25:$E$74, 0), MATCH(AK$4, RAB_years, 0)) -> 0 | AL24: =INDEX('RAB input'!$H$25:$XFD$74, MATCH($E24, 'RAB input'!$E$25:$E$74, 0), MATCH(AL$4, RAB_years, 0)) -> 0 | AM24: =INDEX('RAB input'!$H$25:$XFD$74, MATCH($E24, 'RAB input'!$E$25:$E$74, 0), MATCH(AM$4, RAB_years, 0)) -> 0 | AN24: =INDEX('RAB input'!$H$25:$XFD$74, MATCH($E24, 'RAB input'!$E$25:$E$74, 0), MATCH(AN$4, RAB_years, 0)) -> 0 | AO24: =INDEX('RAB input'!$H$25:$XFD$74, MATCH($E24, 'RAB input'!$E$25:$E$74, 0), MATCH(AO$4, RAB_years, 0)) -> 0 | AP24: =INDEX('RAB input'!$H$25:$XFD$74, MATCH($E24, 'RAB input'!$E$25:$E$74, 0), MATCH(AP$4, RAB_years, 0)) -> 0 | AQ24: =INDEX('RAB input'!$H$25:$XFD$74, MATCH($E24, 'RAB input'!$E$25:$E$74, 0), MATCH(AQ$4, RAB_years, 0)) -> 0 | AR24: =INDEX('RAB input'!$H$25:$XFD$74, MATCH($E24, 'RAB input'!$E$25:$E$74, 0), MATCH(AR$4, RAB_years, 0)) -> 0 | AS24: =INDEX('RAB input'!$H$25:$XFD$74, MATCH($E24, 'RAB input'!$E$25:$E$74, 0), MATCH(AS$4, RAB_years, 0)) -> 0 | AT24: =INDEX('RAB input'!$H$25:$XFD$74, MATCH($E24, 'RAB input'!$E$25:$E$74, 0), MATCH(AT$4, RAB_years, 0)) -> 0 | AU24: =INDEX('RAB input'!$H$25:$XFD$74, MATCH($E24, 'RAB input'!$E$25:$E$74, 0), MATCH(AU$4, RAB_years, 0)) -> 0 | AV24: =INDEX('RAB input'!$H$25:$XFD$74, MATCH($E24, 'RAB input'!$E$25:$E$74, 0), MATCH(AV$4, RAB_years, 0)) -> 0 | AW24: =INDEX('RAB input'!$H$25:$XFD$74, MATCH($E24, 'RAB input'!$E$25:$E$74, 0), MATCH(AW$4, RAB_years, 0)) -> 0 | AX24: =INDEX('RAB input'!$H$25:$XFD$74, MATCH($E24, 'RAB input'!$E$25:$E$74, 0), MATCH(AX$4, RAB_years, 0)) -> 0 | AY24: =INDEX('RAB input'!$H$25:$XFD$74, MATCH($E24, 'RAB input'!$E$25:$E$74, 0), MATCH(AY$4, RAB_years, 0)) -> 0 | AZ24: =INDEX('RAB input'!$H$25:$XFD$74, MATCH($E24, 'RAB input'!$E$25:$E$74, 0), MATCH(AZ$4, RAB_years, 0)) -> 0 | BA24: =INDEX('RAB input'!$H$25:$XFD$74, MATCH($E24, 'RAB input'!$E$25:$E$74, 0), MATCH(BA$4, RAB_years, 0)) -> 0 | BB24: =INDEX('RAB input'!$H$25:$XFD$74, MATCH($E24, 'RAB input'!$E$25:$E$74, 0), MATCH(BB$4, RAB_years, 0)) -> 0 | BC24: =INDEX('RAB input'!$H$25:$XFD$74, MATCH($E24, 'RAB input'!$E$25:$E$74, 0), MATCH(BC$4, RAB_years, 0)) -> 0 | BD24: =INDEX('RAB input'!$H$25:$XFD$74, MATCH($E24, 'RAB input'!$E$25:$E$74, 0), MATCH(BD$4, RAB_years, 0)) -> 0 | BE24: =INDEX('RAB input'!$H$25:$XFD$74, MATCH($E24, 'RAB input'!$E$25:$E$74, 0), MATCH(BE$4, RAB_years, 0)) -> 0 | BF24: =INDEX('RAB input'!$H$25:$XFD$74, MATCH($E24, 'RAB input'!$E$25:$E$74, 0), MATCH(BF$4, RAB_years, 0)) -> 0 | BG24: =INDEX('RAB input'!$H$25:$XFD$74, MATCH($E24, 'RAB input'!$E$25:$E$74, 0), MATCH(BG$4, RAB_years, 0)) -> 0 | BH24: =INDEX('RAB input'!$H$25:$XFD$74, MATCH($E24, 'RAB input'!$E$25:$E$74, 0), MATCH(BH$4, RAB_years, 0)) -> 0 | BI24: =INDEX('RAB input'!$H$25:$XFD$74, MATCH($E24, 'RAB input'!$E$25:$E$74, 0), MATCH(BI$4, RAB_years, 0)) -> 0 | BJ24: =INDEX('RAB input'!$H$25:$XFD$74, MATCH($E24, 'RAB input'!$E$25:$E$74, 0), MATCH(BJ$4, RAB_years, 0)) -> 0 | BK24: =INDEX('RAB input'!$H$25:$XFD$74, MATCH($E24, 'RAB input'!$E$25:$E$74, 0), MATCH(BK$4, RAB_years, 0)) -> 0 | BL24: =INDEX('RAB input'!$H$25:$XFD$74, MATCH($E24, 'RAB input'!$E$25:$E$74, 0), MATCH(BL$4, RAB_years, 0)) -> 0 | BM24: =INDEX('RAB input'!$H$25:$XFD$74, MATCH($E24, 'RAB input'!$E$25:$E$74, 0), MATCH(BM$4, RAB_years, 0)) -> 0 | BN24: =INDEX('RAB input'!$H$25:$XFD$74, MATCH($E24, 'RAB input'!$E$25:$E$74, 0), MATCH(BN$4, RAB_years, 0)) -> 0 | BO24: =INDEX('RAB input'!$H$25:$XFD$74, MATCH($E24, 'RAB input'!$E$25:$E$74, 0), MATCH(BO$4, RAB_years, 0)) -> 0 | BP24: =INDEX('RAB input'!$H$25:$XFD$74, MATCH($E24, 'RAB input'!$E$25:$E$74, 0), MATCH(BP$4, RAB_years, 0)) -> 0 | BQ24: =INDEX('RAB input'!$H$25:$XFD$74, MATCH($E24, 'RAB input'!$E$25:$E$74, 0), MATCH(BQ$4, RAB_years, 0)) -> 0 | BR24: =INDEX('RAB input'!$H$25:$XFD$74, MATCH($E24, 'RAB input'!$E$25:$E$74, 0), MATCH(BR$4, RAB_years, 0)) -> 0 | BS24: =INDEX('RAB input'!$H$25:$XFD$74, MATCH($E24, 'RAB input'!$E$25:$E$74, 0), MATCH(BS$4, RAB_years, 0)) -> 0 | BT24: =INDEX('RAB input'!$H$25:$XFD$74, MATCH($E24, 'RAB input'!$E$25:$E$74, 0), MATCH(BT$4, RAB_years, 0)) -> 0 | BU24: =INDEX('RAB input'!$H$25:$XFD$74, MATCH($E24, 'RAB input'!$E$25:$E$74, 0), MATCH(BU$4, RAB_years, 0)) -> 0 | BV24: =INDEX('RAB input'!$H$25:$XFD$74, MATCH($E24, 'RAB input'!$E$25:$E$74, 0), MATCH(BV$4, RAB_years, 0)) -> 0 | BW24: =INDEX('RAB input'!$H$25:$XFD$74, MATCH($E24, 'RAB input'!$E$25:$E$74, 0), MATCH(BW$4, RAB_years, 0)) -> 0 | BX24: =INDEX('RAB input'!$H$25:$XFD$74, MATCH($E24, 'RAB input'!$E$25:$E$74, 0), MATCH(BX$4, RAB_years, 0)) -> 0 | BY24: =INDEX('RAB input'!$H$25:$XFD$74, MATCH($E24, 'RAB input'!$E$25:$E$74, 0), MATCH(BY$4, RAB_years, 0)) -> 0 | BZ24: =INDEX('RAB input'!$H$25:$XFD$74, MATCH($E24, 'RAB input'!$E$25:$E$74, 0), MATCH(BZ$4, RAB_years, 0)) -> 0 | CA24: =INDEX('RAB input'!$H$25:$XFD$74, MATCH($E24, 'RAB input'!$E$25:$E$74, 0), MATCH(CA$4, RAB_years, 0)) -> 0 | CB24: =INDEX('RAB input'!$H$25:$XFD$74, MATCH($E24, 'RAB input'!$E$25:$E$74, 0), MATCH(CB$4, RAB_years, 0)) -> 0 | CC24: =INDEX('RAB input'!$H$25:$XFD$74, MATCH($E24, 'RAB input'!$E$25:$E$74, 0), MATCH(CC$4, RAB_years, 0)) -> 0
D25: 8 | E25: ='RAB input'!E32 -> Overhead High Voltage Lines Rural | G25: 228.3635846 | H25: 20.49060908 | I25: =INDEX('RAB input'!$H$25:$XFD$74, MATCH($E25, 'RAB input'!$E$25:$E$74, 0), MATCH(I$4, RAB_years, 0)) -> 18.91647774 | J25: =INDEX('RAB input'!$H$25:$XFD$74, MATCH($E25, 'RAB input'!$E$25:$E$74, 0), MATCH(J$4, RAB_years, 0)) -> 19.4735371 | K25: =INDEX('RAB input'!$H$25:$XFD$74, MATCH($E25, 'RAB input'!$E$25:$E$74, 0), MATCH(K$4, RAB_years, 0)) -> 18.553 | L25: =INDEX('RAB input'!$H$25:$XFD$74, MATCH($E25, 'RAB input'!$E$25:$E$74, 0), MATCH(L$4, RAB_years, 0)) -> 18.12854134 | M25: =INDEX('RAB input'!$H$25:$XFD$74, MATCH($E25, 'RAB input'!$E$25:$E$74, 0), MATCH(M$4, RAB_years, 0)) -> 31.83184459 | N25: =INDEX('RAB input'!$H$25:$XFD$74, MATCH($E25, 'RAB input'!$E$25:$E$74, 0), MATCH(N$4, RAB_years, 0)) -> 34.2011056 | O25: =INDEX('RAB input'!$H$25:$XFD$74, MATCH($E25, 'RAB input'!$E$25:$E$74, 0), MATCH(O$4, RAB_years, 0)) -> 24.9720872 | P25: =INDEX('RAB input'!$H$25:$XFD$74, MATCH($E25, 'RAB input'!$E$25:$E$74, 0), MATCH(P$4, RAB_years, 0)) -> 27.7284024 | Q25: =INDEX('RAB input'!$H$25:$XFD$74, MATCH($E25, 'RAB input'!$E$25:$E$74, 0), MATCH(Q$4, RAB_years, 0)) -> 31.48169876 | R25: =INDEX('RAB input'!$H$25:$XFD$74, MATCH($E25, 'RAB input'!$E$25:$E$74, 0), MATCH(R$4, RAB_years, 0)) -> 32.83701563 | S25: =INDEX('RAB input'!$H$25:$XFD$74, MATCH($E25, 'RAB input'!$E$25:$E$74, 0), MATCH(S$4, RAB_years, 0)) -> 30.56954479 | T25: =INDEX('RAB input'!$H$25:$XFD$74, MATCH($E25, 'RAB input'!$E$25:$E$74, 0), MATCH(T$4, RAB_years, 0)) -> 35.0255393 | U25: =INDEX('RAB input'!$H$25:$XFD$74, MATCH($E25, 'RAB input'!$E$25:$E$74, 0), MATCH(U$4, RAB_years, 0)) -> 0 | V25: =INDEX('RAB input'!$H$25:$XFD$74, MATCH($E25, 'RAB input'!$E$25:$E$74, 0), MATCH(V$4, RAB_years, 0)) -> 0 | W25: =INDEX('RAB input'!$H$25:$XFD$74, MATCH($E25, 'RAB input'!$E$25:$E$74, 0), MATCH(W$4, RAB_years, 0)) -> 0 | X25: =INDEX('RAB input'!$H$25:$XFD$74, MATCH($E25, 'RAB input'!$E$25:$E$74, 0), MATCH(X$4, RAB_years, 0)) -> 0 | Y25: =INDEX('RAB input'!$H$25:$XFD$74, MATCH($E25, 'RAB input'!$E$25:$E$74, 0), MATCH(Y$4, RAB_years, 0)) -> 0 | Z25: =INDEX('RAB input'!$H$25:$XFD$74, MATCH($E25, 'RAB input'!$E$25:$E$74, 0), MATCH(Z$4, RAB_years, 0)) -> 0 | AA25: =INDEX('RAB input'!$H$25:$XFD$74, MATCH($E25, 'RAB input'!$E$25:$E$74, 0), MATCH(AA$4, RAB_years, 0)) -> 0 | AB25: =INDEX('RAB input'!$H$25:$XFD$74, MATCH($E25, 'RAB input'!$E$25:$E$74, 0), MATCH(AB$4, RAB_years, 0)) -> 0 | AC25: =INDEX('RAB input'!$H$25:$XFD$74, MATCH($E25, 'RAB input'!$E$25:$E$74, 0), MATCH(AC$4, RAB_years, 0)) -> 0 | AD25: =INDEX('RAB input'!$H$25:$XFD$74, MATCH($E25, 'RAB input'!$E$25:$E$74, 0), MATCH(AD$4, RAB_years, 0)) -> 0 | AE25: =INDEX('RAB input'!$H$25:$XFD$74, MATCH($E25, 'RAB input'!$E$25:$E$74, 0), MATCH(AE$4, RAB_years, 0)) -> 0 | AF25: =INDEX('RAB input'!$H$25:$XFD$74, MATCH($E25, 'RAB input'!$E$25:$E$74, 0), MATCH(AF$4, RAB_years, 0)) -> 0 | AG25: =INDEX('RAB input'!$H$25:$XFD$74, MATCH($E25, 'RAB input'!$E$25:$E$74, 0), MATCH(AG$4, RAB_years, 0)) -> 0 | AH25: =INDEX('RAB input'!$H$25:$XFD$74, MATCH($E25, 'RAB input'!$E$25:$E$74, 0), MATCH(AH$4, RAB_years, 0)) -> 0 | AI25: =INDEX('RAB input'!$H$25:$XFD$74, MATCH($E25, 'RAB input'!$E$25:$E$74, 0), MATCH(AI$4, RAB_years, 0)) -> 0 | AJ25: =INDEX('RAB input'!$H$25:$XFD$74, MATCH($E25, 'RAB input'!$E$25:$E$74, 0), MATCH(AJ$4, RAB_years, 0)) -> 0 | AK25: =INDEX('RAB input'!$H$25:$XFD$74, MATCH($E25, 'RAB input'!$E$25:$E$74, 0), MATCH(AK$4, RAB_years, 0)) -> 0 | AL25: =INDEX('RAB input'!$H$25:$XFD$74, MATCH($E25, 'RAB input'!$E$25:$E$74, 0), MATCH(AL$4, RAB_years, 0)) -> 0 | AM25: =INDEX('RAB input'!$H$25:$XFD$74, MATCH($E25, 'RAB input'!$E$25:$E$74, 0), MATCH(AM$4, RAB_years, 0)) -> 0 | AN25: =INDEX('RAB input'!$H$25:$XFD$74, MATCH($E25, 'RAB input'!$E$25:$E$74, 0), MATCH(AN$4, RAB_years, 0)) -> 0 | AO25: =INDEX('RAB input'!$H$25:$XFD$74, MATCH($E25, 'RAB input'!$E$25:$E$74, 0), MATCH(AO$4, RAB_years, 0)) -> 0 | AP25: =INDEX('RAB input'!$H$25:$XFD$74, MATCH($E25, 'RAB input'!$E$25:$E$74, 0), MATCH(AP$4, RAB_years, 0)) -> 0 | AQ25: =INDEX('RAB input'!$H$25:$XFD$74, MATCH($E25, 'RAB input'!$E$25:$E$74, 0), MATCH(AQ$4, RAB_years, 0)) -> 0 | AR25: =INDEX('RAB input'!$H$25:$XFD$74, MATCH($E25, 'RAB input'!$E$25:$E$74, 0), MATCH(AR$4, RAB_years, 0)) -> 0 | AS25: =INDEX('RAB input'!$H$25:$XFD$74, MATCH($E25, 'RAB input'!$E$25:$E$74, 0), MATCH(AS$4, RAB_years, 0)) -> 0 | AT25: =INDEX('RAB input'!$H$25:$XFD$74, MATCH($E25, 'RAB input'!$E$25:$E$74, 0), MATCH(AT$4, RAB_years, 0)) -> 0 | AU25: =INDEX('RAB input'!$H$25:$XFD$74, MATCH($E25, 'RAB input'!$E$25:$E$74, 0), MATCH(AU$4, RAB_years, 0)) -> 0 | AV25: =INDEX('RAB input'!$H$25:$XFD$74, MATCH($E25, 'RAB input'!$E$25:$E$74, 0), MATCH(AV$4, RAB_years, 0)) -> 0 | AW25: =INDEX('RAB input'!$H$25:$XFD$74, MATCH($E25, 'RAB input'!$E$25:$E$74, 0), MATCH(AW$4, RAB_years, 0)) -> 0 | AX25: =INDEX('RAB input'!$H$25:$XFD$74, MATCH($E25, 'RAB input'!$E$25:$E$74, 0), MATCH(AX$4, RAB_years, 0)) -> 0 | AY25: =INDEX('RAB input'!$H$25:$XFD$74, MATCH($E25, 'RAB input'!$E$25:$E$74, 0), MATCH(AY$4, RAB_years, 0)) -> 0 | AZ25: =INDEX('RAB input'!$H$25:$XFD$74, MATCH($E25, 'RAB input'!$E$25:$E$74, 0), MATCH(AZ$4, RAB_years, 0)) -> 0 | BA25: =INDEX('RAB input'!$H$25:$XFD$74, MATCH($E25, 'RAB input'!$E$25:$E$74, 0), MATCH(BA$4, RAB_years, 0)) -> 0 | BB25: =INDEX('RAB input'!$H$25:$XFD$74, MATCH($E25, 'RAB input'!$E$25:$E$74, 0), MATCH(BB$4, RAB_years, 0)) -> 0 | BC25: =INDEX('RAB input'!$H$25:$XFD$74, MATCH($E25, 'RAB input'!$E$25:$E$74, 0), MATCH(BC$4, RAB_years, 0)) -> 0 | BD25: =INDEX('RAB input'!$H$25:$XFD$74, MATCH($E25, 'RAB input'!$E$25:$E$74, 0), MATCH(BD$4, RAB_years, 0)) -> 0 | BE25: =INDEX('RAB input'!$H$25:$XFD$74, MATCH($E25, 'RAB input'!$E$25:$E$74, 0), MATCH(BE$4, RAB_years, 0)) -> 0 | BF25: =INDEX('RAB input'!$H$25:$XFD$74, MATCH($E25, 'RAB input'!$E$25:$E$74, 0), MATCH(BF$4, RAB_years, 0)) -> 0 | BG25: =INDEX('RAB input'!$H$25:$XFD$74, MATCH($E25, 'RAB input'!$E$25:$E$74, 0), MATCH(BG$4, RAB_years, 0)) -> 0 | BH25: =INDEX('RAB input'!$H$25:$XFD$74, MATCH($E25, 'RAB input'!$E$25:$E$74, 0), MATCH(BH$4, RAB_years, 0)) -> 0 | BI25: =INDEX('RAB input'!$H$25:$XFD$74, MATCH($E25, 'RAB input'!$E$25:$E$74, 0), MATCH(BI$4, RAB_years, 0)) -> 0 | BJ25: =INDEX('RAB input'!$H$25:$XFD$74, MATCH($E25, 'RAB input'!$E$25:$E$74, 0), MATCH(BJ$4, RAB_years, 0)) -> 0 | BK25: =INDEX('RAB input'!$H$25:$XFD$74, MATCH($E25, 'RAB input'!$E$25:$E$74, 0), MATCH(BK$4, RAB_years, 0)) -> 0 | BL25: =INDEX('RAB input'!$H$25:$XFD$74, MATCH($E25, 'RAB input'!$E$25:$E$74, 0), MATCH(BL$4, RAB_years, 0)) -> 0 | BM25: =INDEX('RAB input'!$H$25:$XFD$74, MATCH($E25, 'RAB input'!$E$25:$E$74, 0), MATCH(BM$4, RAB_years, 0)) -> 0 | BN25: =INDEX('RAB input'!$H$25:$XFD$74, MATCH($E25, 'RAB input'!$E$25:$E$74, 0), MATCH(BN$4, RAB_years, 0)) -> 0 | BO25: =INDEX('RAB input'!$H$25:$XFD$74, MATCH($E25, 'RAB input'!$E$25:$E$74, 0), MATCH(BO$4, RAB_years, 0)) -> 0 | BP25: =INDEX('RAB input'!$H$25:$XFD$74, MATCH($E25, 'RAB input'!$E$25:$E$74, 0), MATCH(BP$4, RAB_years, 0)) -> 0 | BQ25: =INDEX('RAB input'!$H$25:$XFD$74, MATCH($E25, 'RAB input'!$E$25:$E$74, 0), MATCH(BQ$4, RAB_years, 0)) -> 0 | BR25: =INDEX('RAB input'!$H$25:$XFD$74, MATCH($E25, 'RAB input'!$E$25:$E$74, 0), MATCH(BR$4, RAB_years, 0)) -> 0 | BS25: =INDEX('RAB input'!$H$25:$XFD$74, MATCH($E25, 'RAB input'!$E$25:$E$74, 0), MATCH(BS$4, RAB_years, 0)) -> 0 | BT25: =INDEX('RAB input'!$H$25:$XFD$74, MATCH($E25, 'RAB input'!$E$25:$E$74, 0), MATCH(BT$4, RAB_years, 0)) -> 0 | BU25: =INDEX('RAB input'!$H$25:$XFD$74, MATCH($E25, 'RAB input'!$E$25:$E$74, 0), MATCH(BU$4, RAB_years, 0)) -> 0 | BV25: =INDEX('RAB input'!$H$25:$XFD$74, MATCH($E25, 'RAB input'!$E$25:$E$74, 0), MATCH(BV$4, RAB_years, 0)) -> 0 | BW25: =INDEX('RAB input'!$H$25:$XFD$74, MATCH($E25, 'RAB input'!$E$25:$E$74, 0), MATCH(BW$4, RAB_years, 0)) -> 0 | BX25: =INDEX('RAB input'!$H$25:$XFD$74, MATCH($E25, 'RAB input'!$E$25:$E$74, 0), MATCH(BX$4, RAB_years, 0)) -> 0 | BY25: =INDEX('RAB input'!$H$25:$XFD$74, MATCH($E25, 'RAB input'!$E$25:$E$74, 0), MATCH(BY$4, RAB_years, 0)) -> 0 | BZ25: =INDEX('RAB input'!$H$25:$XFD$74, MATCH($E25, 'RAB input'!$E$25:$E$74, 0), MATCH(BZ$4, RAB_years, 0)) -> 0 | CA25: =INDEX('RAB input'!$H$25:$XFD$74, MATCH($E25, 'RAB input'!$E$25:$E$74, 0), MATCH(CA$4, RAB_years, 0)) -> 0 | CB25: =INDEX('RAB input'!$H$25:$XFD$74, MATCH($E25, 'RAB input'!$E$25:$E$74, 0), MATCH(CB$4, RAB_years, 0)) -> 0 | CC25: =INDEX('RAB input'!$H$25:$XFD$74, MATCH($E25, 'RAB input'!$E$25:$E$74, 0), MATCH(CC$4, RAB_years, 0)) -> 0
D26: 9 | E26: ='RAB input'!E33 -> Voltage Regulators on Distribution Feeders | G26: 1.680956729 | H26: 0.1064888857 | I26: =INDEX('RAB input'!$H$25:$XFD$74, MATCH($E26, 'RAB input'!$E$25:$E$74, 0), MATCH(I$4, RAB_years, 0)) -> 0.8875364062 | J26: =INDEX('RAB input'!$H$25:$XFD$74, MATCH($E26, 'RAB input'!$E$25:$E$74, 0), MATCH(J$4, RAB_years, 0)) -> 0.7344739222 | K26: =INDEX('RAB input'!$H$25:$XFD$74, MATCH($E26, 'RAB input'!$E$25:$E$74, 0), MATCH(K$4, RAB_years, 0)) -> 1.046 | L26: =INDEX('RAB input'!$H$25:$XFD$74, MATCH($E26, 'RAB input'!$E$25:$E$74, 0), MATCH(L$4, RAB_years, 0)) -> 0.5929834398 | M26: =INDEX('RAB input'!$H$25:$XFD$74, MATCH($E26, 'RAB input'!$E$25:$E$74, 0), MATCH(M$4, RAB_years, 0)) -> 0.6811826682 | N26: =INDEX('RAB input'!$H$25:$XFD$74, MATCH($E26, 'RAB input'!$E$25:$E$74, 0), MATCH(N$4, RAB_years, 0)) -> 0.5313716593 | O26: =INDEX('RAB input'!$H$25:$XFD$74, MATCH($E26, 'RAB input'!$E$25:$E$74, 0), MATCH(O$4, RAB_years, 0)) -> 0.2134129127 | P26: =INDEX('RAB input'!$H$25:$XFD$74, MATCH($E26, 'RAB input'!$E$25:$E$74, 0), MATCH(P$4, RAB_years, 0)) -> 0.6466589851 | Q26: =INDEX('RAB input'!$H$25:$XFD$74, MATCH($E26, 'RAB input'!$E$25:$E$74, 0), MATCH(Q$4, RAB_years, 0)) -> 0.9101451467 | R26: =INDEX('RAB input'!$H$25:$XFD$74, MATCH($E26, 'RAB input'!$E$25:$E$74, 0), MATCH(R$4, RAB_years, 0)) -> 0.8508027344 | S26: =INDEX('RAB input'!$H$25:$XFD$74, MATCH($E26, 'RAB input'!$E$25:$E$74, 0), MATCH(S$4, RAB_years, 0)) -> 0.8111397817 | T26: =INDEX('RAB input'!$H$25:$XFD$74, MATCH($E26, 'RAB input'!$E$25:$E$74, 0), MATCH(T$4, RAB_years, 0)) -> 2.50580703 | U26: =INDEX('RAB input'!$H$25:$XFD$74, MATCH($E26, 'RAB input'!$E$25:$E$74, 0), MATCH(U$4, RAB_years, 0)) -> 0 | V26: =INDEX('RAB input'!$H$25:$XFD$74, MATCH($E26, 'RAB input'!$E$25:$E$74, 0), MATCH(V$4, RAB_years, 0)) -> 0 | W26: =INDEX('RAB input'!$H$25:$XFD$74, MATCH($E26, 'RAB input'!$E$25:$E$74, 0), MATCH(W$4, RAB_years, 0)) -> 0 | X26: =INDEX('RAB input'!$H$25:$XFD$74, MATCH($E26, 'RAB input'!$E$25:$E$74, 0), MATCH(X$4, RAB_years, 0)) -> 0 | Y26: =INDEX('RAB input'!$H$25:$XFD$74, MATCH($E26, 'RAB input'!$E$25:$E$74, 0), MATCH(Y$4, RAB_years, 0)) -> 0 | Z26: =INDEX('RAB input'!$H$25:$XFD$74, MATCH($E26, 'RAB input'!$E$25:$E$74, 0), MATCH(Z$4, RAB_years, 0)) -> 0 | AA26: =INDEX('RAB input'!$H$25:$XFD$74, MATCH($E26, 'RAB input'!$E$25:$E$74, 0), MATCH(AA$4, RAB_years, 0)) -> 0 | AB26: =INDEX('RAB input'!$H$25:$XFD$74, MATCH($E26, 'RAB input'!$E$25:$E$74, 0), MATCH(AB$4, RAB_years, 0)) -> 0 | AC26: =INDEX('RAB input'!$H$25:$XFD$74, MATCH($E26, 'RAB input'!$E$25:$E$74, 0), MATCH(AC$4, RAB_years, 0)) -> 0 | AD26: =INDEX('RAB input'!$H$25:$XFD$74, MATCH($E26, 'RAB input'!$E$25:$E$74, 0), MATCH(AD$4, RAB_years, 0)) -> 0 | AE26: =INDEX('RAB input'!$H$25:$XFD$74, MATCH($E26, 'RAB input'!$E$25:$E$74, 0), MATCH(AE$4, RAB_years, 0)) -> 0 | AF26: =INDEX('RAB input'!$H$25:$XFD$74, MATCH($E26, 'RAB input'!$E$25:$E$74, 0), MATCH(AF$4, RAB_years, 0)) -> 0 | AG26: =INDEX('RAB input'!$H$25:$XFD$74, MATCH($E26, 'RAB input'!$E$25:$E$74, 0), MATCH(AG$4, RAB_years, 0)) -> 0 | AH26: =INDEX('RAB input'!$H$25:$XFD$74, MATCH($E26, 'RAB input'!$E$25:$E$74, 0), MATCH(AH$4, RAB_years, 0)) -> 0 | AI26: =INDEX('RAB input'!$H$25:$XFD$74, MATCH($E26, 'RAB input'!$E$25:$E$74, 0), MATCH(AI$4, RAB_years, 0)) -> 0 | AJ26: =INDEX('RAB input'!$H$25:$XFD$74, MATCH($E26, 'RAB input'!$E$25:$E$74, 0), MATCH(AJ$4, RAB_years, 0)) -> 0 | AK26: =INDEX('RAB input'!$H$25:$XFD$74, MATCH($E26, 'RAB input'!$E$25:$E$74, 0), MATCH(AK$4, RAB_years, 0)) -> 0 | AL26: =INDEX('RAB input'!$H$25:$XFD$74, MATCH($E26, 'RAB input'!$E$25:$E$74, 0), MATCH(AL$4, RAB_years, 0)) -> 0 | AM26: =INDEX('RAB input'!$H$25:$XFD$74, MATCH($E26, 'RAB input'!$E$25:$E$74, 0), MATCH(AM$4, RAB_years, 0)) -> 0 | AN26: =INDEX('RAB input'!$H$25:$XFD$74, MATCH($E26, 'RAB input'!$E$25:$E$74, 0), MATCH(AN$4, RAB_years, 0)) -> 0 | AO26: =INDEX('RAB input'!$H$25:$XFD$74, MATCH($E26, 'RAB input'!$E$25:$E$74, 0), MATCH(AO$4, RAB_years, 0)) -> 0 | AP26: =INDEX('RAB input'!$H$25:$XFD$74, MATCH($E26, 'RAB input'!$E$25:$E$74, 0), MATCH(AP$4, RAB_years, 0)) -> 0 | AQ26: =INDEX('RAB input'!$H$25:$XFD$74, MATCH($E26, 'RAB input'!$E$25:$E$74, 0), MATCH(AQ$4, RAB_years, 0)) -> 0 | AR26: =INDEX('RAB input'!$H$25:$XFD$74, MATCH($E26, 'RAB input'!$E$25:$E$74, 0), MATCH(AR$4, RAB_years, 0)) -> 0 | AS26: =INDEX('RAB input'!$H$25:$XFD$74, MATCH($E26, 'RAB input'!$E$25:$E$74, 0), MATCH(AS$4, RAB_years, 0)) -> 0 | AT26: =INDEX('RAB input'!$H$25:$XFD$74, MATCH($E26, 'RAB input'!$E$25:$E$74, 0), MATCH(AT$4, RAB_years, 0)) -> 0 | AU26: =INDEX('RAB input'!$H$25:$XFD$74, MATCH($E26, 'RAB input'!$E$25:$E$74, 0), MATCH(AU$4, RAB_years, 0)) -> 0 | AV26: =INDEX('RAB input'!$H$25:$XFD$74, MATCH($E26, 'RAB input'!$E$25:$E$74, 0), MATCH(AV$4, RAB_years, 0)) -> 0 | AW26: =INDEX('RAB input'!$H$25:$XFD$74, MATCH($E26, 'RAB input'!$E$25:$E$74, 0), MATCH(AW$4, RAB_years, 0)) -> 0 | AX26: =INDEX('RAB input'!$H$25:$XFD$74, MATCH($E26, 'RAB input'!$E$25:$E$74, 0), MATCH(AX$4, RAB_years, 0)) -> 0 | AY26: =INDEX('RAB input'!$H$25:$XFD$74, MATCH($E26, 'RAB input'!$E$25:$E$74, 0), MATCH(AY$4, RAB_years, 0)) -> 0 | AZ26: =INDEX('RAB input'!$H$25:$XFD$74, MATCH($E26, 'RAB input'!$E$25:$E$74, 0), MATCH(AZ$4, RAB_years, 0)) -> 0 | BA26: =INDEX('RAB input'!$H$25:$XFD$74, MATCH($E26, 'RAB input'!$E$25:$E$74, 0), MATCH(BA$4, RAB_years, 0)) -> 0 | BB26: =INDEX('RAB input'!$H$25:$XFD$74, MATCH($E26, 'RAB input'!$E$25:$E$74, 0), MATCH(BB$4, RAB_years, 0)) -> 0 | BC26: =INDEX('RAB input'!$H$25:$XFD$74, MATCH($E26, 'RAB input'!$E$25:$E$74, 0), MATCH(BC$4, RAB_years, 0)) -> 0 | BD26: =INDEX('RAB input'!$H$25:$XFD$74, MATCH($E26, 'RAB input'!$E$25:$E$74, 0), MATCH(BD$4, RAB_years, 0)) -> 0 | BE26: =INDEX('RAB input'!$H$25:$XFD$74, MATCH($E26, 'RAB input'!$E$25:$E$74, 0), MATCH(BE$4, RAB_years, 0)) -> 0 | BF26: =INDEX('RAB input'!$H$25:$XFD$74, MATCH($E26, 'RAB input'!$E$25:$E$74, 0), MATCH(BF$4, RAB_years, 0)) -> 0 | BG26: =INDEX('RAB input'!$H$25:$XFD$74, MATCH($E26, 'RAB input'!$E$25:$E$74, 0), MATCH(BG$4, RAB_years, 0)) -> 0 | BH26: =INDEX('RAB input'!$H$25:$XFD$74, MATCH($E26, 'RAB input'!$E$25:$E$74, 0), MATCH(BH$4, RAB_years, 0)) -> 0 | BI26: =INDEX('RAB input'!$H$25:$XFD$74, MATCH($E26, 'RAB input'!$E$25:$E$74, 0), MATCH(BI$4, RAB_years, 0)) -> 0 | BJ26: =INDEX('RAB input'!$H$25:$XFD$74, MATCH($E26, 'RAB input'!$E$25:$E$74, 0), MATCH(BJ$4, RAB_years, 0)) -> 0 | BK26: =INDEX('RAB input'!$H$25:$XFD$74, MATCH($E26, 'RAB input'!$E$25:$E$74, 0), MATCH(BK$4, RAB_years, 0)) -> 0 | BL26: =INDEX('RAB input'!$H$25:$XFD$74, MATCH($E26, 'RAB input'!$E$25:$E$74, 0), MATCH(BL$4, RAB_years, 0)) -> 0 | BM26: =INDEX('RAB input'!$H$25:$XFD$74, MATCH($E26, 'RAB input'!$E$25:$E$74, 0), MATCH(BM$4, RAB_years, 0)) -> 0 | BN26: =INDEX('RAB input'!$H$25:$XFD$74, MATCH($E26, 'RAB input'!$E$25:$E$74, 0), MATCH(BN$4, RAB_years, 0)) -> 0 | BO26: =INDEX('RAB input'!$H$25:$XFD$74, MATCH($E26, 'RAB input'!$E$25:$E$74, 0), MATCH(BO$4, RAB_years, 0)) -> 0 | BP26: =INDEX('RAB input'!$H$25:$XFD$74, MATCH($E26, 'RAB input'!$E$25:$E$74, 0), MATCH(BP$4, RAB_years, 0)) -> 0 | BQ26: =INDEX('RAB input'!$H$25:$XFD$74, MATCH($E26, 'RAB input'!$E$25:$E$74, 0), MATCH(BQ$4, RAB_years, 0)) -> 0 | BR26: =INDEX('RAB input'!$H$25:$XFD$74, MATCH($E26, 'RAB input'!$E$25:$E$74, 0), MATCH(BR$4, RAB_years, 0)) -> 0 | BS26: =INDEX('RAB input'!$H$25:$XFD$74, MATCH($E26, 'RAB input'!$E$25:$E$74, 0), MATCH(BS$4, RAB_years, 0)) -> 0 | BT26: =INDEX('RAB input'!$H$25:$XFD$74, MATCH($E26, 'RAB input'!$E$25:$E$74, 0), MATCH(BT$4, RAB_years, 0)) -> 0 | BU26: =INDEX('RAB input'!$H$25:$XFD$74, MATCH($E26, 'RAB input'!$E$25:$E$74, 0), MATCH(BU$4, RAB_years, 0)) -> 0 | BV26: =INDEX('RAB input'!$H$25:$XFD$74, MATCH($E26, 'RAB input'!$E$25:$E$74, 0), MATCH(BV$4, RAB_years, 0)) -> 0 | BW26: =INDEX('RAB input'!$H$25:$XFD$74, MATCH($E26, 'RAB input'!$E$25:$E$74, 0), MATCH(BW$4, RAB_years, 0)) -> 0 | BX26: =INDEX('RAB input'!$H$25:$XFD$74, MATCH($E26, 'RAB input'!$E$25:$E$74, 0), MATCH(BX$4, RAB_years, 0)) -> 0 | BY26: =INDEX('RAB input'!$H$25:$XFD$74, MATCH($E26, 'RAB input'!$E$25:$E$74, 0), MATCH(BY$4, RAB_years, 0)) -> 0 | BZ26: =INDEX('RAB input'!$H$25:$XFD$74, MATCH($E26, 'RAB input'!$E$25:$E$74, 0), MATCH(BZ$4, RAB_years, 0)) -> 0 | CA26: =INDEX('RAB input'!$H$25:$XFD$74, MATCH($E26, 'RAB input'!$E$25:$E$74, 0), MATCH(CA$4, RAB_years, 0)) -> 0 | CB26: =INDEX('RAB input'!$H$25:$XFD$74, MATCH($E26, 'RAB input'!$E$25:$E$74, 0), MATCH(CB$4, RAB_years, 0)) -> 0 | CC26: =INDEX('RAB input'!$H$25:$XFD$74, MATCH($E26, 'RAB input'!$E$25:$E$74, 0), MATCH(CC$4, RAB_years, 0)) -> 0
D27: 10 | E27: ='RAB input'!E34 -> Underground High Voltage Lines | G27: 115.8846913 | H27: 11.70814302 | I27: =INDEX('RAB input'!$H$25:$XFD$74, MATCH($E27, 'RAB input'!$E$25:$E$74, 0), MATCH(I$4, RAB_years, 0)) -> 5.88167043 | J27: =INDEX('RAB input'!$H$25:$XFD$74, MATCH($E27, 'RAB input'!$E$25:$E$74, 0), MATCH(J$4, RAB_years, 0)) -> 4.774804733 | K27: =INDEX('RAB input'!$H$25:$XFD$74, MATCH($E27, 'RAB input'!$E$25:$E$74, 0), MATCH(K$4, RAB_years, 0)) -> 6.404 | L27: =INDEX('RAB input'!$H$25:$XFD$74, MATCH($E27, 'RAB input'!$E$25:$E$74, 0), MATCH(L$4, RAB_years, 0)) -> 6.004226744 | M27: =INDEX('RAB input'!$H$25:$XFD$74, MATCH($E27, 'RAB input'!$E$25:$E$74, 0), MATCH(M$4, RAB_years, 0)) -> 6.245550592 | N27: =INDEX('RAB input'!$H$25:$XFD$74, MATCH($E27, 'RAB input'!$E$25:$E$74, 0), MATCH(N$4, RAB_years, 0)) -> 9.740566796 | O27: =INDEX('RAB input'!$H$25:$XFD$74, MATCH($E27, 'RAB input'!$E$25:$E$74, 0), MATCH(O$4, RAB_years, 0)) -> 6.647875628 | P27: =INDEX('RAB input'!$H$25:$XFD$74, MATCH($E27, 'RAB input'!$E$25:$E$74, 0), MATCH(P$4, RAB_years, 0)) -> 7.437582315 | Q27: =INDEX('RAB input'!$H$25:$XFD$74, MATCH($E27, 'RAB input'!$E$25:$E$74, 0), MATCH(Q$4, RAB_years, 0)) -> 9.398469577 | R27: =INDEX('RAB input'!$H$25:$XFD$74, MATCH($E27, 'RAB input'!$E$25:$E$74, 0), MATCH(R$4, RAB_years, 0)) -> 10.64672867 | S27: =INDEX('RAB input'!$H$25:$XFD$74, MATCH($E27, 'RAB input'!$E$25:$E$74, 0), MATCH(S$4, RAB_years, 0)) -> 12.79562438 | T27: =INDEX('RAB input'!$H$25:$XFD$74, MATCH($E27, 'RAB input'!$E$25:$E$74, 0), MATCH(T$4, RAB_years, 0)) -> 9.372045332 | U27: =INDEX('RAB input'!$H$25:$XFD$74, MATCH($E27, 'RAB input'!$E$25:$E$74, 0), MATCH(U$4, RAB_years, 0)) -> 0 | V27: =INDEX('RAB input'!$H$25:$XFD$74, MATCH($E27, 'RAB input'!$E$25:$E$74, 0), MATCH(V$4, RAB_years, 0)) -> 0 | W27: =INDEX('RAB input'!$H$25:$XFD$74, MATCH($E27, 'RAB input'!$E$25:$E$74, 0), MATCH(W$4, RAB_years, 0)) -> 0 | X27: =INDEX('RAB input'!$H$25:$XFD$74, MATCH($E27, 'RAB input'!$E$25:$E$74, 0), MATCH(X$4, RAB_years, 0)) -> 0 | Y27: =INDEX('RAB input'!$H$25:$XFD$74, MATCH($E27, 'RAB input'!$E$25:$E$74, 0), MATCH(Y$4, RAB_years, 0)) -> 0 | Z27: =INDEX('RAB input'!$H$25:$XFD$74, MATCH($E27, 'RAB input'!$E$25:$E$74, 0), MATCH(Z$4, RAB_years, 0)) -> 0 | AA27: =INDEX('RAB input'!$H$25:$XFD$74, MATCH($E27, 'RAB input'!$E$25:$E$74, 0), MATCH(AA$4, RAB_years, 0)) -> 0 | AB27: =INDEX('RAB input'!$H$25:$XFD$74, MATCH($E27, 'RAB input'!$E$25:$E$74, 0), MATCH(AB$4, RAB_years, 0)) -> 0 | AC27: =INDEX('RAB input'!$H$25:$XFD$74, MATCH($E27, 'RAB input'!$E$25:$E$74, 0), MATCH(AC$4, RAB_years, 0)) -> 0 | AD27: =INDEX('RAB input'!$H$25:$XFD$74, MATCH($E27, 'RAB input'!$E$25:$E$74, 0), MATCH(AD$4, RAB_years, 0)) -> 0 | AE27: =INDEX('RAB input'!$H$25:$XFD$74, MATCH($E27, 'RAB input'!$E$25:$E$74, 0), MATCH(AE$4, RAB_years, 0)) -> 0 | AF27: =INDEX('RAB input'!$H$25:$XFD$74, MATCH($E27, 'RAB input'!$E$25:$E$74, 0), MATCH(AF$4, RAB_years, 0)) -> 0 | AG27: =INDEX('RAB input'!$H$25:$XFD$74, MATCH($E27, 'RAB input'!$E$25:$E$74, 0), MATCH(AG$4, RAB_years, 0)) -> 0 | AH27: =INDEX('RAB input'!$H$25:$XFD$74, MATCH($E27, 'RAB input'!$E$25:$E$74, 0), MATCH(AH$4, RAB_years, 0)) -> 0 | AI27: =INDEX('RAB input'!$H$25:$XFD$74, MATCH($E27, 'RAB input'!$E$25:$E$74, 0), MATCH(AI$4, RAB_years, 0)) -> 0 | AJ27: =INDEX('RAB input'!$H$25:$XFD$74, MATCH($E27, 'RAB input'!$E$25:$E$74, 0), MATCH(AJ$4, RAB_years, 0)) -> 0 | AK27: =INDEX('RAB input'!$H$25:$XFD$74, MATCH($E27, 'RAB input'!$E$25:$E$74, 0), MATCH(AK$4, RAB_years, 0)) -> 0 | AL27: =INDEX('RAB input'!$H$25:$XFD$74, MATCH($E27, 'RAB input'!$E$25:$E$74, 0), MATCH(AL$4, RAB_years, 0)) -> 0 | AM27: =INDEX('RAB input'!$H$25:$XFD$74, MATCH($E27, 'RAB input'!$E$25:$E$74, 0), MATCH(AM$4, RAB_years, 0)) -> 0 | AN27: =INDEX('RAB input'!$H$25:$XFD$74, MATCH($E27, 'RAB input'!$E$25:$E$74, 0), MATCH(AN$4, RAB_years, 0)) -> 0 | AO27: =INDEX('RAB input'!$H$25:$XFD$74, MATCH($E27, 'RAB input'!$E$25:$E$74, 0), MATCH(AO$4, RAB_years, 0)) -> 0 | AP27: =INDEX('RAB input'!$H$25:$XFD$74, MATCH($E27, 'RAB input'!$E$25:$E$74, 0), MATCH(AP$4, RAB_years, 0)) -> 0 | AQ27: =INDEX('RAB input'!$H$25:$XFD$74, MATCH($E27, 'RAB input'!$E$25:$E$74, 0), MATCH(AQ$4, RAB_years, 0)) -> 0 | AR27: =INDEX('RAB input'!$H$25:$XFD$74, MATCH($E27, 'RAB input'!$E$25:$E$74, 0), MATCH(AR$4, RAB_years, 0)) -> 0 | AS27: =INDEX('RAB input'!$H$25:$XFD$74, MATCH($E27, 'RAB input'!$E$25:$E$74, 0), MATCH(AS$4, RAB_years, 0)) -> 0 | AT27: =INDEX('RAB input'!$H$25:$XFD$74, MATCH($E27, 'RAB input'!$E$25:$E$74, 0), MATCH(AT$4, RAB_years, 0)) -> 0 | AU27: =INDEX('RAB input'!$H$25:$XFD$74, MATCH($E27, 'RAB input'!$E$25:$E$74, 0), MATCH(AU$4, RAB_years, 0)) -> 0 | AV27: =INDEX('RAB input'!$H$25:$XFD$74, MATCH($E27, 'RAB input'!$E$25:$E$74, 0), MATCH(AV$4, RAB_years, 0)) -> 0 | AW27: =INDEX('RAB input'!$H$25:$XFD$74, MATCH($E27, 'RAB input'!$E$25:$E$74, 0), MATCH(AW$4, RAB_years, 0)) -> 0 | AX27: =INDEX('RAB input'!$H$25:$XFD$74, MATCH($E27, 'RAB input'!$E$25:$E$74, 0), MATCH(AX$4, RAB_years, 0)) -> 0 | AY27: =INDEX('RAB input'!$H$25:$XFD$74, MATCH($E27, 'RAB input'!$E$25:$E$74, 0), MATCH(AY$4, RAB_years, 0)) -> 0 | AZ27: =INDEX('RAB input'!$H$25:$XFD$74, MATCH($E27, 'RAB input'!$E$25:$E$74, 0), MATCH(AZ$4, RAB_years, 0)) -> 0 | BA27: =INDEX('RAB input'!$H$25:$XFD$74, MATCH($E27, 'RAB input'!$E$25:$E$74, 0), MATCH(BA$4, RAB_years, 0)) -> 0 | BB27: =INDEX('RAB input'!$H$25:$XFD$74, MATCH($E27, 'RAB input'!$E$25:$E$74, 0), MATCH(BB$4, RAB_years, 0)) -> 0 | BC27: =INDEX('RAB input'!$H$25:$XFD$74, MATCH($E27, 'RAB input'!$E$25:$E$74, 0), MATCH(BC$4, RAB_years, 0)) -> 0 | BD27: =INDEX('RAB input'!$H$25:$XFD$74, MATCH($E27, 'RAB input'!$E$25:$E$74, 0), MATCH(BD$4, RAB_years, 0)) -> 0 | BE27: =INDEX('RAB input'!$H$25:$XFD$74, MATCH($E27, 'RAB input'!$E$25:$E$74, 0), MATCH(BE$4, RAB_years, 0)) -> 0 | BF27: =INDEX('RAB input'!$H$25:$XFD$74, MATCH($E27, 'RAB input'!$E$25:$E$74, 0), MATCH(BF$4, RAB_years, 0)) -> 0 | BG27: =INDEX('RAB input'!$H$25:$XFD$74, MATCH($E27, 'RAB input'!$E$25:$E$74, 0), MATCH(BG$4, RAB_years, 0)) -> 0 | BH27: =INDEX('RAB input'!$H$25:$XFD$74, MATCH($E27, 'RAB input'!$E$25:$E$74, 0), MATCH(BH$4, RAB_years, 0)) -> 0 | BI27: =INDEX('RAB input'!$H$25:$XFD$74, MATCH($E27, 'RAB input'!$E$25:$E$74, 0), MATCH(BI$4, RAB_years, 0)) -> 0 | BJ27: =INDEX('RAB input'!$H$25:$XFD$74, MATCH($E27, 'RAB input'!$E$25:$E$74, 0), MATCH(BJ$4, RAB_years, 0)) -> 0 | BK27: =INDEX('RAB input'!$H$25:$XFD$74, MATCH($E27, 'RAB input'!$E$25:$E$74, 0), MATCH(BK$4, RAB_years, 0)) -> 0 | BL27: =INDEX('RAB input'!$H$25:$XFD$74, MATCH($E27, 'RAB input'!$E$25:$E$74, 0), MATCH(BL$4, RAB_years, 0)) -> 0 | BM27: =INDEX('RAB input'!$H$25:$XFD$74, MATCH($E27, 'RAB input'!$E$25:$E$74, 0), MATCH(BM$4, RAB_years, 0)) -> 0 | BN27: =INDEX('RAB input'!$H$25:$XFD$74, MATCH($E27, 'RAB input'!$E$25:$E$74, 0), MATCH(BN$4, RAB_years, 0)) -> 0 | BO27: =INDEX('RAB input'!$H$25:$XFD$74, MATCH($E27, 'RAB input'!$E$25:$E$74, 0), MATCH(BO$4, RAB_years, 0)) -> 0 | BP27: =INDEX('RAB input'!$H$25:$XFD$74, MATCH($E27, 'RAB input'!$E$25:$E$74, 0), MATCH(BP$4, RAB_years, 0)) -> 0 | BQ27: =INDEX('RAB input'!$H$25:$XFD$74, MATCH($E27, 'RAB input'!$E$25:$E$74, 0), MATCH(BQ$4, RAB_years, 0)) -> 0 | BR27: =INDEX('RAB input'!$H$25:$XFD$74, MATCH($E27, 'RAB input'!$E$25:$E$74, 0), MATCH(BR$4, RAB_years, 0)) -> 0 | BS27: =INDEX('RAB input'!$H$25:$XFD$74, MATCH($E27, 'RAB input'!$E$25:$E$74, 0), MATCH(BS$4, RAB_years, 0)) -> 0 | BT27: =INDEX('RAB input'!$H$25:$XFD$74, MATCH($E27, 'RAB input'!$E$25:$E$74, 0), MATCH(BT$4, RAB_years, 0)) -> 0 | BU27: =INDEX('RAB input'!$H$25:$XFD$74, MATCH($E27, 'RAB input'!$E$25:$E$74, 0), MATCH(BU$4, RAB_years, 0)) -> 0 | BV27: =INDEX('RAB input'!$H$25:$XFD$74, MATCH($E27, 'RAB input'!$E$25:$E$74, 0), MATCH(BV$4, RAB_years, 0)) -> 0 | BW27: =INDEX('RAB input'!$H$25:$XFD$74, MATCH($E27, 'RAB input'!$E$25:$E$74, 0), MATCH(BW$4, RAB_years, 0)) -> 0 | BX27: =INDEX('RAB input'!$H$25:$XFD$74, MATCH($E27, 'RAB input'!$E$25:$E$74, 0), MATCH(BX$4, RAB_years, 0)) -> 0 | BY27: =INDEX('RAB input'!$H$25:$XFD$74, MATCH($E27, 'RAB input'!$E$25:$E$74, 0), MATCH(BY$4, RAB_years, 0)) -> 0 | BZ27: =INDEX('RAB input'!$H$25:$XFD$74, MATCH($E27, 'RAB input'!$E$25:$E$74, 0), MATCH(BZ$4, RAB_years, 0)) -> 0 | CA27: =INDEX('RAB input'!$H$25:$XFD$74, MATCH($E27, 'RAB input'!$E$25:$E$74, 0), MATCH(CA$4, RAB_years, 0)) -> 0 | CB27: =INDEX('RAB input'!$H$25:$XFD$74, MATCH($E27, 'RAB input'!$E$25:$E$74, 0), MATCH(CB$4, RAB_years, 0)) -> 0 | CC27: =INDEX('RAB input'!$H$25:$XFD$74, MATCH($E27, 'RAB input'!$E$25:$E$74, 0), MATCH(CC$4, RAB_years, 0)) -> 0
D28: 11 | E28: ='RAB input'!E35 -> Underground High Voltage Lines SWER | G28: 0 | H28: 0 | I28: =INDEX('RAB input'!$H$25:$XFD$74, MATCH($E28, 'RAB input'!$E$25:$E$74, 0), MATCH(I$4, RAB_years, 0)) -> 0.06086711875 | J28: =INDEX('RAB input'!$H$25:$XFD$74, MATCH($E28, 'RAB input'!$E$25:$E$74, 0), MATCH(J$4, RAB_years, 0)) -> 0.0837821682 | K28: =INDEX('RAB input'!$H$25:$XFD$74, MATCH($E28, 'RAB input'!$E$25:$E$74, 0), MATCH(K$4, RAB_years, 0)) -> 0.031 | L28: =INDEX('RAB input'!$H$25:$XFD$74, MATCH($E28, 'RAB input'!$E$25:$E$74, 0), MATCH(L$4, RAB_years, 0)) -> 0.0365696226 | M28: =INDEX('RAB input'!$H$25:$XFD$74, MATCH($E28, 'RAB input'!$E$25:$E$74, 0), MATCH(M$4, RAB_years, 0)) -> 0 | N28: =INDEX('RAB input'!$H$25:$XFD$74, MATCH($E28, 'RAB input'!$E$25:$E$74, 0), MATCH(N$4, RAB_years, 0)) -> 1.063101715 | O28: =INDEX('RAB input'!$H$25:$XFD$74, MATCH($E28, 'RAB input'!$E$25:$E$74, 0), MATCH(O$4, RAB_years, 0)) -> 0.01660860701 | P28: =INDEX('RAB input'!$H$25:$XFD$74, MATCH($E28, 'RAB input'!$E$25:$E$74, 0), MATCH(P$4, RAB_years, 0)) -> 0 | Q28: =INDEX('RAB input'!$H$25:$XFD$74, MATCH($E28, 'RAB input'!$E$25:$E$74, 0), MATCH(Q$4, RAB_years, 0)) -> 0 | R28: =INDEX('RAB input'!$H$25:$XFD$74, MATCH($E28, 'RAB input'!$E$25:$E$74, 0), MATCH(R$4, RAB_years, 0)) -> 0 | S28: =INDEX('RAB input'!$H$25:$XFD$74, MATCH($E28, 'RAB input'!$E$25:$E$74, 0), MATCH(S$4, RAB_years, 0)) -> 0 | T28: =INDEX('RAB input'!$H$25:$XFD$74, MATCH($E28, 'RAB input'!$E$25:$E$74, 0), MATCH(T$4, RAB_years, 0)) -> 0 | U28: =INDEX('RAB input'!$H$25:$XFD$74, MATCH($E28, 'RAB input'!$E$25:$E$74, 0), MATCH(U$4, RAB_years, 0)) -> 0 | V28: =INDEX('RAB input'!$H$25:$XFD$74, MATCH($E28, 'RAB input'!$E$25:$E$74, 0), MATCH(V$4, RAB_years, 0)) -> 0 | W28: =INDEX('RAB input'!$H$25:$XFD$74, MATCH($E28, 'RAB input'!$E$25:$E$74, 0), MATCH(W$4, RAB_years, 0)) -> 0 | X28: =INDEX('RAB input'!$H$25:$XFD$74, MATCH($E28, 'RAB input'!$E$25:$E$74, 0), MATCH(X$4, RAB_years, 0)) -> 0 | Y28: =INDEX('RAB input'!$H$25:$XFD$74, MATCH($E28, 'RAB input'!$E$25:$E$74, 0), MATCH(Y$4, RAB_years, 0)) -> 0 | Z28: =INDEX('RAB input'!$H$25:$XFD$74, MATCH($E28, 'RAB input'!$E$25:$E$74, 0), MATCH(Z$4, RAB_years, 0)) -> 0 | AA28: =INDEX('RAB input'!$H$25:$XFD$74, MATCH($E28, 'RAB input'!$E$25:$E$74, 0), MATCH(AA$4, RAB_years, 0)) -> 0 | AB28: =INDEX('RAB input'!$H$25:$XFD$74, MATCH($E28, 'RAB input'!$E$25:$E$74, 0), MATCH(AB$4, RAB_years, 0)) -> 0 | AC28: =INDEX('RAB input'!$H$25:$XFD$74, MATCH($E28, 'RAB input'!$E$25:$E$74, 0), MATCH(AC$4, RAB_years, 0)) -> 0 | AD28: =INDEX('RAB input'!$H$25:$XFD$74, MATCH($E28, 'RAB input'!$E$25:$E$74, 0), MATCH(AD$4, RAB_years, 0)) -> 0 | AE28: =INDEX('RAB input'!$H$25:$XFD$74, MATCH($E28, 'RAB input'!$E$25:$E$74, 0), MATCH(AE$4, RAB_years, 0)) -> 0 | AF28: =INDEX('RAB input'!$H$25:$XFD$74, MATCH($E28, 'RAB input'!$E$25:$E$74, 0), MATCH(AF$4, RAB_years, 0)) -> 0 | AG28: =INDEX('RAB input'!$H$25:$XFD$74, MATCH($E28, 'RAB input'!$E$25:$E$74, 0), MATCH(AG$4, RAB_years, 0)) -> 0 | AH28: =INDEX('RAB input'!$H$25:$XFD$74, MATCH($E28, 'RAB input'!$E$25:$E$74, 0), MATCH(AH$4, RAB_years, 0)) -> 0 | AI28: =INDEX('RAB input'!$H$25:$XFD$74, MATCH($E28, 'RAB input'!$E$25:$E$74, 0), MATCH(AI$4, RAB_years, 0)) -> 0 | AJ28: =INDEX('RAB input'!$H$25:$XFD$74, MATCH($E28, 'RAB input'!$E$25:$E$74, 0), MATCH(AJ$4, RAB_years, 0)) -> 0 | AK28: =INDEX('RAB input'!$H$25:$XFD$74, MATCH($E28, 'RAB input'!$E$25:$E$74, 0), MATCH(AK$4, RAB_years, 0)) -> 0 | AL28: =INDEX('RAB input'!$H$25:$XFD$74, MATCH($E28, 'RAB input'!$E$25:$E$74, 0), MATCH(AL$4, RAB_years, 0)) -> 0 | AM28: =INDEX('RAB input'!$H$25:$XFD$74, MATCH($E28, 'RAB input'!$E$25:$E$74, 0), MATCH(AM$4, RAB_years, 0)) -> 0 | AN28: =INDEX('RAB input'!$H$25:$XFD$74, MATCH($E28, 'RAB input'!$E$25:$E$74, 0), MATCH(AN$4, RAB_years, 0)) -> 0 | AO28: =INDEX('RAB input'!$H$25:$XFD$74, MATCH($E28, 'RAB input'!$E$25:$E$74, 0), MATCH(AO$4, RAB_years, 0)) -> 0 | AP28: =INDEX('RAB input'!$H$25:$XFD$74, MATCH($E28, 'RAB input'!$E$25:$E$74, 0), MATCH(AP$4, RAB_years, 0)) -> 0 | AQ28: =INDEX('RAB input'!$H$25:$XFD$74, MATCH($E28, 'RAB input'!$E$25:$E$74, 0), MATCH(AQ$4, RAB_years, 0)) -> 0 | AR28: =INDEX('RAB input'!$H$25:$XFD$74, MATCH($E28, 'RAB input'!$E$25:$E$74, 0), MATCH(AR$4, RAB_years, 0)) -> 0 | AS28: =INDEX('RAB input'!$H$25:$XFD$74, MATCH($E28, 'RAB input'!$E$25:$E$74, 0), MATCH(AS$4, RAB_years, 0)) -> 0 | AT28: =INDEX('RAB input'!$H$25:$XFD$74, MATCH($E28, 'RAB input'!$E$25:$E$74, 0), MATCH(AT$4, RAB_years, 0)) -> 0 | AU28: =INDEX('RAB input'!$H$25:$XFD$74, MATCH($E28, 'RAB input'!$E$25:$E$74, 0), MATCH(AU$4, RAB_years, 0)) -> 0 | AV28: =INDEX('RAB input'!$H$25:$XFD$74, MATCH($E28, 'RAB input'!$E$25:$E$74, 0), MATCH(AV$4, RAB_years, 0)) -> 0 | AW28: =INDEX('RAB input'!$H$25:$XFD$74, MATCH($E28, 'RAB input'!$E$25:$E$74, 0), MATCH(AW$4, RAB_years, 0)) -> 0 | AX28: =INDEX('RAB input'!$H$25:$XFD$74, MATCH($E28, 'RAB input'!$E$25:$E$74, 0), MATCH(AX$4, RAB_years, 0)) -> 0 | AY28: =INDEX('RAB input'!$H$25:$XFD$74, MATCH($E28, 'RAB input'!$E$25:$E$74, 0), MATCH(AY$4, RAB_years, 0)) -> 0 | AZ28: =INDEX('RAB input'!$H$25:$XFD$74, MATCH($E28, 'RAB input'!$E$25:$E$74, 0), MATCH(AZ$4, RAB_years, 0)) -> 0 | BA28: =INDEX('RAB input'!$H$25:$XFD$74, MATCH($E28, 'RAB input'!$E$25:$E$74, 0), MATCH(BA$4, RAB_years, 0)) -> 0 | BB28: =INDEX('RAB input'!$H$25:$XFD$74, MATCH($E28, 'RAB input'!$E$25:$E$74, 0), MATCH(BB$4, RAB_years, 0)) -> 0 | BC28: =INDEX('RAB input'!$H$25:$XFD$74, MATCH($E28, 'RAB input'!$E$25:$E$74, 0), MATCH(BC$4, RAB_years, 0)) -> 0 | BD28: =INDEX('RAB input'!$H$25:$XFD$74, MATCH($E28, 'RAB input'!$E$25:$E$74, 0), MATCH(BD$4, RAB_years, 0)) -> 0 | BE28: =INDEX('RAB input'!$H$25:$XFD$74, MATCH($E28, 'RAB input'!$E$25:$E$74, 0), MATCH(BE$4, RAB_years, 0)) -> 0 | BF28: =INDEX('RAB input'!$H$25:$XFD$74, MATCH($E28, 'RAB input'!$E$25:$E$74, 0), MATCH(BF$4, RAB_years, 0)) -> 0 | BG28: =INDEX('RAB input'!$H$25:$XFD$74, MATCH($E28, 'RAB input'!$E$25:$E$74, 0), MATCH(BG$4, RAB_years, 0)) -> 0 | BH28: =INDEX('RAB input'!$H$25:$XFD$74, MATCH($E28, 'RAB input'!$E$25:$E$74, 0), MATCH(BH$4, RAB_years, 0)) -> 0 | BI28: =INDEX('RAB input'!$H$25:$XFD$74, MATCH($E28, 'RAB input'!$E$25:$E$74, 0), MATCH(BI$4, RAB_years, 0)) -> 0 | BJ28: =INDEX('RAB input'!$H$25:$XFD$74, MATCH($E28, 'RAB input'!$E$25:$E$74, 0), MATCH(BJ$4, RAB_years, 0)) -> 0 | BK28: =INDEX('RAB input'!$H$25:$XFD$74, MATCH($E28, 'RAB input'!$E$25:$E$74, 0), MATCH(BK$4, RAB_years, 0)) -> 0 | BL28: =INDEX('RAB input'!$H$25:$XFD$74, MATCH($E28, 'RAB input'!$E$25:$E$74, 0), MATCH(BL$4, RAB_years, 0)) -> 0 | BM28: =INDEX('RAB input'!$H$25:$XFD$74, MATCH($E28, 'RAB input'!$E$25:$E$74, 0), MATCH(BM$4, RAB_years, 0)) -> 0 | BN28: =INDEX('RAB input'!$H$25:$XFD$74, MATCH($E28, 'RAB input'!$E$25:$E$74, 0), MATCH(BN$4, RAB_years, 0)) -> 0 | BO28: =INDEX('RAB input'!$H$25:$XFD$74, MATCH($E28, 'RAB input'!$E$25:$E$74, 0), MATCH(BO$4, RAB_years, 0)) -> 0 | BP28: =INDEX('RAB input'!$H$25:$XFD$74, MATCH($E28, 'RAB input'!$E$25:$E$74, 0), MATCH(BP$4, RAB_years, 0)) -> 0 | BQ28: =INDEX('RAB input'!$H$25:$XFD$74, MATCH($E28, 'RAB input'!$E$25:$E$74, 0), MATCH(BQ$4, RAB_years, 0)) -> 0 | BR28: =INDEX('RAB input'!$H$25:$XFD$74, MATCH($E28, 'RAB input'!$E$25:$E$74, 0), MATCH(BR$4, RAB_years, 0)) -> 0 | BS28: =INDEX('RAB input'!$H$25:$XFD$74, MATCH($E28, 'RAB input'!$E$25:$E$74, 0), MATCH(BS$4, RAB_years, 0)) -> 0 | BT28: =INDEX('RAB input'!$H$25:$XFD$74, MATCH($E28, 'RAB input'!$E$25:$E$74, 0), MATCH(BT$4, RAB_years, 0)) -> 0 | BU28: =INDEX('RAB input'!$H$25:$XFD$74, MATCH($E28, 'RAB input'!$E$25:$E$74, 0), MATCH(BU$4, RAB_years, 0)) -> 0 | BV28: =INDEX('RAB input'!$H$25:$XFD$74, MATCH($E28, 'RAB input'!$E$25:$E$74, 0), MATCH(BV$4, RAB_years, 0)) -> 0 | BW28: =INDEX('RAB input'!$H$25:$XFD$74, MATCH($E28, 'RAB input'!$E$25:$E$74, 0), MATCH(BW$4, RAB_years, 0)) -> 0 | BX28: =INDEX('RAB input'!$H$25:$XFD$74, MATCH($E28, 'RAB input'!$E$25:$E$74, 0), MATCH(BX$4, RAB_years, 0)) -> 0 | BY28: =INDEX('RAB input'!$H$25:$XFD$74, MATCH($E28, 'RAB input'!$E$25:$E$74, 0), MATCH(BY$4, RAB_years, 0)) -> 0 | BZ28: =INDEX('RAB input'!$H$25:$XFD$74, MATCH($E28, 'RAB input'!$E$25:$E$74, 0), MATCH(BZ$4, RAB_years, 0)) -> 0 | CA28: =INDEX('RAB input'!$H$25:$XFD$74, MATCH($E28, 'RAB input'!$E$25:$E$74, 0), MATCH(CA$4, RAB_years, 0)) -> 0 | CB28: =INDEX('RAB input'!$H$25:$XFD$74, MATCH($E28, 'RAB input'!$E$25:$E$74, 0), MATCH(CB$4, RAB_years, 0)) -> 0 | CC28: =INDEX('RAB input'!$H$25:$XFD$74, MATCH($E28, 'RAB input'!$E$25:$E$74, 0), MATCH(CC$4, RAB_years, 0)) -> 0
D29: 12 | E29: ='RAB input'!E36 -> Distribution Substations HV (Pole) | G29: 1.064302538 | H29: 0.06406046319 | I29: =INDEX('RAB input'!$H$25:$XFD$74, MATCH($E29, 'RAB input'!$E$25:$E$74, 0), MATCH(I$4, RAB_years, 0)) -> 0.1064459427 | J29: =INDEX('RAB input'!$H$25:$XFD$74, MATCH($E29, 'RAB input'!$E$25:$E$74, 0), MATCH(J$4, RAB_years, 0)) -> 0.203208238 | K29: =INDEX('RAB input'!$H$25:$XFD$74, MATCH($E29, 'RAB input'!$E$25:$E$74, 0), MATCH(K$4, RAB_years, 0)) -> 0.184 | L29: =INDEX('RAB input'!$H$25:$XFD$74, MATCH($E29, 'RAB input'!$E$25:$E$74, 0), MATCH(L$4, RAB_years, 0)) -> 0.1156003692 | M29: =INDEX('RAB input'!$H$25:$XFD$74, MATCH($E29, 'RAB input'!$E$25:$E$74, 0), MATCH(M$4, RAB_years, 0)) -> 0.0894306986 | N29: =INDEX('RAB input'!$H$25:$XFD$74, MATCH($E29, 'RAB input'!$E$25:$E$74, 0), MATCH(N$4, RAB_years, 0)) -> 0.08381112917 | O29: =INDEX('RAB input'!$H$25:$XFD$74, MATCH($E29, 'RAB input'!$E$25:$E$74, 0), MATCH(O$4, RAB_years, 0)) -> 0.06096655647 | P29: =INDEX('RAB input'!$H$25:$XFD$74, MATCH($E29, 'RAB input'!$E$25:$E$74, 0), MATCH(P$4, RAB_years, 0)) -> 0.05618618352 | Q29: =INDEX('RAB input'!$H$25:$XFD$74, MATCH($E29, 'RAB input'!$E$25:$E$74, 0), MATCH(Q$4, RAB_years, 0)) -> 0.07295783289 | R29: =INDEX('RAB input'!$H$25:$XFD$74, MATCH($E29, 'RAB input'!$E$25:$E$74, 0), MATCH(R$4, RAB_years, 0)) -> 0.07476347767 | S29: =INDEX('RAB input'!$H$25:$XFD$74, MATCH($E29, 'RAB input'!$E$25:$E$74, 0), MATCH(S$4, RAB_years, 0)) -> 0.06652095542 | T29: =INDEX('RAB input'!$H$25:$XFD$74, MATCH($E29, 'RAB input'!$E$25:$E$74, 0), MATCH(T$4, RAB_years, 0)) -> 0.0601894062 | U29: =INDEX('RAB input'!$H$25:$XFD$74, MATCH($E29, 'RAB input'!$E$25:$E$74, 0), MATCH(U$4, RAB_years, 0)) -> 0 | V29: =INDEX('RAB input'!$H$25:$XFD$74, MATCH($E29, 'RAB input'!$E$25:$E$74, 0), MATCH(V$4, RAB_years, 0)) -> 0 | W29: =INDEX('RAB input'!$H$25:$XFD$74, MATCH($E29, 'RAB input'!$E$25:$E$74, 0), MATCH(W$4, RAB_years, 0)) -> 0 | X29: =INDEX('RAB input'!$H$25:$XFD$74, MATCH($E29, 'RAB input'!$E$25:$E$74, 0), MATCH(X$4, RAB_years, 0)) -> 0 | Y29: =INDEX('RAB input'!$H$25:$XFD$74, MATCH($E29, 'RAB input'!$E$25:$E$74, 0), MATCH(Y$4, RAB_years, 0)) -> 0 | Z29: =INDEX('RAB input'!$H$25:$XFD$74, MATCH($E29, 'RAB input'!$E$25:$E$74, 0), MATCH(Z$4, RAB_years, 0)) -> 0 | AA29: =INDEX('RAB input'!$H$25:$XFD$74, MATCH($E29, 'RAB input'!$E$25:$E$74, 0), MATCH(AA$4, RAB_years, 0)) -> 0 | AB29: =INDEX('RAB input'!$H$25:$XFD$74, MATCH($E29, 'RAB input'!$E$25:$E$74, 0), MATCH(AB$4, RAB_years, 0)) -> 0 | AC29: =INDEX('RAB input'!$H$25:$XFD$74, MATCH($E29, 'RAB input'!$E$25:$E$74, 0), MATCH(AC$4, RAB_years, 0)) -> 0 | AD29: =INDEX('RAB input'!$H$25:$XFD$74, MATCH($E29, 'RAB input'!$E$25:$E$74, 0), MATCH(AD$4, RAB_years, 0)) -> 0 | AE29: =INDEX('RAB input'!$H$25:$XFD$74, MATCH($E29, 'RAB input'!$E$25:$E$74, 0), MATCH(AE$4, RAB_years, 0)) -> 0 | AF29: =INDEX('RAB input'!$H$25:$XFD$74, MATCH($E29, 'RAB input'!$E$25:$E$74, 0), MATCH(AF$4, RAB_years, 0)) -> 0 | AG29: =INDEX('RAB input'!$H$25:$XFD$74, MATCH($E29, 'RAB input'!$E$25:$E$74, 0), MATCH(AG$4, RAB_years, 0)) -> 0 | AH29: =INDEX('RAB input'!$H$25:$XFD$74, MATCH($E29, 'RAB input'!$E$25:$E$74, 0), MATCH(AH$4, RAB_years, 0)) -> 0 | AI29: =INDEX('RAB input'!$H$25:$XFD$74, MATCH($E29, 'RAB input'!$E$25:$E$74, 0), MATCH(AI$4, RAB_years, 0)) -> 0 | AJ29: =INDEX('RAB input'!$H$25:$XFD$74, MATCH($E29, 'RAB input'!$E$25:$E$74, 0), MATCH(AJ$4, RAB_years, 0)) -> 0 | AK29: =INDEX('RAB input'!$H$25:$XFD$74, MATCH($E29, 'RAB input'!$E$25:$E$74, 0), MATCH(AK$4, RAB_years, 0)) -> 0 | AL29: =INDEX('RAB input'!$H$25:$XFD$74, MATCH($E29, 'RAB input'!$E$25:$E$74, 0), MATCH(AL$4, RAB_years, 0)) -> 0 | AM29: =INDEX('RAB input'!$H$25:$XFD$74, MATCH($E29, 'RAB input'!$E$25:$E$74, 0), MATCH(AM$4, RAB_years, 0)) -> 0 | AN29: =INDEX('RAB input'!$H$25:$XFD$74, MATCH($E29, 'RAB input'!$E$25:$E$74, 0), MATCH(AN$4, RAB_years, 0)) -> 0 | AO29: =INDEX('RAB input'!$H$25:$XFD$74, MATCH($E29, 'RAB input'!$E$25:$E$74, 0), MATCH(AO$4, RAB_years, 0)) -> 0 | AP29: =INDEX('RAB input'!$H$25:$XFD$74, MATCH($E29, 'RAB input'!$E$25:$E$74, 0), MATCH(AP$4, RAB_years, 0)) -> 0 | AQ29: =INDEX('RAB input'!$H$25:$XFD$74, MATCH($E29, 'RAB input'!$E$25:$E$74, 0), MATCH(AQ$4, RAB_years, 0)) -> 0 | AR29: =INDEX('RAB input'!$H$25:$XFD$74, MATCH($E29, 'RAB input'!$E$25:$E$74, 0), MATCH(AR$4, RAB_years, 0)) -> 0 | AS29: =INDEX('RAB input'!$H$25:$XFD$74, MATCH($E29, 'RAB input'!$E$25:$E$74, 0), MATCH(AS$4, RAB_years, 0)) -> 0 | AT29: =INDEX('RAB input'!$H$25:$XFD$74, MATCH($E29, 'RAB input'!$E$25:$E$74, 0), MATCH(AT$4, RAB_years, 0)) -> 0 | AU29: =INDEX('RAB input'!$H$25:$XFD$74, MATCH($E29, 'RAB input'!$E$25:$E$74, 0), MATCH(AU$4, RAB_years, 0)) -> 0 | AV29: =INDEX('RAB input'!$H$25:$XFD$74, MATCH($E29, 'RAB input'!$E$25:$E$74, 0), MATCH(AV$4, RAB_years, 0)) -> 0 | AW29: =INDEX('RAB input'!$H$25:$XFD$74, MATCH($E29, 'RAB input'!$E$25:$E$74, 0), MATCH(AW$4, RAB_years, 0)) -> 0 | AX29: =INDEX('RAB input'!$H$25:$XFD$74, MATCH($E29, 'RAB input'!$E$25:$E$74, 0), MATCH(AX$4, RAB_years, 0)) -> 0 | AY29: =INDEX('RAB input'!$H$25:$XFD$74, MATCH($E29, 'RAB input'!$E$25:$E$74, 0), MATCH(AY$4, RAB_years, 0)) -> 0 | AZ29: =INDEX('RAB input'!$H$25:$XFD$74, MATCH($E29, 'RAB input'!$E$25:$E$74, 0), MATCH(AZ$4, RAB_years, 0)) -> 0 | BA29: =INDEX('RAB input'!$H$25:$XFD$74, MATCH($E29, 'RAB input'!$E$25:$E$74, 0), MATCH(BA$4, RAB_years, 0)) -> 0 | BB29: =INDEX('RAB input'!$H$25:$XFD$74, MATCH($E29, 'RAB input'!$E$25:$E$74, 0), MATCH(BB$4, RAB_years, 0)) -> 0 | BC29: =INDEX('RAB input'!$H$25:$XFD$74, MATCH($E29, 'RAB input'!$E$25:$E$74, 0), MATCH(BC$4, RAB_years, 0)) -> 0 | BD29: =INDEX('RAB input'!$H$25:$XFD$74, MATCH($E29, 'RAB input'!$E$25:$E$74, 0), MATCH(BD$4, RAB_years, 0)) -> 0 | BE29: =INDEX('RAB input'!$H$25:$XFD$74, MATCH($E29, 'RAB input'!$E$25:$E$74, 0), MATCH(BE$4, RAB_years, 0)) -> 0 | BF29: =INDEX('RAB input'!$H$25:$XFD$74, MATCH($E29, 'RAB input'!$E$25:$E$74, 0), MATCH(BF$4, RAB_years, 0)) -> 0 | BG29: =INDEX('RAB input'!$H$25:$XFD$74, MATCH($E29, 'RAB input'!$E$25:$E$74, 0), MATCH(BG$4, RAB_years, 0)) -> 0 | BH29: =INDEX('RAB input'!$H$25:$XFD$74, MATCH($E29, 'RAB input'!$E$25:$E$74, 0), MATCH(BH$4, RAB_years, 0)) -> 0 | BI29: =INDEX('RAB input'!$H$25:$XFD$74, MATCH($E29, 'RAB input'!$E$25:$E$74, 0), MATCH(BI$4, RAB_years, 0)) -> 0 | BJ29: =INDEX('RAB input'!$H$25:$XFD$74, MATCH($E29, 'RAB input'!$E$25:$E$74, 0), MATCH(BJ$4, RAB_years, 0)) -> 0 | BK29: =INDEX('RAB input'!$H$25:$XFD$74, MATCH($E29, 'RAB input'!$E$25:$E$74, 0), MATCH(BK$4, RAB_years, 0)) -> 0 | BL29: =INDEX('RAB input'!$H$25:$XFD$74, MATCH($E29, 'RAB input'!$E$25:$E$74, 0), MATCH(BL$4, RAB_years, 0)) -> 0 | BM29: =INDEX('RAB input'!$H$25:$XFD$74, MATCH($E29, 'RAB input'!$E$25:$E$74, 0), MATCH(BM$4, RAB_years, 0)) -> 0 | BN29: =INDEX('RAB input'!$H$25:$XFD$74, MATCH($E29, 'RAB input'!$E$25:$E$74, 0), MATCH(BN$4, RAB_years, 0)) -> 0 | BO29: =INDEX('RAB input'!$H$25:$XFD$74, MATCH($E29, 'RAB input'!$E$25:$E$74, 0), MATCH(BO$4, RAB_years, 0)) -> 0 | BP29: =INDEX('RAB input'!$H$25:$XFD$74, MATCH($E29, 'RAB input'!$E$25:$E$74, 0), MATCH(BP$4, RAB_years, 0)) -> 0 | BQ29: =INDEX('RAB input'!$H$25:$XFD$74, MATCH($E29, 'RAB input'!$E$25:$E$74, 0), MATCH(BQ$4, RAB_years, 0)) -> 0 | BR29: =INDEX('RAB input'!$H$25:$XFD$74, MATCH($E29, 'RAB input'!$E$25:$E$74, 0), MATCH(BR$4, RAB_years, 0)) -> 0 | BS29: =INDEX('RAB input'!$H$25:$XFD$74, MATCH($E29, 'RAB input'!$E$25:$E$74, 0), MATCH(BS$4, RAB_years, 0)) -> 0 | BT29: =INDEX('RAB input'!$H$25:$XFD$74, MATCH($E29, 'RAB input'!$E$25:$E$74, 0), MATCH(BT$4, RAB_years, 0)) -> 0 | BU29: =INDEX('RAB input'!$H$25:$XFD$74, MATCH($E29, 'RAB input'!$E$25:$E$74, 0), MATCH(BU$4, RAB_years, 0)) -> 0 | BV29: =INDEX('RAB input'!$H$25:$XFD$74, MATCH($E29, 'RAB input'!$E$25:$E$74, 0), MATCH(BV$4, RAB_years, 0)) -> 0 | BW29: =INDEX('RAB input'!$H$25:$XFD$74, MATCH($E29, 'RAB input'!$E$25:$E$74, 0), MATCH(BW$4, RAB_years, 0)) -> 0 | BX29: =INDEX('RAB input'!$H$25:$XFD$74, MATCH($E29, 'RAB input'!$E$25:$E$74, 0), MATCH(BX$4, RAB_years, 0)) -> 0 | BY29: =INDEX('RAB input'!$H$25:$XFD$74, MATCH($E29, 'RAB input'!$E$25:$E$74, 0), MATCH(BY$4, RAB_years, 0)) -> 0 | BZ29: =INDEX('RAB input'!$H$25:$XFD$74, MATCH($E29, 'RAB input'!$E$25:$E$74, 0), MATCH(BZ$4, RAB_years, 0)) -> 0 | CA29: =INDEX('RAB input'!$H$25:$XFD$74, MATCH($E29, 'RAB input'!$E$25:$E$74, 0), MATCH(CA$4, RAB_years, 0)) -> 0 | CB29: =INDEX('RAB input'!$H$25:$XFD$74, MATCH($E29, 'RAB input'!$E$25:$E$74, 0), MATCH(CB$4, RAB_years, 0)) -> 0 | CC29: =INDEX('RAB input'!$H$25:$XFD$74, MATCH($E29, 'RAB input'!$E$25:$E$74, 0), MATCH(CC$4, RAB_years, 0)) -> 0
D30: 13 | E30: ='RAB input'!E37 -> Distribution Substations HV (Ground) | G30: 6.43876542 | H30: 0.6477306472 | I30: =INDEX('RAB input'!$H$25:$XFD$74, MATCH($E30, 'RAB input'!$E$25:$E$74, 0), MATCH(I$4, RAB_years, 0)) -> 1.678552873 | J30: =INDEX('RAB input'!$H$25:$XFD$74, MATCH($E30, 'RAB input'!$E$25:$E$74, 0), MATCH(J$4, RAB_years, 0)) -> 2.310748965 | K30: =INDEX('RAB input'!$H$25:$XFD$74, MATCH($E30, 'RAB input'!$E$25:$E$74, 0), MATCH(K$4, RAB_years, 0)) -> 3.016 | L30: =INDEX('RAB input'!$H$25:$XFD$74, MATCH($E30, 'RAB input'!$E$25:$E$74, 0), MATCH(L$4, RAB_years, 0)) -> 3.674971983 | M30: =INDEX('RAB input'!$H$25:$XFD$74, MATCH($E30, 'RAB input'!$E$25:$E$74, 0), MATCH(M$4, RAB_years, 0)) -> 4.775982949 | N30: =INDEX('RAB input'!$H$25:$XFD$74, MATCH($E30, 'RAB input'!$E$25:$E$74, 0), MATCH(N$4, RAB_years, 0)) -> 4.25063024 | O30: =INDEX('RAB input'!$H$25:$XFD$74, MATCH($E30, 'RAB input'!$E$25:$E$74, 0), MATCH(O$4, RAB_years, 0)) -> 2.200743642 | P30: =INDEX('RAB input'!$H$25:$XFD$74, MATCH($E30, 'RAB input'!$E$25:$E$74, 0), MATCH(P$4, RAB_years, 0)) -> 3.492114605 | Q30: =INDEX('RAB input'!$H$25:$XFD$74, MATCH($E30, 'RAB input'!$E$25:$E$74, 0), MATCH(Q$4, RAB_years, 0)) -> 4.818868383 | R30: =INDEX('RAB input'!$H$25:$XFD$74, MATCH($E30, 'RAB input'!$E$25:$E$74, 0), MATCH(R$4, RAB_years, 0)) -> 3.737708629 | S30: =INDEX('RAB input'!$H$25:$XFD$74, MATCH($E30, 'RAB input'!$E$25:$E$74, 0), MATCH(S$4, RAB_years, 0)) -> 4.387498266 | T30: =INDEX('RAB input'!$H$25:$XFD$74, MATCH($E30, 'RAB input'!$E$25:$E$74, 0), MATCH(T$4, RAB_years, 0)) -> 3.584887809 | U30: =INDEX('RAB input'!$H$25:$XFD$74, MATCH($E30, 'RAB input'!$E$25:$E$74, 0), MATCH(U$4, RAB_years, 0)) -> 0 | V30: =INDEX('RAB input'!$H$25:$XFD$74, MATCH($E30, 'RAB input'!$E$25:$E$74, 0), MATCH(V$4, RAB_years, 0)) -> 0 | W30: =INDEX('RAB input'!$H$25:$XFD$74, MATCH($E30, 'RAB input'!$E$25:$E$74, 0), MATCH(W$4, RAB_years, 0)) -> 0 | X30: =INDEX('RAB input'!$H$25:$XFD$74, MATCH($E30, 'RAB input'!$E$25:$E$74, 0), MATCH(X$4, RAB_years, 0)) -> 0 | Y30: =INDEX('RAB input'!$H$25:$XFD$74, MATCH($E30, 'RAB input'!$E$25:$E$74, 0), MATCH(Y$4, RAB_years, 0)) -> 0 | Z30: =INDEX('RAB input'!$H$25:$XFD$74, MATCH($E30, 'RAB input'!$E$25:$E$74, 0), MATCH(Z$4, RAB_years, 0)) -> 0 | AA30: =INDEX('RAB input'!$H$25:$XFD$74, MATCH($E30, 'RAB input'!$E$25:$E$74, 0), MATCH(AA$4, RAB_years, 0)) -> 0 | AB30: =INDEX('RAB input'!$H$25:$XFD$74, MATCH($E30, 'RAB input'!$E$25:$E$74, 0), MATCH(AB$4, RAB_years, 0)) -> 0 | AC30: =INDEX('RAB input'!$H$25:$XFD$74, MATCH($E30, 'RAB input'!$E$25:$E$74, 0), MATCH(AC$4, RAB_years, 0)) -> 0 | AD30: =INDEX('RAB input'!$H$25:$XFD$74, MATCH($E30, 'RAB input'!$E$25:$E$74, 0), MATCH(AD$4, RAB_years, 0)) -> 0 | AE30: =INDEX('RAB input'!$H$25:$XFD$74, MATCH($E30, 'RAB input'!$E$25:$E$74, 0), MATCH(AE$4, RAB_years, 0)) -> 0 | AF30: =INDEX('RAB input'!$H$25:$XFD$74, MATCH($E30, 'RAB input'!$E$25:$E$74, 0), MATCH(AF$4, RAB_years, 0)) -> 0 | AG30: =INDEX('RAB input'!$H$25:$XFD$74, MATCH($E30, 'RAB input'!$E$25:$E$74, 0), MATCH(AG$4, RAB_years, 0)) -> 0 | AH30: =INDEX('RAB input'!$H$25:$XFD$74, MATCH($E30, 'RAB input'!$E$25:$E$74, 0), MATCH(AH$4, RAB_years, 0)) -> 0 | AI30: =INDEX('RAB input'!$H$25:$XFD$74, MATCH($E30, 'RAB input'!$E$25:$E$74, 0), MATCH(AI$4, RAB_years, 0)) -> 0 | AJ30: =INDEX('RAB input'!$H$25:$XFD$74, MATCH($E30, 'RAB input'!$E$25:$E$74, 0), MATCH(AJ$4, RAB_years, 0)) -> 0 | AK30: =INDEX('RAB input'!$H$25:$XFD$74, MATCH($E30, 'RAB input'!$E$25:$E$74, 0), MATCH(AK$4, RAB_years, 0)) -> 0 | AL30: =INDEX('RAB input'!$H$25:$XFD$74, MATCH($E30, 'RAB input'!$E$25:$E$74, 0), MATCH(AL$4, RAB_years, 0)) -> 0 | AM30: =INDEX('RAB input'!$H$25:$XFD$74, MATCH($E30, 'RAB input'!$E$25:$E$74, 0), MATCH(AM$4, RAB_years, 0)) -> 0 | AN30: =INDEX('RAB input'!$H$25:$XFD$74, MATCH($E30, 'RAB input'!$E$25:$E$74, 0), MATCH(AN$4, RAB_years, 0)) -> 0 | AO30: =INDEX('RAB input'!$H$25:$XFD$74, MATCH($E30, 'RAB input'!$E$25:$E$74, 0), MATCH(AO$4, RAB_years, 0)) -> 0 | AP30: =INDEX('RAB input'!$H$25:$XFD$74, MATCH($E30, 'RAB input'!$E$25:$E$74, 0), MATCH(AP$4, RAB_years, 0)) -> 0 | AQ30: =INDEX('RAB input'!$H$25:$XFD$74, MATCH($E30, 'RAB input'!$E$25:$E$74, 0), MATCH(AQ$4, RAB_years, 0)) -> 0 | AR30: =INDEX('RAB input'!$H$25:$XFD$74, MATCH($E30, 'RAB input'!$E$25:$E$74, 0), MATCH(AR$4, RAB_years, 0)) -> 0 | AS30: =INDEX('RAB input'!$H$25:$XFD$74, MATCH($E30, 'RAB input'!$E$25:$E$74, 0), MATCH(AS$4, RAB_years, 0)) -> 0 | AT30: =INDEX('RAB input'!$H$25:$XFD$74, MATCH($E30, 'RAB input'!$E$25:$E$74, 0), MATCH(AT$4, RAB_years, 0)) -> 0 | AU30: =INDEX('RAB input'!$H$25:$XFD$74, MATCH($E30, 'RAB input'!$E$25:$E$74, 0), MATCH(AU$4, RAB_years, 0)) -> 0 | AV30: =INDEX('RAB input'!$H$25:$XFD$74, MATCH($E30, 'RAB input'!$E$25:$E$74, 0), MATCH(AV$4, RAB_years, 0)) -> 0 | AW30: =INDEX('RAB input'!$H$25:$XFD$74, MATCH($E30, 'RAB input'!$E$25:$E$74, 0), MATCH(AW$4, RAB_years, 0)) -> 0 | AX30: =INDEX('RAB input'!$H$25:$XFD$74, MATCH($E30, 'RAB input'!$E$25:$E$74, 0), MATCH(AX$4, RAB_years, 0)) -> 0 | AY30: =INDEX('RAB input'!$H$25:$XFD$74, MATCH($E30, 'RAB input'!$E$25:$E$74, 0), MATCH(AY$4, RAB_years, 0)) -> 0 | AZ30: =INDEX('RAB input'!$H$25:$XFD$74, MATCH($E30, 'RAB input'!$E$25:$E$74, 0), MATCH(AZ$4, RAB_years, 0)) -> 0 | BA30: =INDEX('RAB input'!$H$25:$XFD$74, MATCH($E30, 'RAB input'!$E$25:$E$74, 0), MATCH(BA$4, RAB_years, 0)) -> 0 | BB30: =INDEX('RAB input'!$H$25:$XFD$74, MATCH($E30, 'RAB input'!$E$25:$E$74, 0), MATCH(BB$4, RAB_years, 0)) -> 0 | BC30: =INDEX('RAB input'!$H$25:$XFD$74, MATCH($E30, 'RAB input'!$E$25:$E$74, 0), MATCH(BC$4, RAB_years, 0)) -> 0 | BD30: =INDEX('RAB input'!$H$25:$XFD$74, MATCH($E30, 'RAB input'!$E$25:$E$74, 0), MATCH(BD$4, RAB_years, 0)) -> 0 | BE30: =INDEX('RAB input'!$H$25:$XFD$74, MATCH($E30, 'RAB input'!$E$25:$E$74, 0), MATCH(BE$4, RAB_years, 0)) -> 0 | BF30: =INDEX('RAB input'!$H$25:$XFD$74, MATCH($E30, 'RAB input'!$E$25:$E$74, 0), MATCH(BF$4, RAB_years, 0)) -> 0 | BG30: =INDEX('RAB input'!$H$25:$XFD$74, MATCH($E30, 'RAB input'!$E$25:$E$74, 0), MATCH(BG$4, RAB_years, 0)) -> 0 | BH30: =INDEX('RAB input'!$H$25:$XFD$74, MATCH($E30, 'RAB input'!$E$25:$E$74, 0), MATCH(BH$4, RAB_years, 0)) -> 0 | BI30: =INDEX('RAB input'!$H$25:$XFD$74, MATCH($E30, 'RAB input'!$E$25:$E$74, 0), MATCH(BI$4, RAB_years, 0)) -> 0 | BJ30: =INDEX('RAB input'!$H$25:$XFD$74, MATCH($E30, 'RAB input'!$E$25:$E$74, 0), MATCH(BJ$4, RAB_years, 0)) -> 0 | BK30: =INDEX('RAB input'!$H$25:$XFD$74, MATCH($E30, 'RAB input'!$E$25:$E$74, 0), MATCH(BK$4, RAB_years, 0)) -> 0 | BL30: =INDEX('RAB input'!$H$25:$XFD$74, MATCH($E30, 'RAB input'!$E$25:$E$74, 0), MATCH(BL$4, RAB_years, 0)) -> 0 | BM30: =INDEX('RAB input'!$H$25:$XFD$74, MATCH($E30, 'RAB input'!$E$25:$E$74, 0), MATCH(BM$4, RAB_years, 0)) -> 0 | BN30: =INDEX('RAB input'!$H$25:$XFD$74, MATCH($E30, 'RAB input'!$E$25:$E$74, 0), MATCH(BN$4, RAB_years, 0)) -> 0 | BO30: =INDEX('RAB input'!$H$25:$XFD$74, MATCH($E30, 'RAB input'!$E$25:$E$74, 0), MATCH(BO$4, RAB_years, 0)) -> 0 | BP30: =INDEX('RAB input'!$H$25:$XFD$74, MATCH($E30, 'RAB input'!$E$25:$E$74, 0), MATCH(BP$4, RAB_years, 0)) -> 0 | BQ30: =INDEX('RAB input'!$H$25:$XFD$74, MATCH($E30, 'RAB input'!$E$25:$E$74, 0), MATCH(BQ$4, RAB_years, 0)) -> 0 | BR30: =INDEX('RAB input'!$H$25:$XFD$74, MATCH($E30, 'RAB input'!$E$25:$E$74, 0), MATCH(BR$4, RAB_years, 0)) -> 0 | BS30: =INDEX('RAB input'!$H$25:$XFD$74, MATCH($E30, 'RAB input'!$E$25:$E$74, 0), MATCH(BS$4, RAB_years, 0)) -> 0 | BT30: =INDEX('RAB input'!$H$25:$XFD$74, MATCH($E30, 'RAB input'!$E$25:$E$74, 0), MATCH(BT$4, RAB_years, 0)) -> 0 | BU30: =INDEX('RAB input'!$H$25:$XFD$74, MATCH($E30, 'RAB input'!$E$25:$E$74, 0), MATCH(BU$4, RAB_years, 0)) -> 0 | BV30: =INDEX('RAB input'!$H$25:$XFD$74, MATCH($E30, 'RAB input'!$E$25:$E$74, 0), MATCH(BV$4, RAB_years, 0)) -> 0 | BW30: =INDEX('RAB input'!$H$25:$XFD$74, MATCH($E30, 'RAB input'!$E$25:$E$74, 0), MATCH(BW$4, RAB_years, 0)) -> 0 | BX30: =INDEX('RAB input'!$H$25:$XFD$74, MATCH($E30, 'RAB input'!$E$25:$E$74, 0), MATCH(BX$4, RAB_years, 0)) -> 0 | BY30: =INDEX('RAB input'!$H$25:$XFD$74, MATCH($E30, 'RAB input'!$E$25:$E$74, 0), MATCH(BY$4, RAB_years, 0)) -> 0 | BZ30: =INDEX('RAB input'!$H$25:$XFD$74, MATCH($E30, 'RAB input'!$E$25:$E$74, 0), MATCH(BZ$4, RAB_years, 0)) -> 0 | CA30: =INDEX('RAB input'!$H$25:$XFD$74, MATCH($E30, 'RAB input'!$E$25:$E$74, 0), MATCH(CA$4, RAB_years, 0)) -> 0 | CB30: =INDEX('RAB input'!$H$25:$XFD$74, MATCH($E30, 'RAB input'!$E$25:$E$74, 0), MATCH(CB$4, RAB_years, 0)) -> 0 | CC30: =INDEX('RAB input'!$H$25:$XFD$74, MATCH($E30, 'RAB input'!$E$25:$E$74, 0), MATCH(CC$4, RAB_years, 0)) -> 0
D31: 14 | E31: ='RAB input'!E38 -> Distribution Substations LV (Pole) | G31: 65.94371664 | H31: 7.289224002 | I31: =INDEX('RAB input'!$H$25:$XFD$74, MATCH($E31, 'RAB input'!$E$25:$E$74, 0), MATCH(I$4, RAB_years, 0)) -> 7.47199119 | J31: =INDEX('RAB input'!$H$25:$XFD$74, MATCH($E31, 'RAB input'!$E$25:$E$74, 0), MATCH(J$4, RAB_years, 0)) -> 6.684701034 | K31: =INDEX('RAB input'!$H$25:$XFD$74, MATCH($E31, 'RAB input'!$E$25:$E$74, 0), MATCH(K$4, RAB_years, 0)) -> 6.042 | L31: =INDEX('RAB input'!$H$25:$XFD$74, MATCH($E31, 'RAB input'!$E$25:$E$74, 0), MATCH(L$4, RAB_years, 0)) -> 7.832258172 | M31: =INDEX('RAB input'!$H$25:$XFD$74, MATCH($E31, 'RAB input'!$E$25:$E$74, 0), MATCH(M$4, RAB_years, 0)) -> 7.289208969 | N31: =INDEX('RAB input'!$H$25:$XFD$74, MATCH($E31, 'RAB input'!$E$25:$E$74, 0), MATCH(N$4, RAB_years, 0)) -> 7.3780196 | O31: =INDEX('RAB input'!$H$25:$XFD$74, MATCH($E31, 'RAB input'!$E$25:$E$74, 0), MATCH(O$4, RAB_years, 0)) -> 6.7902844 | P31: =INDEX('RAB input'!$H$25:$XFD$74, MATCH($E31, 'RAB input'!$E$25:$E$74, 0), MATCH(P$4, RAB_years, 0)) -> 6.983443779 | Q31: =INDEX('RAB input'!$H$25:$XFD$74, MATCH($E31, 'RAB input'!$E$25:$E$74, 0), MATCH(Q$4, RAB_years, 0)) -> 9.065416927 | R31: =INDEX('RAB input'!$H$25:$XFD$74, MATCH($E31, 'RAB input'!$E$25:$E$74, 0), MATCH(R$4, RAB_years, 0)) -> 7.866616508 | S31: =INDEX('RAB input'!$H$25:$XFD$74, MATCH($E31, 'RAB input'!$E$25:$E$74, 0), MATCH(S$4, RAB_years, 0)) -> 7.746873123 | T31: =INDEX('RAB input'!$H$25:$XFD$74, MATCH($E31, 'RAB input'!$E$25:$E$74, 0), MATCH(T$4, RAB_years, 0)) -> 7.148360509 | U31: =INDEX('RAB input'!$H$25:$XFD$74, MATCH($E31, 'RAB input'!$E$25:$E$74, 0), MATCH(U$4, RAB_years, 0)) -> 0 | V31: =INDEX('RAB input'!$H$25:$XFD$74, MATCH($E31, 'RAB input'!$E$25:$E$74, 0), MATCH(V$4, RAB_years, 0)) -> 0 | W31: =INDEX('RAB input'!$H$25:$XFD$74, MATCH($E31, 'RAB input'!$E$25:$E$74, 0), MATCH(W$4, RAB_years, 0)) -> 0 | X31: =INDEX('RAB input'!$H$25:$XFD$74, MATCH($E31, 'RAB input'!$E$25:$E$74, 0), MATCH(X$4, RAB_years, 0)) -> 0 | Y31: =INDEX('RAB input'!$H$25:$XFD$74, MATCH($E31, 'RAB input'!$E$25:$E$74, 0), MATCH(Y$4, RAB_years, 0)) -> 0 | Z31: =INDEX('RAB input'!$H$25:$XFD$74, MATCH($E31, 'RAB input'!$E$25:$E$74, 0), MATCH(Z$4, RAB_years, 0)) -> 0 | AA31: =INDEX('RAB input'!$H$25:$XFD$74, MATCH($E31, 'RAB input'!$E$25:$E$74, 0), MATCH(AA$4, RAB_years, 0)) -> 0 | AB31: =INDEX('RAB input'!$H$25:$XFD$74, MATCH($E31, 'RAB input'!$E$25:$E$74, 0), MATCH(AB$4, RAB_years, 0)) -> 0 | AC31: =INDEX('RAB input'!$H$25:$XFD$74, MATCH($E31, 'RAB input'!$E$25:$E$74, 0), MATCH(AC$4, RAB_years, 0)) -> 0 | AD31: =INDEX('RAB input'!$H$25:$XFD$74, MATCH($E31, 'RAB input'!$E$25:$E$74, 0), MATCH(AD$4, RAB_years, 0)) -> 0 | AE31: =INDEX('RAB input'!$H$25:$XFD$74, MATCH($E31, 'RAB input'!$E$25:$E$74, 0), MATCH(AE$4, RAB_years, 0)) -> 0 | AF31: =INDEX('RAB input'!$H$25:$XFD$74, MATCH($E31, 'RAB input'!$E$25:$E$74, 0), MATCH(AF$4, RAB_years, 0)) -> 0 | AG31: =INDEX('RAB input'!$H$25:$XFD$74, MATCH($E31, 'RAB input'!$E$25:$E$74, 0), MATCH(AG$4, RAB_years, 0)) -> 0 | AH31: =INDEX('RAB input'!$H$25:$XFD$74, MATCH($E31, 'RAB input'!$E$25:$E$74, 0), MATCH(AH$4, RAB_years, 0)) -> 0 | AI31: =INDEX('RAB input'!$H$25:$XFD$74, MATCH($E31, 'RAB input'!$E$25:$E$74, 0), MATCH(AI$4, RAB_years, 0)) -> 0 | AJ31: =INDEX('RAB input'!$H$25:$XFD$74, MATCH($E31, 'RAB input'!$E$25:$E$74, 0), MATCH(AJ$4, RAB_years, 0)) -> 0 | AK31: =INDEX('RAB input'!$H$25:$XFD$74, MATCH($E31, 'RAB input'!$E$25:$E$74, 0), MATCH(AK$4, RAB_years, 0)) -> 0 | AL31: =INDEX('RAB input'!$H$25:$XFD$74, MATCH($E31, 'RAB input'!$E$25:$E$74, 0), MATCH(AL$4, RAB_years, 0)) -> 0 | AM31: =INDEX('RAB input'!$H$25:$XFD$74, MATCH($E31, 'RAB input'!$E$25:$E$74, 0), MATCH(AM$4, RAB_years, 0)) -> 0 | AN31: =INDEX('RAB input'!$H$25:$XFD$74, MATCH($E31, 'RAB input'!$E$25:$E$74, 0), MATCH(AN$4, RAB_years, 0)) -> 0 | AO31: =INDEX('RAB input'!$H$25:$XFD$74, MATCH($E31, 'RAB input'!$E$25:$E$74, 0), MATCH(AO$4, RAB_years, 0)) -> 0 | AP31: =INDEX('RAB input'!$H$25:$XFD$74, MATCH($E31, 'RAB input'!$E$25:$E$74, 0), MATCH(AP$4, RAB_years, 0)) -> 0 | AQ31: =INDEX('RAB input'!$H$25:$XFD$74, MATCH($E31, 'RAB input'!$E$25:$E$74, 0), MATCH(AQ$4, RAB_years, 0)) -> 0 | AR31: =INDEX('RAB input'!$H$25:$XFD$74, MATCH($E31, 'RAB input'!$E$25:$E$74, 0), MATCH(AR$4, RAB_years, 0)) -> 0 | AS31: =INDEX('RAB input'!$H$25:$XFD$74, MATCH($E31, 'RAB input'!$E$25:$E$74, 0), MATCH(AS$4, RAB_years, 0)) -> 0 | AT31: =INDEX('RAB input'!$H$25:$XFD$74, MATCH($E31, 'RAB input'!$E$25:$E$74, 0), MATCH(AT$4, RAB_years, 0)) -> 0 | AU31: =INDEX('RAB input'!$H$25:$XFD$74, MATCH($E31, 'RAB input'!$E$25:$E$74, 0), MATCH(AU$4, RAB_years, 0)) -> 0 | AV31: =INDEX('RAB input'!$H$25:$XFD$74, MATCH($E31, 'RAB input'!$E$25:$E$74, 0), MATCH(AV$4, RAB_years, 0)) -> 0 | AW31: =INDEX('RAB input'!$H$25:$XFD$74, MATCH($E31, 'RAB input'!$E$25:$E$74, 0), MATCH(AW$4, RAB_years, 0)) -> 0 | AX31: =INDEX('RAB input'!$H$25:$XFD$74, MATCH($E31, 'RAB input'!$E$25:$E$74, 0), MATCH(AX$4, RAB_years, 0)) -> 0 | AY31: =INDEX('RAB input'!$H$25:$XFD$74, MATCH($E31, 'RAB input'!$E$25:$E$74, 0), MATCH(AY$4, RAB_years, 0)) -> 0 | AZ31: =INDEX('RAB input'!$H$25:$XFD$74, MATCH($E31, 'RAB input'!$E$25:$E$74, 0), MATCH(AZ$4, RAB_years, 0)) -> 0 | BA31: =INDEX('RAB input'!$H$25:$XFD$74, MATCH($E31, 'RAB input'!$E$25:$E$74, 0), MATCH(BA$4, RAB_years, 0)) -> 0 | BB31: =INDEX('RAB input'!$H$25:$XFD$74, MATCH($E31, 'RAB input'!$E$25:$E$74, 0), MATCH(BB$4, RAB_years, 0)) -> 0 | BC31: =INDEX('RAB input'!$H$25:$XFD$74, MATCH($E31, 'RAB input'!$E$25:$E$74, 0), MATCH(BC$4, RAB_years, 0)) -> 0 | BD31: =INDEX('RAB input'!$H$25:$XFD$74, MATCH($E31, 'RAB input'!$E$25:$E$74, 0), MATCH(BD$4, RAB_years, 0)) -> 0 | BE31: =INDEX('RAB input'!$H$25:$XFD$74, MATCH($E31, 'RAB input'!$E$25:$E$74, 0), MATCH(BE$4, RAB_years, 0)) -> 0 | BF31: =INDEX('RAB input'!$H$25:$XFD$74, MATCH($E31, 'RAB input'!$E$25:$E$74, 0), MATCH(BF$4, RAB_years, 0)) -> 0 | BG31: =INDEX('RAB input'!$H$25:$XFD$74, MATCH($E31, 'RAB input'!$E$25:$E$74, 0), MATCH(BG$4, RAB_years, 0)) -> 0 | BH31: =INDEX('RAB input'!$H$25:$XFD$74, MATCH($E31, 'RAB input'!$E$25:$E$74, 0), MATCH(BH$4, RAB_years, 0)) -> 0 | BI31: =INDEX('RAB input'!$H$25:$XFD$74, MATCH($E31, 'RAB input'!$E$25:$E$74, 0), MATCH(BI$4, RAB_years, 0)) -> 0 | BJ31: =INDEX('RAB input'!$H$25:$XFD$74, MATCH($E31, 'RAB input'!$E$25:$E$74, 0), MATCH(BJ$4, RAB_years, 0)) -> 0 | BK31: =INDEX('RAB input'!$H$25:$XFD$74, MATCH($E31, 'RAB input'!$E$25:$E$74, 0), MATCH(BK$4, RAB_years, 0)) -> 0 | BL31: =INDEX('RAB input'!$H$25:$XFD$74, MATCH($E31, 'RAB input'!$E$25:$E$74, 0), MATCH(BL$4, RAB_years, 0)) -> 0 | BM31: =INDEX('RAB input'!$H$25:$XFD$74, MATCH($E31, 'RAB input'!$E$25:$E$74, 0), MATCH(BM$4, RAB_years, 0)) -> 0 | BN31: =INDEX('RAB input'!$H$25:$XFD$74, MATCH($E31, 'RAB input'!$E$25:$E$74, 0), MATCH(BN$4, RAB_years, 0)) -> 0 | BO31: =INDEX('RAB input'!$H$25:$XFD$74, MATCH($E31, 'RAB input'!$E$25:$E$74, 0), MATCH(BO$4, RAB_years, 0)) -> 0 | BP31: =INDEX('RAB input'!$H$25:$XFD$74, MATCH($E31, 'RAB input'!$E$25:$E$74, 0), MATCH(BP$4, RAB_years, 0)) -> 0 | BQ31: =INDEX('RAB input'!$H$25:$XFD$74, MATCH($E31, 'RAB input'!$E$25:$E$74, 0), MATCH(BQ$4, RAB_years, 0)) -> 0 | BR31: =INDEX('RAB input'!$H$25:$XFD$74, MATCH($E31, 'RAB input'!$E$25:$E$74, 0), MATCH(BR$4, RAB_years, 0)) -> 0 | BS31: =INDEX('RAB input'!$H$25:$XFD$74, MATCH($E31, 'RAB input'!$E$25:$E$74, 0), MATCH(BS$4, RAB_years, 0)) -> 0 | BT31: =INDEX('RAB input'!$H$25:$XFD$74, MATCH($E31, 'RAB input'!$E$25:$E$74, 0), MATCH(BT$4, RAB_years, 0)) -> 0 | BU31: =INDEX('RAB input'!$H$25:$XFD$74, MATCH($E31, 'RAB input'!$E$25:$E$74, 0), MATCH(BU$4, RAB_years, 0)) -> 0 | BV31: =INDEX('RAB input'!$H$25:$XFD$74, MATCH($E31, 'RAB input'!$E$25:$E$74, 0), MATCH(BV$4, RAB_years, 0)) -> 0 | BW31: =INDEX('RAB input'!$H$25:$XFD$74, MATCH($E31, 'RAB input'!$E$25:$E$74, 0), MATCH(BW$4, RAB_years, 0)) -> 0 | BX31: =INDEX('RAB input'!$H$25:$XFD$74, MATCH($E31, 'RAB input'!$E$25:$E$74, 0), MATCH(BX$4, RAB_years, 0)) -> 0 | BY31: =INDEX('RAB input'!$H$25:$XFD$74, MATCH($E31, 'RAB input'!$E$25:$E$74, 0), MATCH(BY$4, RAB_years, 0)) -> 0 | BZ31: =INDEX('RAB input'!$H$25:$XFD$74, MATCH($E31, 'RAB input'!$E$25:$E$74, 0), MATCH(BZ$4, RAB_years, 0)) -> 0 | CA31: =INDEX('RAB input'!$H$25:$XFD$74, MATCH($E31, 'RAB input'!$E$25:$E$74, 0), MATCH(CA$4, RAB_years, 0)) -> 0 | CB31: =INDEX('RAB input'!$H$25:$XFD$74, MATCH($E31, 'RAB input'!$E$25:$E$74, 0), MATCH(CB$4, RAB_years, 0)) -> 0 | CC31: =INDEX('RAB input'!$H$25:$XFD$74, MATCH($E31, 'RAB input'!$E$25:$E$74, 0), MATCH(CC$4, RAB_years, 0)) -> 0
D32: 15 | E32: ='RAB input'!E39 -> Distribution Substations LV (Ground) | G32: 31.61786039 | H32: 4.274904104 | I32: =INDEX('RAB input'!$H$25:$XFD$74, MATCH($E32, 'RAB input'!$E$25:$E$74, 0), MATCH(I$4, RAB_years, 0)) -> 3.056514444 | J32: =INDEX('RAB input'!$H$25:$XFD$74, MATCH($E32, 'RAB input'!$E$25:$E$74, 0), MATCH(J$4, RAB_years, 0)) -> 3.318639543 | K32: =INDEX('RAB input'!$H$25:$XFD$74, MATCH($E32, 'RAB input'!$E$25:$E$74, 0), MATCH(K$4, RAB_years, 0)) -> 5.454 | L32: =INDEX('RAB input'!$H$25:$XFD$74, MATCH($E32, 'RAB input'!$E$25:$E$74, 0), MATCH(L$4, RAB_years, 0)) -> 6.316271021 | M32: =INDEX('RAB input'!$H$25:$XFD$74, MATCH($E32, 'RAB input'!$E$25:$E$74, 0), MATCH(M$4, RAB_years, 0)) -> 6.15629734 | N32: =INDEX('RAB input'!$H$25:$XFD$74, MATCH($E32, 'RAB input'!$E$25:$E$74, 0), MATCH(N$4, RAB_years, 0)) -> 7.486388601 | O32: =INDEX('RAB input'!$H$25:$XFD$74, MATCH($E32, 'RAB input'!$E$25:$E$74, 0), MATCH(O$4, RAB_years, 0)) -> 8.417703408 | P32: =INDEX('RAB input'!$H$25:$XFD$74, MATCH($E32, 'RAB input'!$E$25:$E$74, 0), MATCH(P$4, RAB_years, 0)) -> 9.773168326 | Q32: =INDEX('RAB input'!$H$25:$XFD$74, MATCH($E32, 'RAB input'!$E$25:$E$74, 0), MATCH(Q$4, RAB_years, 0)) -> 12.19966987 | R32: =INDEX('RAB input'!$H$25:$XFD$74, MATCH($E32, 'RAB input'!$E$25:$E$74, 0), MATCH(R$4, RAB_years, 0)) -> 9.537020215 | S32: =INDEX('RAB input'!$H$25:$XFD$74, MATCH($E32, 'RAB input'!$E$25:$E$74, 0), MATCH(S$4, RAB_years, 0)) -> 12.64974451 | T32: =INDEX('RAB input'!$H$25:$XFD$74, MATCH($E32, 'RAB input'!$E$25:$E$74, 0), MATCH(T$4, RAB_years, 0)) -> 13.18190133 | U32: =INDEX('RAB input'!$H$25:$XFD$74, MATCH($E32, 'RAB input'!$E$25:$E$74, 0), MATCH(U$4, RAB_years, 0)) -> 0 | V32: =INDEX('RAB input'!$H$25:$XFD$74, MATCH($E32, 'RAB input'!$E$25:$E$74, 0), MATCH(V$4, RAB_years, 0)) -> 0 | W32: =INDEX('RAB input'!$H$25:$XFD$74, MATCH($E32, 'RAB input'!$E$25:$E$74, 0), MATCH(W$4, RAB_years, 0)) -> 0 | X32: =INDEX('RAB input'!$H$25:$XFD$74, MATCH($E32, 'RAB input'!$E$25:$E$74, 0), MATCH(X$4, RAB_years, 0)) -> 0 | Y32: =INDEX('RAB input'!$H$25:$XFD$74, MATCH($E32, 'RAB input'!$E$25:$E$74, 0), MATCH(Y$4, RAB_years, 0)) -> 0 | Z32: =INDEX('RAB input'!$H$25:$XFD$74, MATCH($E32, 'RAB input'!$E$25:$E$74, 0), MATCH(Z$4, RAB_years, 0)) -> 0 | AA32: =INDEX('RAB input'!$H$25:$XFD$74, MATCH($E32, 'RAB input'!$E$25:$E$74, 0), MATCH(AA$4, RAB_years, 0)) -> 0 | AB32: =INDEX('RAB input'!$H$25:$XFD$74, MATCH($E32, 'RAB input'!$E$25:$E$74, 0), MATCH(AB$4, RAB_years, 0)) -> 0 | AC32: =INDEX('RAB input'!$H$25:$XFD$74, MATCH($E32, 'RAB input'!$E$25:$E$74, 0), MATCH(AC$4, RAB_years, 0)) -> 0 | AD32: =INDEX('RAB input'!$H$25:$XFD$74, MATCH($E32, 'RAB input'!$E$25:$E$74, 0), MATCH(AD$4, RAB_years, 0)) -> 0 | AE32: =INDEX('RAB input'!$H$25:$XFD$74, MATCH($E32, 'RAB input'!$E$25:$E$74, 0), MATCH(AE$4, RAB_years, 0)) -> 0 | AF32: =INDEX('RAB input'!$H$25:$XFD$74, MATCH($E32, 'RAB input'!$E$25:$E$74, 0), MATCH(AF$4, RAB_years, 0)) -> 0 | AG32: =INDEX('RAB input'!$H$25:$XFD$74, MATCH($E32, 'RAB input'!$E$25:$E$74, 0), MATCH(AG$4, RAB_years, 0)) -> 0 | AH32: =INDEX('RAB input'!$H$25:$XFD$74, MATCH($E32, 'RAB input'!$E$25:$E$74, 0), MATCH(AH$4, RAB_years, 0)) -> 0 | AI32: =INDEX('RAB input'!$H$25:$XFD$74, MATCH($E32, 'RAB input'!$E$25:$E$74, 0), MATCH(AI$4, RAB_years, 0)) -> 0 | AJ32: =INDEX('RAB input'!$H$25:$XFD$74, MATCH($E32, 'RAB input'!$E$25:$E$74, 0), MATCH(AJ$4, RAB_years, 0)) -> 0 | AK32: =INDEX('RAB input'!$H$25:$XFD$74, MATCH($E32, 'RAB input'!$E$25:$E$74, 0), MATCH(AK$4, RAB_years, 0)) -> 0 | AL32: =INDEX('RAB input'!$H$25:$XFD$74, MATCH($E32, 'RAB input'!$E$25:$E$74, 0), MATCH(AL$4, RAB_years, 0)) -> 0 | AM32: =INDEX('RAB input'!$H$25:$XFD$74, MATCH($E32, 'RAB input'!$E$25:$E$74, 0), MATCH(AM$4, RAB_years, 0)) -> 0 | AN32: =INDEX('RAB input'!$H$25:$XFD$74, MATCH($E32, 'RAB input'!$E$25:$E$74, 0), MATCH(AN$4, RAB_years, 0)) -> 0 | AO32: =INDEX('RAB input'!$H$25:$XFD$74, MATCH($E32, 'RAB input'!$E$25:$E$74, 0), MATCH(AO$4, RAB_years, 0)) -> 0 | AP32: =INDEX('RAB input'!$H$25:$XFD$74, MATCH($E32, 'RAB input'!$E$25:$E$74, 0), MATCH(AP$4, RAB_years, 0)) -> 0 | AQ32: =INDEX('RAB input'!$H$25:$XFD$74, MATCH($E32, 'RAB input'!$E$25:$E$74, 0), MATCH(AQ$4, RAB_years, 0)) -> 0 | AR32: =INDEX('RAB input'!$H$25:$XFD$74, MATCH($E32, 'RAB input'!$E$25:$E$74, 0), MATCH(AR$4, RAB_years, 0)) -> 0 | AS32: =INDEX('RAB input'!$H$25:$XFD$74, MATCH($E32, 'RAB input'!$E$25:$E$74, 0), MATCH(AS$4, RAB_years, 0)) -> 0 | AT32: =INDEX('RAB input'!$H$25:$XFD$74, MATCH($E32, 'RAB input'!$E$25:$E$74, 0), MATCH(AT$4, RAB_years, 0)) -> 0 | AU32: =INDEX('RAB input'!$H$25:$XFD$74, MATCH($E32, 'RAB input'!$E$25:$E$74, 0), MATCH(AU$4, RAB_years, 0)) -> 0 | AV32: =INDEX('RAB input'!$H$25:$XFD$74, MATCH($E32, 'RAB input'!$E$25:$E$74, 0), MATCH(AV$4, RAB_years, 0)) -> 0 | AW32: =INDEX('RAB input'!$H$25:$XFD$74, MATCH($E32, 'RAB input'!$E$25:$E$74, 0), MATCH(AW$4, RAB_years, 0)) -> 0 | AX32: =INDEX('RAB input'!$H$25:$XFD$74, MATCH($E32, 'RAB input'!$E$25:$E$74, 0), MATCH(AX$4, RAB_years, 0)) -> 0 | AY32: =INDEX('RAB input'!$H$25:$XFD$74, MATCH($E32, 'RAB input'!$E$25:$E$74, 0), MATCH(AY$4, RAB_years, 0)) -> 0 | AZ32: =INDEX('RAB input'!$H$25:$XFD$74, MATCH($E32, 'RAB input'!$E$25:$E$74, 0), MATCH(AZ$4, RAB_years, 0)) -> 0 | BA32: =INDEX('RAB input'!$H$25:$XFD$74, MATCH($E32, 'RAB input'!$E$25:$E$74, 0), MATCH(BA$4, RAB_years, 0)) -> 0 | BB32: =INDEX('RAB input'!$H$25:$XFD$74, MATCH($E32, 'RAB input'!$E$25:$E$74, 0), MATCH(BB$4, RAB_years, 0)) -> 0 | BC32: =INDEX('RAB input'!$H$25:$XFD$74, MATCH($E32, 'RAB input'!$E$25:$E$74, 0), MATCH(BC$4, RAB_years, 0)) -> 0 | BD32: =INDEX('RAB input'!$H$25:$XFD$74, MATCH($E32, 'RAB input'!$E$25:$E$74, 0), MATCH(BD$4, RAB_years, 0)) -> 0 | BE32: =INDEX('RAB input'!$H$25:$XFD$74, MATCH($E32, 'RAB input'!$E$25:$E$74, 0), MATCH(BE$4, RAB_years, 0)) -> 0 | BF32: =INDEX('RAB input'!$H$25:$XFD$74, MATCH($E32, 'RAB input'!$E$25:$E$74, 0), MATCH(BF$4, RAB_years, 0)) -> 0 | BG32: =INDEX('RAB input'!$H$25:$XFD$74, MATCH($E32, 'RAB input'!$E$25:$E$74, 0), MATCH(BG$4, RAB_years, 0)) -> 0 | BH32: =INDEX('RAB input'!$H$25:$XFD$74, MATCH($E32, 'RAB input'!$E$25:$E$74, 0), MATCH(BH$4, RAB_years, 0)) -> 0 | BI32: =INDEX('RAB input'!$H$25:$XFD$74, MATCH($E32, 'RAB input'!$E$25:$E$74, 0), MATCH(BI$4, RAB_years, 0)) -> 0 | BJ32: =INDEX('RAB input'!$H$25:$XFD$74, MATCH($E32, 'RAB input'!$E$25:$E$74, 0), MATCH(BJ$4, RAB_years, 0)) -> 0 | BK32: =INDEX('RAB input'!$H$25:$XFD$74, MATCH($E32, 'RAB input'!$E$25:$E$74, 0), MATCH(BK$4, RAB_years, 0)) -> 0 | BL32: =INDEX('RAB input'!$H$25:$XFD$74, MATCH($E32, 'RAB input'!$E$25:$E$74, 0), MATCH(BL$4, RAB_years, 0)) -> 0 | BM32: =INDEX('RAB input'!$H$25:$XFD$74, MATCH($E32, 'RAB input'!$E$25:$E$74, 0), MATCH(BM$4, RAB_years, 0)) -> 0 | BN32: =INDEX('RAB input'!$H$25:$XFD$74, MATCH($E32, 'RAB input'!$E$25:$E$74, 0), MATCH(BN$4, RAB_years, 0)) -> 0 | BO32: =INDEX('RAB input'!$H$25:$XFD$74, MATCH($E32, 'RAB input'!$E$25:$E$74, 0), MATCH(BO$4, RAB_years, 0)) -> 0 | BP32: =INDEX('RAB input'!$H$25:$XFD$74, MATCH($E32, 'RAB input'!$E$25:$E$74, 0), MATCH(BP$4, RAB_years, 0)) -> 0 | BQ32: =INDEX('RAB input'!$H$25:$XFD$74, MATCH($E32, 'RAB input'!$E$25:$E$74, 0), MATCH(BQ$4, RAB_years, 0)) -> 0 | BR32: =INDEX('RAB input'!$H$25:$XFD$74, MATCH($E32, 'RAB input'!$E$25:$E$74, 0), MATCH(BR$4, RAB_years, 0)) -> 0 | BS32: =INDEX('RAB input'!$H$25:$XFD$74, MATCH($E32, 'RAB input'!$E$25:$E$74, 0), MATCH(BS$4, RAB_years, 0)) -> 0 | BT32: =INDEX('RAB input'!$H$25:$XFD$74, MATCH($E32, 'RAB input'!$E$25:$E$74, 0), MATCH(BT$4, RAB_years, 0)) -> 0 | BU32: =INDEX('RAB input'!$H$25:$XFD$74, MATCH($E32, 'RAB input'!$E$25:$E$74, 0), MATCH(BU$4, RAB_years, 0)) -> 0 | BV32: =INDEX('RAB input'!$H$25:$XFD$74, MATCH($E32, 'RAB input'!$E$25:$E$74, 0), MATCH(BV$4, RAB_years, 0)) -> 0 | BW32: =INDEX('RAB input'!$H$25:$XFD$74, MATCH($E32, 'RAB input'!$E$25:$E$74, 0), MATCH(BW$4, RAB_years, 0)) -> 0 | BX32: =INDEX('RAB input'!$H$25:$XFD$74, MATCH($E32, 'RAB input'!$E$25:$E$74, 0), MATCH(BX$4, RAB_years, 0)) -> 0 | BY32: =INDEX('RAB input'!$H$25:$XFD$74, MATCH($E32, 'RAB input'!$E$25:$E$74, 0), MATCH(BY$4, RAB_years, 0)) -> 0 | BZ32: =INDEX('RAB input'!$H$25:$XFD$74, MATCH($E32, 'RAB input'!$E$25:$E$74, 0), MATCH(BZ$4, RAB_years, 0)) -> 0 | CA32: =INDEX('RAB input'!$H$25:$XFD$74, MATCH($E32, 'RAB input'!$E$25:$E$74, 0), MATCH(CA$4, RAB_years, 0)) -> 0 | CB32: =INDEX('RAB input'!$H$25:$XFD$74, MATCH($E32, 'RAB input'!$E$25:$E$74, 0), MATCH(CB$4, RAB_years, 0)) -> 0 | CC32: =INDEX('RAB input'!$H$25:$XFD$74, MATCH($E32, 'RAB input'!$E$25:$E$74, 0), MATCH(CC$4, RAB_years, 0)) -> 0
D33: 16 | E33: ='RAB input'!E40 -> Overhead Low Voltage Lines Underbuilt Urban | G33: 39.61651532 | H33: 2.457939729 | I33: =INDEX('RAB input'!$H$25:$XFD$74, MATCH($E33, 'RAB input'!$E$25:$E$74, 0), MATCH(I$4, RAB_years, 0)) -> 2.740849496 | J33: =INDEX('RAB input'!$H$25:$XFD$74, MATCH($E33, 'RAB input'!$E$25:$E$74, 0), MATCH(J$4, RAB_years, 0)) -> 2.693766662 | K33: =INDEX('RAB input'!$H$25:$XFD$74, MATCH($E33, 'RAB input'!$E$25:$E$74, 0), MATCH(K$4, RAB_years, 0)) -> 4.191 | L33: =INDEX('RAB input'!$H$25:$XFD$74, MATCH($E33, 'RAB input'!$E$25:$E$74, 0), MATCH(L$4, RAB_years, 0)) -> 3.840700977 | M33: =INDEX('RAB input'!$H$25:$XFD$74, MATCH($E33, 'RAB input'!$E$25:$E$74, 0), MATCH(M$4, RAB_years, 0)) -> 5.085733364 | N33: =INDEX('RAB input'!$H$25:$XFD$74, MATCH($E33, 'RAB input'!$E$25:$E$74, 0), MATCH(N$4, RAB_years, 0)) -> 6.849732097 | O33: =INDEX('RAB input'!$H$25:$XFD$74, MATCH($E33, 'RAB input'!$E$25:$E$74, 0), MATCH(O$4, RAB_years, 0)) -> 4.683704741 | P33: =INDEX('RAB input'!$H$25:$XFD$74, MATCH($E33, 'RAB input'!$E$25:$E$74, 0), MATCH(P$4, RAB_years, 0)) -> 4.565801952 | Q33: =INDEX('RAB input'!$H$25:$XFD$74, MATCH($E33, 'RAB input'!$E$25:$E$74, 0), MATCH(Q$4, RAB_years, 0)) -> 5.246009294 | R33: =INDEX('RAB input'!$H$25:$XFD$74, MATCH($E33, 'RAB input'!$E$25:$E$74, 0), MATCH(R$4, RAB_years, 0)) -> 4.224920333 | S33: =INDEX('RAB input'!$H$25:$XFD$74, MATCH($E33, 'RAB input'!$E$25:$E$74, 0), MATCH(S$4, RAB_years, 0)) -> 4.116635281 | T33: =INDEX('RAB input'!$H$25:$XFD$74, MATCH($E33, 'RAB input'!$E$25:$E$74, 0), MATCH(T$4, RAB_years, 0)) -> 4.482050214 | U33: =INDEX('RAB input'!$H$25:$XFD$74, MATCH($E33, 'RAB input'!$E$25:$E$74, 0), MATCH(U$4, RAB_years, 0)) -> 0 | V33: =INDEX('RAB input'!$H$25:$XFD$74, MATCH($E33, 'RAB input'!$E$25:$E$74, 0), MATCH(V$4, RAB_years, 0)) -> 0 | W33: =INDEX('RAB input'!$H$25:$XFD$74, MATCH($E33, 'RAB input'!$E$25:$E$74, 0), MATCH(W$4, RAB_years, 0)) -> 0 | X33: =INDEX('RAB input'!$H$25:$XFD$74, MATCH($E33, 'RAB input'!$E$25:$E$74, 0), MATCH(X$4, RAB_years, 0)) -> 0 | Y33: =INDEX('RAB input'!$H$25:$XFD$74, MATCH($E33, 'RAB input'!$E$25:$E$74, 0), MATCH(Y$4, RAB_years, 0)) -> 0 | Z33: =INDEX('RAB input'!$H$25:$XFD$74, MATCH($E33, 'RAB input'!$E$25:$E$74, 0), MATCH(Z$4, RAB_years, 0)) -> 0 | AA33: =INDEX('RAB input'!$H$25:$XFD$74, MATCH($E33, 'RAB input'!$E$25:$E$74, 0), MATCH(AA$4, RAB_years, 0)) -> 0 | AB33: =INDEX('RAB input'!$H$25:$XFD$74, MATCH($E33, 'RAB input'!$E$25:$E$74, 0), MATCH(AB$4, RAB_years, 0)) -> 0 | AC33: =INDEX('RAB input'!$H$25:$XFD$74, MATCH($E33, 'RAB input'!$E$25:$E$74, 0), MATCH(AC$4, RAB_years, 0)) -> 0 | AD33: =INDEX('RAB input'!$H$25:$XFD$74, MATCH($E33, 'RAB input'!$E$25:$E$74, 0), MATCH(AD$4, RAB_years, 0)) -> 0 | AE33: =INDEX('RAB input'!$H$25:$XFD$74, MATCH($E33, 'RAB input'!$E$25:$E$74, 0), MATCH(AE$4, RAB_years, 0)) -> 0 | AF33: =INDEX('RAB input'!$H$25:$XFD$74, MATCH($E33, 'RAB input'!$E$25:$E$74, 0), MATCH(AF$4, RAB_years, 0)) -> 0 | AG33: =INDEX('RAB input'!$H$25:$XFD$74, MATCH($E33, 'RAB input'!$E$25:$E$74, 0), MATCH(AG$4, RAB_years, 0)) -> 0 | AH33: =INDEX('RAB input'!$H$25:$XFD$74, MATCH($E33, 'RAB input'!$E$25:$E$74, 0), MATCH(AH$4, RAB_years, 0)) -> 0 | AI33: =INDEX('RAB input'!$H$25:$XFD$74, MATCH($E33, 'RAB input'!$E$25:$E$74, 0), MATCH(AI$4, RAB_years, 0)) -> 0 | AJ33: =INDEX('RAB input'!$H$25:$XFD$74, MATCH($E33, 'RAB input'!$E$25:$E$74, 0), MATCH(AJ$4, RAB_years, 0)) -> 0 | AK33: =INDEX('RAB input'!$H$25:$XFD$74, MATCH($E33, 'RAB input'!$E$25:$E$74, 0), MATCH(AK$4, RAB_years, 0)) -> 0 | AL33: =INDEX('RAB input'!$H$25:$XFD$74, MATCH($E33, 'RAB input'!$E$25:$E$74, 0), MATCH(AL$4, RAB_years, 0)) -> 0 | AM33: =INDEX('RAB input'!$H$25:$XFD$74, MATCH($E33, 'RAB input'!$E$25:$E$74, 0), MATCH(AM$4, RAB_years, 0)) -> 0 | AN33: =INDEX('RAB input'!$H$25:$XFD$74, MATCH($E33, 'RAB input'!$E$25:$E$74, 0), MATCH(AN$4, RAB_years, 0)) -> 0 | AO33: =INDEX('RAB input'!$H$25:$XFD$74, MATCH($E33, 'RAB input'!$E$25:$E$74, 0), MATCH(AO$4, RAB_years, 0)) -> 0 | AP33: =INDEX('RAB input'!$H$25:$XFD$74, MATCH($E33, 'RAB input'!$E$25:$E$74, 0), MATCH(AP$4, RAB_years, 0)) -> 0 | AQ33: =INDEX('RAB input'!$H$25:$XFD$74, MATCH($E33, 'RAB input'!$E$25:$E$74, 0), MATCH(AQ$4, RAB_years, 0)) -> 0 | AR33: =INDEX('RAB input'!$H$25:$XFD$74, MATCH($E33, 'RAB input'!$E$25:$E$74, 0), MATCH(AR$4, RAB_years, 0)) -> 0 | AS33: =INDEX('RAB input'!$H$25:$XFD$74, MATCH($E33, 'RAB input'!$E$25:$E$74, 0), MATCH(AS$4, RAB_years, 0)) -> 0 | AT33: =INDEX('RAB input'!$H$25:$XFD$74, MATCH($E33, 'RAB input'!$E$25:$E$74, 0), MATCH(AT$4, RAB_years, 0)) -> 0 | AU33: =INDEX('RAB input'!$H$25:$XFD$74, MATCH($E33, 'RAB input'!$E$25:$E$74, 0), MATCH(AU$4, RAB_years, 0)) -> 0 | AV33: =INDEX('RAB input'!$H$25:$XFD$74, MATCH($E33, 'RAB input'!$E$25:$E$74, 0), MATCH(AV$4, RAB_years, 0)) -> 0 | AW33: =INDEX('RAB input'!$H$25:$XFD$74, MATCH($E33, 'RAB input'!$E$25:$E$74, 0), MATCH(AW$4, RAB_years, 0)) -> 0 | AX33: =INDEX('RAB input'!$H$25:$XFD$74, MATCH($E33, 'RAB input'!$E$25:$E$74, 0), MATCH(AX$4, RAB_years, 0)) -> 0 | AY33: =INDEX('RAB input'!$H$25:$XFD$74, MATCH($E33, 'RAB input'!$E$25:$E$74, 0), MATCH(AY$4, RAB_years, 0)) -> 0 | AZ33: =INDEX('RAB input'!$H$25:$XFD$74, MATCH($E33, 'RAB input'!$E$25:$E$74, 0), MATCH(AZ$4, RAB_years, 0)) -> 0 | BA33: =INDEX('RAB input'!$H$25:$XFD$74, MATCH($E33, 'RAB input'!$E$25:$E$74, 0), MATCH(BA$4, RAB_years, 0)) -> 0 | BB33: =INDEX('RAB input'!$H$25:$XFD$74, MATCH($E33, 'RAB input'!$E$25:$E$74, 0), MATCH(BB$4, RAB_years, 0)) -> 0 | BC33: =INDEX('RAB input'!$H$25:$XFD$74, MATCH($E33, 'RAB input'!$E$25:$E$74, 0), MATCH(BC$4, RAB_years, 0)) -> 0 | BD33: =INDEX('RAB input'!$H$25:$XFD$74, MATCH($E33, 'RAB input'!$E$25:$E$74, 0), MATCH(BD$4, RAB_years, 0)) -> 0 | BE33: =INDEX('RAB input'!$H$25:$XFD$74, MATCH($E33, 'RAB input'!$E$25:$E$74, 0), MATCH(BE$4, RAB_years, 0)) -> 0 | BF33: =INDEX('RAB input'!$H$25:$XFD$74, MATCH($E33, 'RAB input'!$E$25:$E$74, 0), MATCH(BF$4, RAB_years, 0)) -> 0 | BG33: =INDEX('RAB input'!$H$25:$XFD$74, MATCH($E33, 'RAB input'!$E$25:$E$74, 0), MATCH(BG$4, RAB_years, 0)) -> 0 | BH33: =INDEX('RAB input'!$H$25:$XFD$74, MATCH($E33, 'RAB input'!$E$25:$E$74, 0), MATCH(BH$4, RAB_years, 0)) -> 0 | BI33: =INDEX('RAB input'!$H$25:$XFD$74, MATCH($E33, 'RAB input'!$E$25:$E$74, 0), MATCH(BI$4, RAB_years, 0)) -> 0 | BJ33: =INDEX('RAB input'!$H$25:$XFD$74, MATCH($E33, 'RAB input'!$E$25:$E$74, 0), MATCH(BJ$4, RAB_years, 0)) -> 0 | BK33: =INDEX('RAB input'!$H$25:$XFD$74, MATCH($E33, 'RAB input'!$E$25:$E$74, 0), MATCH(BK$4, RAB_years, 0)) -> 0 | BL33: =INDEX('RAB input'!$H$25:$XFD$74, MATCH($E33, 'RAB input'!$E$25:$E$74, 0), MATCH(BL$4, RAB_years, 0)) -> 0 | BM33: =INDEX('RAB input'!$H$25:$XFD$74, MATCH($E33, 'RAB input'!$E$25:$E$74, 0), MATCH(BM$4, RAB_years, 0)) -> 0 | BN33: =INDEX('RAB input'!$H$25:$XFD$74, MATCH($E33, 'RAB input'!$E$25:$E$74, 0), MATCH(BN$4, RAB_years, 0)) -> 0 | BO33: =INDEX('RAB input'!$H$25:$XFD$74, MATCH($E33, 'RAB input'!$E$25:$E$74, 0), MATCH(BO$4, RAB_years, 0)) -> 0 | BP33: =INDEX('RAB input'!$H$25:$XFD$74, MATCH($E33, 'RAB input'!$E$25:$E$74, 0), MATCH(BP$4, RAB_years, 0)) -> 0 | BQ33: =INDEX('RAB input'!$H$25:$XFD$74, MATCH($E33, 'RAB input'!$E$25:$E$74, 0), MATCH(BQ$4, RAB_years, 0)) -> 0 | BR33: =INDEX('RAB input'!$H$25:$XFD$74, MATCH($E33, 'RAB input'!$E$25:$E$74, 0), MATCH(BR$4, RAB_years, 0)) -> 0 | BS33: =INDEX('RAB input'!$H$25:$XFD$74, MATCH($E33, 'RAB input'!$E$25:$E$74, 0), MATCH(BS$4, RAB_years, 0)) -> 0 | BT33: =INDEX('RAB input'!$H$25:$XFD$74, MATCH($E33, 'RAB input'!$E$25:$E$74, 0), MATCH(BT$4, RAB_years, 0)) -> 0 | BU33: =INDEX('RAB input'!$H$25:$XFD$74, MATCH($E33, 'RAB input'!$E$25:$E$74, 0), MATCH(BU$4, RAB_years, 0)) -> 0 | BV33: =INDEX('RAB input'!$H$25:$XFD$74, MATCH($E33, 'RAB input'!$E$25:$E$74, 0), MATCH(BV$4, RAB_years, 0)) -> 0 | BW33: =INDEX('RAB input'!$H$25:$XFD$74, MATCH($E33, 'RAB input'!$E$25:$E$74, 0), MATCH(BW$4, RAB_years, 0)) -> 0 | BX33: =INDEX('RAB input'!$H$25:$XFD$74, MATCH($E33, 'RAB input'!$E$25:$E$74, 0), MATCH(BX$4, RAB_years, 0)) -> 0 | BY33: =INDEX('RAB input'!$H$25:$XFD$74, MATCH($E33, 'RAB input'!$E$25:$E$74, 0), MATCH(BY$4, RAB_years, 0)) -> 0 | BZ33: =INDEX('RAB input'!$H$25:$XFD$74, MATCH($E33, 'RAB input'!$E$25:$E$74, 0), MATCH(BZ$4, RAB_years, 0)) -> 0 | CA33: =INDEX('RAB input'!$H$25:$XFD$74, MATCH($E33, 'RAB input'!$E$25:$E$74, 0), MATCH(CA$4, RAB_years, 0)) -> 0 | CB33: =INDEX('RAB input'!$H$25:$XFD$74, MATCH($E33, 'RAB input'!$E$25:$E$74, 0), MATCH(CB$4, RAB_years, 0)) -> 0 | CC33: =INDEX('RAB input'!$H$25:$XFD$74, MATCH($E33, 'RAB input'!$E$25:$E$74, 0), MATCH(CC$4, RAB_years, 0)) -> 0
D34: 17 | E34: ='RAB input'!E41 -> Overhead Low Voltage Lines Underbuilt Rural | G34: 15.48789326 | H34: 1.864119406 | I34: =INDEX('RAB input'!$H$25:$XFD$74, MATCH($E34, 'RAB input'!$E$25:$E$74, 0), MATCH(I$4, RAB_years, 0)) -> 2.129337026 | J34: =INDEX('RAB input'!$H$25:$XFD$74, MATCH($E34, 'RAB input'!$E$25:$E$74, 0), MATCH(J$4, RAB_years, 0)) -> 2.172309151 | K34: =INDEX('RAB input'!$H$25:$XFD$74, MATCH($E34, 'RAB input'!$E$25:$E$74, 0), MATCH(K$4, RAB_years, 0)) -> 3.67 | L34: =INDEX('RAB input'!$H$25:$XFD$74, MATCH($E34, 'RAB input'!$E$25:$E$74, 0), MATCH(L$4, RAB_years, 0)) -> 3.695569166 | M34: =INDEX('RAB input'!$H$25:$XFD$74, MATCH($E34, 'RAB input'!$E$25:$E$74, 0), MATCH(M$4, RAB_years, 0)) -> 4.840973945 | N34: =INDEX('RAB input'!$H$25:$XFD$74, MATCH($E34, 'RAB input'!$E$25:$E$74, 0), MATCH(N$4, RAB_years, 0)) -> 5.857924886 | O34: =INDEX('RAB input'!$H$25:$XFD$74, MATCH($E34, 'RAB input'!$E$25:$E$74, 0), MATCH(O$4, RAB_years, 0)) -> 4.403041326 | P34: =INDEX('RAB input'!$H$25:$XFD$74, MATCH($E34, 'RAB input'!$E$25:$E$74, 0), MATCH(P$4, RAB_years, 0)) -> 3.747509328 | Q34: =INDEX('RAB input'!$H$25:$XFD$74, MATCH($E34, 'RAB input'!$E$25:$E$74, 0), MATCH(Q$4, RAB_years, 0)) -> 4.43010446 | R34: =INDEX('RAB input'!$H$25:$XFD$74, MATCH($E34, 'RAB input'!$E$25:$E$74, 0), MATCH(R$4, RAB_years, 0)) -> 3.33747141 | S34: =INDEX('RAB input'!$H$25:$XFD$74, MATCH($E34, 'RAB input'!$E$25:$E$74, 0), MATCH(S$4, RAB_years, 0)) -> 4.015387277 | T34: =INDEX('RAB input'!$H$25:$XFD$74, MATCH($E34, 'RAB input'!$E$25:$E$74, 0), MATCH(T$4, RAB_years, 0)) -> 3.605986306 | U34: =INDEX('RAB input'!$H$25:$XFD$74, MATCH($E34, 'RAB input'!$E$25:$E$74, 0), MATCH(U$4, RAB_years, 0)) -> 0 | V34: =INDEX('RAB input'!$H$25:$XFD$74, MATCH($E34, 'RAB input'!$E$25:$E$74, 0), MATCH(V$4, RAB_years, 0)) -> 0 | W34: =INDEX('RAB input'!$H$25:$XFD$74, MATCH($E34, 'RAB input'!$E$25:$E$74, 0), MATCH(W$4, RAB_years, 0)) -> 0 | X34: =INDEX('RAB input'!$H$25:$XFD$74, MATCH($E34, 'RAB input'!$E$25:$E$74, 0), MATCH(X$4, RAB_years, 0)) -> 0 | Y34: =INDEX('RAB input'!$H$25:$XFD$74, MATCH($E34, 'RAB input'!$E$25:$E$74, 0), MATCH(Y$4, RAB_years, 0)) -> 0 | Z34: =INDEX('RAB input'!$H$25:$XFD$74, MATCH($E34, 'RAB input'!$E$25:$E$74, 0), MATCH(Z$4, RAB_years, 0)) -> 0 | AA34: =INDEX('RAB input'!$H$25:$XFD$74, MATCH($E34, 'RAB input'!$E$25:$E$74, 0), MATCH(AA$4, RAB_years, 0)) -> 0 | AB34: =INDEX('RAB input'!$H$25:$XFD$74, MATCH($E34, 'RAB input'!$E$25:$E$74, 0), MATCH(AB$4, RAB_years, 0)) -> 0 | AC34: =INDEX('RAB input'!$H$25:$XFD$74, MATCH($E34, 'RAB input'!$E$25:$E$74, 0), MATCH(AC$4, RAB_years, 0)) -> 0 | AD34: =INDEX('RAB input'!$H$25:$XFD$74, MATCH($E34, 'RAB input'!$E$25:$E$74, 0), MATCH(AD$4, RAB_years, 0)) -> 0 | AE34: =INDEX('RAB input'!$H$25:$XFD$74, MATCH($E34, 'RAB input'!$E$25:$E$74, 0), MATCH(AE$4, RAB_years, 0)) -> 0 | AF34: =INDEX('RAB input'!$H$25:$XFD$74, MATCH($E34, 'RAB input'!$E$25:$E$74, 0), MATCH(AF$4, RAB_years, 0)) -> 0 | AG34: =INDEX('RAB input'!$H$25:$XFD$74, MATCH($E34, 'RAB input'!$E$25:$E$74, 0), MATCH(AG$4, RAB_years, 0)) -> 0 | AH34: =INDEX('RAB input'!$H$25:$XFD$74, MATCH($E34, 'RAB input'!$E$25:$E$74, 0), MATCH(AH$4, RAB_years, 0)) -> 0 | AI34: =INDEX('RAB input'!$H$25:$XFD$74, MATCH($E34, 'RAB input'!$E$25:$E$74, 0), MATCH(AI$4, RAB_years, 0)) -> 0 | AJ34: =INDEX('RAB input'!$H$25:$XFD$74, MATCH($E34, 'RAB input'!$E$25:$E$74, 0), MATCH(AJ$4, RAB_years, 0)) -> 0 | AK34: =INDEX('RAB input'!$H$25:$XFD$74, MATCH($E34, 'RAB input'!$E$25:$E$74, 0), MATCH(AK$4, RAB_years, 0)) -> 0 | AL34: =INDEX('RAB input'!$H$25:$XFD$74, MATCH($E34, 'RAB input'!$E$25:$E$74, 0), MATCH(AL$4, RAB_years, 0)) -> 0 | AM34: =INDEX('RAB input'!$H$25:$XFD$74, MATCH($E34, 'RAB input'!$E$25:$E$74, 0), MATCH(AM$4, RAB_years, 0)) -> 0 | AN34: =INDEX('RAB input'!$H$25:$XFD$74, MATCH($E34, 'RAB input'!$E$25:$E$74, 0), MATCH(AN$4, RAB_years, 0)) -> 0 | AO34: =INDEX('RAB input'!$H$25:$XFD$74, MATCH($E34, 'RAB input'!$E$25:$E$74, 0), MATCH(AO$4, RAB_years, 0)) -> 0 | AP34: =INDEX('RAB input'!$H$25:$XFD$74, MATCH($E34, 'RAB input'!$E$25:$E$74, 0), MATCH(AP$4, RAB_years, 0)) -> 0 | AQ34: =INDEX('RAB input'!$H$25:$XFD$74, MATCH($E34, 'RAB input'!$E$25:$E$74, 0), MATCH(AQ$4, RAB_years, 0)) -> 0 | AR34: =INDEX('RAB input'!$H$25:$XFD$74, MATCH($E34, 'RAB input'!$E$25:$E$74, 0), MATCH(AR$4, RAB_years, 0)) -> 0 | AS34: =INDEX('RAB input'!$H$25:$XFD$74, MATCH($E34, 'RAB input'!$E$25:$E$74, 0), MATCH(AS$4, RAB_years, 0)) -> 0 | AT34: =INDEX('RAB input'!$H$25:$XFD$74, MATCH($E34, 'RAB input'!$E$25:$E$74, 0), MATCH(AT$4, RAB_years, 0)) -> 0 | AU34: =INDEX('RAB input'!$H$25:$XFD$74, MATCH($E34, 'RAB input'!$E$25:$E$74, 0), MATCH(AU$4, RAB_years, 0)) -> 0 | AV34: =INDEX('RAB input'!$H$25:$XFD$74, MATCH($E34, 'RAB input'!$E$25:$E$74, 0), MATCH(AV$4, RAB_years, 0)) -> 0 | AW34: =INDEX('RAB input'!$H$25:$XFD$74, MATCH($E34, 'RAB input'!$E$25:$E$74, 0), MATCH(AW$4, RAB_years, 0)) -> 0 | AX34: =INDEX('RAB input'!$H$25:$XFD$74, MATCH($E34, 'RAB input'!$E$25:$E$74, 0), MATCH(AX$4, RAB_years, 0)) -> 0 | AY34: =INDEX('RAB input'!$H$25:$XFD$74, MATCH($E34, 'RAB input'!$E$25:$E$74, 0), MATCH(AY$4, RAB_years, 0)) -> 0 | AZ34: =INDEX('RAB input'!$H$25:$XFD$74, MATCH($E34, 'RAB input'!$E$25:$E$74, 0), MATCH(AZ$4, RAB_years, 0)) -> 0 | BA34: =INDEX('RAB input'!$H$25:$XFD$74, MATCH($E34, 'RAB input'!$E$25:$E$74, 0), MATCH(BA$4, RAB_years, 0)) -> 0 | BB34: =INDEX('RAB input'!$H$25:$XFD$74, MATCH($E34, 'RAB input'!$E$25:$E$74, 0), MATCH(BB$4, RAB_years, 0)) -> 0 | BC34: =INDEX('RAB input'!$H$25:$XFD$74, MATCH($E34, 'RAB input'!$E$25:$E$74, 0), MATCH(BC$4, RAB_years, 0)) -> 0 | BD34: =INDEX('RAB input'!$H$25:$XFD$74, MATCH($E34, 'RAB input'!$E$25:$E$74, 0), MATCH(BD$4, RAB_years, 0)) -> 0 | BE34: =INDEX('RAB input'!$H$25:$XFD$74, MATCH($E34, 'RAB input'!$E$25:$E$74, 0), MATCH(BE$4, RAB_years, 0)) -> 0 | BF34: =INDEX('RAB input'!$H$25:$XFD$74, MATCH($E34, 'RAB input'!$E$25:$E$74, 0), MATCH(BF$4, RAB_years, 0)) -> 0 | BG34: =INDEX('RAB input'!$H$25:$XFD$74, MATCH($E34, 'RAB input'!$E$25:$E$74, 0), MATCH(BG$4, RAB_years, 0)) -> 0 | BH34: =INDEX('RAB input'!$H$25:$XFD$74, MATCH($E34, 'RAB input'!$E$25:$E$74, 0), MATCH(BH$4, RAB_years, 0)) -> 0 | BI34: =INDEX('RAB input'!$H$25:$XFD$74, MATCH($E34, 'RAB input'!$E$25:$E$74, 0), MATCH(BI$4, RAB_years, 0)) -> 0 | BJ34: =INDEX('RAB input'!$H$25:$XFD$74, MATCH($E34, 'RAB input'!$E$25:$E$74, 0), MATCH(BJ$4, RAB_years, 0)) -> 0 | BK34: =INDEX('RAB input'!$H$25:$XFD$74, MATCH($E34, 'RAB input'!$E$25:$E$74, 0), MATCH(BK$4, RAB_years, 0)) -> 0 | BL34: =INDEX('RAB input'!$H$25:$XFD$74, MATCH($E34, 'RAB input'!$E$25:$E$74, 0), MATCH(BL$4, RAB_years, 0)) -> 0 | BM34: =INDEX('RAB input'!$H$25:$XFD$74, MATCH($E34, 'RAB input'!$E$25:$E$74, 0), MATCH(BM$4, RAB_years, 0)) -> 0 | BN34: =INDEX('RAB input'!$H$25:$XFD$74, MATCH($E34, 'RAB input'!$E$25:$E$74, 0), MATCH(BN$4, RAB_years, 0)) -> 0 | BO34: =INDEX('RAB input'!$H$25:$XFD$74, MATCH($E34, 'RAB input'!$E$25:$E$74, 0), MATCH(BO$4, RAB_years, 0)) -> 0 | BP34: =INDEX('RAB input'!$H$25:$XFD$74, MATCH($E34, 'RAB input'!$E$25:$E$74, 0), MATCH(BP$4, RAB_years, 0)) -> 0 | BQ34: =INDEX('RAB input'!$H$25:$XFD$74, MATCH($E34, 'RAB input'!$E$25:$E$74, 0), MATCH(BQ$4, RAB_years, 0)) -> 0 | BR34: =INDEX('RAB input'!$H$25:$XFD$74, MATCH($E34, 'RAB input'!$E$25:$E$74, 0), MATCH(BR$4, RAB_years, 0)) -> 0 | BS34: =INDEX('RAB input'!$H$25:$XFD$74, MATCH($E34, 'RAB input'!$E$25:$E$74, 0), MATCH(BS$4, RAB_years, 0)) -> 0 | BT34: =INDEX('RAB input'!$H$25:$XFD$74, MATCH($E34, 'RAB input'!$E$25:$E$74, 0), MATCH(BT$4, RAB_years, 0)) -> 0 | BU34: =INDEX('RAB input'!$H$25:$XFD$74, MATCH($E34, 'RAB input'!$E$25:$E$74, 0), MATCH(BU$4, RAB_years, 0)) -> 0 | BV34: =INDEX('RAB input'!$H$25:$XFD$74, MATCH($E34, 'RAB input'!$E$25:$E$74, 0), MATCH(BV$4, RAB_years, 0)) -> 0 | BW34: =INDEX('RAB input'!$H$25:$XFD$74, MATCH($E34, 'RAB input'!$E$25:$E$74, 0), MATCH(BW$4, RAB_years, 0)) -> 0 | BX34: =INDEX('RAB input'!$H$25:$XFD$74, MATCH($E34, 'RAB input'!$E$25:$E$74, 0), MATCH(BX$4, RAB_years, 0)) -> 0 | BY34: =INDEX('RAB input'!$H$25:$XFD$74, MATCH($E34, 'RAB input'!$E$25:$E$74, 0), MATCH(BY$4, RAB_years, 0)) -> 0 | BZ34: =INDEX('RAB input'!$H$25:$XFD$74, MATCH($E34, 'RAB input'!$E$25:$E$74, 0), MATCH(BZ$4, RAB_years, 0)) -> 0 | CA34: =INDEX('RAB input'!$H$25:$XFD$74, MATCH($E34, 'RAB input'!$E$25:$E$74, 0), MATCH(CA$4, RAB_years, 0)) -> 0 | CB34: =INDEX('RAB input'!$H$25:$XFD$74, MATCH($E34, 'RAB input'!$E$25:$E$74, 0), MATCH(CB$4, RAB_years, 0)) -> 0 | CC34: =INDEX('RAB input'!$H$25:$XFD$74, MATCH($E34, 'RAB input'!$E$25:$E$74, 0), MATCH(CC$4, RAB_years, 0)) -> 0
D35: 18 | E35: ='RAB input'!E42 -> Overhead Low Voltage Lines Urban | G35: 43.6082556 | H35: 3.611412252 | I35: =INDEX('RAB input'!$H$25:$XFD$74, MATCH($E35, 'RAB input'!$E$25:$E$74, 0), MATCH(I$4, RAB_years, 0)) -> 3.571311924 | J35: =INDEX('RAB input'!$H$25:$XFD$74, MATCH($E35, 'RAB input'!$E$25:$E$74, 0), MATCH(J$4, RAB_years, 0)) -> 3.425784784 | K35: =INDEX('RAB input'!$H$25:$XFD$74, MATCH($E35, 'RAB input'!$E$25:$E$74, 0), MATCH(K$4, RAB_years, 0)) -> 4.987 | L35: =INDEX('RAB input'!$H$25:$XFD$74, MATCH($E35, 'RAB input'!$E$25:$E$74, 0), MATCH(L$4, RAB_years, 0)) -> 4.763163808 | M35: =INDEX('RAB input'!$H$25:$XFD$74, MATCH($E35, 'RAB input'!$E$25:$E$74, 0), MATCH(M$4, RAB_years, 0)) -> 6.157772617 | N35: =INDEX('RAB input'!$H$25:$XFD$74, MATCH($E35, 'RAB input'!$E$25:$E$74, 0), MATCH(N$4, RAB_years, 0)) -> 7.937891011 | O35: =INDEX('RAB input'!$H$25:$XFD$74, MATCH($E35, 'RAB input'!$E$25:$E$74, 0), MATCH(O$4, RAB_years, 0)) -> 6.018881067 | P35: =INDEX('RAB input'!$H$25:$XFD$74, MATCH($E35, 'RAB input'!$E$25:$E$74, 0), MATCH(P$4, RAB_years, 0)) -> 5.6093789 | Q35: =INDEX('RAB input'!$H$25:$XFD$74, MATCH($E35, 'RAB input'!$E$25:$E$74, 0), MATCH(Q$4, RAB_years, 0)) -> 6.234471019 | R35: =INDEX('RAB input'!$H$25:$XFD$74, MATCH($E35, 'RAB input'!$E$25:$E$74, 0), MATCH(R$4, RAB_years, 0)) -> 5.145219455 | S35: =INDEX('RAB input'!$H$25:$XFD$74, MATCH($E35, 'RAB input'!$E$25:$E$74, 0), MATCH(S$4, RAB_years, 0)) -> 5.086424347 | T35: =INDEX('RAB input'!$H$25:$XFD$74, MATCH($E35, 'RAB input'!$E$25:$E$74, 0), MATCH(T$4, RAB_years, 0)) -> 5.599195683 | U35: =INDEX('RAB input'!$H$25:$XFD$74, MATCH($E35, 'RAB input'!$E$25:$E$74, 0), MATCH(U$4, RAB_years, 0)) -> 0 | V35: =INDEX('RAB input'!$H$25:$XFD$74, MATCH($E35, 'RAB input'!$E$25:$E$74, 0), MATCH(V$4, RAB_years, 0)) -> 0 | W35: =INDEX('RAB input'!$H$25:$XFD$74, MATCH($E35, 'RAB input'!$E$25:$E$74, 0), MATCH(W$4, RAB_years, 0)) -> 0 | X35: =INDEX('RAB input'!$H$25:$XFD$74, MATCH($E35, 'RAB input'!$E$25:$E$74, 0), MATCH(X$4, RAB_years, 0)) -> 0 | Y35: =INDEX('RAB input'!$H$25:$XFD$74, MATCH($E35, 'RAB input'!$E$25:$E$74, 0), MATCH(Y$4, RAB_years, 0)) -> 0 | Z35: =INDEX('RAB input'!$H$25:$XFD$74, MATCH($E35, 'RAB input'!$E$25:$E$74, 0), MATCH(Z$4, RAB_years, 0)) -> 0 | AA35: =INDEX('RAB input'!$H$25:$XFD$74, MATCH($E35, 'RAB input'!$E$25:$E$74, 0), MATCH(AA$4, RAB_years, 0)) -> 0 | AB35: =INDEX('RAB input'!$H$25:$XFD$74, MATCH($E35, 'RAB input'!$E$25:$E$74, 0), MATCH(AB$4, RAB_years, 0)) -> 0 | AC35: =INDEX('RAB input'!$H$25:$XFD$74, MATCH($E35, 'RAB input'!$E$25:$E$74, 0), MATCH(AC$4, RAB_years, 0)) -> 0 | AD35: =INDEX('RAB input'!$H$25:$XFD$74, MATCH($E35, 'RAB input'!$E$25:$E$74, 0), MATCH(AD$4, RAB_years, 0)) -> 0 | AE35: =INDEX('RAB input'!$H$25:$XFD$74, MATCH($E35, 'RAB input'!$E$25:$E$74, 0), MATCH(AE$4, RAB_years, 0)) -> 0 | AF35: =INDEX('RAB input'!$H$25:$XFD$74, MATCH($E35, 'RAB input'!$E$25:$E$74, 0), MATCH(AF$4, RAB_years, 0)) -> 0 | AG35: =INDEX('RAB input'!$H$25:$XFD$74, MATCH($E35, 'RAB input'!$E$25:$E$74, 0), MATCH(AG$4, RAB_years, 0)) -> 0 | AH35: =INDEX('RAB input'!$H$25:$XFD$74, MATCH($E35, 'RAB input'!$E$25:$E$74, 0), MATCH(AH$4, RAB_years, 0)) -> 0 | AI35: =INDEX('RAB input'!$H$25:$XFD$74, MATCH($E35, 'RAB input'!$E$25:$E$74, 0), MATCH(AI$4, RAB_years, 0)) -> 0 | AJ35: =INDEX('RAB input'!$H$25:$XFD$74, MATCH($E35, 'RAB input'!$E$25:$E$74, 0), MATCH(AJ$4, RAB_years, 0)) -> 0 | AK35: =INDEX('RAB input'!$H$25:$XFD$74, MATCH($E35, 'RAB input'!$E$25:$E$74, 0), MATCH(AK$4, RAB_years, 0)) -> 0 | AL35: =INDEX('RAB input'!$H$25:$XFD$74, MATCH($E35, 'RAB input'!$E$25:$E$74, 0), MATCH(AL$4, RAB_years, 0)) -> 0 | AM35: =INDEX('RAB input'!$H$25:$XFD$74, MATCH($E35, 'RAB input'!$E$25:$E$74, 0), MATCH(AM$4, RAB_years, 0)) -> 0 | AN35: =INDEX('RAB input'!$H$25:$XFD$74, MATCH($E35, 'RAB input'!$E$25:$E$74, 0), MATCH(AN$4, RAB_years, 0)) -> 0 | AO35: =INDEX('RAB input'!$H$25:$XFD$74, MATCH($E35, 'RAB input'!$E$25:$E$74, 0), MATCH(AO$4, RAB_years, 0)) -> 0 | AP35: =INDEX('RAB input'!$H$25:$XFD$74, MATCH($E35, 'RAB input'!$E$25:$E$74, 0), MATCH(AP$4, RAB_years, 0)) -> 0 | AQ35: =INDEX('RAB input'!$H$25:$XFD$74, MATCH($E35, 'RAB input'!$E$25:$E$74, 0), MATCH(AQ$4, RAB_years, 0)) -> 0 | AR35: =INDEX('RAB input'!$H$25:$XFD$74, MATCH($E35, 'RAB input'!$E$25:$E$74, 0), MATCH(AR$4, RAB_years, 0)) -> 0 | AS35: =INDEX('RAB input'!$H$25:$XFD$74, MATCH($E35, 'RAB input'!$E$25:$E$74, 0), MATCH(AS$4, RAB_years, 0)) -> 0 | AT35: =INDEX('RAB input'!$H$25:$XFD$74, MATCH($E35, 'RAB input'!$E$25:$E$74, 0), MATCH(AT$4, RAB_years, 0)) -> 0 | AU35: =INDEX('RAB input'!$H$25:$XFD$74, MATCH($E35, 'RAB input'!$E$25:$E$74, 0), MATCH(AU$4, RAB_years, 0)) -> 0 | AV35: =INDEX('RAB input'!$H$25:$XFD$74, MATCH($E35, 'RAB input'!$E$25:$E$74, 0), MATCH(AV$4, RAB_years, 0)) -> 0 | AW35: =INDEX('RAB input'!$H$25:$XFD$74, MATCH($E35, 'RAB input'!$E$25:$E$74, 0), MATCH(AW$4, RAB_years, 0)) -> 0 | AX35: =INDEX('RAB input'!$H$25:$XFD$74, MATCH($E35, 'RAB input'!$E$25:$E$74, 0), MATCH(AX$4, RAB_years, 0)) -> 0 | AY35: =INDEX('RAB input'!$H$25:$XFD$74, MATCH($E35, 'RAB input'!$E$25:$E$74, 0), MATCH(AY$4, RAB_years, 0)) -> 0 | AZ35: =INDEX('RAB input'!$H$25:$XFD$74, MATCH($E35, 'RAB input'!$E$25:$E$74, 0), MATCH(AZ$4, RAB_years, 0)) -> 0 | BA35: =INDEX('RAB input'!$H$25:$XFD$74, MATCH($E35, 'RAB input'!$E$25:$E$74, 0), MATCH(BA$4, RAB_years, 0)) -> 0 | BB35: =INDEX('RAB input'!$H$25:$XFD$74, MATCH($E35, 'RAB input'!$E$25:$E$74, 0), MATCH(BB$4, RAB_years, 0)) -> 0 | BC35: =INDEX('RAB input'!$H$25:$XFD$74, MATCH($E35, 'RAB input'!$E$25:$E$74, 0), MATCH(BC$4, RAB_years, 0)) -> 0 | BD35: =INDEX('RAB input'!$H$25:$XFD$74, MATCH($E35, 'RAB input'!$E$25:$E$74, 0), MATCH(BD$4, RAB_years, 0)) -> 0 | BE35: =INDEX('RAB input'!$H$25:$XFD$74, MATCH($E35, 'RAB input'!$E$25:$E$74, 0), MATCH(BE$4, RAB_years, 0)) -> 0 | BF35: =INDEX('RAB input'!$H$25:$XFD$74, MATCH($E35, 'RAB input'!$E$25:$E$74, 0), MATCH(BF$4, RAB_years, 0)) -> 0 | BG35: =INDEX('RAB input'!$H$25:$XFD$74, MATCH($E35, 'RAB input'!$E$25:$E$74, 0), MATCH(BG$4, RAB_years, 0)) -> 0 | BH35: =INDEX('RAB input'!$H$25:$XFD$74, MATCH($E35, 'RAB input'!$E$25:$E$74, 0), MATCH(BH$4, RAB_years, 0)) -> 0 | BI35: =INDEX('RAB input'!$H$25:$XFD$74, MATCH($E35, 'RAB input'!$E$25:$E$74, 0), MATCH(BI$4, RAB_years, 0)) -> 0 | BJ35: =INDEX('RAB input'!$H$25:$XFD$74, MATCH($E35, 'RAB input'!$E$25:$E$74, 0), MATCH(BJ$4, RAB_years, 0)) -> 0 | BK35: =INDEX('RAB input'!$H$25:$XFD$74, MATCH($E35, 'RAB input'!$E$25:$E$74, 0), MATCH(BK$4, RAB_years, 0)) -> 0 | BL35: =INDEX('RAB input'!$H$25:$XFD$74, MATCH($E35, 'RAB input'!$E$25:$E$74, 0), MATCH(BL$4, RAB_years, 0)) -> 0 | BM35: =INDEX('RAB input'!$H$25:$XFD$74, MATCH($E35, 'RAB input'!$E$25:$E$74, 0), MATCH(BM$4, RAB_years, 0)) -> 0 | BN35: =INDEX('RAB input'!$H$25:$XFD$74, MATCH($E35, 'RAB input'!$E$25:$E$74, 0), MATCH(BN$4, RAB_years, 0)) -> 0 | BO35: =INDEX('RAB input'!$H$25:$XFD$74, MATCH($E35, 'RAB input'!$E$25:$E$74, 0), MATCH(BO$4, RAB_years, 0)) -> 0 | BP35: =INDEX('RAB input'!$H$25:$XFD$74, MATCH($E35, 'RAB input'!$E$25:$E$74, 0), MATCH(BP$4, RAB_years, 0)) -> 0 | BQ35: =INDEX('RAB input'!$H$25:$XFD$74, MATCH($E35, 'RAB input'!$E$25:$E$74, 0), MATCH(BQ$4, RAB_years, 0)) -> 0 | BR35: =INDEX('RAB input'!$H$25:$XFD$74, MATCH($E35, 'RAB input'!$E$25:$E$74, 0), MATCH(BR$4, RAB_years, 0)) -> 0 | BS35: =INDEX('RAB input'!$H$25:$XFD$74, MATCH($E35, 'RAB input'!$E$25:$E$74, 0), MATCH(BS$4, RAB_years, 0)) -> 0 | BT35: =INDEX('RAB input'!$H$25:$XFD$74, MATCH($E35, 'RAB input'!$E$25:$E$74, 0), MATCH(BT$4, RAB_years, 0)) -> 0 | BU35: =INDEX('RAB input'!$H$25:$XFD$74, MATCH($E35, 'RAB input'!$E$25:$E$74, 0), MATCH(BU$4, RAB_years, 0)) -> 0 | BV35: =INDEX('RAB input'!$H$25:$XFD$74, MATCH($E35, 'RAB input'!$E$25:$E$74, 0), MATCH(BV$4, RAB_years, 0)) -> 0 | BW35: =INDEX('RAB input'!$H$25:$XFD$74, MATCH($E35, 'RAB input'!$E$25:$E$74, 0), MATCH(BW$4, RAB_years, 0)) -> 0 | BX35: =INDEX('RAB input'!$H$25:$XFD$74, MATCH($E35, 'RAB input'!$E$25:$E$74, 0), MATCH(BX$4, RAB_years, 0)) -> 0 | BY35: =INDEX('RAB input'!$H$25:$XFD$74, MATCH($E35, 'RAB input'!$E$25:$E$74, 0), MATCH(BY$4, RAB_years, 0)) -> 0 | BZ35: =INDEX('RAB input'!$H$25:$XFD$74, MATCH($E35, 'RAB input'!$E$25:$E$74, 0), MATCH(BZ$4, RAB_years, 0)) -> 0 | CA35: =INDEX('RAB input'!$H$25:$XFD$74, MATCH($E35, 'RAB input'!$E$25:$E$74, 0), MATCH(CA$4, RAB_years, 0)) -> 0 | CB35: =INDEX('RAB input'!$H$25:$XFD$74, MATCH($E35, 'RAB input'!$E$25:$E$74, 0), MATCH(CB$4, RAB_years, 0)) -> 0 | CC35: =INDEX('RAB input'!$H$25:$XFD$74, MATCH($E35, 'RAB input'!$E$25:$E$74, 0), MATCH(CC$4, RAB_years, 0)) -> 0
D36: 19 | E36: ='RAB input'!E43 -> Overhead Low Voltage Lines Rural | G36: 38.28966444 | H36: 4.805907939 | I36: =INDEX('RAB input'!$H$25:$XFD$74, MATCH($E36, 'RAB input'!$E$25:$E$74, 0), MATCH(I$4, RAB_years, 0)) -> 6.280463975 | J36: =INDEX('RAB input'!$H$25:$XFD$74, MATCH($E36, 'RAB input'!$E$25:$E$74, 0), MATCH(J$4, RAB_years, 0)) -> 5.324656921 | K36: =INDEX('RAB input'!$H$25:$XFD$74, MATCH($E36, 'RAB input'!$E$25:$E$74, 0), MATCH(K$4, RAB_years, 0)) -> 6.823 | L36: =INDEX('RAB input'!$H$25:$XFD$74, MATCH($E36, 'RAB input'!$E$25:$E$74, 0), MATCH(L$4, RAB_years, 0)) -> 6.856436785 | M36: =INDEX('RAB input'!$H$25:$XFD$74, MATCH($E36, 'RAB input'!$E$25:$E$74, 0), MATCH(M$4, RAB_years, 0)) -> 10.20440051 | N36: =INDEX('RAB input'!$H$25:$XFD$74, MATCH($E36, 'RAB input'!$E$25:$E$74, 0), MATCH(N$4, RAB_years, 0)) -> 12.49013691 | O36: =INDEX('RAB input'!$H$25:$XFD$74, MATCH($E36, 'RAB input'!$E$25:$E$74, 0), MATCH(O$4, RAB_years, 0)) -> 9.686295489 | P36: =INDEX('RAB input'!$H$25:$XFD$74, MATCH($E36, 'RAB input'!$E$25:$E$74, 0), MATCH(P$4, RAB_years, 0)) -> 8.338479074 | Q36: =INDEX('RAB input'!$H$25:$XFD$74, MATCH($E36, 'RAB input'!$E$25:$E$74, 0), MATCH(Q$4, RAB_years, 0)) -> 10.45816485 | R36: =INDEX('RAB input'!$H$25:$XFD$74, MATCH($E36, 'RAB input'!$E$25:$E$74, 0), MATCH(R$4, RAB_years, 0)) -> 8.285575765 | S36: =INDEX('RAB input'!$H$25:$XFD$74, MATCH($E36, 'RAB input'!$E$25:$E$74, 0), MATCH(S$4, RAB_years, 0)) -> 8.663462825 | T36: =INDEX('RAB input'!$H$25:$XFD$74, MATCH($E36, 'RAB input'!$E$25:$E$74, 0), MATCH(T$4, RAB_years, 0)) -> 9.613865273 | U36: =INDEX('RAB input'!$H$25:$XFD$74, MATCH($E36, 'RAB input'!$E$25:$E$74, 0), MATCH(U$4, RAB_years, 0)) -> 0 | V36: =INDEX('RAB input'!$H$25:$XFD$74, MATCH($E36, 'RAB input'!$E$25:$E$74, 0), MATCH(V$4, RAB_years, 0)) -> 0 | W36: =INDEX('RAB input'!$H$25:$XFD$74, MATCH($E36, 'RAB input'!$E$25:$E$74, 0), MATCH(W$4, RAB_years, 0)) -> 0 | X36: =INDEX('RAB input'!$H$25:$XFD$74, MATCH($E36, 'RAB input'!$E$25:$E$74, 0), MATCH(X$4, RAB_years, 0)) -> 0 | Y36: =INDEX('RAB input'!$H$25:$XFD$74, MATCH($E36, 'RAB input'!$E$25:$E$74, 0), MATCH(Y$4, RAB_years, 0)) -> 0 | Z36: =INDEX('RAB input'!$H$25:$XFD$74, MATCH($E36, 'RAB input'!$E$25:$E$74, 0), MATCH(Z$4, RAB_years, 0)) -> 0 | AA36: =INDEX('RAB input'!$H$25:$XFD$74, MATCH($E36, 'RAB input'!$E$25:$E$74, 0), MATCH(AA$4, RAB_years, 0)) -> 0 | AB36: =INDEX('RAB input'!$H$25:$XFD$74, MATCH($E36, 'RAB input'!$E$25:$E$74, 0), MATCH(AB$4, RAB_years, 0)) -> 0 | AC36: =INDEX('RAB input'!$H$25:$XFD$74, MATCH($E36, 'RAB input'!$E$25:$E$74, 0), MATCH(AC$4, RAB_years, 0)) -> 0 | AD36: =INDEX('RAB input'!$H$25:$XFD$74, MATCH($E36, 'RAB input'!$E$25:$E$74, 0), MATCH(AD$4, RAB_years, 0)) -> 0 | AE36: =INDEX('RAB input'!$H$25:$XFD$74, MATCH($E36, 'RAB input'!$E$25:$E$74, 0), MATCH(AE$4, RAB_years, 0)) -> 0 | AF36: =INDEX('RAB input'!$H$25:$XFD$74, MATCH($E36, 'RAB input'!$E$25:$E$74, 0), MATCH(AF$4, RAB_years, 0)) -> 0 | AG36: =INDEX('RAB input'!$H$25:$XFD$74, MATCH($E36, 'RAB input'!$E$25:$E$74, 0), MATCH(AG$4, RAB_years, 0)) -> 0 | AH36: =INDEX('RAB input'!$H$25:$XFD$74, MATCH($E36, 'RAB input'!$E$25:$E$74, 0), MATCH(AH$4, RAB_years, 0)) -> 0 | AI36: =INDEX('RAB input'!$H$25:$XFD$74, MATCH($E36, 'RAB input'!$E$25:$E$74, 0), MATCH(AI$4, RAB_years, 0)) -> 0 | AJ36: =INDEX('RAB input'!$H$25:$XFD$74, MATCH($E36, 'RAB input'!$E$25:$E$74, 0), MATCH(AJ$4, RAB_years, 0)) -> 0 | AK36: =INDEX('RAB input'!$H$25:$XFD$74, MATCH($E36, 'RAB input'!$E$25:$E$74, 0), MATCH(AK$4, RAB_years, 0)) -> 0 | AL36: =INDEX('RAB input'!$H$25:$XFD$74, MATCH($E36, 'RAB input'!$E$25:$E$74, 0), MATCH(AL$4, RAB_years, 0)) -> 0 | AM36: =INDEX('RAB input'!$H$25:$XFD$74, MATCH($E36, 'RAB input'!$E$25:$E$74, 0), MATCH(AM$4, RAB_years, 0)) -> 0 | AN36: =INDEX('RAB input'!$H$25:$XFD$74, MATCH($E36, 'RAB input'!$E$25:$E$74, 0), MATCH(AN$4, RAB_years, 0)) -> 0 | AO36: =INDEX('RAB input'!$H$25:$XFD$74, MATCH($E36, 'RAB input'!$E$25:$E$74, 0), MATCH(AO$4, RAB_years, 0)) -> 0 | AP36: =INDEX('RAB input'!$H$25:$XFD$74, MATCH($E36, 'RAB input'!$E$25:$E$74, 0), MATCH(AP$4, RAB_years, 0)) -> 0 | AQ36: =INDEX('RAB input'!$H$25:$XFD$74, MATCH($E36, 'RAB input'!$E$25:$E$74, 0), MATCH(AQ$4, RAB_years, 0)) -> 0 | AR36: =INDEX('RAB input'!$H$25:$XFD$74, MATCH($E36, 'RAB input'!$E$25:$E$74, 0), MATCH(AR$4, RAB_years, 0)) -> 0 | AS36: =INDEX('RAB input'!$H$25:$XFD$74, MATCH($E36, 'RAB input'!$E$25:$E$74, 0), MATCH(AS$4, RAB_years, 0)) -> 0 | AT36: =INDEX('RAB input'!$H$25:$XFD$74, MATCH($E36, 'RAB input'!$E$25:$E$74, 0), MATCH(AT$4, RAB_years, 0)) -> 0 | AU36: =INDEX('RAB input'!$H$25:$XFD$74, MATCH($E36, 'RAB input'!$E$25:$E$74, 0), MATCH(AU$4, RAB_years, 0)) -> 0 | AV36: =INDEX('RAB input'!$H$25:$XFD$74, MATCH($E36, 'RAB input'!$E$25:$E$74, 0), MATCH(AV$4, RAB_years, 0)) -> 0 | AW36: =INDEX('RAB input'!$H$25:$XFD$74, MATCH($E36, 'RAB input'!$E$25:$E$74, 0), MATCH(AW$4, RAB_years, 0)) -> 0 | AX36: =INDEX('RAB input'!$H$25:$XFD$74, MATCH($E36, 'RAB input'!$E$25:$E$74, 0), MATCH(AX$4, RAB_years, 0)) -> 0 | AY36: =INDEX('RAB input'!$H$25:$XFD$74, MATCH($E36, 'RAB input'!$E$25:$E$74, 0), MATCH(AY$4, RAB_years, 0)) -> 0 | AZ36: =INDEX('RAB input'!$H$25:$XFD$74, MATCH($E36, 'RAB input'!$E$25:$E$74, 0), MATCH(AZ$4, RAB_years, 0)) -> 0 | BA36: =INDEX('RAB input'!$H$25:$XFD$74, MATCH($E36, 'RAB input'!$E$25:$E$74, 0), MATCH(BA$4, RAB_years, 0)) -> 0 | BB36: =INDEX('RAB input'!$H$25:$XFD$74, MATCH($E36, 'RAB input'!$E$25:$E$74, 0), MATCH(BB$4, RAB_years, 0)) -> 0 | BC36: =INDEX('RAB input'!$H$25:$XFD$74, MATCH($E36, 'RAB input'!$E$25:$E$74, 0), MATCH(BC$4, RAB_years, 0)) -> 0 | BD36: =INDEX('RAB input'!$H$25:$XFD$74, MATCH($E36, 'RAB input'!$E$25:$E$74, 0), MATCH(BD$4, RAB_years, 0)) -> 0 | BE36: =INDEX('RAB input'!$H$25:$XFD$74, MATCH($E36, 'RAB input'!$E$25:$E$74, 0), MATCH(BE$4, RAB_years, 0)) -> 0 | BF36: =INDEX('RAB input'!$H$25:$XFD$74, MATCH($E36, 'RAB input'!$E$25:$E$74, 0), MATCH(BF$4, RAB_years, 0)) -> 0 | BG36: =INDEX('RAB input'!$H$25:$XFD$74, MATCH($E36, 'RAB input'!$E$25:$E$74, 0), MATCH(BG$4, RAB_years, 0)) -> 0 | BH36: =INDEX('RAB input'!$H$25:$XFD$74, MATCH($E36, 'RAB input'!$E$25:$E$74, 0), MATCH(BH$4, RAB_years, 0)) -> 0 | BI36: =INDEX('RAB input'!$H$25:$XFD$74, MATCH($E36, 'RAB input'!$E$25:$E$74, 0), MATCH(BI$4, RAB_years, 0)) -> 0 | BJ36: =INDEX('RAB input'!$H$25:$XFD$74, MATCH($E36, 'RAB input'!$E$25:$E$74, 0), MATCH(BJ$4, RAB_years, 0)) -> 0 | BK36: =INDEX('RAB input'!$H$25:$XFD$74, MATCH($E36, 'RAB input'!$E$25:$E$74, 0), MATCH(BK$4, RAB_years, 0)) -> 0 | BL36: =INDEX('RAB input'!$H$25:$XFD$74, MATCH($E36, 'RAB input'!$E$25:$E$74, 0), MATCH(BL$4, RAB_years, 0)) -> 0 | BM36: =INDEX('RAB input'!$H$25:$XFD$74, MATCH($E36, 'RAB input'!$E$25:$E$74, 0), MATCH(BM$4, RAB_years, 0)) -> 0 | BN36: =INDEX('RAB input'!$H$25:$XFD$74, MATCH($E36, 'RAB input'!$E$25:$E$74, 0), MATCH(BN$4, RAB_years, 0)) -> 0 | BO36: =INDEX('RAB input'!$H$25:$XFD$74, MATCH($E36, 'RAB input'!$E$25:$E$74, 0), MATCH(BO$4, RAB_years, 0)) -> 0 | BP36: =INDEX('RAB input'!$H$25:$XFD$74, MATCH($E36, 'RAB input'!$E$25:$E$74, 0), MATCH(BP$4, RAB_years, 0)) -> 0 | BQ36: =INDEX('RAB input'!$H$25:$XFD$74, MATCH($E36, 'RAB input'!$E$25:$E$74, 0), MATCH(BQ$4, RAB_years, 0)) -> 0 | BR36: =INDEX('RAB input'!$H$25:$XFD$74, MATCH($E36, 'RAB input'!$E$25:$E$74, 0), MATCH(BR$4, RAB_years, 0)) -> 0 | BS36: =INDEX('RAB input'!$H$25:$XFD$74, MATCH($E36, 'RAB input'!$E$25:$E$74, 0), MATCH(BS$4, RAB_years, 0)) -> 0 | BT36: =INDEX('RAB input'!$H$25:$XFD$74, MATCH($E36, 'RAB input'!$E$25:$E$74, 0), MATCH(BT$4, RAB_years, 0)) -> 0 | BU36: =INDEX('RAB input'!$H$25:$XFD$74, MATCH($E36, 'RAB input'!$E$25:$E$74, 0), MATCH(BU$4, RAB_years, 0)) -> 0 | BV36: =INDEX('RAB input'!$H$25:$XFD$74, MATCH($E36, 'RAB input'!$E$25:$E$74, 0), MATCH(BV$4, RAB_years, 0)) -> 0 | BW36: =INDEX('RAB input'!$H$25:$XFD$74, MATCH($E36, 'RAB input'!$E$25:$E$74, 0), MATCH(BW$4, RAB_years, 0)) -> 0 | BX36: =INDEX('RAB input'!$H$25:$XFD$74, MATCH($E36, 'RAB input'!$E$25:$E$74, 0), MATCH(BX$4, RAB_years, 0)) -> 0 | BY36: =INDEX('RAB input'!$H$25:$XFD$74, MATCH($E36, 'RAB input'!$E$25:$E$74, 0), MATCH(BY$4, RAB_years, 0)) -> 0 | BZ36: =INDEX('RAB input'!$H$25:$XFD$74, MATCH($E36, 'RAB input'!$E$25:$E$74, 0), MATCH(BZ$4, RAB_years, 0)) -> 0 | CA36: =INDEX('RAB input'!$H$25:$XFD$74, MATCH($E36, 'RAB input'!$E$25:$E$74, 0), MATCH(CA$4, RAB_years, 0)) -> 0 | CB36: =INDEX('RAB input'!$H$25:$XFD$74, MATCH($E36, 'RAB input'!$E$25:$E$74, 0), MATCH(CB$4, RAB_years, 0)) -> 0 | CC36: =INDEX('RAB input'!$H$25:$XFD$74, MATCH($E36, 'RAB input'!$E$25:$E$74, 0), MATCH(CC$4, RAB_years, 0)) -> 0
D37: 20 | E37: ='RAB input'!E44 -> Underground Low Voltage Lines | G37: 24.96832868 | H37: 5.024722021 | I37: =INDEX('RAB input'!$H$25:$XFD$74, MATCH($E37, 'RAB input'!$E$25:$E$74, 0), MATCH(I$4, RAB_years, 0)) -> 3.272253338 | J37: =INDEX('RAB input'!$H$25:$XFD$74, MATCH($E37, 'RAB input'!$E$25:$E$74, 0), MATCH(J$4, RAB_years, 0)) -> 3.646301723 | K37: =INDEX('RAB input'!$H$25:$XFD$74, MATCH($E37, 'RAB input'!$E$25:$E$74, 0), MATCH(K$4, RAB_years, 0)) -> 4.948 | L37: =INDEX('RAB input'!$H$25:$XFD$74, MATCH($E37, 'RAB input'!$E$25:$E$74, 0), MATCH(L$4, RAB_years, 0)) -> 3.773308967 | M37: =INDEX('RAB input'!$H$25:$XFD$74, MATCH($E37, 'RAB input'!$E$25:$E$74, 0), MATCH(M$4, RAB_years, 0)) -> 4.479286801 | N37: =INDEX('RAB input'!$H$25:$XFD$74, MATCH($E37, 'RAB input'!$E$25:$E$74, 0), MATCH(N$4, RAB_years, 0)) -> 7.786631394 | O37: =INDEX('RAB input'!$H$25:$XFD$74, MATCH($E37, 'RAB input'!$E$25:$E$74, 0), MATCH(O$4, RAB_years, 0)) -> 6.954301435 | P37: =INDEX('RAB input'!$H$25:$XFD$74, MATCH($E37, 'RAB input'!$E$25:$E$74, 0), MATCH(P$4, RAB_years, 0)) -> 4.911643292 | Q37: =INDEX('RAB input'!$H$25:$XFD$74, MATCH($E37, 'RAB input'!$E$25:$E$74, 0), MATCH(Q$4, RAB_years, 0)) -> 6.244931411 | R37: =INDEX('RAB input'!$H$25:$XFD$74, MATCH($E37, 'RAB input'!$E$25:$E$74, 0), MATCH(R$4, RAB_years, 0)) -> 4.697693156 | S37: =INDEX('RAB input'!$H$25:$XFD$74, MATCH($E37, 'RAB input'!$E$25:$E$74, 0), MATCH(S$4, RAB_years, 0)) -> 6.526454912 | T37: =INDEX('RAB input'!$H$25:$XFD$74, MATCH($E37, 'RAB input'!$E$25:$E$74, 0), MATCH(T$4, RAB_years, 0)) -> 6.216470827 | U37: =INDEX('RAB input'!$H$25:$XFD$74, MATCH($E37, 'RAB input'!$E$25:$E$74, 0), MATCH(U$4, RAB_years, 0)) -> 0 | V37: =INDEX('RAB input'!$H$25:$XFD$74, MATCH($E37, 'RAB input'!$E$25:$E$74, 0), MATCH(V$4, RAB_years, 0)) -> 0 | W37: =INDEX('RAB input'!$H$25:$XFD$74, MATCH($E37, 'RAB input'!$E$25:$E$74, 0), MATCH(W$4, RAB_years, 0)) -> 0 | X37: =INDEX('RAB input'!$H$25:$XFD$74, MATCH($E37, 'RAB input'!$E$25:$E$74, 0), MATCH(X$4, RAB_years, 0)) -> 0 | Y37: =INDEX('RAB input'!$H$25:$XFD$74, MATCH($E37, 'RAB input'!$E$25:$E$74, 0), MATCH(Y$4, RAB_years, 0)) -> 0 | Z37: =INDEX('RAB input'!$H$25:$XFD$74, MATCH($E37, 'RAB input'!$E$25:$E$74, 0), MATCH(Z$4, RAB_years, 0)) -> 0 | AA37: =INDEX('RAB input'!$H$25:$XFD$74, MATCH($E37, 'RAB input'!$E$25:$E$74, 0), MATCH(AA$4, RAB_years, 0)) -> 0 | AB37: =INDEX('RAB input'!$H$25:$XFD$74, MATCH($E37, 'RAB input'!$E$25:$E$74, 0), MATCH(AB$4, RAB_years, 0)) -> 0 | AC37: =INDEX('RAB input'!$H$25:$XFD$74, MATCH($E37, 'RAB input'!$E$25:$E$74, 0), MATCH(AC$4, RAB_years, 0)) -> 0 | AD37: =INDEX('RAB input'!$H$25:$XFD$74, MATCH($E37, 'RAB input'!$E$25:$E$74, 0), MATCH(AD$4, RAB_years, 0)) -> 0 | AE37: =INDEX('RAB input'!$H$25:$XFD$74, MATCH($E37, 'RAB input'!$E$25:$E$74, 0), MATCH(AE$4, RAB_years, 0)) -> 0 | AF37: =INDEX('RAB input'!$H$25:$XFD$74, MATCH($E37, 'RAB input'!$E$25:$E$74, 0), MATCH(AF$4, RAB_years, 0)) -> 0 | AG37: =INDEX('RAB input'!$H$25:$XFD$74, MATCH($E37, 'RAB input'!$E$25:$E$74, 0), MATCH(AG$4, RAB_years, 0)) -> 0 | AH37: =INDEX('RAB input'!$H$25:$XFD$74, MATCH($E37, 'RAB input'!$E$25:$E$74, 0), MATCH(AH$4, RAB_years, 0)) -> 0 | AI37: =INDEX('RAB input'!$H$25:$XFD$74, MATCH($E37, 'RAB input'!$E$25:$E$74, 0), MATCH(AI$4, RAB_years, 0)) -> 0 | AJ37: =INDEX('RAB input'!$H$25:$XFD$74, MATCH($E37, 'RAB input'!$E$25:$E$74, 0), MATCH(AJ$4, RAB_years, 0)) -> 0 | AK37: =INDEX('RAB input'!$H$25:$XFD$74, MATCH($E37, 'RAB input'!$E$25:$E$74, 0), MATCH(AK$4, RAB_years, 0)) -> 0 | AL37: =INDEX('RAB input'!$H$25:$XFD$74, MATCH($E37, 'RAB input'!$E$25:$E$74, 0), MATCH(AL$4, RAB_years, 0)) -> 0 | AM37: =INDEX('RAB input'!$H$25:$XFD$74, MATCH($E37, 'RAB input'!$E$25:$E$74, 0), MATCH(AM$4, RAB_years, 0)) -> 0 | AN37: =INDEX('RAB input'!$H$25:$XFD$74, MATCH($E37, 'RAB input'!$E$25:$E$74, 0), MATCH(AN$4, RAB_years, 0)) -> 0 | AO37: =INDEX('RAB input'!$H$25:$XFD$74, MATCH($E37, 'RAB input'!$E$25:$E$74, 0), MATCH(AO$4, RAB_years, 0)) -> 0 | AP37: =INDEX('RAB input'!$H$25:$XFD$74, MATCH($E37, 'RAB input'!$E$25:$E$74, 0), MATCH(AP$4, RAB_years, 0)) -> 0 | AQ37: =INDEX('RAB input'!$H$25:$XFD$74, MATCH($E37, 'RAB input'!$E$25:$E$74, 0), MATCH(AQ$4, RAB_years, 0)) -> 0 | AR37: =INDEX('RAB input'!$H$25:$XFD$74, MATCH($E37, 'RAB input'!$E$25:$E$74, 0), MATCH(AR$4, RAB_years, 0)) -> 0 | AS37: =INDEX('RAB input'!$H$25:$XFD$74, MATCH($E37, 'RAB input'!$E$25:$E$74, 0), MATCH(AS$4, RAB_years, 0)) -> 0 | AT37: =INDEX('RAB input'!$H$25:$XFD$74, MATCH($E37, 'RAB input'!$E$25:$E$74, 0), MATCH(AT$4, RAB_years, 0)) -> 0 | AU37: =INDEX('RAB input'!$H$25:$XFD$74, MATCH($E37, 'RAB input'!$E$25:$E$74, 0), MATCH(AU$4, RAB_years, 0)) -> 0 | AV37: =INDEX('RAB input'!$H$25:$XFD$74, MATCH($E37, 'RAB input'!$E$25:$E$74, 0), MATCH(AV$4, RAB_years, 0)) -> 0 | AW37: =INDEX('RAB input'!$H$25:$XFD$74, MATCH($E37, 'RAB input'!$E$25:$E$74, 0), MATCH(AW$4, RAB_years, 0)) -> 0 | AX37: =INDEX('RAB input'!$H$25:$XFD$74, MATCH($E37, 'RAB input'!$E$25:$E$74, 0), MATCH(AX$4, RAB_years, 0)) -> 0 | AY37: =INDEX('RAB input'!$H$25:$XFD$74, MATCH($E37, 'RAB input'!$E$25:$E$74, 0), MATCH(AY$4, RAB_years, 0)) -> 0 | AZ37: =INDEX('RAB input'!$H$25:$XFD$74, MATCH($E37, 'RAB input'!$E$25:$E$74, 0), MATCH(AZ$4, RAB_years, 0)) -> 0 | BA37: =INDEX('RAB input'!$H$25:$XFD$74, MATCH($E37, 'RAB input'!$E$25:$E$74, 0), MATCH(BA$4, RAB_years, 0)) -> 0 | BB37: =INDEX('RAB input'!$H$25:$XFD$74, MATCH($E37, 'RAB input'!$E$25:$E$74, 0), MATCH(BB$4, RAB_years, 0)) -> 0 | BC37: =INDEX('RAB input'!$H$25:$XFD$74, MATCH($E37, 'RAB input'!$E$25:$E$74, 0), MATCH(BC$4, RAB_years, 0)) -> 0 | BD37: =INDEX('RAB input'!$H$25:$XFD$74, MATCH($E37, 'RAB input'!$E$25:$E$74, 0), MATCH(BD$4, RAB_years, 0)) -> 0 | BE37: =INDEX('RAB input'!$H$25:$XFD$74, MATCH($E37, 'RAB input'!$E$25:$E$74, 0), MATCH(BE$4, RAB_years, 0)) -> 0 | BF37: =INDEX('RAB input'!$H$25:$XFD$74, MATCH($E37, 'RAB input'!$E$25:$E$74, 0), MATCH(BF$4, RAB_years, 0)) -> 0 | BG37: =INDEX('RAB input'!$H$25:$XFD$74, MATCH($E37, 'RAB input'!$E$25:$E$74, 0), MATCH(BG$4, RAB_years, 0)) -> 0 | BH37: =INDEX('RAB input'!$H$25:$XFD$74, MATCH($E37, 'RAB input'!$E$25:$E$74, 0), MATCH(BH$4, RAB_years, 0)) -> 0 | BI37: =INDEX('RAB input'!$H$25:$XFD$74, MATCH($E37, 'RAB input'!$E$25:$E$74, 0), MATCH(BI$4, RAB_years, 0)) -> 0 | BJ37: =INDEX('RAB input'!$H$25:$XFD$74, MATCH($E37, 'RAB input'!$E$25:$E$74, 0), MATCH(BJ$4, RAB_years, 0)) -> 0 | BK37: =INDEX('RAB input'!$H$25:$XFD$74, MATCH($E37, 'RAB input'!$E$25:$E$74, 0), MATCH(BK$4, RAB_years, 0)) -> 0 | BL37: =INDEX('RAB input'!$H$25:$XFD$74, MATCH($E37, 'RAB input'!$E$25:$E$74, 0), MATCH(BL$4, RAB_years, 0)) -> 0 | BM37: =INDEX('RAB input'!$H$25:$XFD$74, MATCH($E37, 'RAB input'!$E$25:$E$74, 0), MATCH(BM$4, RAB_years, 0)) -> 0 | BN37: =INDEX('RAB input'!$H$25:$XFD$74, MATCH($E37, 'RAB input'!$E$25:$E$74, 0), MATCH(BN$4, RAB_years, 0)) -> 0 | BO37: =INDEX('RAB input'!$H$25:$XFD$74, MATCH($E37, 'RAB input'!$E$25:$E$74, 0), MATCH(BO$4, RAB_years, 0)) -> 0 | BP37: =INDEX('RAB input'!$H$25:$XFD$74, MATCH($E37, 'RAB input'!$E$25:$E$74, 0), MATCH(BP$4, RAB_years, 0)) -> 0 | BQ37: =INDEX('RAB input'!$H$25:$XFD$74, MATCH($E37, 'RAB input'!$E$25:$E$74, 0), MATCH(BQ$4, RAB_years, 0)) -> 0 | BR37: =INDEX('RAB input'!$H$25:$XFD$74, MATCH($E37, 'RAB input'!$E$25:$E$74, 0), MATCH(BR$4, RAB_years, 0)) -> 0 | BS37: =INDEX('RAB input'!$H$25:$XFD$74, MATCH($E37, 'RAB input'!$E$25:$E$74, 0), MATCH(BS$4, RAB_years, 0)) -> 0 | BT37: =INDEX('RAB input'!$H$25:$XFD$74, MATCH($E37, 'RAB input'!$E$25:$E$74, 0), MATCH(BT$4, RAB_years, 0)) -> 0 | BU37: =INDEX('RAB input'!$H$25:$XFD$74, MATCH($E37, 'RAB input'!$E$25:$E$74, 0), MATCH(BU$4, RAB_years, 0)) -> 0 | BV37: =INDEX('RAB input'!$H$25:$XFD$74, MATCH($E37, 'RAB input'!$E$25:$E$74, 0), MATCH(BV$4, RAB_years, 0)) -> 0 | BW37: =INDEX('RAB input'!$H$25:$XFD$74, MATCH($E37, 'RAB input'!$E$25:$E$74, 0), MATCH(BW$4, RAB_years, 0)) -> 0 | BX37: =INDEX('RAB input'!$H$25:$XFD$74, MATCH($E37, 'RAB input'!$E$25:$E$74, 0), MATCH(BX$4, RAB_years, 0)) -> 0 | BY37: =INDEX('RAB input'!$H$25:$XFD$74, MATCH($E37, 'RAB input'!$E$25:$E$74, 0), MATCH(BY$4, RAB_years, 0)) -> 0 | BZ37: =INDEX('RAB input'!$H$25:$XFD$74, MATCH($E37, 'RAB input'!$E$25:$E$74, 0), MATCH(BZ$4, RAB_years, 0)) -> 0 | CA37: =INDEX('RAB input'!$H$25:$XFD$74, MATCH($E37, 'RAB input'!$E$25:$E$74, 0), MATCH(CA$4, RAB_years, 0)) -> 0 | CB37: =INDEX('RAB input'!$H$25:$XFD$74, MATCH($E37, 'RAB input'!$E$25:$E$74, 0), MATCH(CB$4, RAB_years, 0)) -> 0 | CC37: =INDEX('RAB input'!$H$25:$XFD$74, MATCH($E37, 'RAB input'!$E$25:$E$74, 0), MATCH(CC$4, RAB_years, 0)) -> 0
D38: 21 | E38: ='RAB input'!E45 -> Underground Low Voltage Common Trench | G38: 15.45539425 | H38: 3.44000129 | I38: =INDEX('RAB input'!$H$25:$XFD$74, MATCH($E38, 'RAB input'!$E$25:$E$74, 0), MATCH(I$4, RAB_years, 0)) -> 1.754810028 | J38: =INDEX('RAB input'!$H$25:$XFD$74, MATCH($E38, 'RAB input'!$E$25:$E$74, 0), MATCH(J$4, RAB_years, 0)) -> 1.612881207 | K38: =INDEX('RAB input'!$H$25:$XFD$74, MATCH($E38, 'RAB input'!$E$25:$E$74, 0), MATCH(K$4, RAB_years, 0)) -> 1.807 | L38: =INDEX('RAB input'!$H$25:$XFD$74, MATCH($E38, 'RAB input'!$E$25:$E$74, 0), MATCH(L$4, RAB_years, 0)) -> 1.944070083 | M38: =INDEX('RAB input'!$H$25:$XFD$74, MATCH($E38, 'RAB input'!$E$25:$E$74, 0), MATCH(M$4, RAB_years, 0)) -> 1.623609863 | N38: =INDEX('RAB input'!$H$25:$XFD$74, MATCH($E38, 'RAB input'!$E$25:$E$74, 0), MATCH(N$4, RAB_years, 0)) -> 2.658990069 | O38: =INDEX('RAB input'!$H$25:$XFD$74, MATCH($E38, 'RAB input'!$E$25:$E$74, 0), MATCH(O$4, RAB_years, 0)) -> 4.475656292 | P38: =INDEX('RAB input'!$H$25:$XFD$74, MATCH($E38, 'RAB input'!$E$25:$E$74, 0), MATCH(P$4, RAB_years, 0)) -> 3.785382553 | Q38: =INDEX('RAB input'!$H$25:$XFD$74, MATCH($E38, 'RAB input'!$E$25:$E$74, 0), MATCH(Q$4, RAB_years, 0)) -> 4.601055803 | R38: =INDEX('RAB input'!$H$25:$XFD$74, MATCH($E38, 'RAB input'!$E$25:$E$74, 0), MATCH(R$4, RAB_years, 0)) -> 3.744526192 | S38: =INDEX('RAB input'!$H$25:$XFD$74, MATCH($E38, 'RAB input'!$E$25:$E$74, 0), MATCH(S$4, RAB_years, 0)) -> 5.633796018 | T38: =INDEX('RAB input'!$H$25:$XFD$74, MATCH($E38, 'RAB input'!$E$25:$E$74, 0), MATCH(T$4, RAB_years, 0)) -> 4.586374247 | U38: =INDEX('RAB input'!$H$25:$XFD$74, MATCH($E38, 'RAB input'!$E$25:$E$74, 0), MATCH(U$4, RAB_years, 0)) -> 0 | V38: =INDEX('RAB input'!$H$25:$XFD$74, MATCH($E38, 'RAB input'!$E$25:$E$74, 0), MATCH(V$4, RAB_years, 0)) -> 0 | W38: =INDEX('RAB input'!$H$25:$XFD$74, MATCH($E38, 'RAB input'!$E$25:$E$74, 0), MATCH(W$4, RAB_years, 0)) -> 0 | X38: =INDEX('RAB input'!$H$25:$XFD$74, MATCH($E38, 'RAB input'!$E$25:$E$74, 0), MATCH(X$4, RAB_years, 0)) -> 0 | Y38: =INDEX('RAB input'!$H$25:$XFD$74, MATCH($E38, 'RAB input'!$E$25:$E$74, 0), MATCH(Y$4, RAB_years, 0)) -> 0 | Z38: =INDEX('RAB input'!$H$25:$XFD$74, MATCH($E38, 'RAB input'!$E$25:$E$74, 0), MATCH(Z$4, RAB_years, 0)) -> 0 | AA38: =INDEX('RAB input'!$H$25:$XFD$74, MATCH($E38, 'RAB input'!$E$25:$E$74, 0), MATCH(AA$4, RAB_years, 0)) -> 0 | AB38: =INDEX('RAB input'!$H$25:$XFD$74, MATCH($E38, 'RAB input'!$E$25:$E$74, 0), MATCH(AB$4, RAB_years, 0)) -> 0 | AC38: =INDEX('RAB input'!$H$25:$XFD$74, MATCH($E38, 'RAB input'!$E$25:$E$74, 0), MATCH(AC$4, RAB_years, 0)) -> 0 | AD38: =INDEX('RAB input'!$H$25:$XFD$74, MATCH($E38, 'RAB input'!$E$25:$E$74, 0), MATCH(AD$4, RAB_years, 0)) -> 0 | AE38: =INDEX('RAB input'!$H$25:$XFD$74, MATCH($E38, 'RAB input'!$E$25:$E$74, 0), MATCH(AE$4, RAB_years, 0)) -> 0 | AF38: =INDEX('RAB input'!$H$25:$XFD$74, MATCH($E38, 'RAB input'!$E$25:$E$74, 0), MATCH(AF$4, RAB_years, 0)) -> 0 | AG38: =INDEX('RAB input'!$H$25:$XFD$74, MATCH($E38, 'RAB input'!$E$25:$E$74, 0), MATCH(AG$4, RAB_years, 0)) -> 0 | AH38: =INDEX('RAB input'!$H$25:$XFD$74, MATCH($E38, 'RAB input'!$E$25:$E$74, 0), MATCH(AH$4, RAB_years, 0)) -> 0 | AI38: =INDEX('RAB input'!$H$25:$XFD$74, MATCH($E38, 'RAB input'!$E$25:$E$74, 0), MATCH(AI$4, RAB_years, 0)) -> 0 | AJ38: =INDEX('RAB input'!$H$25:$XFD$74, MATCH($E38, 'RAB input'!$E$25:$E$74, 0), MATCH(AJ$4, RAB_years, 0)) -> 0 | AK38: =INDEX('RAB input'!$H$25:$XFD$74, MATCH($E38, 'RAB input'!$E$25:$E$74, 0), MATCH(AK$4, RAB_years, 0)) -> 0 | AL38: =INDEX('RAB input'!$H$25:$XFD$74, MATCH($E38, 'RAB input'!$E$25:$E$74, 0), MATCH(AL$4, RAB_years, 0)) -> 0 | AM38: =INDEX('RAB input'!$H$25:$XFD$74, MATCH($E38, 'RAB input'!$E$25:$E$74, 0), MATCH(AM$4, RAB_years, 0)) -> 0 | AN38: =INDEX('RAB input'!$H$25:$XFD$74, MATCH($E38, 'RAB input'!$E$25:$E$74, 0), MATCH(AN$4, RAB_years, 0)) -> 0 | AO38: =INDEX('RAB input'!$H$25:$XFD$74, MATCH($E38, 'RAB input'!$E$25:$E$74, 0), MATCH(AO$4, RAB_years, 0)) -> 0 | AP38: =INDEX('RAB input'!$H$25:$XFD$74, MATCH($E38, 'RAB input'!$E$25:$E$74, 0), MATCH(AP$4, RAB_years, 0)) -> 0 | AQ38: =INDEX('RAB input'!$H$25:$XFD$74, MATCH($E38, 'RAB input'!$E$25:$E$74, 0), MATCH(AQ$4, RAB_years, 0)) -> 0 | AR38: =INDEX('RAB input'!$H$25:$XFD$74, MATCH($E38, 'RAB input'!$E$25:$E$74, 0), MATCH(AR$4, RAB_years, 0)) -> 0 | AS38: =INDEX('RAB input'!$H$25:$XFD$74, MATCH($E38, 'RAB input'!$E$25:$E$74, 0), MATCH(AS$4, RAB_years, 0)) -> 0 | AT38: =INDEX('RAB input'!$H$25:$XFD$74, MATCH($E38, 'RAB input'!$E$25:$E$74, 0), MATCH(AT$4, RAB_years, 0)) -> 0 | AU38: =INDEX('RAB input'!$H$25:$XFD$74, MATCH($E38, 'RAB input'!$E$25:$E$74, 0), MATCH(AU$4, RAB_years, 0)) -> 0 | AV38: =INDEX('RAB input'!$H$25:$XFD$74, MATCH($E38, 'RAB input'!$E$25:$E$74, 0), MATCH(AV$4, RAB_years, 0)) -> 0 | AW38: =INDEX('RAB input'!$H$25:$XFD$74, MATCH($E38, 'RAB input'!$E$25:$E$74, 0), MATCH(AW$4, RAB_years, 0)) -> 0 | AX38: =INDEX('RAB input'!$H$25:$XFD$74, MATCH($E38, 'RAB input'!$E$25:$E$74, 0), MATCH(AX$4, RAB_years, 0)) -> 0 | AY38: =INDEX('RAB input'!$H$25:$XFD$74, MATCH($E38, 'RAB input'!$E$25:$E$74, 0), MATCH(AY$4, RAB_years, 0)) -> 0 | AZ38: =INDEX('RAB input'!$H$25:$XFD$74, MATCH($E38, 'RAB input'!$E$25:$E$74, 0), MATCH(AZ$4, RAB_years, 0)) -> 0 | BA38: =INDEX('RAB input'!$H$25:$XFD$74, MATCH($E38, 'RAB input'!$E$25:$E$74, 0), MATCH(BA$4, RAB_years, 0)) -> 0 | BB38: =INDEX('RAB input'!$H$25:$XFD$74, MATCH($E38, 'RAB input'!$E$25:$E$74, 0), MATCH(BB$4, RAB_years, 0)) -> 0 | BC38: =INDEX('RAB input'!$H$25:$XFD$74, MATCH($E38, 'RAB input'!$E$25:$E$74, 0), MATCH(BC$4, RAB_years, 0)) -> 0 | BD38: =INDEX('RAB input'!$H$25:$XFD$74, MATCH($E38, 'RAB input'!$E$25:$E$74, 0), MATCH(BD$4, RAB_years, 0)) -> 0 | BE38: =INDEX('RAB input'!$H$25:$XFD$74, MATCH($E38, 'RAB input'!$E$25:$E$74, 0), MATCH(BE$4, RAB_years, 0)) -> 0 | BF38: =INDEX('RAB input'!$H$25:$XFD$74, MATCH($E38, 'RAB input'!$E$25:$E$74, 0), MATCH(BF$4, RAB_years, 0)) -> 0 | BG38: =INDEX('RAB input'!$H$25:$XFD$74, MATCH($E38, 'RAB input'!$E$25:$E$74, 0), MATCH(BG$4, RAB_years, 0)) -> 0 | BH38: =INDEX('RAB input'!$H$25:$XFD$74, MATCH($E38, 'RAB input'!$E$25:$E$74, 0), MATCH(BH$4, RAB_years, 0)) -> 0 | BI38: =INDEX('RAB input'!$H$25:$XFD$74, MATCH($E38, 'RAB input'!$E$25:$E$74, 0), MATCH(BI$4, RAB_years, 0)) -> 0 | BJ38: =INDEX('RAB input'!$H$25:$XFD$74, MATCH($E38, 'RAB input'!$E$25:$E$74, 0), MATCH(BJ$4, RAB_years, 0)) -> 0 | BK38: =INDEX('RAB input'!$H$25:$XFD$74, MATCH($E38, 'RAB input'!$E$25:$E$74, 0), MATCH(BK$4, RAB_years, 0)) -> 0 | BL38: =INDEX('RAB input'!$H$25:$XFD$74, MATCH($E38, 'RAB input'!$E$25:$E$74, 0), MATCH(BL$4, RAB_years, 0)) -> 0 | BM38: =INDEX('RAB input'!$H$25:$XFD$74, MATCH($E38, 'RAB input'!$E$25:$E$74, 0), MATCH(BM$4, RAB_years, 0)) -> 0 | BN38: =INDEX('RAB input'!$H$25:$XFD$74, MATCH($E38, 'RAB input'!$E$25:$E$74, 0), MATCH(BN$4, RAB_years, 0)) -> 0 | BO38: =INDEX('RAB input'!$H$25:$XFD$74, MATCH($E38, 'RAB input'!$E$25:$E$74, 0), MATCH(BO$4, RAB_years, 0)) -> 0 | BP38: =INDEX('RAB input'!$H$25:$XFD$74, MATCH($E38, 'RAB input'!$E$25:$E$74, 0), MATCH(BP$4, RAB_years, 0)) -> 0 | BQ38: =INDEX('RAB input'!$H$25:$XFD$74, MATCH($E38, 'RAB input'!$E$25:$E$74, 0), MATCH(BQ$4, RAB_years, 0)) -> 0 | BR38: =INDEX('RAB input'!$H$25:$XFD$74, MATCH($E38, 'RAB input'!$E$25:$E$74, 0), MATCH(BR$4, RAB_years, 0)) -> 0 | BS38: =INDEX('RAB input'!$H$25:$XFD$74, MATCH($E38, 'RAB input'!$E$25:$E$74, 0), MATCH(BS$4, RAB_years, 0)) -> 0 | BT38: =INDEX('RAB input'!$H$25:$XFD$74, MATCH($E38, 'RAB input'!$E$25:$E$74, 0), MATCH(BT$4, RAB_years, 0)) -> 0 | BU38: =INDEX('RAB input'!$H$25:$XFD$74, MATCH($E38, 'RAB input'!$E$25:$E$74, 0), MATCH(BU$4, RAB_years, 0)) -> 0 | BV38: =INDEX('RAB input'!$H$25:$XFD$74, MATCH($E38, 'RAB input'!$E$25:$E$74, 0), MATCH(BV$4, RAB_years, 0)) -> 0 | BW38: =INDEX('RAB input'!$H$25:$XFD$74, MATCH($E38, 'RAB input'!$E$25:$E$74, 0), MATCH(BW$4, RAB_years, 0)) -> 0 | BX38: =INDEX('RAB input'!$H$25:$XFD$74, MATCH($E38, 'RAB input'!$E$25:$E$74, 0), MATCH(BX$4, RAB_years, 0)) -> 0 | BY38: =INDEX('RAB input'!$H$25:$XFD$74, MATCH($E38, 'RAB input'!$E$25:$E$74, 0), MATCH(BY$4, RAB_years, 0)) -> 0 | BZ38: =INDEX('RAB input'!$H$25:$XFD$74, MATCH($E38, 'RAB input'!$E$25:$E$74, 0), MATCH(BZ$4, RAB_years, 0)) -> 0 | CA38: =INDEX('RAB input'!$H$25:$XFD$74, MATCH($E38, 'RAB input'!$E$25:$E$74, 0), MATCH(CA$4, RAB_years, 0)) -> 0 | CB38: =INDEX('RAB input'!$H$25:$XFD$74, MATCH($E38, 'RAB input'!$E$25:$E$74, 0), MATCH(CB$4, RAB_years, 0)) -> 0 | CC38: =INDEX('RAB input'!$H$25:$XFD$74, MATCH($E38, 'RAB input'!$E$25:$E$74, 0), MATCH(CC$4, RAB_years, 0)) -> 0
D39: 22 | E39: ='RAB input'!E46 -> HVST Service Connections | G39: 0 | H39: 0 | I39: =INDEX('RAB input'!$H$25:$XFD$74, MATCH($E39, 'RAB input'!$E$25:$E$74, 0), MATCH(I$4, RAB_years, 0)) -> 0 | J39: =INDEX('RAB input'!$H$25:$XFD$74, MATCH($E39, 'RAB input'!$E$25:$E$74, 0), MATCH(J$4, RAB_years, 0)) -> 0 | K39: =INDEX('RAB input'!$H$25:$XFD$74, MATCH($E39, 'RAB input'!$E$25:$E$74, 0), MATCH(K$4, RAB_years, 0)) -> 0 | L39: =INDEX('RAB input'!$H$25:$XFD$74, MATCH($E39, 'RAB input'!$E$25:$E$74, 0), MATCH(L$4, RAB_years, 0)) -> 0 | M39: =INDEX('RAB input'!$H$25:$XFD$74, MATCH($E39, 'RAB input'!$E$25:$E$74, 0), MATCH(M$4, RAB_years, 0)) -> 0 | N39: =INDEX('RAB input'!$H$25:$XFD$74, MATCH($E39, 'RAB input'!$E$25:$E$74, 0), MATCH(N$4, RAB_years, 0)) -> 0 | O39: =INDEX('RAB input'!$H$25:$XFD$74, MATCH($E39, 'RAB input'!$E$25:$E$74, 0), MATCH(O$4, RAB_years, 0)) -> 0 | P39: =INDEX('RAB input'!$H$25:$XFD$74, MATCH($E39, 'RAB input'!$E$25:$E$74, 0), MATCH(P$4, RAB_years, 0)) -> 0 | Q39: =INDEX('RAB input'!$H$25:$XFD$74, MATCH($E39, 'RAB input'!$E$25:$E$74, 0), MATCH(Q$4, RAB_years, 0)) -> 0 | R39: =INDEX('RAB input'!$H$25:$XFD$74, MATCH($E39, 'RAB input'!$E$25:$E$74, 0), MATCH(R$4, RAB_years, 0)) -> 0 | S39: =INDEX('RAB input'!$H$25:$XFD$74, MATCH($E39, 'RAB input'!$E$25:$E$74, 0), MATCH(S$4, RAB_years, 0)) -> 0 | T39: =INDEX('RAB input'!$H$25:$XFD$74, MATCH($E39, 'RAB input'!$E$25:$E$74, 0), MATCH(T$4, RAB_years, 0)) -> 0 | U39: =INDEX('RAB input'!$H$25:$XFD$74, MATCH($E39, 'RAB input'!$E$25:$E$74, 0), MATCH(U$4, RAB_years, 0)) -> 0 | V39: =INDEX('RAB input'!$H$25:$XFD$74, MATCH($E39, 'RAB input'!$E$25:$E$74, 0), MATCH(V$4, RAB_years, 0)) -> 0 | W39: =INDEX('RAB input'!$H$25:$XFD$74, MATCH($E39, 'RAB input'!$E$25:$E$74, 0), MATCH(W$4, RAB_years, 0)) -> 0 | X39: =INDEX('RAB input'!$H$25:$XFD$74, MATCH($E39, 'RAB input'!$E$25:$E$74, 0), MATCH(X$4, RAB_years, 0)) -> 0 | Y39: =INDEX('RAB input'!$H$25:$XFD$74, MATCH($E39, 'RAB input'!$E$25:$E$74, 0), MATCH(Y$4, RAB_years, 0)) -> 0 | Z39: =INDEX('RAB input'!$H$25:$XFD$74, MATCH($E39, 'RAB input'!$E$25:$E$74, 0), MATCH(Z$4, RAB_years, 0)) -> 0 | AA39: =INDEX('RAB input'!$H$25:$XFD$74, MATCH($E39, 'RAB input'!$E$25:$E$74, 0), MATCH(AA$4, RAB_years, 0)) -> 0 | AB39: =INDEX('RAB input'!$H$25:$XFD$74, MATCH($E39, 'RAB input'!$E$25:$E$74, 0), MATCH(AB$4, RAB_years, 0)) -> 0 | AC39: =INDEX('RAB input'!$H$25:$XFD$74, MATCH($E39, 'RAB input'!$E$25:$E$74, 0), MATCH(AC$4, RAB_years, 0)) -> 0 | AD39: =INDEX('RAB input'!$H$25:$XFD$74, MATCH($E39, 'RAB input'!$E$25:$E$74, 0), MATCH(AD$4, RAB_years, 0)) -> 0 | AE39: =INDEX('RAB input'!$H$25:$XFD$74, MATCH($E39, 'RAB input'!$E$25:$E$74, 0), MATCH(AE$4, RAB_years, 0)) -> 0 | AF39: =INDEX('RAB input'!$H$25:$XFD$74, MATCH($E39, 'RAB input'!$E$25:$E$74, 0), MATCH(AF$4, RAB_years, 0)) -> 0 | AG39: =INDEX('RAB input'!$H$25:$XFD$74, MATCH($E39, 'RAB input'!$E$25:$E$74, 0), MATCH(AG$4, RAB_years, 0)) -> 0 | AH39: =INDEX('RAB input'!$H$25:$XFD$74, MATCH($E39, 'RAB input'!$E$25:$E$74, 0), MATCH(AH$4, RAB_years, 0)) -> 0 | AI39: =INDEX('RAB input'!$H$25:$XFD$74, MATCH($E39, 'RAB input'!$E$25:$E$74, 0), MATCH(AI$4, RAB_years, 0)) -> 0 | AJ39: =INDEX('RAB input'!$H$25:$XFD$74, MATCH($E39, 'RAB input'!$E$25:$E$74, 0), MATCH(AJ$4, RAB_years, 0)) -> 0 | AK39: =INDEX('RAB input'!$H$25:$XFD$74, MATCH($E39, 'RAB input'!$E$25:$E$74, 0), MATCH(AK$4, RAB_years, 0)) -> 0 | AL39: =INDEX('RAB input'!$H$25:$XFD$74, MATCH($E39, 'RAB input'!$E$25:$E$74, 0), MATCH(AL$4, RAB_years, 0)) -> 0 | AM39: =INDEX('RAB input'!$H$25:$XFD$74, MATCH($E39, 'RAB input'!$E$25:$E$74, 0), MATCH(AM$4, RAB_years, 0)) -> 0 | AN39: =INDEX('RAB input'!$H$25:$XFD$74, MATCH($E39, 'RAB input'!$E$25:$E$74, 0), MATCH(AN$4, RAB_years, 0)) -> 0 | AO39: =INDEX('RAB input'!$H$25:$XFD$74, MATCH($E39, 'RAB input'!$E$25:$E$74, 0), MATCH(AO$4, RAB_years, 0)) -> 0 | AP39: =INDEX('RAB input'!$H$25:$XFD$74, MATCH($E39, 'RAB input'!$E$25:$E$74, 0), MATCH(AP$4, RAB_years, 0)) -> 0 | AQ39: =INDEX('RAB input'!$H$25:$XFD$74, MATCH($E39, 'RAB input'!$E$25:$E$74, 0), MATCH(AQ$4, RAB_years, 0)) -> 0 | AR39: =INDEX('RAB input'!$H$25:$XFD$74, MATCH($E39, 'RAB input'!$E$25:$E$74, 0), MATCH(AR$4, RAB_years, 0)) -> 0 | AS39: =INDEX('RAB input'!$H$25:$XFD$74, MATCH($E39, 'RAB input'!$E$25:$E$74, 0), MATCH(AS$4, RAB_years, 0)) -> 0 | AT39: =INDEX('RAB input'!$H$25:$XFD$74, MATCH($E39, 'RAB input'!$E$25:$E$74, 0), MATCH(AT$4, RAB_years, 0)) -> 0 | AU39: =INDEX('RAB input'!$H$25:$XFD$74, MATCH($E39, 'RAB input'!$E$25:$E$74, 0), MATCH(AU$4, RAB_years, 0)) -> 0 | AV39: =INDEX('RAB input'!$H$25:$XFD$74, MATCH($E39, 'RAB input'!$E$25:$E$74, 0), MATCH(AV$4, RAB_years, 0)) -> 0 | AW39: =INDEX('RAB input'!$H$25:$XFD$74, MATCH($E39, 'RAB input'!$E$25:$E$74, 0), MATCH(AW$4, RAB_years, 0)) -> 0 | AX39: =INDEX('RAB input'!$H$25:$XFD$74, MATCH($E39, 'RAB input'!$E$25:$E$74, 0), MATCH(AX$4, RAB_years, 0)) -> 0 | AY39: =INDEX('RAB input'!$H$25:$XFD$74, MATCH($E39, 'RAB input'!$E$25:$E$74, 0), MATCH(AY$4, RAB_years, 0)) -> 0 | AZ39: =INDEX('RAB input'!$H$25:$XFD$74, MATCH($E39, 'RAB input'!$E$25:$E$74, 0), MATCH(AZ$4, RAB_years, 0)) -> 0 | BA39: =INDEX('RAB input'!$H$25:$XFD$74, MATCH($E39, 'RAB input'!$E$25:$E$74, 0), MATCH(BA$4, RAB_years, 0)) -> 0 | BB39: =INDEX('RAB input'!$H$25:$XFD$74, MATCH($E39, 'RAB input'!$E$25:$E$74, 0), MATCH(BB$4, RAB_years, 0)) -> 0 | BC39: =INDEX('RAB input'!$H$25:$XFD$74, MATCH($E39, 'RAB input'!$E$25:$E$74, 0), MATCH(BC$4, RAB_years, 0)) -> 0 | BD39: =INDEX('RAB input'!$H$25:$XFD$74, MATCH($E39, 'RAB input'!$E$25:$E$74, 0), MATCH(BD$4, RAB_years, 0)) -> 0 | BE39: =INDEX('RAB input'!$H$25:$XFD$74, MATCH($E39, 'RAB input'!$E$25:$E$74, 0), MATCH(BE$4, RAB_years, 0)) -> 0 | BF39: =INDEX('RAB input'!$H$25:$XFD$74, MATCH($E39, 'RAB input'!$E$25:$E$74, 0), MATCH(BF$4, RAB_years, 0)) -> 0 | BG39: =INDEX('RAB input'!$H$25:$XFD$74, MATCH($E39, 'RAB input'!$E$25:$E$74, 0), MATCH(BG$4, RAB_years, 0)) -> 0 | BH39: =INDEX('RAB input'!$H$25:$XFD$74, MATCH($E39, 'RAB input'!$E$25:$E$74, 0), MATCH(BH$4, RAB_years, 0)) -> 0 | BI39: =INDEX('RAB input'!$H$25:$XFD$74, MATCH($E39, 'RAB input'!$E$25:$E$74, 0), MATCH(BI$4, RAB_years, 0)) -> 0 | BJ39: =INDEX('RAB input'!$H$25:$XFD$74, MATCH($E39, 'RAB input'!$E$25:$E$74, 0), MATCH(BJ$4, RAB_years, 0)) -> 0 | BK39: =INDEX('RAB input'!$H$25:$XFD$74, MATCH($E39, 'RAB input'!$E$25:$E$74, 0), MATCH(BK$4, RAB_years, 0)) -> 0 | BL39: =INDEX('RAB input'!$H$25:$XFD$74, MATCH($E39, 'RAB input'!$E$25:$E$74, 0), MATCH(BL$4, RAB_years, 0)) -> 0 | BM39: =INDEX('RAB input'!$H$25:$XFD$74, MATCH($E39, 'RAB input'!$E$25:$E$74, 0), MATCH(BM$4, RAB_years, 0)) -> 0 | BN39: =INDEX('RAB input'!$H$25:$XFD$74, MATCH($E39, 'RAB input'!$E$25:$E$74, 0), MATCH(BN$4, RAB_years, 0)) -> 0 | BO39: =INDEX('RAB input'!$H$25:$XFD$74, MATCH($E39, 'RAB input'!$E$25:$E$74, 0), MATCH(BO$4, RAB_years, 0)) -> 0 | BP39: =INDEX('RAB input'!$H$25:$XFD$74, MATCH($E39, 'RAB input'!$E$25:$E$74, 0), MATCH(BP$4, RAB_years, 0)) -> 0 | BQ39: =INDEX('RAB input'!$H$25:$XFD$74, MATCH($E39, 'RAB input'!$E$25:$E$74, 0), MATCH(BQ$4, RAB_years, 0)) -> 0 | BR39: =INDEX('RAB input'!$H$25:$XFD$74, MATCH($E39, 'RAB input'!$E$25:$E$74, 0), MATCH(BR$4, RAB_years, 0)) -> 0 | BS39: =INDEX('RAB input'!$H$25:$XFD$74, MATCH($E39, 'RAB input'!$E$25:$E$74, 0), MATCH(BS$4, RAB_years, 0)) -> 0 | BT39: =INDEX('RAB input'!$H$25:$XFD$74, MATCH($E39, 'RAB input'!$E$25:$E$74, 0), MATCH(BT$4, RAB_years, 0)) -> 0 | BU39: =INDEX('RAB input'!$H$25:$XFD$74, MATCH($E39, 'RAB input'!$E$25:$E$74, 0), MATCH(BU$4, RAB_years, 0)) -> 0 | BV39: =INDEX('RAB input'!$H$25:$XFD$74, MATCH($E39, 'RAB input'!$E$25:$E$74, 0), MATCH(BV$4, RAB_years, 0)) -> 0 | BW39: =INDEX('RAB input'!$H$25:$XFD$74, MATCH($E39, 'RAB input'!$E$25:$E$74, 0), MATCH(BW$4, RAB_years, 0)) -> 0 | BX39: =INDEX('RAB input'!$H$25:$XFD$74, MATCH($E39, 'RAB input'!$E$25:$E$74, 0), MATCH(BX$4, RAB_years, 0)) -> 0 | BY39: =INDEX('RAB input'!$H$25:$XFD$74, MATCH($E39, 'RAB input'!$E$25:$E$74, 0), MATCH(BY$4, RAB_years, 0)) -> 0 | BZ39: =INDEX('RAB input'!$H$25:$XFD$74, MATCH($E39, 'RAB input'!$E$25:$E$74, 0), MATCH(BZ$4, RAB_years, 0)) -> 0 | CA39: =INDEX('RAB input'!$H$25:$XFD$74, MATCH($E39, 'RAB input'!$E$25:$E$74, 0), MATCH(CA$4, RAB_years, 0)) -> 0 | CB39: =INDEX('RAB input'!$H$25:$XFD$74, MATCH($E39, 'RAB input'!$E$25:$E$74, 0), MATCH(CB$4, RAB_years, 0)) -> 0 | CC39: =INDEX('RAB input'!$H$25:$XFD$74, MATCH($E39, 'RAB input'!$E$25:$E$74, 0), MATCH(CC$4, RAB_years, 0)) -> 0
D40: 23 | E40: ='RAB input'!E47 -> HV Service Connections | G40: 0.7876152091 | H40: 0.06961353249 | I40: =INDEX('RAB input'!$H$25:$XFD$74, MATCH($E40, 'RAB input'!$E$25:$E$74, 0), MATCH(I$4, RAB_years, 0)) -> 0.09367653102 | J40: =INDEX('RAB input'!$H$25:$XFD$74, MATCH($E40, 'RAB input'!$E$25:$E$74, 0), MATCH(J$4, RAB_years, 0)) -> 0.1048581107 | K40: =INDEX('RAB input'!$H$25:$XFD$74, MATCH($E40, 'RAB input'!$E$25:$E$74, 0), MATCH(K$4, RAB_years, 0)) -> 0.15 | L40: =INDEX('RAB input'!$H$25:$XFD$74, MATCH($E40, 'RAB input'!$E$25:$E$74, 0), MATCH(L$4, RAB_years, 0)) -> 0.1534566912 | M40: =INDEX('RAB input'!$H$25:$XFD$74, MATCH($E40, 'RAB input'!$E$25:$E$74, 0), MATCH(M$4, RAB_years, 0)) -> 0.1245674287 | N40: =INDEX('RAB input'!$H$25:$XFD$74, MATCH($E40, 'RAB input'!$E$25:$E$74, 0), MATCH(N$4, RAB_years, 0)) -> 0.07615233136 | O40: =INDEX('RAB input'!$H$25:$XFD$74, MATCH($E40, 'RAB input'!$E$25:$E$74, 0), MATCH(O$4, RAB_years, 0)) -> 0.05133889037 | P40: =INDEX('RAB input'!$H$25:$XFD$74, MATCH($E40, 'RAB input'!$E$25:$E$74, 0), MATCH(P$4, RAB_years, 0)) -> 0.04879966467 | Q40: =INDEX('RAB input'!$H$25:$XFD$74, MATCH($E40, 'RAB input'!$E$25:$E$74, 0), MATCH(Q$4, RAB_years, 0)) -> 0.2151575896 | R40: =INDEX('RAB input'!$H$25:$XFD$74, MATCH($E40, 'RAB input'!$E$25:$E$74, 0), MATCH(R$4, RAB_years, 0)) -> 0.1257687755 | S40: =INDEX('RAB input'!$H$25:$XFD$74, MATCH($E40, 'RAB input'!$E$25:$E$74, 0), MATCH(S$4, RAB_years, 0)) -> 0.2702657702 | T40: =INDEX('RAB input'!$H$25:$XFD$74, MATCH($E40, 'RAB input'!$E$25:$E$74, 0), MATCH(T$4, RAB_years, 0)) -> 0.1331208157 | U40: =INDEX('RAB input'!$H$25:$XFD$74, MATCH($E40, 'RAB input'!$E$25:$E$74, 0), MATCH(U$4, RAB_years, 0)) -> 0 | V40: =INDEX('RAB input'!$H$25:$XFD$74, MATCH($E40, 'RAB input'!$E$25:$E$74, 0), MATCH(V$4, RAB_years, 0)) -> 0 | W40: =INDEX('RAB input'!$H$25:$XFD$74, MATCH($E40, 'RAB input'!$E$25:$E$74, 0), MATCH(W$4, RAB_years, 0)) -> 0 | X40: =INDEX('RAB input'!$H$25:$XFD$74, MATCH($E40, 'RAB input'!$E$25:$E$74, 0), MATCH(X$4, RAB_years, 0)) -> 0 | Y40: =INDEX('RAB input'!$H$25:$XFD$74, MATCH($E40, 'RAB input'!$E$25:$E$74, 0), MATCH(Y$4, RAB_years, 0)) -> 0 | Z40: =INDEX('RAB input'!$H$25:$XFD$74, MATCH($E40, 'RAB input'!$E$25:$E$74, 0), MATCH(Z$4, RAB_years, 0)) -> 0 | AA40: =INDEX('RAB input'!$H$25:$XFD$74, MATCH($E40, 'RAB input'!$E$25:$E$74, 0), MATCH(AA$4, RAB_years, 0)) -> 0 | AB40: =INDEX('RAB input'!$H$25:$XFD$74, MATCH($E40, 'RAB input'!$E$25:$E$74, 0), MATCH(AB$4, RAB_years, 0)) -> 0 | AC40: =INDEX('RAB input'!$H$25:$XFD$74, MATCH($E40, 'RAB input'!$E$25:$E$74, 0), MATCH(AC$4, RAB_years, 0)) -> 0 | AD40: =INDEX('RAB input'!$H$25:$XFD$74, MATCH($E40, 'RAB input'!$E$25:$E$74, 0), MATCH(AD$4, RAB_years, 0)) -> 0 | AE40: =INDEX('RAB input'!$H$25:$XFD$74, MATCH($E40, 'RAB input'!$E$25:$E$74, 0), MATCH(AE$4, RAB_years, 0)) -> 0 | AF40: =INDEX('RAB input'!$H$25:$XFD$74, MATCH($E40, 'RAB input'!$E$25:$E$74, 0), MATCH(AF$4, RAB_years, 0)) -> 0 | AG40: =INDEX('RAB input'!$H$25:$XFD$74, MATCH($E40, 'RAB input'!$E$25:$E$74, 0), MATCH(AG$4, RAB_years, 0)) -> 0 | AH40: =INDEX('RAB input'!$H$25:$XFD$74, MATCH($E40, 'RAB input'!$E$25:$E$74, 0), MATCH(AH$4, RAB_years, 0)) -> 0 | AI40: =INDEX('RAB input'!$H$25:$XFD$74, MATCH($E40, 'RAB input'!$E$25:$E$74, 0), MATCH(AI$4, RAB_years, 0)) -> 0 | AJ40: =INDEX('RAB input'!$H$25:$XFD$74, MATCH($E40, 'RAB input'!$E$25:$E$74, 0), MATCH(AJ$4, RAB_years, 0)) -> 0 | AK40: =INDEX('RAB input'!$H$25:$XFD$74, MATCH($E40, 'RAB input'!$E$25:$E$74, 0), MATCH(AK$4, RAB_years, 0)) -> 0 | AL40: =INDEX('RAB input'!$H$25:$XFD$74, MATCH($E40, 'RAB input'!$E$25:$E$74, 0), MATCH(AL$4, RAB_years, 0)) -> 0 | AM40: =INDEX('RAB input'!$H$25:$XFD$74, MATCH($E40, 'RAB input'!$E$25:$E$74, 0), MATCH(AM$4, RAB_years, 0)) -> 0 | AN40: =INDEX('RAB input'!$H$25:$XFD$74, MATCH($E40, 'RAB input'!$E$25:$E$74, 0), MATCH(AN$4, RAB_years, 0)) -> 0 | AO40: =INDEX('RAB input'!$H$25:$XFD$74, MATCH($E40, 'RAB input'!$E$25:$E$74, 0), MATCH(AO$4, RAB_years, 0)) -> 0 | AP40: =INDEX('RAB input'!$H$25:$XFD$74, MATCH($E40, 'RAB input'!$E$25:$E$74, 0), MATCH(AP$4, RAB_years, 0)) -> 0 | AQ40: =INDEX('RAB input'!$H$25:$XFD$74, MATCH($E40, 'RAB input'!$E$25:$E$74, 0), MATCH(AQ$4, RAB_years, 0)) -> 0 | AR40: =INDEX('RAB input'!$H$25:$XFD$74, MATCH($E40, 'RAB input'!$E$25:$E$74, 0), MATCH(AR$4, RAB_years, 0)) -> 0 | AS40: =INDEX('RAB input'!$H$25:$XFD$74, MATCH($E40, 'RAB input'!$E$25:$E$74, 0), MATCH(AS$4, RAB_years, 0)) -> 0 | AT40: =INDEX('RAB input'!$H$25:$XFD$74, MATCH($E40, 'RAB input'!$E$25:$E$74, 0), MATCH(AT$4, RAB_years, 0)) -> 0 | AU40: =INDEX('RAB input'!$H$25:$XFD$74, MATCH($E40, 'RAB input'!$E$25:$E$74, 0), MATCH(AU$4, RAB_years, 0)) -> 0 | AV40: =INDEX('RAB input'!$H$25:$XFD$74, MATCH($E40, 'RAB input'!$E$25:$E$74, 0), MATCH(AV$4, RAB_years, 0)) -> 0 | AW40: =INDEX('RAB input'!$H$25:$XFD$74, MATCH($E40, 'RAB input'!$E$25:$E$74, 0), MATCH(AW$4, RAB_years, 0)) -> 0 | AX40: =INDEX('RAB input'!$H$25:$XFD$74, MATCH($E40, 'RAB input'!$E$25:$E$74, 0), MATCH(AX$4, RAB_years, 0)) -> 0 | AY40: =INDEX('RAB input'!$H$25:$XFD$74, MATCH($E40, 'RAB input'!$E$25:$E$74, 0), MATCH(AY$4, RAB_years, 0)) -> 0 | AZ40: =INDEX('RAB input'!$H$25:$XFD$74, MATCH($E40, 'RAB input'!$E$25:$E$74, 0), MATCH(AZ$4, RAB_years, 0)) -> 0 | BA40: =INDEX('RAB input'!$H$25:$XFD$74, MATCH($E40, 'RAB input'!$E$25:$E$74, 0), MATCH(BA$4, RAB_years, 0)) -> 0 | BB40: =INDEX('RAB input'!$H$25:$XFD$74, MATCH($E40, 'RAB input'!$E$25:$E$74, 0), MATCH(BB$4, RAB_years, 0)) -> 0 | BC40: =INDEX('RAB input'!$H$25:$XFD$74, MATCH($E40, 'RAB input'!$E$25:$E$74, 0), MATCH(BC$4, RAB_years, 0)) -> 0 | BD40: =INDEX('RAB input'!$H$25:$XFD$74, MATCH($E40, 'RAB input'!$E$25:$E$74, 0), MATCH(BD$4, RAB_years, 0)) -> 0 | BE40: =INDEX('RAB input'!$H$25:$XFD$74, MATCH($E40, 'RAB input'!$E$25:$E$74, 0), MATCH(BE$4, RAB_years, 0)) -> 0 | BF40: =INDEX('RAB input'!$H$25:$XFD$74, MATCH($E40, 'RAB input'!$E$25:$E$74, 0), MATCH(BF$4, RAB_years, 0)) -> 0 | BG40: =INDEX('RAB input'!$H$25:$XFD$74, MATCH($E40, 'RAB input'!$E$25:$E$74, 0), MATCH(BG$4, RAB_years, 0)) -> 0 | BH40: =INDEX('RAB input'!$H$25:$XFD$74, MATCH($E40, 'RAB input'!$E$25:$E$74, 0), MATCH(BH$4, RAB_years, 0)) -> 0 | BI40: =INDEX('RAB input'!$H$25:$XFD$74, MATCH($E40, 'RAB input'!$E$25:$E$74, 0), MATCH(BI$4, RAB_years, 0)) -> 0 | BJ40: =INDEX('RAB input'!$H$25:$XFD$74, MATCH($E40, 'RAB input'!$E$25:$E$74, 0), MATCH(BJ$4, RAB_years, 0)) -> 0 | BK40: =INDEX('RAB input'!$H$25:$XFD$74, MATCH($E40, 'RAB input'!$E$25:$E$74, 0), MATCH(BK$4, RAB_years, 0)) -> 0 | BL40: =INDEX('RAB input'!$H$25:$XFD$74, MATCH($E40, 'RAB input'!$E$25:$E$74, 0), MATCH(BL$4, RAB_years, 0)) -> 0 | BM40: =INDEX('RAB input'!$H$25:$XFD$74, MATCH($E40, 'RAB input'!$E$25:$E$74, 0), MATCH(BM$4, RAB_years, 0)) -> 0 | BN40: =INDEX('RAB input'!$H$25:$XFD$74, MATCH($E40, 'RAB input'!$E$25:$E$74, 0), MATCH(BN$4, RAB_years, 0)) -> 0 | BO40: =INDEX('RAB input'!$H$25:$XFD$74, MATCH($E40, 'RAB input'!$E$25:$E$74, 0), MATCH(BO$4, RAB_years, 0)) -> 0 | BP40: =INDEX('RAB input'!$H$25:$XFD$74, MATCH($E40, 'RAB input'!$E$25:$E$74, 0), MATCH(BP$4, RAB_years, 0)) -> 0 | BQ40: =INDEX('RAB input'!$H$25:$XFD$74, MATCH($E40, 'RAB input'!$E$25:$E$74, 0), MATCH(BQ$4, RAB_years, 0)) -> 0 | BR40: =INDEX('RAB input'!$H$25:$XFD$74, MATCH($E40, 'RAB input'!$E$25:$E$74, 0), MATCH(BR$4, RAB_years, 0)) -> 0 | BS40: =INDEX('RAB input'!$H$25:$XFD$74, MATCH($E40, 'RAB input'!$E$25:$E$74, 0), MATCH(BS$4, RAB_years, 0)) -> 0 | BT40: =INDEX('RAB input'!$H$25:$XFD$74, MATCH($E40, 'RAB input'!$E$25:$E$74, 0), MATCH(BT$4, RAB_years, 0)) -> 0 | BU40: =INDEX('RAB input'!$H$25:$XFD$74, MATCH($E40, 'RAB input'!$E$25:$E$74, 0), MATCH(BU$4, RAB_years, 0)) -> 0 | BV40: =INDEX('RAB input'!$H$25:$XFD$74, MATCH($E40, 'RAB input'!$E$25:$E$74, 0), MATCH(BV$4, RAB_years, 0)) -> 0 | BW40: =INDEX('RAB input'!$H$25:$XFD$74, MATCH($E40, 'RAB input'!$E$25:$E$74, 0), MATCH(BW$4, RAB_years, 0)) -> 0 | BX40: =INDEX('RAB input'!$H$25:$XFD$74, MATCH($E40, 'RAB input'!$E$25:$E$74, 0), MATCH(BX$4, RAB_years, 0)) -> 0 | BY40: =INDEX('RAB input'!$H$25:$XFD$74, MATCH($E40, 'RAB input'!$E$25:$E$74, 0), MATCH(BY$4, RAB_years, 0)) -> 0 | BZ40: =INDEX('RAB input'!$H$25:$XFD$74, MATCH($E40, 'RAB input'!$E$25:$E$74, 0), MATCH(BZ$4, RAB_years, 0)) -> 0 | CA40: =INDEX('RAB input'!$H$25:$XFD$74, MATCH($E40, 'RAB input'!$E$25:$E$74, 0), MATCH(CA$4, RAB_years, 0)) -> 0 | CB40: =INDEX('RAB input'!$H$25:$XFD$74, MATCH($E40, 'RAB input'!$E$25:$E$74, 0), MATCH(CB$4, RAB_years, 0)) -> 0 | CC40: =INDEX('RAB input'!$H$25:$XFD$74, MATCH($E40, 'RAB input'!$E$25:$E$74, 0), MATCH(CC$4, RAB_years, 0)) -> 0
D41: 24 | E41: ='RAB input'!E48 -> HV Metering CA Service Connections | G41: 0.07802661735 | H41: 0.527422759 | I41: =INDEX('RAB input'!$H$25:$XFD$74, MATCH($E41, 'RAB input'!$E$25:$E$74, 0), MATCH(I$4, RAB_years, 0)) -> 0.00751062247 | J41: =INDEX('RAB input'!$H$25:$XFD$74, MATCH($E41, 'RAB input'!$E$25:$E$74, 0), MATCH(J$4, RAB_years, 0)) -> 0.006839048003 | K41: =INDEX('RAB input'!$H$25:$XFD$74, MATCH($E41, 'RAB input'!$E$25:$E$74, 0), MATCH(K$4, RAB_years, 0)) -> 0.001 | L41: =INDEX('RAB input'!$H$25:$XFD$74, MATCH($E41, 'RAB input'!$E$25:$E$74, 0), MATCH(L$4, RAB_years, 0)) -> 0.0061210392 | M41: =INDEX('RAB input'!$H$25:$XFD$74, MATCH($E41, 'RAB input'!$E$25:$E$74, 0), MATCH(M$4, RAB_years, 0)) -> 0.0049156634 | N41: =INDEX('RAB input'!$H$25:$XFD$74, MATCH($E41, 'RAB input'!$E$25:$E$74, 0), MATCH(N$4, RAB_years, 0)) -> -0.003559984542 | O41: =INDEX('RAB input'!$H$25:$XFD$74, MATCH($E41, 'RAB input'!$E$25:$E$74, 0), MATCH(O$4, RAB_years, 0)) -> 0.01121389971 | P41: =INDEX('RAB input'!$H$25:$XFD$74, MATCH($E41, 'RAB input'!$E$25:$E$74, 0), MATCH(P$4, RAB_years, 0)) -> 0.01671830518 | Q41: =INDEX('RAB input'!$H$25:$XFD$74, MATCH($E41, 'RAB input'!$E$25:$E$74, 0), MATCH(Q$4, RAB_years, 0)) -> 0.01376875431 | R41: =INDEX('RAB input'!$H$25:$XFD$74, MATCH($E41, 'RAB input'!$E$25:$E$74, 0), MATCH(R$4, RAB_years, 0)) -> 0.002669809736 | S41: =INDEX('RAB input'!$H$25:$XFD$74, MATCH($E41, 'RAB input'!$E$25:$E$74, 0), MATCH(S$4, RAB_years, 0)) -> 0.00407867483 | T41: =INDEX('RAB input'!$H$25:$XFD$74, MATCH($E41, 'RAB input'!$E$25:$E$74, 0), MATCH(T$4, RAB_years, 0)) -> 0.010799985 | U41: =INDEX('RAB input'!$H$25:$XFD$74, MATCH($E41, 'RAB input'!$E$25:$E$74, 0), MATCH(U$4, RAB_years, 0)) -> 0 | V41: =INDEX('RAB input'!$H$25:$XFD$74, MATCH($E41, 'RAB input'!$E$25:$E$74, 0), MATCH(V$4, RAB_years, 0)) -> 0 | W41: =INDEX('RAB input'!$H$25:$XFD$74, MATCH($E41, 'RAB input'!$E$25:$E$74, 0), MATCH(W$4, RAB_years, 0)) -> 0 | X41: =INDEX('RAB input'!$H$25:$XFD$74, MATCH($E41, 'RAB input'!$E$25:$E$74, 0), MATCH(X$4, RAB_years, 0)) -> 0 | Y41: =INDEX('RAB input'!$H$25:$XFD$74, MATCH($E41, 'RAB input'!$E$25:$E$74, 0), MATCH(Y$4, RAB_years, 0)) -> 0 | Z41: =INDEX('RAB input'!$H$25:$XFD$74, MATCH($E41, 'RAB input'!$E$25:$E$74, 0), MATCH(Z$4, RAB_years, 0)) -> 0 | AA41: =INDEX('RAB input'!$H$25:$XFD$74, MATCH($E41, 'RAB input'!$E$25:$E$74, 0), MATCH(AA$4, RAB_years, 0)) -> 0 | AB41: =INDEX('RAB input'!$H$25:$XFD$74, MATCH($E41, 'RAB input'!$E$25:$E$74, 0), MATCH(AB$4, RAB_years, 0)) -> 0 | AC41: =INDEX('RAB input'!$H$25:$XFD$74, MATCH($E41, 'RAB input'!$E$25:$E$74, 0), MATCH(AC$4, RAB_years, 0)) -> 0 | AD41: =INDEX('RAB input'!$H$25:$XFD$74, MATCH($E41, 'RAB input'!$E$25:$E$74, 0), MATCH(AD$4, RAB_years, 0)) -> 0 | AE41: =INDEX('RAB input'!$H$25:$XFD$74, MATCH($E41, 'RAB input'!$E$25:$E$74, 0), MATCH(AE$4, RAB_years, 0)) -> 0 | AF41: =INDEX('RAB input'!$H$25:$XFD$74, MATCH($E41, 'RAB input'!$E$25:$E$74, 0), MATCH(AF$4, RAB_years, 0)) -> 0 | AG41: =INDEX('RAB input'!$H$25:$XFD$74, MATCH($E41, 'RAB input'!$E$25:$E$74, 0), MATCH(AG$4, RAB_years, 0)) -> 0 | AH41: =INDEX('RAB input'!$H$25:$XFD$74, MATCH($E41, 'RAB input'!$E$25:$E$74, 0), MATCH(AH$4, RAB_years, 0)) -> 0 | AI41: =INDEX('RAB input'!$H$25:$XFD$74, MATCH($E41, 'RAB input'!$E$25:$E$74, 0), MATCH(AI$4, RAB_years, 0)) -> 0 | AJ41: =INDEX('RAB input'!$H$25:$XFD$74, MATCH($E41, 'RAB input'!$E$25:$E$74, 0), MATCH(AJ$4, RAB_years, 0)) -> 0 | AK41: =INDEX('RAB input'!$H$25:$XFD$74, MATCH($E41, 'RAB input'!$E$25:$E$74, 0), MATCH(AK$4, RAB_years, 0)) -> 0 | AL41: =INDEX('RAB input'!$H$25:$XFD$74, MATCH($E41, 'RAB input'!$E$25:$E$74, 0), MATCH(AL$4, RAB_years, 0)) -> 0 | AM41: =INDEX('RAB input'!$H$25:$XFD$74, MATCH($E41, 'RAB input'!$E$25:$E$74, 0), MATCH(AM$4, RAB_years, 0)) -> 0 | AN41: =INDEX('RAB input'!$H$25:$XFD$74, MATCH($E41, 'RAB input'!$E$25:$E$74, 0), MATCH(AN$4, RAB_years, 0)) -> 0 | AO41: =INDEX('RAB input'!$H$25:$XFD$74, MATCH($E41, 'RAB input'!$E$25:$E$74, 0), MATCH(AO$4, RAB_years, 0)) -> 0 | AP41: =INDEX('RAB input'!$H$25:$XFD$74, MATCH($E41, 'RAB input'!$E$25:$E$74, 0), MATCH(AP$4, RAB_years, 0)) -> 0 | AQ41: =INDEX('RAB input'!$H$25:$XFD$74, MATCH($E41, 'RAB input'!$E$25:$E$74, 0), MATCH(AQ$4, RAB_years, 0)) -> 0 | AR41: =INDEX('RAB input'!$H$25:$XFD$74, MATCH($E41, 'RAB input'!$E$25:$E$74, 0), MATCH(AR$4, RAB_years, 0)) -> 0 | AS41: =INDEX('RAB input'!$H$25:$XFD$74, MATCH($E41, 'RAB input'!$E$25:$E$74, 0), MATCH(AS$4, RAB_years, 0)) -> 0 | AT41: =INDEX('RAB input'!$H$25:$XFD$74, MATCH($E41, 'RAB input'!$E$25:$E$74, 0), MATCH(AT$4, RAB_years, 0)) -> 0 | AU41: =INDEX('RAB input'!$H$25:$XFD$74, MATCH($E41, 'RAB input'!$E$25:$E$74, 0), MATCH(AU$4, RAB_years, 0)) -> 0 | AV41: =INDEX('RAB input'!$H$25:$XFD$74, MATCH($E41, 'RAB input'!$E$25:$E$74, 0), MATCH(AV$4, RAB_years, 0)) -> 0 | AW41: =INDEX('RAB input'!$H$25:$XFD$74, MATCH($E41, 'RAB input'!$E$25:$E$74, 0), MATCH(AW$4, RAB_years, 0)) -> 0 | AX41: =INDEX('RAB input'!$H$25:$XFD$74, MATCH($E41, 'RAB input'!$E$25:$E$74, 0), MATCH(AX$4, RAB_years, 0)) -> 0 | AY41: =INDEX('RAB input'!$H$25:$XFD$74, MATCH($E41, 'RAB input'!$E$25:$E$74, 0), MATCH(AY$4, RAB_years, 0)) -> 0 | AZ41: =INDEX('RAB input'!$H$25:$XFD$74, MATCH($E41, 'RAB input'!$E$25:$E$74, 0), MATCH(AZ$4, RAB_years, 0)) -> 0 | BA41: =INDEX('RAB input'!$H$25:$XFD$74, MATCH($E41, 'RAB input'!$E$25:$E$74, 0), MATCH(BA$4, RAB_years, 0)) -> 0 | BB41: =INDEX('RAB input'!$H$25:$XFD$74, MATCH($E41, 'RAB input'!$E$25:$E$74, 0), MATCH(BB$4, RAB_years, 0)) -> 0 | BC41: =INDEX('RAB input'!$H$25:$XFD$74, MATCH($E41, 'RAB input'!$E$25:$E$74, 0), MATCH(BC$4, RAB_years, 0)) -> 0 | BD41: =INDEX('RAB input'!$H$25:$XFD$74, MATCH($E41, 'RAB input'!$E$25:$E$74, 0), MATCH(BD$4, RAB_years, 0)) -> 0 | BE41: =INDEX('RAB input'!$H$25:$XFD$74, MATCH($E41, 'RAB input'!$E$25:$E$74, 0), MATCH(BE$4, RAB_years, 0)) -> 0 | BF41: =INDEX('RAB input'!$H$25:$XFD$74, MATCH($E41, 'RAB input'!$E$25:$E$74, 0), MATCH(BF$4, RAB_years, 0)) -> 0 | BG41: =INDEX('RAB input'!$H$25:$XFD$74, MATCH($E41, 'RAB input'!$E$25:$E$74, 0), MATCH(BG$4, RAB_years, 0)) -> 0 | BH41: =INDEX('RAB input'!$H$25:$XFD$74, MATCH($E41, 'RAB input'!$E$25:$E$74, 0), MATCH(BH$4, RAB_years, 0)) -> 0 | BI41: =INDEX('RAB input'!$H$25:$XFD$74, MATCH($E41, 'RAB input'!$E$25:$E$74, 0), MATCH(BI$4, RAB_years, 0)) -> 0 | BJ41: =INDEX('RAB input'!$H$25:$XFD$74, MATCH($E41, 'RAB input'!$E$25:$E$74, 0), MATCH(BJ$4, RAB_years, 0)) -> 0 | BK41: =INDEX('RAB input'!$H$25:$XFD$74, MATCH($E41, 'RAB input'!$E$25:$E$74, 0), MATCH(BK$4, RAB_years, 0)) -> 0 | BL41: =INDEX('RAB input'!$H$25:$XFD$74, MATCH($E41, 'RAB input'!$E$25:$E$74, 0), MATCH(BL$4, RAB_years, 0)) -> 0 | BM41: =INDEX('RAB input'!$H$25:$XFD$74, MATCH($E41, 'RAB input'!$E$25:$E$74, 0), MATCH(BM$4, RAB_years, 0)) -> 0 | BN41: =INDEX('RAB input'!$H$25:$XFD$74, MATCH($E41, 'RAB input'!$E$25:$E$74, 0), MATCH(BN$4, RAB_years, 0)) -> 0 | BO41: =INDEX('RAB input'!$H$25:$XFD$74, MATCH($E41, 'RAB input'!$E$25:$E$74, 0), MATCH(BO$4, RAB_years, 0)) -> 0 | BP41: =INDEX('RAB input'!$H$25:$XFD$74, MATCH($E41, 'RAB input'!$E$25:$E$74, 0), MATCH(BP$4, RAB_years, 0)) -> 0 | BQ41: =INDEX('RAB input'!$H$25:$XFD$74, MATCH($E41, 'RAB input'!$E$25:$E$74, 0), MATCH(BQ$4, RAB_years, 0)) -> 0 | BR41: =INDEX('RAB input'!$H$25:$XFD$74, MATCH($E41, 'RAB input'!$E$25:$E$74, 0), MATCH(BR$4, RAB_years, 0)) -> 0 | BS41: =INDEX('RAB input'!$H$25:$XFD$74, MATCH($E41, 'RAB input'!$E$25:$E$74, 0), MATCH(BS$4, RAB_years, 0)) -> 0 | BT41: =INDEX('RAB input'!$H$25:$XFD$74, MATCH($E41, 'RAB input'!$E$25:$E$74, 0), MATCH(BT$4, RAB_years, 0)) -> 0 | BU41: =INDEX('RAB input'!$H$25:$XFD$74, MATCH($E41, 'RAB input'!$E$25:$E$74, 0), MATCH(BU$4, RAB_years, 0)) -> 0 | BV41: =INDEX('RAB input'!$H$25:$XFD$74, MATCH($E41, 'RAB input'!$E$25:$E$74, 0), MATCH(BV$4, RAB_years, 0)) -> 0 | BW41: =INDEX('RAB input'!$H$25:$XFD$74, MATCH($E41, 'RAB input'!$E$25:$E$74, 0), MATCH(BW$4, RAB_years, 0)) -> 0 | BX41: =INDEX('RAB input'!$H$25:$XFD$74, MATCH($E41, 'RAB input'!$E$25:$E$74, 0), MATCH(BX$4, RAB_years, 0)) -> 0 | BY41: =INDEX('RAB input'!$H$25:$XFD$74, MATCH($E41, 'RAB input'!$E$25:$E$74, 0), MATCH(BY$4, RAB_years, 0)) -> 0 | BZ41: =INDEX('RAB input'!$H$25:$XFD$74, MATCH($E41, 'RAB input'!$E$25:$E$74, 0), MATCH(BZ$4, RAB_years, 0)) -> 0 | CA41: =INDEX('RAB input'!$H$25:$XFD$74, MATCH($E41, 'RAB input'!$E$25:$E$74, 0), MATCH(CA$4, RAB_years, 0)) -> 0 | CB41: =INDEX('RAB input'!$H$25:$XFD$74, MATCH($E41, 'RAB input'!$E$25:$E$74, 0), MATCH(CB$4, RAB_years, 0)) -> 0 | CC41: =INDEX('RAB input'!$H$25:$XFD$74, MATCH($E41, 'RAB input'!$E$25:$E$74, 0), MATCH(CC$4, RAB_years, 0)) -> 0
